Workbook

Sheet Vstup
A1: STARTOVNÍ LISTINA
A2: Název závodu : | C2: =IF(Data!B16<>"",Data!B16,"") -> Josefovský brokový trojboj
C3: =IF(Data!B17<>"",Data!B17&" TERČŮ","") -> 60 TERČŮ
A4: Druh závodu : | C4: =IF(Data!B19<>"",Data!B19,"") -> SPORTING
A5: Datum konání : | C5: =IF(Data!B20<>"",Data!B20,"") -> 20.03.2022
C6: Informace ASAT kategorie: | D6: http://www.asat.cz/zarazeni-kategorii.html
A7: Skupina číslo | B7: Start. číslo | C7: Příjmení, jméno | D7: Kategorie | F7: ="Počet střelců : "&Data!B14 -> Počet střelců : 48
D8: ASAT | E8: Ručně
A9: 1 | B9: 1 | C9: Štenglová Michaela | D9: =IF(E9<>"",E9,VLOOKUP(C9,ASAT2!$A$2:$G$1000,7,0)) -> S | E9: S
B10: 2 | C10: Vaněk Matěj | D10: =IF(E10<>"",E10,VLOOKUP(C10,ASAT2!$A$2:$G$1000,7,0)) -> S | E10: S
B11: 3 | C11: Veltruský Jiří | D11: =IF(E11<>"",E11,VLOOKUP(C11,ASAT2!$A$2:$G$1000,7,0)) -> S | E11: S
B12: 4 | C12: Černý Bohuslav | D12: =IF(E12<>"",E12,VLOOKUP(C12,ASAT2!$A$2:$G$1000,7,0)) -> S | E12: S
B13: 5 | C13: Šindelář Jiří st. | D13: =IF(E13<>"",E13,VLOOKUP(C13,ASAT2!$A$2:$G$1000,7,0)) -> S | E13: S
B14: 6 | C14: Mařík Josef | D14: =IF(E14<>"",E14,VLOOKUP(C14,ASAT2!$A$2:$G$1000,7,0)) -> S | E14: S
A15: 2 | B15: 7 | C15: Lízalová Veronika | D15: =IF(E15<>"",E15,VLOOKUP(C15,ASAT2!$A$2:$G$1000,7,0)) -> S | E15: S
B16: 8 | C16: Lízal Miroslav ml. | D16: =IF(E16<>"",E16,VLOOKUP(C16,ASAT2!$A$2:$G$1000,7,0)) -> S | E16: S
B17: 9 | C17: Kondr Václav | D17: =IF(E17<>"",E17,VLOOKUP(C17,ASAT2!$A$2:$G$1000,7,0)) -> S | E17: S
B18: 10 | C18: Frenkl Jiří | D18: =IF(E18<>"",E18,VLOOKUP(C18,ASAT2!$A$2:$G$1000,7,0)) -> S | E18: S
B19: 11 | C19: Adámek Bohuslav | D19: =IF(E19<>"",E19,VLOOKUP(C19,ASAT2!$A$2:$G$1000,7,0)) -> S | E19: S
B20: 12 | C20: Urban Josef | D20: =IF(E20<>"",E20,VLOOKUP(C20,ASAT2!$A$2:$G$1000,7,0)) -> S | E20: S
A21: 3 | B21: 13 | C21: Trepka Jiří | D21: =IF(E21<>"",E21,VLOOKUP(C21,ASAT2!$A$2:$G$1000,7,0)) -> S | E21: S
B22: 14 | C22: Dusík Vladimír | D22: =IF(E22<>"",E22,VLOOKUP(C22,ASAT2!$A$2:$G$1000,7,0)) -> S | E22: S
B23: 15 | C23: Kotrbáček Václav | D23: =IF(E23<>"",E23,VLOOKUP(C23,ASAT2!$A$2:$G$1000,7,0)) -> S | E23: S
B24: 16 | C24: Doležal Jaroslav | D24: =IF(E24<>"",E24,VLOOKUP(C24,ASAT2!$A$2:$G$1000,7,0)) -> S | E24: S
B25: 17 | C25: Křepelka Jan | D25: =IF(E25<>"",E25,VLOOKUP(C25,ASAT2!$A$2:$G$1000,7,0)) -> S | E25: S
B26: 18 | C26: Bém Josef | D26: =IF(E26<>"",E26,VLOOKUP(C26,ASAT2!$A$2:$G$1000,7,0)) -> S | E26: S
A27: 4 | B27: 19 | C27: Čechura Petr | D27: =IF(E27<>"",E27,VLOOKUP(C27,ASAT2!$A$2:$G$1000,7,0)) -> S | E27: S
B28: 20 | C28: Čechura Pavel | D28: =IF(E28<>"",E28,VLOOKUP(C28,ASAT2!$A$2:$G$1000,7,0)) -> S | E28: S
B29: 21 | C29: Sedláček Jiří | D29: =IF(E29<>"",E29,VLOOKUP(C29,ASAT2!$A$2:$G$1000,7,0)) -> S | E29: S
B30: 22 | C30: Hájek Petr | D30: =IF(E30<>"",E30,VLOOKUP(C30,ASAT2!$A$2:$G$1000,7,0)) -> S | E30: S
B31: 23 | C31: Volf Jiří | D31: =IF(E31<>"",E31,VLOOKUP(C31,ASAT2!$A$2:$G$1000,7,0)) -> S | E31: S
B32: 24 | C32: Navara Josef | D32: =IF(E32<>"",E32,VLOOKUP(C32,ASAT2!$A$2:$G$1000,7,0)) -> S | E32: S
A33: 5 | B33: 25 | C33: Šindelář Jan | D33: =IF(E33<>"",E33,VLOOKUP(C33,ASAT2!$A$2:$G$1000,7,0)) -> S | E33: S
B34: 26 | C34: Jira Tomáš | D34: =IF(E34<>"",E34,VLOOKUP(C34,ASAT2!$A$2:$G$1000,7,0)) -> S | E34: S
B35: 27 | C35: Gorschenek Martin | D35: =IF(E35<>"",E35,VLOOKUP(C35,ASAT2!$A$2:$G$1000,7,0)) -> S | E35: S
B36: 28 | C36: Leihs Gustav | D36: =IF(E36<>"",E36,VLOOKUP(C36,ASAT2!$A$2:$G$1000,7,0)) -> S | E36: S
B37: 29 | C37: Škrýba Petr | D37: =IF(E37<>"",E37,VLOOKUP(C37,ASAT2!$A$2:$G$1000,7,0)) -> S | E37: S
B38: 30 | C38: Růžek Luboš | D38: =IF(E38<>"",E38,VLOOKUP(C38,ASAT2!$A$2:$G$1000,7,0)) -> S | E38: S
A39: 6 | B39: 31 | C39: Albl Václav | D39: =IF(E39<>"",E39,VLOOKUP(C39,ASAT2!$A$2:$G$1000,7,0)) -> S | E39: S
B40: 32 | C40: Noháček Jaroslav | D40: =IF(E40<>"",E40,VLOOKUP(C40,ASAT2!$A$2:$G$1000,7,0)) -> S | E40: S
B41: 33 | C41: Noháček Pavel | D41: =IF(E41<>"",E41,VLOOKUP(C41,ASAT2!$A$2:$G$1000,7,0)) -> S | E41: S
B42: 34 | C42: Mach Josef | D42: =IF(E42<>"",E42,VLOOKUP(C42,ASAT2!$A$2:$G$1000,7,0)) -> S | E42: S
B43: 35 | C43: Lusk Stanislav | D43: =IF(E43<>"",E43,VLOOKUP(C43,ASAT2!$A$2:$G$1000,7,0)) -> S | E43: S
B44: 36 | C44: Mach Jan | D44: =IF(E44<>"",E44,VLOOKUP(C44,ASAT2!$A$2:$G$1000,7,0)) -> S | E44: S
A45: 7 | B45: 37 | C45: Hromada Jaroslav | D45: =IF(E45<>"",E45,VLOOKUP(C45,ASAT2!$A$2:$G$1000,7,0)) -> S | E45: S
B46: 38 | C46: Racek Petr | D46: =IF(E46<>"",E46,VLOOKUP(C46,ASAT2!$A$2:$G$1000,7,0)) -> S | E46: S
B47: 39 | C47: Říha Jiří | D47: =IF(E47<>"",E47,VLOOKUP(C47,ASAT2!$A$2:$G$1000,7,0)) -> S | E47: S
B48: 40 | C48: Kočí Radek | D48: =IF(E48<>"",E48,VLOOKUP(C48,ASAT2!$A$2:$G$1000,7,0)) -> S | E48: S
B49: 41 | C49: Pechan Josef | D49: =IF(E49<>"",E49,VLOOKUP(C49,ASAT2!$A$2:$G$1000,7,0)) -> S | E49: S
B50: 42 | C50: Kučera Václav | D50: =IF(E50<>"",E50,VLOOKUP(C50,ASAT2!$A$2:$G$1000,7,0)) -> S | E50: S
A51: 8 | B51: 43 | C51: Štengl Jiří | D51: =IF(E51<>"",E51,VLOOKUP(C51,ASAT2!$A$2:$G$1000,7,0)) -> S | E51: S
B52: 44 | C52: Kubík Jindřich | D52: =IF(E52<>"",E52,VLOOKUP(C52,ASAT2!$A$2:$G$1000,7,0)) -> S | E52: S
B53: 45 | C53: Vodička Miroslav | D53: =IF(E53<>"",E53,VLOOKUP(C53,ASAT2!$A$2:$G$1000,7,0)) -> S | E53: S
B54: 46 | C54: Šindelář Milan | D54: =IF(E54<>"",E54,VLOOKUP(C54,ASAT2!$A$2:$G$1000,7,0)) -> S | E54: S
B55: 47 | C55: Förster Karel | D55: =IF(E55<>"",E55,VLOOKUP(C55,ASAT2!$A$2:$G$1000,7,0)) -> S | E55: S
B56: 48 | C56: Ulrych Jiří | D56: =IF(E56<>"",E56,VLOOKUP(C56,ASAT2!$A$2:$G$1000,7,0)) -> S | E56: S
A57: 9 | B57: 49 | D57: =IF(E57<>"",E57,VLOOKUP(C57,ASAT2!$A$2:$G$1000,7,0)) -> S | E57: S
B58: 50 | D58: =IF(E58<>"",E58,VLOOKUP(C58,ASAT2!$A$2:$G$1000,7,0)) -> S | E58: S
B59: 51 | D59: =IF(E59<>"",E59,VLOOKUP(C59,ASAT2!$A$2:$G$1000,7,0)) -> S | E59: S
B60: 52 | D60: =IF(E60<>"",E60,VLOOKUP(C60,ASAT2!$A$2:$G$1000,7,0)) -> S | E60: S
B61: 53 | D61: =IF(E61<>"",E61,VLOOKUP(C61,ASAT2!$A$2:$G$1000,7,0)) -> S | E61: S
B62: 54 | D62: =IF(E62<>"",E62,VLOOKUP(C62,ASAT2!$A$2:$G$1000,7,0)) -> S | E62: S
A63: 10 | B63: 55 | D63: =IF(E63<>"",E63,VLOOKUP(C63,ASAT2!$A$2:$G$1000,7,0)) -> S | E63: S
B64: 56 | D64: =IF(E64<>"",E64,VLOOKUP(C64,ASAT2!$A$2:$G$1000,7,0)) -> S | E64: S
B65: 57 | D65: =IF(E65<>"",E65,VLOOKUP(C65,ASAT2!$A$2:$G$1000,7,0)) -> S | E65: S
B66: 58 | D66: =IF(E66<>"",E66,VLOOKUP(C66,ASAT2!$A$2:$G$1000,7,0)) -> S | E66: S
B67: 59 | D67: =IF(E67<>"",E67,VLOOKUP(C67,ASAT2!$A$2:$G$1000,7,0)) -> S | E67: S
B68: 60 | D68: =IF(E68<>"",E68,VLOOKUP(C68,ASAT2!$A$2:$G$1000,7,0)) -> S | E68: S
A69: 11 | D69: =IF(E69<>"",E69,VLOOKUP(C69,ASAT2!$A$2:$G$1000,7,0)) -> S | E69: S
D70: =IF(E70<>"",E70,VLOOKUP(C70,ASAT2!$A$2:$G$1000,7,0)) -> S | E70: S
D71: =IF(E71<>"",E71,VLOOKUP(C71,ASAT2!$A$2:$G$1000,7,0)) -> S | E71: S
D72: =IF(E72<>"",E72,VLOOKUP(C72,ASAT2!$A$2:$G$1000,7,0)) -> S | E72: S
D73: =IF(E73<>"",E73,VLOOKUP(C73,ASAT2!$A$2:$G$1000,7,0)) -> S | E73: S
D74: =IF(E74<>"",E74,VLOOKUP(C74,ASAT2!$A$2:$G$1000,7,0)) -> S | E74: S
A75: 12 | B75: 67 | D75: =IF(E75<>"",E75,VLOOKUP(C75,ASAT2!$A$2:$G$1000,7,0)) -> 
B76: 68 | D76: =IF(E76<>"",E76,VLOOKUP(C76,ASAT2!$A$2:$G$1000,7,0)) -> 
B77: 69 | D77: =IF(E77<>"",E77,VLOOKUP(C77,ASAT2!$A$2:$G$1000,7,0)) -> 
B78: 70 | D78: =IF(E78<>"",E78,VLOOKUP(C78,ASAT2!$A$2:$G$1000,7,0)) -> 
B79: 71 | D79: =IF(E79<>"",E79,VLOOKUP(C79,ASAT2!$A$2:$G$1000,7,0)) -> 
B80: 72 | D80: =IF(E80<>"",E80,VLOOKUP(C80,ASAT2!$A$2:$G$1000,7,0)) -> 
A81: 13 | B81: 73 | D81: =IF(E81<>"",E81,VLOOKUP(C81,ASAT2!$A$2:$G$1000,7,0)) -> 
B82: 74 | D82: =IF(E82<>"",E82,VLOOKUP(C82,ASAT2!$A$2:$G$1000,7,0)) -> 
B83: 75 | D83: =IF(E83<>"",E83,VLOOKUP(C83,ASAT2!$A$2:$G$1000,7,0)) -> 
B84: 76 | D84: =IF(E84<>"",E84,VLOOKUP(C84,ASAT2!$A$2:$G$1000,7,0)) -> 
B85: 77 | D85: =IF(E85<>"",E85,VLOOKUP(C85,ASAT2!$A$2:$G$1000,7,0)) -> 
B86: 78 | D86: =IF(E86<>"",E86,VLOOKUP(C86,ASAT2!$A$2:$G$1000,7,0)) -> 
A87: 14 | B87: 79 | D87: =IF(E87<>"",E87,VLOOKUP(C87,ASAT2!$A$2:$G$1000,7,0)) -> 
B88: 80 | D88: =IF(E88<>"",E88,VLOOKUP(C88,ASAT2!$A$2:$G$1000,7,0)) -> 
B89: 81 | D89: =IF(E89<>"",E89,VLOOKUP(C89,ASAT2!$A$2:$G$1000,7,0)) -> 
B90: 82 | D90: =IF(E90<>"",E90,VLOOKUP(C90,ASAT2!$A$2:$G$1000,7,0)) -> 
B91: 83 | D91: =IF(E91<>"",E91,VLOOKUP(C91,ASAT2!$A$2:$G$1000,7,0)) -> 
B92: 84 | D92: =IF(E92<>"",E92,VLOOKUP(C92,ASAT2!$A$2:$G$1000,7,0)) -> 
A93: 15 | B93: 85 | D93: =IF(E93<>"",E93,VLOOKUP(C93,ASAT2!$A$2:$G$1000,7,0)) -> 
B94: 86 | D94: =IF(E94<>"",E94,VLOOKUP(C94,ASAT2!$A$2:$G$1000,7,0)) -> 
B95: 87 | D95: =IF(E95<>"",E95,VLOOKUP(C95,ASAT2!$A$2:$G$1000,7,0)) -> 
B96: 88 | D96: =IF(E96<>"",E96,VLOOKUP(C96,ASAT2!$A$2:$G$1000,7,0)) -> 
B97: 89 | D97: =IF(E97<>"",E97,VLOOKUP(C97,ASAT2!$A$2:$G$1000,7,0)) -> 
B98: 90 | D98: =IF(E98<>"",E98,VLOOKUP(C98,ASAT2!$A$2:$G$1000,7,0)) -> 
A99: 16 | B99: 91 | D99: =IF(E99<>"",E99,VLOOKUP(C99,ASAT2!$A$2:$G$1000,7,0)) -> 
B100: 92 | D100: =IF(E100<>"",E100,VLOOKUP(C100,ASAT2!$A$2:$G$1000,7,0)) -> 
B101: 93 | D101: =IF(E101<>"",E101,VLOOKUP(C101,ASAT2!$A$2:$G$1000,7,0)) -> 
B102: 94 | D102: =IF(E102<>"",E102,VLOOKUP(C102,ASAT2!$A$2:$G$1000,7,0)) -> 
B103: 95 | D103: =IF(E103<>"",E103,VLOOKUP(C103,ASAT2!$A$2:$G$1000,7,0)) -> 
B104: 96 | D104: =IF(E104<>"",E104,VLOOKUP(C104,ASAT2!$A$2:$G$1000,7,0)) -> 
A105: 17 | B105: 97 | D105: =IF(E105<>"",E105,VLOOKUP(C105,ASAT2!$A$2:$G$1000,7,0)) -> 
B106: 98 | D106: =IF(E106<>"",E106,VLOOKUP(C106,ASAT2!$A$2:$G$1000,7,0)) -> 
B107: 99 | D107: =IF(E107<>"",E107,VLOOKUP(C107,ASAT2!$A$2:$G$1000,7,0)) -> 
B108: 100 | D108: =IF(E108<>"",E108,VLOOKUP(C108,ASAT2!$A$2:$G$1000,7,0)) -> 
B109: 101 | D109: =IF(E109<>"",E109,VLOOKUP(C109,ASAT2!$A$2:$G$1000,7,0)) -> 
B110: 102 | D110: =IF(E110<>"",E110,VLOOKUP(C110,ASAT2!$A$2:$G$1000,7,0)) -> 
A111: 18 | B111: 103 | D111: =IF(E111<>"",E111,VLOOKUP(C111,ASAT2!$A$2:$G$1000,7,0)) -> 
B112: 104 | D112: =IF(E112<>"",E112,VLOOKUP(C112,ASAT2!$A$2:$G$1000,7,0)) -> 
B113: 105 | D113: =IF(E113<>"",E113,VLOOKUP(C113,ASAT2!$A$2:$G$1000,7,0)) -> 
B114: 106 | D114: =IF(E114<>"",E114,VLOOKUP(C114,ASAT2!$A$2:$G$1000,7,0)) -> 
B115: 107 | D115: =IF(E115<>"",E115,VLOOKUP(C115,ASAT2!$A$2:$G$1000,7,0)) -> 
B116: 108 | D116: =IF(E116<>"",E116,VLOOKUP(C116,ASAT2!$A$2:$G$1000,7,0)) -> 
A117: 19 | B117: 109 | D117: =IF(E117<>"",E117,VLOOKUP(C117,ASAT2!$A$2:$G$1000,7,0)) -> 
B118: 110 | D118: =IF(E118<>"",E118,VLOOKUP(C118,ASAT2!$A$2:$G$1000,7,0)) -> 
B119: 111 | D119: =IF(E119<>"",E119,VLOOKUP(C119,ASAT2!$A$2:$G$1000,7,0)) -> 
B120: 112 | D120: =IF(E120<>"",E120,VLOOKUP(C120,ASAT2!$A$2:$G$1000,7,0)) -> 
B121: 113 | D121: =IF(E121<>"",E121,VLOOKUP(C121,ASAT2!$A$2:$G$1000,7,0)) -> 
B122: 114 | D122: =IF(E122<>"",E122,VLOOKUP(C122,ASAT2!$A$2:$G$1000,7,0)) -> 
A123: 20 | B123: 115 | D123: =IF(E123<>"",E123,VLOOKUP(C123,ASAT2!$A$2:$G$1000,7,0)) -> 
B124: 116 | D124: =IF(E124<>"",E124,VLOOKUP(C124,ASAT2!$A$2:$G$1000,7,0)) -> 
B125: 117 | D125: =IF(E125<>"",E125,VLOOKUP(C125,ASAT2!$A$2:$G$1000,7,0)) -> 
B126: 118 | D126: =IF(E126<>"",E126,VLOOKUP(C126,ASAT2!$A$2:$G$1000,7,0)) -> 
B127: 119 | D127: =IF(E127<>"",E127,VLOOKUP(C127,ASAT2!$A$2:$G$1000,7,0)) -> 
B128: 120 | D128: =IF(E128<>"",E128,VLOOKUP(C128,ASAT2!$A$2:$G$1000,7,0)) -> 

Sheet List2 (hidden)

Sheet StartList (hidden)
A1: =Vstup!$C$2&IF(Vstup!$C$3<>"",", "&Vstup!$C$3,"")&IF(Vstup!C5<>"",", "&Vstup!C5,"") -> Josefovský brokový trojboj, 60 TERČŮ, 20.03.2022
A2: STARTOVNÍ LISTINA
A4: Skupina číslo | B4: Start. číslo | C4: Příjmení, jméno | D4: Kat. | F4: Skupina číslo | G4: Start. číslo | H4: Příjmení, jméno | I4: Kat.
A6: 1 | B6: 1 | C6: =IF(Vstup!C9<>"",Vstup!C9,"") -> Štenglová Michaela | D6: =IF(Vstup!C9<>"",Vstup!D9,"") -> S | F6: 11 | G6: 61 | H6: =IF(Vstup!C69<>"",Vstup!C69,"") ->  | I6: =IF(Vstup!C69<>"",Vstup!D69,"") -> 
B7: 2 | C7: =IF(Vstup!C10<>"",Vstup!C10,"") -> Vaněk Matěj | D7: =IF(Vstup!C10<>"",Vstup!D10,"") -> S | G7: 62 | H7: =IF(Vstup!C70<>"",Vstup!C70,"") ->  | I7: =IF(Vstup!C70<>"",Vstup!D70,"") -> 
B8: 3 | C8: =IF(Vstup!C11<>"",Vstup!C11,"") -> Veltruský Jiří | D8: =IF(Vstup!C11<>"",Vstup!D11,"") -> S | G8: 63 | H8: =IF(Vstup!C71<>"",Vstup!C71,"") ->  | I8: =IF(Vstup!C71<>"",Vstup!D71,"") -> 
B9: 4 | C9: =IF(Vstup!C12<>"",Vstup!C12,"") -> Černý Bohuslav | D9: =IF(Vstup!C12<>"",Vstup!D12,"") -> S | G9: 64 | H9: =IF(Vstup!C72<>"",Vstup!C72,"") ->  | I9: =IF(Vstup!C72<>"",Vstup!D72,"") -> 
B10: 5 | C10: =IF(Vstup!C13<>"",Vstup!C13,"") -> Šindelář Jiří st. | D10: =IF(Vstup!C13<>"",Vstup!D13,"") -> S | G10: 65 | H10: =IF(Vstup!C73<>"",Vstup!C73,"") ->  | I10: =IF(Vstup!C73<>"",Vstup!D73,"") -> 
B11: 6 | C11: =IF(Vstup!C14<>"",Vstup!C14,"") -> Mařík Josef | D11: =IF(Vstup!C14<>"",Vstup!D14,"") -> S | G11: 66 | H11: =IF(Vstup!C74<>"",Vstup!C74,"") ->  | I11: =IF(Vstup!C74<>"",Vstup!D74,"") -> 
A12: 2 | B12: 7 | C12: =IF(Vstup!C15<>"",Vstup!C15,"") -> Lízalová Veronika | D12: =IF(Vstup!C15<>"",Vstup!D15,"") -> S | F12: 12 | G12: 67 | H12: =IF(Vstup!C75<>"",Vstup!C75,"") ->  | I12: =IF(Vstup!C75<>"",Vstup!D75,"") -> 
B13: 8 | C13: =IF(Vstup!C16<>"",Vstup!C16,"") -> Lízal Miroslav ml. | D13: =IF(Vstup!C16<>"",Vstup!D16,"") -> S | G13: 68 | H13: =IF(Vstup!C76<>"",Vstup!C76,"") ->  | I13: =IF(Vstup!C76<>"",Vstup!D76,"") -> 
B14: 9 | C14: =IF(Vstup!C17<>"",Vstup!C17,"") -> Kondr Václav | D14: =IF(Vstup!C17<>"",Vstup!D17,"") -> S | G14: 69 | H14: =IF(Vstup!C77<>"",Vstup!C77,"") ->  | I14: =IF(Vstup!C77<>"",Vstup!D77,"") -> 
B15: 10 | C15: =IF(Vstup!C18<>"",Vstup!C18,"") -> Frenkl Jiří | D15: =IF(Vstup!C18<>"",Vstup!D18,"") -> S | G15: 70 | H15: =IF(Vstup!C78<>"",Vstup!C78,"") ->  | I15: =IF(Vstup!C78<>"",Vstup!D78,"") -> 
B16: 11 | C16: =IF(Vstup!C19<>"",Vstup!C19,"") -> Adámek Bohuslav | D16: =IF(Vstup!C19<>"",Vstup!D19,"") -> S | G16: 71 | H16: =IF(Vstup!C79<>"",Vstup!C79,"") ->  | I16: =IF(Vstup!C79<>"",Vstup!D79,"") -> 
B17: 12 | C17: =IF(Vstup!C20<>"",Vstup!C20,"") -> Urban Josef | D17: =IF(Vstup!C20<>"",Vstup!D20,"") -> S | G17: 72 | H17: =IF(Vstup!C80<>"",Vstup!C80,"") ->  | I17: =IF(Vstup!C80<>"",Vstup!D80,"") -> 
A18: 3 | B18: 13 | C18: =IF(Vstup!C21<>"",Vstup!C21,"") -> Trepka Jiří | D18: =IF(Vstup!C21<>"",Vstup!D21,"") -> S | F18: 13 | G18: 73 | H18: =IF(Vstup!C81<>"",Vstup!C81,"") ->  | I18: =IF(Vstup!C81<>"",Vstup!D81,"") -> 
B19: 14 | C19: =IF(Vstup!C22<>"",Vstup!C22,"") -> Dusík Vladimír | D19: =IF(Vstup!C22<>"",Vstup!D22,"") -> S | G19: 74 | H19: =IF(Vstup!C82<>"",Vstup!C82,"") ->  | I19: =IF(Vstup!C82<>"",Vstup!D82,"") -> 
B20: 15 | C20: =IF(Vstup!C23<>"",Vstup!C23,"") -> Kotrbáček Václav | D20: =IF(Vstup!C23<>"",Vstup!D23,"") -> S | G20: 75 | H20: =IF(Vstup!C83<>"",Vstup!C83,"") ->  | I20: =IF(Vstup!C83<>"",Vstup!D83,"") -> 
B21: 16 | C21: =IF(Vstup!C24<>"",Vstup!C24,"") -> Doležal Jaroslav | D21: =IF(Vstup!C24<>"",Vstup!D24,"") -> S | G21: 76 | H21: =IF(Vstup!C84<>"",Vstup!C84,"") ->  | I21: =IF(Vstup!C84<>"",Vstup!D84,"") -> 
B22: 17 | C22: =IF(Vstup!C25<>"",Vstup!C25,"") -> Křepelka Jan | D22: =IF(Vstup!C25<>"",Vstup!D25,"") -> S | G22: 77 | H22: =IF(Vstup!C85<>"",Vstup!C85,"") ->  | I22: =IF(Vstup!C85<>"",Vstup!D85,"") -> 
B23: 18 | C23: =IF(Vstup!C26<>"",Vstup!C26,"") -> Bém Josef | D23: =IF(Vstup!C26<>"",Vstup!D26,"") -> S | G23: 78 | H23: =IF(Vstup!C86<>"",Vstup!C86,"") ->  | I23: =IF(Vstup!C86<>"",Vstup!D86,"") -> 
A24: 4 | B24: 19 | C24: =IF(Vstup!C27<>"",Vstup!C27,"") -> Čechura Petr | D24: =IF(Vstup!C27<>"",Vstup!D27,"") -> S | F24: 14 | G24: 79 | H24: =IF(Vstup!C87<>"",Vstup!C87,"") ->  | I24: =IF(Vstup!C87<>"",Vstup!D87,"") -> 
B25: 20 | C25: =IF(Vstup!C28<>"",Vstup!C28,"") -> Čechura Pavel | D25: =IF(Vstup!C28<>"",Vstup!D28,"") -> S | G25: 80 | H25: =IF(Vstup!C88<>"",Vstup!C88,"") ->  | I25: =IF(Vstup!C88<>"",Vstup!D88,"") -> 
B26: 21 | C26: =IF(Vstup!C29<>"",Vstup!C29,"") -> Sedláček Jiří | D26: =IF(Vstup!C29<>"",Vstup!D29,"") -> S | G26: 81 | H26: =IF(Vstup!C89<>"",Vstup!C89,"") ->  | I26: =IF(Vstup!C89<>"",Vstup!D89,"") -> 
B27: 22 | C27: =IF(Vstup!C30<>"",Vstup!C30,"") -> Hájek Petr | D27: =IF(Vstup!C30<>"",Vstup!D30,"") -> S | G27: 82 | H27: =IF(Vstup!C90<>"",Vstup!C90,"") ->  | I27: =IF(Vstup!C90<>"",Vstup!D90,"") -> 
B28: 23 | C28: =IF(Vstup!C31<>"",Vstup!C31,"") -> Volf Jiří | D28: =IF(Vstup!C31<>"",Vstup!D31,"") -> S | G28: 83 | H28: =IF(Vstup!C91<>"",Vstup!C91,"") ->  | I28: =IF(Vstup!C91<>"",Vstup!D91,"") -> 
B29: 24 | C29: =IF(Vstup!C32<>"",Vstup!C32,"") -> Navara Josef | D29: =IF(Vstup!C32<>"",Vstup!D32,"") -> S | G29: 84 | H29: =IF(Vstup!C92<>"",Vstup!C92,"") ->  | I29: =IF(Vstup!C92<>"",Vstup!D92,"") -> 
A30: 5 | B30: 25 | C30: =IF(Vstup!C33<>"",Vstup!C33,"") -> Šindelář Jan | D30: =IF(Vstup!C33<>"",Vstup!D33,"") -> S | F30: 15 | G30: 85 | H30: =IF(Vstup!C93<>"",Vstup!C93,"") ->  | I30: =IF(Vstup!C93<>"",Vstup!D93,"") -> 
B31: 26 | C31: =IF(Vstup!C34<>"",Vstup!C34,"") -> Jira Tomáš | D31: =IF(Vstup!C34<>"",Vstup!D34,"") -> S | G31: 86 | H31: =IF(Vstup!C94<>"",Vstup!C94,"") ->  | I31: =IF(Vstup!C94<>"",Vstup!D94,"") -> 
B32: 27 | C32: =IF(Vstup!C35<>"",Vstup!C35,"") -> Gorschenek Martin | D32: =IF(Vstup!C35<>"",Vstup!D35,"") -> S | G32: 87 | H32: =IF(Vstup!C95<>"",Vstup!C95,"") ->  | I32: =IF(Vstup!C95<>"",Vstup!D95,"") -> 
B33: 28 | C33: =IF(Vstup!C36<>"",Vstup!C36,"") -> Leihs Gustav | D33: =IF(Vstup!C36<>"",Vstup!D36,"") -> S | G33: 88 | H33: =IF(Vstup!C96<>"",Vstup!C96,"") ->  | I33: =IF(Vstup!C96<>"",Vstup!D96,"") -> 
B34: 29 | C34: =IF(Vstup!C37<>"",Vstup!C37,"") -> Škrýba Petr | D34: =IF(Vstup!C37<>"",Vstup!D37,"") -> S | G34: 89 | H34: =IF(Vstup!C97<>"",Vstup!C97,"") ->  | I34: =IF(Vstup!C97<>"",Vstup!D97,"") -> 
B35: 30 | C35: =IF(Vstup!C38<>"",Vstup!C38,"") -> Růžek Luboš | D35: =IF(Vstup!C38<>"",Vstup!D38,"") -> S | G35: 90 | H35: =IF(Vstup!C98<>"",Vstup!C98,"") ->  | I35: =IF(Vstup!C98<>"",Vstup!D98,"") -> 
A36: 6 | B36: 31 | C36: =IF(Vstup!C39<>"",Vstup!C39,"") -> Albl Václav | D36: =IF(Vstup!C39<>"",Vstup!D39,"") -> S | F36: 16 | G36: 91 | H36: =IF(Vstup!C99<>"",Vstup!C99,"") ->  | I36: =IF(Vstup!C99<>"",Vstup!D99,"") -> 
B37: 32 | C37: =IF(Vstup!C40<>"",Vstup!C40,"") -> Noháček Jaroslav | D37: =IF(Vstup!C40<>"",Vstup!D40,"") -> S | G37: 92 | H37: =IF(Vstup!C100<>"",Vstup!C100,"") ->  | I37: =IF(Vstup!C100<>"",Vstup!D100,"") -> 
B38: 33 | C38: =IF(Vstup!C41<>"",Vstup!C41,"") -> Noháček Pavel | D38: =IF(Vstup!C41<>"",Vstup!D41,"") -> S | G38: 93 | H38: =IF(Vstup!C101<>"",Vstup!C101,"") ->  | I38: =IF(Vstup!C101<>"",Vstup!D101,"") -> 
B39: 34 | C39: =IF(Vstup!C42<>"",Vstup!C42,"") -> Mach Josef | D39: =IF(Vstup!C42<>"",Vstup!D42,"") -> S | G39: 94 | H39: =IF(Vstup!C102<>"",Vstup!C102,"") ->  | I39: =IF(Vstup!C102<>"",Vstup!D102,"") -> 
B40: 35 | C40: =IF(Vstup!C43<>"",Vstup!C43,"") -> Lusk Stanislav | D40: =IF(Vstup!C43<>"",Vstup!D43,"") -> S | G40: 95 | H40: =IF(Vstup!C103<>"",Vstup!C103,"") ->  | I40: =IF(Vstup!C103<>"",Vstup!D103,"") -> 
B41: 36 | C41: =IF(Vstup!C44<>"",Vstup!C44,"") -> Mach Jan | D41: =IF(Vstup!C44<>"",Vstup!D44,"") -> S | G41: 96 | H41: =IF(Vstup!C104<>"",Vstup!C104,"") ->  | I41: =IF(Vstup!C104<>"",Vstup!D104,"") -> 
A42: 7 | B42: 37 | C42: =IF(Vstup!C45<>"",Vstup!C45,"") -> Hromada Jaroslav | D42: =IF(Vstup!C45<>"",Vstup!D45,"") -> S | F42: 17 | G42: 97 | H42: =IF(Vstup!C105<>"",Vstup!C105,"") ->  | I42: =IF(Vstup!C105<>"",Vstup!D105,"") -> 
B43: 38 | C43: =IF(Vstup!C46<>"",Vstup!C46,"") -> Racek Petr | D43: =IF(Vstup!C46<>"",Vstup!D46,"") -> S | G43: 98 | H43: =IF(Vstup!C106<>"",Vstup!C106,"") ->  | I43: =IF(Vstup!C106<>"",Vstup!D106,"") -> 
B44: 39 | C44: =IF(Vstup!C47<>"",Vstup!C47,"") -> Říha Jiří | D44: =IF(Vstup!C47<>"",Vstup!D47,"") -> S | G44: 99 | H44: =IF(Vstup!C107<>"",Vstup!C107,"") ->  | I44: =IF(Vstup!C107<>"",Vstup!D107,"") -> 
B45: 40 | C45: =IF(Vstup!C48<>"",Vstup!C48,"") -> Kočí Radek | D45: =IF(Vstup!C48<>"",Vstup!D48,"") -> S | G45: 100 | H45: =IF(Vstup!C108<>"",Vstup!C108,"") ->  | I45: =IF(Vstup!C108<>"",Vstup!D108,"") -> 
B46: 41 | C46: =IF(Vstup!C49<>"",Vstup!C49,"") -> Pechan Josef | D46: =IF(Vstup!C49<>"",Vstup!D49,"") -> S | G46: 101 | H46: =IF(Vstup!C109<>"",Vstup!C109,"") ->  | I46: =IF(Vstup!C109<>"",Vstup!D109,"") -> 
B47: 42 | C47: =IF(Vstup!C50<>"",Vstup!C50,"") -> Kučera Václav | D47: =IF(Vstup!C50<>"",Vstup!D50,"") -> S | G47: 102 | H47: =IF(Vstup!C110<>"",Vstup!C110,"") ->  | I47: =IF(Vstup!C110<>"",Vstup!D110,"") -> 
A48: 8 | B48: 43 | C48: =IF(Vstup!C51<>"",Vstup!C51,"") -> Štengl Jiří | D48: =IF(Vstup!C51<>"",Vstup!D51,"") -> S | F48: 18 | G48: 103 | H48: =IF(Vstup!C111<>"",Vstup!C111,"") ->  | I48: =IF(Vstup!C111<>"",Vstup!D111,"") -> 
B49: 44 | C49: =IF(Vstup!C52<>"",Vstup!C52,"") -> Kubík Jindřich | D49: =IF(Vstup!C52<>"",Vstup!D52,"") -> S | G49: 104 | H49: =IF(Vstup!C112<>"",Vstup!C112,"") ->  | I49: =IF(Vstup!C112<>"",Vstup!D112,"") -> 
B50: 45 | C50: =IF(Vstup!C53<>"",Vstup!C53,"") -> Vodička Miroslav | D50: =IF(Vstup!C53<>"",Vstup!D53,"") -> S | G50: 105 | H50: =IF(Vstup!C113<>"",Vstup!C113,"") ->  | I50: =IF(Vstup!C113<>"",Vstup!D113,"") -> 
B51: 46 | C51: =IF(Vstup!C54<>"",Vstup!C54,"") -> Šindelář Milan | D51: =IF(Vstup!C54<>"",Vstup!D54,"") -> S | G51: 106 | H51: =IF(Vstup!C114<>"",Vstup!C114,"") ->  | I51: =IF(Vstup!C114<>"",Vstup!D114,"") -> 
B52: 47 | C52: =IF(Vstup!C55<>"",Vstup!C55,"") -> Förster Karel | D52: =IF(Vstup!C55<>"",Vstup!D55,"") -> S | G52: 107 | H52: =IF(Vstup!C115<>"",Vstup!C115,"") ->  | I52: =IF(Vstup!C115<>"",Vstup!D115,"") -> 
B53: 48 | C53: =IF(Vstup!C56<>"",Vstup!C56,"") -> Ulrych Jiří | D53: =IF(Vstup!C56<>"",Vstup!D56,"") -> S | G53: 108 | H53: =IF(Vstup!C116<>"",Vstup!C116,"") ->  | I53: =IF(Vstup!C116<>"",Vstup!D116,"") -> 
A54: 9 | B54: 49 | C54: =IF(Vstup!C57<>"",Vstup!C57,"") ->  | D54: =IF(Vstup!C57<>"",Vstup!D57,"") ->  | F54: 19 | G54: 109 | H54: =IF(Vstup!C117<>"",Vstup!C117,"") ->  | I54: =IF(Vstup!C117<>"",Vstup!D117,"") -> 
B55: 50 | C55: =IF(Vstup!C58<>"",Vstup!C58,"") ->  | D55: =IF(Vstup!C58<>"",Vstup!D58,"") ->  | G55: 110 | H55: =IF(Vstup!C118<>"",Vstup!C118,"") ->  | I55: =IF(Vstup!C118<>"",Vstup!D118,"") -> 
B56: 51 | C56: =IF(Vstup!C59<>"",Vstup!C59,"") ->  | D56: =IF(Vstup!C59<>"",Vstup!D59,"") ->  | G56: 111 | H56: =IF(Vstup!C119<>"",Vstup!C119,"") ->  | I56: =IF(Vstup!C119<>"",Vstup!D119,"") -> 
B57: 52 | C57: =IF(Vstup!C60<>"",Vstup!C60,"") ->  | D57: =IF(Vstup!C60<>"",Vstup!D60,"") ->  | G57: 112 | H57: =IF(Vstup!C120<>"",Vstup!C120,"") ->  | I57: =IF(Vstup!C120<>"",Vstup!D120,"") -> 
B58: 53 | C58: =IF(Vstup!C61<>"",Vstup!C61,"") ->  | D58: =IF(Vstup!C61<>"",Vstup!D61,"") ->  | G58: 113 | H58: =IF(Vstup!C121<>"",Vstup!C121,"") ->  | I58: =IF(Vstup!C121<>"",Vstup!D121,"") -> 
B59: 54 | C59: =IF(Vstup!C62<>"",Vstup!C62,"") ->  | D59: =IF(Vstup!C62<>"",Vstup!D62,"") ->  | G59: 114 | H59: =IF(Vstup!C122<>"",Vstup!C122,"") ->  | I59: =IF(Vstup!C122<>"",Vstup!D122,"") -> 
A60: 10 | B60: 55 | C60: =IF(Vstup!C63<>"",Vstup!C63,"") ->  | D60: =IF(Vstup!C63<>"",Vstup!D63,"") ->  | F60: 20 | G60: 115 | H60: =IF(Vstup!C123<>"",Vstup!C123,"") ->  | I60: =IF(Vstup!C123<>"",Vstup!D123,"") -> 
B61: 56 | C61: =IF(Vstup!C64<>"",Vstup!C64,"") ->  | D61: =IF(Vstup!C64<>"",Vstup!D64,"") ->  | G61: 116 | H61: =IF(Vstup!C124<>"",Vstup!C124,"") ->  | I61: =IF(Vstup!C124<>"",Vstup!D124,"") -> 
B62: 57 | C62: =IF(Vstup!C65<>"",Vstup!C65,"") ->  | D62: =IF(Vstup!C65<>"",Vstup!D65,"") ->  | G62: 117 | H62: =IF(Vstup!C125<>"",Vstup!C125,"") ->  | I62: =IF(Vstup!C125<>"",Vstup!D125,"") -> 
B63: 58 | C63: =IF(Vstup!C66<>"",Vstup!C66,"") ->  | D63: =IF(Vstup!C66<>"",Vstup!D66,"") ->  | G63: 118 | H63: =IF(Vstup!C126<>"",Vstup!C126,"") ->  | I63: =IF(Vstup!C126<>"",Vstup!D126,"") -> 
B64: 59 | C64: =IF(Vstup!C67<>"",Vstup!C67,"") ->  | D64: =IF(Vstup!C67<>"",Vstup!D67,"") ->  | G64: 119 | H64: =IF(Vstup!C127<>"",Vstup!C127,"") ->  | I64: =IF(Vstup!C127<>"",Vstup!D127,"") -> 
B65: 60 | C65: =IF(Vstup!C68<>"",Vstup!C68,"") ->  | D65: =IF(Vstup!C68<>"",Vstup!D68,"") ->  | G65: 120 | H65: =IF(Vstup!C128<>"",Vstup!C128,"") ->  | I65: =IF(Vstup!C128<>"",Vstup!D128,"") -> 

Sheet VysledkyDoplneni
A1: Sem napsat výsledky
E4: =Vstup!C2&IF(Vstup!C3<>"",", "&Vstup!C3,"") -> Josefovský brokový trojboj, 60 TERČŮ
A5: Skupina číslo | B5: Start. číslo | C5: Příjmení, jméno | D5: Kategorie | E5: =Data!D3 -> Vysoká věž | F5: =Data!D4 -> Trap | G5: =Data!D5 -> Zajíc | H5: =Data!D6 -> 0 | I5: =Data!D7 -> 0 | J5: =Data!D8 -> 0 | K5: =Data!D9 -> 0 | L5: =Data!D10 -> 0 | M5: =Data!D11 -> 0 | N5: =Data!D12 -> 0 | O5: =Data!D13 -> 0 | P5: =Data!D13 -> 0 | Q5: =Data!D15 -> 0 | R5: =Data!D16 -> 0 | S5: =Data!D17 -> 0 | T5: =Data!D18 -> 0
A7: 1 | B7: =IF(Vstup!C9<>"",Vstup!B9,"") -> 1 | C7: =IF(Vstup!C9<>"",Vstup!C9,"") -> Štenglová Michaela | D7: =IF(Vstup!C9<>"",Vstup!D9,"") -> S | E7: 15 | F7: 14 | G7: 13
B8: =IF(Vstup!C10<>"",Vstup!B10,"") -> 2 | C8: =IF(Vstup!C10<>"",Vstup!C10,"") -> Vaněk Matěj | D8: =IF(Vstup!C10<>"",Vstup!D10,"") -> S | E8: 16 | F8: 16 | G8: 20
B9: =IF(Vstup!C11<>"",Vstup!B11,"") -> 3 | C9: =IF(Vstup!C11<>"",Vstup!C11,"") -> Veltruský Jiří | D9: =IF(Vstup!C11<>"",Vstup!D11,"") -> S | E9: 16 | F9: 9 | G9: 12
B10: =IF(Vstup!C12<>"",Vstup!B12,"") -> 4 | C10: =IF(Vstup!C12<>"",Vstup!C12,"") -> Černý Bohuslav | D10: =IF(Vstup!C12<>"",Vstup!D12,"") -> S | E10: 13 | F10: 14 | G10: 11
B11: =IF(Vstup!C13<>"",Vstup!B13,"") -> 5 | C11: =IF(Vstup!C13<>"",Vstup!C13,"") -> Šindelář Jiří st. | D11: =IF(Vstup!C13<>"",Vstup!D13,"") -> S | E11: 15 | F11: 11 | G11: 12
B12: =IF(Vstup!C14<>"",Vstup!B14,"") -> 6 | C12: =IF(Vstup!C14<>"",Vstup!C14,"") -> Mařík Josef | D12: =IF(Vstup!C14<>"",Vstup!D14,"") -> S | E12: 13 | F12: 16 | G12: 7
A13: 2 | B13: =IF(Vstup!C15<>"",Vstup!B15,"") -> 7 | C13: =IF(Vstup!C15<>"",Vstup!C15,"") -> Lízalová Veronika | D13: =IF(Vstup!C15<>"",Vstup!D15,"") -> S | E13: 3 | F13: 5 | G13: 9
B14: =IF(Vstup!C16<>"",Vstup!B16,"") -> 8 | C14: =IF(Vstup!C16<>"",Vstup!C16,"") -> Lízal Miroslav ml. | D14: =IF(Vstup!C16<>"",Vstup!D16,"") -> S | E14: 8 | F14: 16 | G14: 2
B15: =IF(Vstup!C17<>"",Vstup!B17,"") -> 9 | C15: =IF(Vstup!C17<>"",Vstup!C17,"") -> Kondr Václav | D15: =IF(Vstup!C17<>"",Vstup!D17,"") -> S | E15: 8 | F15: 13 | G15: 13
B16: =IF(Vstup!C18<>"",Vstup!B18,"") -> 10 | C16: =IF(Vstup!C18<>"",Vstup!C18,"") -> Frenkl Jiří | D16: =IF(Vstup!C18<>"",Vstup!D18,"") -> S | E16: 19 | F16: 19 | G16: 19
B17: =IF(Vstup!C19<>"",Vstup!B19,"") -> 11 | C17: =IF(Vstup!C19<>"",Vstup!C19,"") -> Adámek Bohuslav | D17: =IF(Vstup!C19<>"",Vstup!D19,"") -> S | E17: 15 | F17: 15 | G17: 16
B18: =IF(Vstup!C20<>"",Vstup!B20,"") -> 12 | C18: =IF(Vstup!C20<>"",Vstup!C20,"") -> Urban Josef | D18: =IF(Vstup!C20<>"",Vstup!D20,"") -> S | E18: 9 | F18: 13 | G18: 13
A19: 3 | B19: =IF(Vstup!C21<>"",Vstup!B21,"") -> 13 | C19: =IF(Vstup!C21<>"",Vstup!C21,"") -> Trepka Jiří | D19: =IF(Vstup!C21<>"",Vstup!D21,"") -> S | E19: 15 | F19: 17 | G19: 16
B20: =IF(Vstup!C22<>"",Vstup!B22,"") -> 14 | C20: =IF(Vstup!C22<>"",Vstup!C22,"") -> Dusík Vladimír | D20: =IF(Vstup!C22<>"",Vstup!D22,"") -> S | E20: 15 | F20: 12 | G20: 13
B21: =IF(Vstup!C23<>"",Vstup!B23,"") -> 15 | C21: =IF(Vstup!C23<>"",Vstup!C23,"") -> Kotrbáček Václav | D21: =IF(Vstup!C23<>"",Vstup!D23,"") -> S | E21: 19 | F21: 16 | G21: 17
B22: =IF(Vstup!C24<>"",Vstup!B24,"") -> 16 | C22: =IF(Vstup!C24<>"",Vstup!C24,"") -> Doležal Jaroslav | D22: =IF(Vstup!C24<>"",Vstup!D24,"") -> S | E22: 7 | F22: 12 | G22: 14
B23: =IF(Vstup!C25<>"",Vstup!B25,"") -> 17 | C23: =IF(Vstup!C25<>"",Vstup!C25,"") -> Křepelka Jan | D23: =IF(Vstup!C25<>"",Vstup!D25,"") -> S | E23: 10 | F23: 11 | G23: 15
B24: =IF(Vstup!C26<>"",Vstup!B26,"") -> 18 | C24: =IF(Vstup!C26<>"",Vstup!C26,"") -> Bém Josef | D24: =IF(Vstup!C26<>"",Vstup!D26,"") -> S | E24: 19 | F24: 15 | G24: 15
A25: 4 | B25: =IF(Vstup!C27<>"",Vstup!B27,"") -> 19 | C25: =IF(Vstup!C27<>"",Vstup!C27,"") -> Čechura Petr | D25: =IF(Vstup!C27<>"",Vstup!D27,"") -> S | E25: 14 | F25: 19 | G25: 19
B26: =IF(Vstup!C28<>"",Vstup!B28,"") -> 20 | C26: =IF(Vstup!C28<>"",Vstup!C28,"") -> Čechura Pavel | D26: =IF(Vstup!C28<>"",Vstup!D28,"") -> S | E26: 13 | F26: 13 | G26: 16
B27: =IF(Vstup!C29<>"",Vstup!B29,"") -> 21 | C27: =IF(Vstup!C29<>"",Vstup!C29,"") -> Sedláček Jiří | D27: =IF(Vstup!C29<>"",Vstup!D29,"") -> S | E27: 12 | F27: 14 | G27: 20
B28: =IF(Vstup!C30<>"",Vstup!B30,"") -> 22 | C28: =IF(Vstup!C30<>"",Vstup!C30,"") -> Hájek Petr | D28: =IF(Vstup!C30<>"",Vstup!D30,"") -> S | E28: 11 | F28: 12 | G28: 12
B29: =IF(Vstup!C31<>"",Vstup!B31,"") -> 23 | C29: =IF(Vstup!C31<>"",Vstup!C31,"") -> Volf Jiří | D29: =IF(Vstup!C31<>"",Vstup!D31,"") -> S | E29: 15 | F29: 16 | G29: 20
B30: =IF(Vstup!C32<>"",Vstup!B32,"") -> 24 | C30: =IF(Vstup!C32<>"",Vstup!C32,"") -> Navara Josef | D30: =IF(Vstup!C32<>"",Vstup!D32,"") -> S | E30: 10 | F30: 15 | G30: 13
A31: 5 | B31: =IF(Vstup!C33<>"",Vstup!B33,"") -> 25 | C31: =IF(Vstup!C33<>"",Vstup!C33,"") -> Šindelář Jan | D31: =IF(Vstup!C33<>"",Vstup!D33,"") -> S | E31: 8 | F31: 13 | G31: 19
B32: =IF(Vstup!C34<>"",Vstup!B34,"") -> 26 | C32: =IF(Vstup!C34<>"",Vstup!C34,"") -> Jira Tomáš | D32: =IF(Vstup!C34<>"",Vstup!D34,"") -> S | E32: 3 | F32: 9 | G32: 4
B33: =IF(Vstup!C35<>"",Vstup!B35,"") -> 27 | C33: =IF(Vstup!C35<>"",Vstup!C35,"") -> Gorschenek Martin | D33: =IF(Vstup!C35<>"",Vstup!D35,"") -> S | E33: 6 | F33: 3 | G33: 1
B34: =IF(Vstup!C36<>"",Vstup!B36,"") -> 28 | C34: =IF(Vstup!C36<>"",Vstup!C36,"") -> Leihs Gustav | D34: =IF(Vstup!C36<>"",Vstup!D36,"") -> S | E34: 16 | F34: 15 | G34: 17
B35: =IF(Vstup!C37<>"",Vstup!B37,"") -> 29 | C35: =IF(Vstup!C37<>"",Vstup!C37,"") -> Škrýba Petr | D35: =IF(Vstup!C37<>"",Vstup!D37,"") -> S | E35: 15 | F35: 12 | G35: 12
B36: =IF(Vstup!C38<>"",Vstup!B38,"") -> 30 | C36: =IF(Vstup!C38<>"",Vstup!C38,"") -> Růžek Luboš | D36: =IF(Vstup!C38<>"",Vstup!D38,"") -> S | E36: 19 | F36: 11 | G36: 14
A37: 6 | B37: =IF(Vstup!C39<>"",Vstup!B39,"") -> 31 | C37: =IF(Vstup!C39<>"",Vstup!C39,"") -> Albl Václav | D37: =IF(Vstup!C39<>"",Vstup!D39,"") -> S | E37: 8 | F37: 18 | G37: 7
B38: =IF(Vstup!C40<>"",Vstup!B40,"") -> 32 | C38: =IF(Vstup!C40<>"",Vstup!C40,"") -> Noháček Jaroslav | D38: =IF(Vstup!C40<>"",Vstup!D40,"") -> S | E38: 15 | F38: 14 | G38: 18
B39: =IF(Vstup!C41<>"",Vstup!B41,"") -> 33 | C39: =IF(Vstup!C41<>"",Vstup!C41,"") -> Noháček Pavel | D39: =IF(Vstup!C41<>"",Vstup!D41,"") -> S | E39: 18 | F39: 15 | G39: 19
B40: =IF(Vstup!C42<>"",Vstup!B42,"") -> 34 | C40: =IF(Vstup!C42<>"",Vstup!C42,"") -> Mach Josef | D40: =IF(Vstup!C42<>"",Vstup!D42,"") -> S | E40: 9 | F40: 15 | G40: 13
B41: =IF(Vstup!C43<>"",Vstup!B43,"") -> 35 | C41: =IF(Vstup!C43<>"",Vstup!C43,"") -> Lusk Stanislav | D41: =IF(Vstup!C43<>"",Vstup!D43,"") -> S | E41: 17 | F41: 11 | G41: 14
B42: =IF(Vstup!C44<>"",Vstup!B44,"") -> 36 | C42: =IF(Vstup!C44<>"",Vstup!C44,"") -> Mach Jan | D42: =IF(Vstup!C44<>"",Vstup!D44,"") -> S | E42: 19 | F42: 9 | G42: 20
A43: 7 | B43: =IF(Vstup!C45<>"",Vstup!B45,"") -> 37 | C43: =IF(Vstup!C45<>"",Vstup!C45,"") -> Hromada Jaroslav | D43: =IF(Vstup!C45<>"",Vstup!D45,"") -> S | E43: 18 | F43: 17 | G43: 16
B44: =IF(Vstup!C46<>"",Vstup!B46,"") -> 38 | C44: =IF(Vstup!C46<>"",Vstup!C46,"") -> Racek Petr | D44: =IF(Vstup!C46<>"",Vstup!D46,"") -> S | E44: 15 | F44: 15 | G44: 14
B45: =IF(Vstup!C47<>"",Vstup!B47,"") -> 39 | C45: =IF(Vstup!C47<>"",Vstup!C47,"") -> Říha Jiří | D45: =IF(Vstup!C47<>"",Vstup!D47,"") -> S | E45: 6 | F45: 14 | G45: 13
B46: =IF(Vstup!C48<>"",Vstup!B48,"") -> 40 | C46: =IF(Vstup!C48<>"",Vstup!C48,"") -> Kočí Radek | D46: =IF(Vstup!C48<>"",Vstup!D48,"") -> S | E46: 18 | F46: 16 | G46: 19
B47: =IF(Vstup!C49<>"",Vstup!B49,"") -> 41 | C47: =IF(Vstup!C49<>"",Vstup!C49,"") -> Pechan Josef | D47: =IF(Vstup!C49<>"",Vstup!D49,"") -> S | E47: 14 | F47: 15 | G47: 15
B48: =IF(Vstup!C50<>"",Vstup!B50,"") -> 42 | C48: =IF(Vstup!C50<>"",Vstup!C50,"") -> Kučera Václav | D48: =IF(Vstup!C50<>"",Vstup!D50,"") -> S | E48: 16 | F48: 13 | G48: 10
A49: 8 | B49: =IF(Vstup!C51<>"",Vstup!B51,"") -> 43 | C49: =IF(Vstup!C51<>"",Vstup!C51,"") -> Štengl Jiří | D49: =IF(Vstup!C51<>"",Vstup!D51,"") -> S | E49: 13 | F49: 15 | G49: 19
B50: =IF(Vstup!C52<>"",Vstup!B52,"") -> 44 | C50: =IF(Vstup!C52<>"",Vstup!C52,"") -> Kubík Jindřich | D50: =IF(Vstup!C52<>"",Vstup!D52,"") -> S | E50: 15 | F50: 18 | G50: 19
B51: =IF(Vstup!C53<>"",Vstup!B53,"") -> 45 | C51: =IF(Vstup!C53<>"",Vstup!C53,"") -> Vodička Miroslav | D51: =IF(Vstup!C53<>"",Vstup!D53,"") -> S | E51: 9 | F51: 7 | G51: 11
B52: =IF(Vstup!C54<>"",Vstup!B54,"") -> 46 | C52: =IF(Vstup!C54<>"",Vstup!C54,"") -> Šindelář Milan | D52: =IF(Vstup!C54<>"",Vstup!D54,"") -> S | E52: 18 | F52: 12 | G52: 19
B53: =IF(Vstup!C55<>"",Vstup!B55,"") -> 47 | C53: =IF(Vstup!C55<>"",Vstup!C55,"") -> Förster Karel | D53: =IF(Vstup!C55<>"",Vstup!D55,"") -> S | E53: 13 | F53: 12 | G53: 9
B54: =IF(Vstup!C56<>"",Vstup!B56,"") -> 48 | C54: =IF(Vstup!C56<>"",Vstup!C56,"") -> Ulrych Jiří | D54: =IF(Vstup!C56<>"",Vstup!D56,"") -> S | E54: 11 | F54: 11 | G54: 16
A55: 9 | B55: =IF(Vstup!C57<>"",Vstup!B57,"") ->  | C55: =IF(Vstup!C57<>"",Vstup!C57,"") ->  | D55: =IF(Vstup!C57<>"",Vstup!D57,"") -> 
B56: =IF(Vstup!C58<>"",Vstup!B58,"") ->  | C56: =IF(Vstup!C58<>"",Vstup!C58,"") ->  | D56: =IF(Vstup!C58<>"",Vstup!D58,"") -> 
B57: =IF(Vstup!C59<>"",Vstup!B59,"") ->  | C57: =IF(Vstup!C59<>"",Vstup!C59,"") ->  | D57: =IF(Vstup!C59<>"",Vstup!D59,"") -> 
B58: =IF(Vstup!C60<>"",Vstup!B60,"") ->  | C58: =IF(Vstup!C60<>"",Vstup!C60,"") ->  | D58: =IF(Vstup!C60<>"",Vstup!D60,"") -> 
B59: =IF(Vstup!C61<>"",Vstup!B61,"") ->  | C59: =IF(Vstup!C61<>"",Vstup!C61,"") ->  | D59: =IF(Vstup!C61<>"",Vstup!D61,"") -> 
B60: =IF(Vstup!C62<>"",Vstup!B62,"") ->  | C60: =IF(Vstup!C62<>"",Vstup!C62,"") ->  | D60: =IF(Vstup!C62<>"",Vstup!D62,"") -> 
A61: 10 | B61: =IF(Vstup!C63<>"",Vstup!B63,"") ->  | C61: =IF(Vstup!C63<>"",Vstup!C63,"") ->  | D61: =IF(Vstup!C63<>"",Vstup!D63,"") -> 
B62: =IF(Vstup!C64<>"",Vstup!B64,"") ->  | C62: =IF(Vstup!C64<>"",Vstup!C64,"") ->  | D62: =IF(Vstup!C64<>"",Vstup!D64,"") -> 
B63: =IF(Vstup!C65<>"",Vstup!B65,"") ->  | C63: =IF(Vstup!C65<>"",Vstup!C65,"") ->  | D63: =IF(Vstup!C65<>"",Vstup!D65,"") -> 
B64: =IF(Vstup!C66<>"",Vstup!B66,"") ->  | C64: =IF(Vstup!C66<>"",Vstup!C66,"") ->  | D64: =IF(Vstup!C66<>"",Vstup!D66,"") -> 
B65: =IF(Vstup!C67<>"",Vstup!B67,"") ->  | C65: =IF(Vstup!C67<>"",Vstup!C67,"") ->  | D65: =IF(Vstup!C67<>"",Vstup!D67,"") -> 
B66: =IF(Vstup!C68<>"",Vstup!B68,"") ->  | C66: =IF(Vstup!C68<>"",Vstup!C68,"") ->  | D66: =IF(Vstup!C68<>"",Vstup!D68,"") -> 
A67: 11 | B67: =IF(Vstup!C69<>"",Vstup!B69,"") ->  | C67: =IF(Vstup!C69<>"",Vstup!C69,"") ->  | D67: =IF(Vstup!C69<>"",Vstup!D69,"") -> 
B68: =IF(Vstup!C70<>"",Vstup!B70,"") ->  | C68: =IF(Vstup!C70<>"",Vstup!C70,"") ->  | D68: =IF(Vstup!C70<>"",Vstup!D70,"") -> 
B69: =IF(Vstup!C71<>"",Vstup!B71,"") ->  | C69: =IF(Vstup!C71<>"",Vstup!C71,"") ->  | D69: =IF(Vstup!C71<>"",Vstup!D71,"") -> 
B70: =IF(Vstup!C72<>"",Vstup!B72,"") ->  | C70: =IF(Vstup!C72<>"",Vstup!C72,"") ->  | D70: =IF(Vstup!C72<>"",Vstup!D72,"") -> 
B71: =IF(Vstup!C73<>"",Vstup!B73,"") ->  | C71: =IF(Vstup!C73<>"",Vstup!C73,"") ->  | D71: =IF(Vstup!C73<>"",Vstup!D73,"") -> 
B72: =IF(Vstup!C74<>"",Vstup!B74,"") ->  | C72: =IF(Vstup!C74<>"",Vstup!C74,"") ->  | D72: =IF(Vstup!C74<>"",Vstup!D74,"") -> 
A73: 12 | B73: =IF(Vstup!C75<>"",Vstup!B75,"") ->  | C73: =IF(Vstup!C75<>"",Vstup!C75,"") ->  | D73: =IF(Vstup!C75<>"",Vstup!D75,"") -> 
B74: =IF(Vstup!C76<>"",Vstup!B76,"") ->  | C74: =IF(Vstup!C76<>"",Vstup!C76,"") ->  | D74: =IF(Vstup!C76<>"",Vstup!D76,"") -> 
B75: =IF(Vstup!C77<>"",Vstup!B77,"") ->  | C75: =IF(Vstup!C77<>"",Vstup!C77,"") ->  | D75: =IF(Vstup!C77<>"",Vstup!D77,"") -> 
B76: =IF(Vstup!C78<>"",Vstup!B78,"") ->  | C76: =IF(Vstup!C78<>"",Vstup!C78,"") ->  | D76: =IF(Vstup!C78<>"",Vstup!D78,"") -> 
B77: =IF(Vstup!C79<>"",Vstup!B79,"") ->  | C77: =IF(Vstup!C79<>"",Vstup!C79,"") ->  | D77: =IF(Vstup!C79<>"",Vstup!D79,"") -> 
B78: =IF(Vstup!C80<>"",Vstup!B80,"") ->  | C78: =IF(Vstup!C80<>"",Vstup!C80,"") ->  | D78: =IF(Vstup!C80<>"",Vstup!D80,"") -> 
A79: 13 | B79: =IF(Vstup!C81<>"",Vstup!B81,"") ->  | C79: =IF(Vstup!C81<>"",Vstup!C81,"") ->  | D79: =IF(Vstup!C81<>"",Vstup!D81,"") -> 
B80: =IF(Vstup!C82<>"",Vstup!B82,"") ->  | C80: =IF(Vstup!C82<>"",Vstup!C82,"") ->  | D80: =IF(Vstup!C82<>"",Vstup!D82,"") -> 
B81: =IF(Vstup!C83<>"",Vstup!B83,"") ->  | C81: =IF(Vstup!C83<>"",Vstup!C83,"") ->  | D81: =IF(Vstup!C83<>"",Vstup!D83,"") -> 
B82: =IF(Vstup!C84<>"",Vstup!B84,"") ->  | C82: =IF(Vstup!C84<>"",Vstup!C84,"") ->  | D82: =IF(Vstup!C84<>"",Vstup!D84,"") -> 
B83: =IF(Vstup!C85<>"",Vstup!B85,"") ->  | C83: =IF(Vstup!C85<>"",Vstup!C85,"") ->  | D83: =IF(Vstup!C85<>"",Vstup!D85,"") -> 
B84: =IF(Vstup!C86<>"",Vstup!B86,"") ->  | C84: =IF(Vstup!C86<>"",Vstup!C86,"") ->  | D84: =IF(Vstup!C86<>"",Vstup!D86,"") -> 
A85: 14 | B85: =IF(Vstup!C87<>"",Vstup!B87,"") ->  | C85: =IF(Vstup!C87<>"",Vstup!C87,"") ->  | D85: =IF(Vstup!C87<>"",Vstup!D87,"") -> 
B86: =IF(Vstup!C88<>"",Vstup!B88,"") ->  | C86: =IF(Vstup!C88<>"",Vstup!C88,"") ->  | D86: =IF(Vstup!C88<>"",Vstup!D88,"") -> 
B87: =IF(Vstup!C89<>"",Vstup!B89,"") ->  | C87: =IF(Vstup!C89<>"",Vstup!C89,"") ->  | D87: =IF(Vstup!C89<>"",Vstup!D89,"") -> 
B88: =IF(Vstup!C90<>"",Vstup!B90,"") ->  | C88: =IF(Vstup!C90<>"",Vstup!C90,"") ->  | D88: =IF(Vstup!C90<>"",Vstup!D90,"") -> 
B89: =IF(Vstup!C91<>"",Vstup!B91,"") ->  | C89: =IF(Vstup!C91<>"",Vstup!C91,"") ->  | D89: =IF(Vstup!C91<>"",Vstup!D91,"") -> 
B90: =IF(Vstup!C92<>"",Vstup!B92,"") ->  | C90: =IF(Vstup!C92<>"",Vstup!C92,"") ->  | D90: =IF(Vstup!C92<>"",Vstup!D92,"") -> 
A91: 15 | B91: =IF(Vstup!C93<>"",Vstup!B93,"") ->  | C91: =IF(Vstup!C93<>"",Vstup!C93,"") ->  | D91: =IF(Vstup!C93<>"",Vstup!D93,"") -> 
B92: =IF(Vstup!C94<>"",Vstup!B94,"") ->  | C92: =IF(Vstup!C94<>"",Vstup!C94,"") ->  | D92: =IF(Vstup!C94<>"",Vstup!D94,"") -> 
B93: =IF(Vstup!C95<>"",Vstup!B95,"") ->  | C93: =IF(Vstup!C95<>"",Vstup!C95,"") ->  | D93: =IF(Vstup!C95<>"",Vstup!D95,"") -> 
B94: =IF(Vstup!C96<>"",Vstup!B96,"") ->  | C94: =IF(Vstup!C96<>"",Vstup!C96,"") ->  | D94: =IF(Vstup!C96<>"",Vstup!D96,"") -> 
B95: =IF(Vstup!C97<>"",Vstup!B97,"") ->  | C95: =IF(Vstup!C97<>"",Vstup!C97,"") ->  | D95: =IF(Vstup!C97<>"",Vstup!D97,"") -> 
B96: =IF(Vstup!C98<>"",Vstup!B98,"") ->  | C96: =IF(Vstup!C98<>"",Vstup!C98,"") ->  | D96: =IF(Vstup!C98<>"",Vstup!D98,"") -> 
A97: 16 | B97: =IF(Vstup!C99<>"",Vstup!B99,"") ->  | C97: =IF(Vstup!C99<>"",Vstup!C99,"") ->  | D97: =IF(Vstup!C99<>"",Vstup!D99,"") -> 
B98: =IF(Vstup!C100<>"",Vstup!B100,"") ->  | C98: =IF(Vstup!C100<>"",Vstup!C100,"") ->  | D98: =IF(Vstup!C100<>"",Vstup!D100,"") -> 
B99: =IF(Vstup!C101<>"",Vstup!B101,"") ->  | C99: =IF(Vstup!C101<>"",Vstup!C101,"") ->  | D99: =IF(Vstup!C101<>"",Vstup!D101,"") -> 
B100: =IF(Vstup!C102<>"",Vstup!B102,"") ->  | C100: =IF(Vstup!C102<>"",Vstup!C102,"") ->  | D100: =IF(Vstup!C102<>"",Vstup!D102,"") -> 
B101: =IF(Vstup!C103<>"",Vstup!B103,"") ->  | C101: =IF(Vstup!C103<>"",Vstup!C103,"") ->  | D101: =IF(Vstup!C103<>"",Vstup!D103,"") -> 
B102: =IF(Vstup!C104<>"",Vstup!B104,"") ->  | C102: =IF(Vstup!C104<>"",Vstup!C104,"") ->  | D102: =IF(Vstup!C104<>"",Vstup!D104,"") -> 
A103: 17 | B103: =IF(Vstup!C105<>"",Vstup!B105,"") ->  | C103: =IF(Vstup!C105<>"",Vstup!C105,"") ->  | D103: =IF(Vstup!C105<>"",Vstup!D105,"") -> 
B104: =IF(Vstup!C106<>"",Vstup!B106,"") ->  | C104: =IF(Vstup!C106<>"",Vstup!C106,"") ->  | D104: =IF(Vstup!C106<>"",Vstup!D106,"") -> 
B105: =IF(Vstup!C107<>"",Vstup!B107,"") ->  | C105: =IF(Vstup!C107<>"",Vstup!C107,"") ->  | D105: =IF(Vstup!C107<>"",Vstup!D107,"") -> 
B106: =IF(Vstup!C108<>"",Vstup!B108,"") ->  | C106: =IF(Vstup!C108<>"",Vstup!C108,"") ->  | D106: =IF(Vstup!C108<>"",Vstup!D108,"") -> 
B107: =IF(Vstup!C109<>"",Vstup!B109,"") ->  | C107: =IF(Vstup!C109<>"",Vstup!C109,"") ->  | D107: =IF(Vstup!C109<>"",Vstup!D109,"") -> 
B108: =IF(Vstup!C110<>"",Vstup!B110,"") ->  | C108: =IF(Vstup!C110<>"",Vstup!C110,"") ->  | D108: =IF(Vstup!C110<>"",Vstup!D110,"") -> 
A109: 18 | B109: =IF(Vstup!C111<>"",Vstup!B111,"") ->  | C109: =IF(Vstup!C111<>"",Vstup!C111,"") ->  | D109: =IF(Vstup!C111<>"",Vstup!D111,"") -> 
B110: =IF(Vstup!C112<>"",Vstup!B112,"") ->  | C110: =IF(Vstup!C112<>"",Vstup!C112,"") ->  | D110: =IF(Vstup!C112<>"",Vstup!D112,"") -> 
B111: =IF(Vstup!C113<>"",Vstup!B113,"") ->  | C111: =IF(Vstup!C113<>"",Vstup!C113,"") ->  | D111: =IF(Vstup!C113<>"",Vstup!D113,"") -> 
B112: =IF(Vstup!C114<>"",Vstup!B114,"") ->  | C112: =IF(Vstup!C114<>"",Vstup!C114,"") ->  | D112: =IF(Vstup!C114<>"",Vstup!D114,"") -> 
B113: =IF(Vstup!C115<>"",Vstup!B115,"") ->  | C113: =IF(Vstup!C115<>"",Vstup!C115,"") ->  | D113: =IF(Vstup!C115<>"",Vstup!D115,"") -> 
B114: =IF(Vstup!C116<>"",Vstup!B116,"") ->  | C114: =IF(Vstup!C116<>"",Vstup!C116,"") ->  | D114: =IF(Vstup!C116<>"",Vstup!D116,"") -> 
A115: 19 | B115: =IF(Vstup!C117<>"",Vstup!B117,"") ->  | C115: =IF(Vstup!C117<>"",Vstup!C117,"") ->  | D115: =IF(Vstup!C117<>"",Vstup!D117,"") ->  | H115: 20
B116: =IF(Vstup!C118<>"",Vstup!B118,"") ->  | C116: =IF(Vstup!C118<>"",Vstup!C118,"") ->  | D116: =IF(Vstup!C118<>"",Vstup!D118,"") -> 
B117: =IF(Vstup!C119<>"",Vstup!B119,"") ->  | C117: =IF(Vstup!C119<>"",Vstup!C119,"") ->  | D117: =IF(Vstup!C119<>"",Vstup!D119,"") -> 
B118: =IF(Vstup!C120<>"",Vstup!B120,"") ->  | C118: =IF(Vstup!C120<>"",Vstup!C120,"") ->  | D118: =IF(Vstup!C120<>"",Vstup!D120,"") -> 
B119: =IF(Vstup!C121<>"",Vstup!B121,"") ->  | C119: =IF(Vstup!C121<>"",Vstup!C121,"") ->  | D119: =IF(Vstup!C121<>"",Vstup!D121,"") -> 
B120: =IF(Vstup!C122<>"",Vstup!B122,"") ->  | C120: =IF(Vstup!C122<>"",Vstup!C122,"") ->  | D120: =IF(Vstup!C122<>"",Vstup!D122,"") -> 
A121: 20 | B121: =IF(Vstup!C123<>"",Vstup!B123,"") ->  | C121: =IF(Vstup!C123<>"",Vstup!C123,"") ->  | D121: =IF(Vstup!C123<>"",Vstup!D123,"") -> 
B122: =IF(Vstup!C124<>"",Vstup!B124,"") ->  | C122: =IF(Vstup!C124<>"",Vstup!C124,"") ->  | D122: =IF(Vstup!C124<>"",Vstup!D124,"") -> 
B123: =IF(Vstup!C125<>"",Vstup!B125,"") ->  | C123: =IF(Vstup!C125<>"",Vstup!C125,"") ->  | D123: =IF(Vstup!C125<>"",Vstup!D125,"") -> 
B124: =IF(Vstup!C126<>"",Vstup!B126,"") ->  | C124: =IF(Vstup!C126<>"",Vstup!C126,"") ->  | D124: =IF(Vstup!C126<>"",Vstup!D126,"") -> 
B125: =IF(Vstup!C127<>"",Vstup!B127,"") ->  | C125: =IF(Vstup!C127<>"",Vstup!C127,"") ->  | D125: =IF(Vstup!C127<>"",Vstup!D127,"") -> 
B126: =IF(Vstup!C128<>"",Vstup!B128,"") ->  | C126: =IF(Vstup!C128<>"",Vstup!C128,"") ->  | D126: =IF(Vstup!C128<>"",Vstup!D128,"") -> 

Sheet List3 (hidden)
D1: =COUNTIF(D6:D17,"A") -> 3
N2: A | O2: =MATCH("A",D6:D17,0) -> 1
N3: B | O3: =MATCH("B",D6:D17,0) -> 4
N4: C | O4: =MATCH("C",D6:D17,0) -> 7
N5: J | O5: =MATCH("J",D6:D17,0) -> 8
C6: Hřebec Jan | D6: A | E6: =VLOOKUP(C6,VysledkyDoplneni!$C$7:$H$18,3,0) ->  | F6: =VLOOKUP($C6,VysledkyDoplneni!$C$7:$H$18,4,0) ->  | G6: =VLOOKUP($C6,VysledkyDoplneni!$C$7:$H$18,5,0) ->  | H6: =VLOOKUP($C6,VysledkyDoplneni!$C$7:$H$18,6,0) ->  | I6: =VLOOKUP($C6,VysledkyDoplneni!$C$7:$H$18,7,0) ->  | N6: V | O6: =MATCH("V",D6:D17,0) -> 12
C7: Štengl Jiří | D7: A | E7: =VLOOKUP(C7,VysledkyDoplneni!$C$7:$H$18,3,0) ->  | F7: =VLOOKUP($C7,VysledkyDoplneni!$C$7:$H$18,4,0) ->  | G7: =VLOOKUP($C7,VysledkyDoplneni!$C$7:$H$18,5,0) ->  | H7: =VLOOKUP($C7,VysledkyDoplneni!$C$7:$H$18,6,0) ->  | I7: =VLOOKUP($C7,VysledkyDoplneni!$C$7:$H$18,7,0) -> 
C8: Zázvorka Pavel | D8: A | E8: =VLOOKUP(C8,VysledkyDoplneni!$C$7:$H$18,3,0) ->  | F8: =VLOOKUP($C8,VysledkyDoplneni!$C$7:$H$18,4,0) ->  | G8: =VLOOKUP($C8,VysledkyDoplneni!$C$7:$H$18,5,0) ->  | H8: =VLOOKUP($C8,VysledkyDoplneni!$C$7:$H$18,6,0) ->  | I8: =VLOOKUP($C8,VysledkyDoplneni!$C$7:$H$18,7,0) -> 
C9: Honz Petr | D9: B | E9: =VLOOKUP(C9,VysledkyDoplneni!$C$7:$H$18,3,0) ->  | F9: =VLOOKUP($C9,VysledkyDoplneni!$C$7:$H$18,4,0) ->  | G9: =VLOOKUP($C9,VysledkyDoplneni!$C$7:$H$18,5,0) ->  | H9: =VLOOKUP($C9,VysledkyDoplneni!$C$7:$H$18,6,0) ->  | I9: =VLOOKUP($C9,VysledkyDoplneni!$C$7:$H$18,7,0) -> 
C10: Kodeš Václav | D10: B | E10: =VLOOKUP(C10,VysledkyDoplneni!$C$7:$H$18,3,0) ->  | F10: =VLOOKUP($C10,VysledkyDoplneni!$C$7:$H$18,4,0) ->  | G10: =VLOOKUP($C10,VysledkyDoplneni!$C$7:$H$18,5,0) ->  | H10: =VLOOKUP($C10,VysledkyDoplneni!$C$7:$H$18,6,0) ->  | I10: =VLOOKUP($C10,VysledkyDoplneni!$C$7:$H$18,7,0) -> 
C11: Pacal Antonín | D11: B | E11: =VLOOKUP(C11,VysledkyDoplneni!$C$7:$H$18,3,0) ->  | F11: =VLOOKUP($C11,VysledkyDoplneni!$C$7:$H$18,4,0) ->  | G11: =VLOOKUP($C11,VysledkyDoplneni!$C$7:$H$18,5,0) ->  | H11: =VLOOKUP($C11,VysledkyDoplneni!$C$7:$H$18,6,0) ->  | I11: =VLOOKUP($C11,VysledkyDoplneni!$C$7:$H$18,7,0) -> 
C12: Není v tabulce ASATu | D12: C | E12: =VLOOKUP(C12,VysledkyDoplneni!$C$7:$H$18,3,0) ->  | F12: =VLOOKUP($C12,VysledkyDoplneni!$C$7:$H$18,4,0) ->  | G12: =VLOOKUP($C12,VysledkyDoplneni!$C$7:$H$18,5,0) ->  | H12: =VLOOKUP($C12,VysledkyDoplneni!$C$7:$H$18,6,0) ->  | I12: =VLOOKUP($C12,VysledkyDoplneni!$C$7:$H$18,7,0) -> 
C13: Divíšek Martin ml. | D13: J | E13: =VLOOKUP(C13,VysledkyDoplneni!$C$7:$H$18,3,0) ->  | F13: =VLOOKUP($C13,VysledkyDoplneni!$C$7:$H$18,4,0) ->  | G13: =VLOOKUP($C13,VysledkyDoplneni!$C$7:$H$18,5,0) ->  | H13: =VLOOKUP($C13,VysledkyDoplneni!$C$7:$H$18,6,0) ->  | I13: =VLOOKUP($C13,VysledkyDoplneni!$C$7:$H$18,7,0) -> 
C14: Hřebec Jan ml. | D14: J | E14: =VLOOKUP(C14,VysledkyDoplneni!$C$7:$H$18,3,0) ->  | F14: =VLOOKUP($C14,VysledkyDoplneni!$C$7:$H$18,4,0) ->  | G14: =VLOOKUP($C14,VysledkyDoplneni!$C$7:$H$18,5,0) ->  | H14: =VLOOKUP($C14,VysledkyDoplneni!$C$7:$H$18,6,0) ->  | I14: =VLOOKUP($C14,VysledkyDoplneni!$C$7:$H$18,7,0) -> 
C15: Jankovský Jakub | D15: J | E15: =VLOOKUP(C15,VysledkyDoplneni!$C$7:$H$18,3,0) ->  | F15: =VLOOKUP($C15,VysledkyDoplneni!$C$7:$H$18,4,0) ->  | G15: =VLOOKUP($C15,VysledkyDoplneni!$C$7:$H$18,5,0) ->  | H15: =VLOOKUP($C15,VysledkyDoplneni!$C$7:$H$18,6,0) ->  | I15: =VLOOKUP($C15,VysledkyDoplneni!$C$7:$H$18,7,0) -> 
C16: Štenglová Michaela | D16: J | E16: =VLOOKUP(C16,VysledkyDoplneni!$C$7:$H$18,3,0) -> 15 | F16: =VLOOKUP($C16,VysledkyDoplneni!$C$7:$H$18,4,0) -> 14 | G16: =VLOOKUP($C16,VysledkyDoplneni!$C$7:$H$18,5,0) -> 13 | H16: =VLOOKUP($C16,VysledkyDoplneni!$C$7:$H$18,6,0) -> 0 | I16: =VLOOKUP($C16,VysledkyDoplneni!$C$7:$H$18,7,0) -> 
C17: Neuvirt Václav | D17: V | E17: =VLOOKUP(C17,VysledkyDoplneni!$C$7:$H$18,3,0) ->  | F17: =VLOOKUP($C17,VysledkyDoplneni!$C$7:$H$18,4,0) ->  | G17: =VLOOKUP($C17,VysledkyDoplneni!$C$7:$H$18,5,0) ->  | H17: =VLOOKUP($C17,VysledkyDoplneni!$C$7:$H$18,6,0) ->  | I17: =VLOOKUP($C17,VysledkyDoplneni!$C$7:$H$18,7,0) -> 

Sheet ASAT2
B3: Kat. | C3: Závody | D3: Terče | E3: Zásahy | F3: Průměr | G3: Kategorie
A4: Čech Petr | B4: J | C4: 1 | D4: 100 | E4: 82 | F4: 82.00% | G4: J
A5: Kopáček Radim | B5: J | C5: 5 | D5: 770 | E5: 600 | F5: 77.90% | G5: J
A6: Hřebec Jan ml. | B6: J | C6: 10 | D6: 1540 | E6: 1112 | F6: 72.20% | G6: J
A7: Divíšek Martin ml. | B7: J | C7: 10 | D7: 1600 | E7: 1133 | F7: 70.80% | G7: J
A8: Kožený Jan | B8: J | C8: 1 | D8: 100 | E8: 69 | F8: 69.00% | G8: J
A9: Vaněk Matěj | B9: J | C9: 1 | D9: 100 | E9: 66 | F9: 66.00% | G9: J
A10: Můčka Michal | B10: J | C10: 6 | D10: 880 | E10: 567 | F10: 64.40% | G10: J
A11: Šindelář Jiří ml. | B11: J | C11: 7 | D11: 1080 | E11: 663 | F11: 61.40% | G11: J
A12: Suk Jan | B12: J | C12: 1 | D12: 150 | E12: 87 | F12: 58.00% | G12: J
A13: Šindelář Martin | B13: J | C13: 4 | D13: 620 | E13: 339 | F13: 54.70% | G13: J
A14: Köberle Michael | B14: J | C14: 1 | D14: 150 | E14: 79 | F14: 52.70% | G14: J
A15: Němec Vladimír | B15: J | C15: 2 | D15: 400 | E15: 199 | F15: 49.80% | G15: J
A16: Konop Svatopluk | B16: J | C16: 1 | D16: 150 | E16: 71 | F16: 47.30% | G16: J
A17: Herel Hubert | B17: J | C17: 1 | D17: 150 | E17: 67 | F17: 44.70% | G17: J
A18: Čechura Miroslav | B18: J | C18: 0 | D18: 0 | E18: 0 | F18: 0.00% | G18: J
A19: Ferkl Jan ml. | B19: J | C19: 0 | D19: 0 | E19: 0 | F19: 0.00% | G19: J
A20: Chocholatý Libor | B20: J | C20: 0 | D20: 0 | E20: 0 | F20: 0.00% | G20: J
A21: Korčák Daniel | B21: J | C21: 0 | D21: 0 | E21: 0 | F21: 0.00% | G21: J
A22: Linhart Filip | B22: J | C22: 0 | D22: 0 | E22: 0 | F22: 0.00% | G22: J
A23: Mikula Petr | B23: J | C23: 0 | D23: 0 | E23: 0 | F23: 0.00% | G23: J
B28: Kat. | C28: Závody | D28: Terče | E28: Zásahy | F28: Průměr | G28: Kategorie
A29: Roth Christiane | B29: Ž | C29: 1 | D29: 200 | E29: 155 | F29: 77.50% | G29: Ž
A30: Kopper Renate | B30: Ž | C30: 1 | D30: 100 | E30: 75 | F30: 75.00% | G30: Ž
A31: Bittner Eva Maria | B31: Ž | C31: 1 | D31: 100 | E31: 64 | F31: 64.00% | G31: Ž
A32: Klausz Brigitte | B32: Ž | C32: 1 | D32: 100 | E32: 64 | F32: 64.00% | G32: Ž
A33: Štenglová Michaela | B33: Ž | C33: 9 | D33: 1320 | E33: 764 | F33: 57.90% | G33: Ž
A34: Staňková Eva | B34: Ž | C34: 2 | D34: 300 | E34: 169 | F34: 56.30% | G34: Ž
A35: Urie Zuzana | B35: Ž | C35: 7 | D35: 990 | E35: 548 | F35: 55.40% | G35: Ž
A36: Laner Andrea | B36: Ž | C36: 1 | D36: 160 | E36: 88 | F36: 55.00% | G36: Ž
A37: Zeilinger Elisabeth | B37: Ž | C37: 2 | D37: 200 | E37: 110 | F37: 55.00% | G37: Ž
A38: Bunikowska Katarzyna | B38: Ž | C38: 1 | D38: 100 | E38: 51 | F38: 51.00% | G38: Ž
A39: Turečková Lucie | B39: Ž | C39: 1 | D39: 120 | E39: 50 | F39: 41.70% | G39: Ž
A40: Pangrácová Barbora | B40: Ž | C40: 4 | D40: 560 | E40: 213 | F40: 38.00% | G40: Ž
A41: Bajtlová Helena | B41: Ž | C41: 0 | D41: 0 | E41: 0 | F41: 0.00% | G41: Ž
A42: Hýnová Šárka | B42: Ž | C42: 0 | D42: 0 | E42: 0 | F42: 0.00% | G42: Ž
A43: Krejzová Vlasta | B43: Ž | C43: 0 | D43: 0 | E43: 0 | F43: 0.00% | G43: Ž
A44: Víchová Anna | B44: Ž | C44: 0 | D44: 0 | E44: 0 | F44: 0.00% | G44: Ž
B49: Kat. | C49: Závody | D49: Terče | E49: Zásahy | F49: Průměr | G49: Kategorie
A50: Maschke Michael | B50: S | C50: 1 | D50: 100 | E50: 89 | F50: 89.00% | G50: A
A51: Hondl František | B51: S | C51: 6 | D51: 910 | E51: 793 | F51: 87.10% | G51: A
A52: Halouzka Benedikt | B52: S | C52: 1 | D52: 100 | E52: 87 | F52: 87.00% | G52: A
A53: Činčera Přemysl | B53: S | C53: 12 | D53: 1800 | E53: 1554 | F53: 86.30% | G53: A
A54: Zázvorka Pavel | B54: S | C54: 10 | D54: 1500 | E54: 1295 | F54: 86.30% | G54: A
A55: Michálek Lubomír | B55: S | C55: 7 | D55: 1100 | E55: 942 | F55: 85.60% | G55: A
A56: Kaminski Marcin | B56: S | C56: 1 | D56: 150 | E56: 126 | F56: 84.00% | G56: A
A57: Mrhálek Karel | B57: S | C57: 1 | D57: 100 | E57: 84 | F57: 84.00% | G57: A
A58: Rybín Milan | B58: S | C58: 12 | D58: 1900 | E58: 1591 | F58: 83.70% | G58: A
A59: Hřebec Jan | B59: S | C59: 11 | D59: 1650 | E59: 1375 | F59: 83.30% | G59: A
A60: Staněk Tomáš | B60: S | C60: 2 | D60: 300 | E60: 249 | F60: 83.00% | G60: A
A61: Němeček Josef | B61: S | C61: 1 | D61: 100 | E61: 83 | F61: 83.00% | G61: A
A62: Koplzynski Januš | B62: S | C62: 1 | D62: 150 | E62: 124 | F62: 82.70% | G62: A
A63: Divíšek Martin | B63: S | C63: 13 | D63: 2060 | E63: 1699 | F63: 82.50% | G63: A
A64: Salaj Josef | B64: S | C64: 8 | D64: 1170 | E64: 961 | F64: 82.10% | G64: A
A65: Šlechta Martin | B65: S | C65: 1 | D65: 100 | E65: 82 | F65: 82.00% | G65: A
A66: Matějů Filip | B66: S | C66: 1 | D66: 150 | E66: 123 | F66: 82.00% | G66: A
A67: Černošek Milan | B67: S | C67: 4 | D67: 520 | E67: 426 | F67: 81.90% | G67: A
A68: Čechura Martin | B68: S | C68: 1 | D68: 160 | E68: 131 | F68: 81.90% | G68: A
A69: Staněk Karel | B69: S | C69: 4 | D69: 600 | E69: 488 | F69: 81.30% | G69: A
A70: Preyer Leopold | B70: S | C70: 8 | D70: 1180 | E70: 957 | F70: 81.10% | G70: A
A71: Halouzka Tomáš | B71: S | C71: 1 | D71: 100 | E71: 81 | F71: 81.00% | G71: A
A72: Jung Johannes | B72: S | C72: 4 | D72: 630 | E72: 509 | F72: 80.80% | G72: A
A73: Škanta Marek | B73: S | C73: 5 | D73: 770 | E73: 622 | F73: 80.80% | G73: A
A74: Špaček Pavel | B74: S | C74: 8 | D74: 1290 | E74: 1040 | F74: 80.60% | G74: A
A75: Klement Petr | B75: S | C75: 2 | D75: 200 | E75: 160 | F75: 80.00% | G75: A
A76: Kořínek Jindřich | B76: S | C76: 1 | D76: 100 | E76: 80 | F76: 80.00% | G76: A
A77: Pacyga Bartoloměj | B77: S | C77: 1 | D77: 150 | E77: 120 | F77: 80.00% | G77: A
A78: Ratzenbock Karl | B78: S | C78: 1 | D78: 200 | E78: 160 | F78: 80.00% | G78: A
A79: Jankovský Miroslav | B79: S | C79: 11 | D79: 1690 | E79: 1349 | F79: 79.80% | G79: A
A80: Pluciński Marcin | B80: S | C80: 2 | D80: 350 | E80: 279 | F80: 79.70% | G80: A
A81: Můčka Igor | B81: S | C81: 7 | D81: 1030 | E81: 819 | F81: 79.50% | G81: A
A82: Fojt Martin | B82: S | C82: 2 | D82: 200 | E82: 159 | F82: 79.50% | G82: A
A83: Štengl Jiří | B83: S | C83: 11 | D83: 1680 | E83: 1333 | F83: 79.30% | G83: A
A84: Koloc Martin | B84: S | C84: 9 | D84: 1300 | E84: 1031 | F84: 79.30% | G84: A
A85: Sokola Bronislav | B85: S | C85: 5 | D85: 750 | E85: 593 | F85: 79.10% | G85: A
A86: Novák Libor | B86: S | C86: 2 | D86: 360 | E86: 283 | F86: 78.60% | G86: A
A87: Zeilinger Gerhard | B87: S | C87: 2 | D87: 200 | E87: 157 | F87: 78.50% | G87: A
A88: Lengyel Jan | B88: S | C88: 7 | D88: 1030 | E88: 805 | F88: 78.20% | G88: A
A89: Hlaváček Václav | B89: S | C89: 1 | D89: 100 | E89: 78 | F89: 78.00% | G89: A
A90: Steiner Jan | B90: S | C90: 1 | D90: 200 | E90: 156 | F90: 78.00% | G90: A
A91: Šrom Petr | B91: S | C91: 1 | D91: 100 | E91: 78 | F91: 78.00% | G91: A
A92: Hruška Pavel | B92: S | C92: 6 | D92: 870 | E92: 678 | F92: 77.90% | G92: A
A93: Kotrc Karel | B93: S | C93: 3 | D93: 380 | E93: 296 | F93: 77.90% | G93: A
A94: Amler Walter | B94: S | C94: 2 | D94: 320 | E94: 249 | F94: 77.80% | G94: A
A95: Szolga Josef | B95: S | C95: 1 | D95: 200 | E95: 155 | F95: 77.50% | G95: A
A96: Frenkl Jiří | B96: S | C96: 1 | D96: 200 | E96: 155 | F96: 77.50% | G96: A
A97: Marinč Matic | B97: S | C97: 2 | D97: 400 | E97: 309 | F97: 77.30% | G97: A
A98: Zucker Gerhard | B98: S | C98: 2 | D98: 200 | E98: 154 | F98: 77.00% | G98: A
A99: Kočí Radek | B99: S | C99: 1 | D99: 160 | E99: 123 | F99: 76.90% | G99: A
A100: Vaňáč Václav | B100: S | C100: 6 | D100: 1000 | E100: 764 | F100: 76.40% | G100: A
A101: Šindelář Milan | B101: S | C101: 2 | D101: 260 | E101: 198 | F101: 76.20% | G101: A
A102: Štícha Lubomír | B102: S | C102: 11 | D102: 1660 | E102: 1264 | F102: 76.10% | G102: A
A103: Hertl Igor | B103: S | C103: 8 | D103: 1250 | E103: 948 | F103: 75.80% | G103: A
A104: Stanislav Tomáš | B104: S | C104: 10 | D104: 1480 | E104: 1120 | F104: 75.70% | G104: A
A105: Neuvirt Martin | B105: S | C105: 8 | D105: 1390 | E105: 1048 | F105: 75.40% | G105: A
A106: Kadlec Miroslav | B106: S | C106: 2 | D106: 220 | E106: 165 | F106: 75.00% | G106: A
A107: Fiala Gerhard | B107: S | C107: 1 | D107: 100 | E107: 75 | F107: 75.00% | G107: A
A108: Ornst Milan | B108: S | C108: 1 | D108: 100 | E108: 75 | F108: 75.00% | G108: A
A109: Halouzka Lukáš | B109: S | C109: 0 | D109: 0 | E109: 0 | F109: 0.00% | G109: A
A110: Jarolím Zdeněk | B110: S | C110: 0 | D110: 0 | E110: 0 | F110: 0.00% | G110: A
A111: Kobes Jan | B111: S | C111: 0 | D111: 0 | E111: 0 | F111: 0.00% | G111: A
A112: Kroupa Roman | B112: S | C112: 0 | D112: 0 | E112: 0 | F112: 0.00% | G112: A
A113: Lyczykowski Kryzstof | B113: S | C113: 0 | D113: 0 | E113: 0 | F113: 0.00% | G113: A
A114: Pápeš Milan | B114: S | C114: 0 | D114: 0 | E114: 0 | F114: 0.00% | G114: A
A115: Podsedník Ladislav | B115: S | C115: 0 | D115: 0 | E115: 0 | F115: 0.00% | G115: A
A116: Vranka Petr | B116: S | C116: 0 | D116: 0 | E116: 0 | F116: 0.00% | G116: A
A117: Vrzáň Josef ml. | B117: S | C117: 0 | D117: 0 | E117: 0 | F117: 0.00% | G117: A
A118: Wlodarczyk Remigiusz | B118: S | C118: 0 | D118: 0 | E118: 0 | F118: 0.00% | G118: A
A119: Zvolánek Petr | B119: S | C119: 0 | D119: 0 | E119: 0 | F119: 0.00% | G119: A
B124: Kat. | C124: Závody | D124: Terče | E124: Zásahy | F124: Průměr | G124: Kategorie
A125: Honz Petr | B125: S | C125: 7 | D125: 990 | E125: 741 | F125: 74.80% | G125: B
A126: Zigo Martin | B126: S | C126: 6 | D126: 910 | E126: 679 | F126: 74.60% | G126: B
A127: Vaněk Roman | B127: S | C127: 6 | D127: 930 | E127: 693 | F127: 74.50% | G127: B
A128: Mácha Karel | B128: S | C128: 3 | D128: 360 | E128: 268 | F128: 74.40% | G128: B
A129: Komárek Josef | B129: S | C129: 6 | D129: 1000 | E129: 743 | F129: 74.30% | G129: B
A130: Musil Zdeněk | B130: S | C130: 4 | D130: 420 | E130: 312 | F130: 74.30% | G130: B
A131: Pražák Petr | B131: S | C131: 3 | D131: 420 | E131: 311 | F131: 74.00% | G131: B
A132: Vavrečka Michal | B132: S | C132: 2 | D132: 350 | E132: 259 | F132: 74.00% | G132: B
A133: Czerski Pawel | B133: S | C133: 1 | D133: 100 | E133: 74 | F133: 74.00% | G133: B
A134: Pokrzywka Pawel | B134: S | C134: 1 | D134: 100 | E134: 74 | F134: 74.00% | G134: B
A135: Vlček Martin | B135: S | C135: 1 | D135: 100 | E135: 74 | F135: 74.00% | G135: B
A136: Cífka Jan | B136: S | C136: 1 | D136: 100 | E136: 74 | F136: 74.00% | G136: B
A137: Walter Michael | B137: S | C137: 1 | D137: 100 | E137: 74 | F137: 74.00% | G137: B
A138: Jankovský Jakub | B138: S | C138: 1 | D138: 160 | E138: 118 | F138: 73.80% | G138: B
A139: Lengyel Ivan | B139: S | C139: 5 | D139: 670 | E139: 494 | F139: 73.70% | G139: B
A140: Kaprálek Michal | B140: S | C140: 3 | D140: 420 | E140: 309 | F140: 73.60% | G140: B
A141: Němec Tomáš | B141: S | C141: 3 | D141: 520 | E141: 382 | F141: 73.50% | G141: B
A142: Dočkal Jiří | B142: S | C142: 4 | D142: 500 | E142: 367 | F142: 73.40% | G142: B
A143: Kopáček Pavel | B143: S | C143: 3 | D143: 450 | E143: 330 | F143: 73.30% | G143: B
A144: Eder Robert | B144: S | C144: 2 | D144: 300 | E144: 220 | F144: 73.30% | G144: B
A145: Lengyel Jiří | B145: S | C145: 8 | D145: 1150 | E145: 842 | F145: 73.20% | G145: B
A146: Žofka Josef | B146: S | C146: 1 | D146: 160 | E146: 117 | F146: 73.10% | G146: B
A147: Prokeš Martin | B147: S | C147: 1 | D147: 100 | E147: 73 | F147: 73.00% | G147: B
A148: Staněk Tomáš | B148: S | C148: 1 | D148: 100 | E148: 73 | F148: 73.00% | G148: B
A149: Mikulka Peter | B149: S | C149: 13 | D149: 2000 | E149: 1452 | F149: 72.60% | G149: B
A150: Schwerdt Tobias | B150: S | C150: 2 | D150: 320 | E150: 232 | F150: 72.50% | G150: B
A151: Pučálka Karel | B151: S | C151: 2 | D151: 260 | E151: 188 | F151: 72.30% | G151: B
A152: Straka Ladislav ml. | B152: S | C152: 3 | D152: 360 | E152: 260 | F152: 72.20% | G152: B
A153: Jindříšek Pavel | B153: S | C153: 1 | D153: 100 | E153: 72 | F153: 72.00% | G153: B
A154: Husar Vladimír | B154: S | C154: 7 | D154: 940 | E154: 670 | F154: 71.30% | G154: B
A155: Hlušička Martin | B155: S | C155: 7 | D155: 970 | E155: 691 | F155: 71.20% | G155: B
A156: Chrudimský Petr | B156: S | C156: 1 | D156: 100 | E156: 71 | F156: 71.00% | G156: B
A157: Rykr Eduard | B157: S | C157: 1 | D157: 100 | E157: 71 | F157: 71.00% | G157: B
A158: Röttenbacher Uwe | B158: S | C158: 2 | D158: 320 | E158: 227 | F158: 70.90% | G158: B
A159: Hertl Rastislav | B159: S | C159: 7 | D159: 1090 | E159: 771 | F159: 70.70% | G159: B
A160: Někoranec Igor | B160: S | C160: 2 | D160: 300 | E160: 212 | F160: 70.70% | G160: B
A161: Borák Ondřej | B161: S | C161: 3 | D161: 400 | E161: 282 | F161: 70.50% | G161: B
A162: Molnár Anton | B162: S | C162: 3 | D162: 470 | E162: 330 | F162: 70.20% | G162: B
A163: Maruška Jaromír | B163: S | C163: 2 | D163: 220 | E163: 154 | F163: 70.00% | G163: B
A164: Berčík Martin | B164: S | C164: 1 | D164: 100 | E164: 70 | F164: 70.00% | G164: B
A165: Hanuš Jan | B165: S | C165: 1 | D165: 120 | E165: 84 | F165: 70.00% | G165: B
A166: Klesnil Zdeněk ml. | B166: S | C166: 1 | D166: 100 | E166: 70 | F166: 70.00% | G166: B
A167: Náhlík Miroslav | B167: S | C167: 1 | D167: 100 | E167: 70 | F167: 70.00% | G167: B
A168: Ruck Alois | B168: S | C168: 2 | D168: 350 | E168: 244 | F168: 69.70% | G168: B
A169: Škrna Jiří | B169: S | C169: 3 | D169: 430 | E169: 298 | F169: 69.30% | G169: B
A170: Zelina Aleš | B170: S | C170: 1 | D170: 100 | E170: 69 | F170: 69.00% | G170: B
A171: Korál Petr | B171: S | C171: 4 | D171: 680 | E171: 467 | F171: 68.70% | G171: B
A172: Hess Slavomír | B172: S | C172: 1 | D172: 150 | E172: 103 | F172: 68.70% | G172: B
A173: Prokop Jiří | B173: S | C173: 8 | D173: 1110 | E173: 760 | F173: 68.50% | G173: B
A174: Vranák Martin | B174: S | C174: 10 | D174: 1500 | E174: 1027 | F174: 68.50% | G174: B
A175: Lebloch Vladimír | B175: S | C175: 4 | D175: 650 | E175: 445 | F175: 68.50% | G175: B
A176: Mocek Michal | B176: S | C176: 2 | D176: 220 | E176: 150 | F176: 68.20% | G176: B
A177: Potůček Jaroslav | B177: S | C177: 3 | D177: 360 | E177: 245 | F177: 68.10% | G177: B
A178: Babický Jiří | B178: S | C178: 0 | D178: 0 | E178: 0 | F178: 0.00% | G178: B
A179: Bejček Václav ml. | B179: S | C179: 0 | D179: 0 | E179: 0 | F179: 0.00% | G179: B
A180: Bělík Michal | B180: S | C180: 0 | D180: 0 | E180: 0 | F180: 0.00% | G180: B
A181: Beneš Jan | B181: S | C181: 0 | D181: 0 | E181: 0 | F181: 0.00% | G181: B
A182: Buda Dušan | B182: S | C182: 0 | D182: 0 | E182: 0 | F182: 0.00% | G182: B
A183: Cieplik Waldemar | B183: S | C183: 0 | D183: 0 | E183: 0 | F183: 0.00% | G183: B
A184: Červenka Zbyněk | B184: S | C184: 0 | D184: 0 | E184: 0 | F184: 0.00% | G184: B
A185: Čuda Milan | B185: S | C185: 0 | D185: 0 | E185: 0 | F185: 0.00% | G185: B
A186: Divíšek Tomáš | B186: S | C186: 0 | D186: 0 | E186: 0 | F186: 0.00% | G186: B
A187: Hrouda Josef | B187: S | C187: 0 | D187: 0 | E187: 0 | F187: 0.00% | G187: B
A188: Chaloupský Zdeněk | B188: S | C188: 0 | D188: 0 | E188: 0 | F188: 0.00% | G188: B
A189: Jedros Witold | B189: S | C189: 0 | D189: 0 | E189: 0 | F189: 0.00% | G189: B
A190: Kaiser Vladimír | B190: S | C190: 0 | D190: 0 | E190: 0 | F190: 0.00% | G190: B
A191: Kodeš Václav | B191: S | C191: 0 | D191: 0 | E191: 0 | F191: 0.00% | G191: B
A192: Krázel Stanislav | B192: S | C192: 0 | D192: 0 | E192: 0 | F192: 0.00% | G192: B
A193: Krejza Jan | B193: S | C193: 0 | D193: 0 | E193: 0 | F193: 0.00% | G193: B
A194: Kytlica Vilém | B194: S | C194: 0 | D194: 0 | E194: 0 | F194: 0.00% | G194: B
A195: Liška Vladislav | B195: S | C195: 0 | D195: 0 | E195: 0 | F195: 0.00% | G195: B
A196: Mach Jan | B196: S | C196: 0 | D196: 0 | E196: 0 | F196: 0.00% | G196: B
A197: Málek Vlastimil | B197: S | C197: 0 | D197: 0 | E197: 0 | F197: 0.00% | G197: B
A198: Mateiczek Marek | B198: S | C198: 0 | D198: 0 | E198: 0 | F198: 0.00% | G198: B
A199: Minář Jaroslav | B199: S | C199: 0 | D199: 0 | E199: 0 | F199: 0.00% | G199: B
A200: Mládek Jan | B200: S | C200: 0 | D200: 0 | E200: 0 | F200: 0.00% | G200: B
A201: Nesiba Josef | B201: S | C201: 0 | D201: 0 | E201: 0 | F201: 0.00% | G201: B
A202: Neuman Miloslav | B202: S | C202: 0 | D202: 0 | E202: 0 | F202: 0.00% | G202: B
A203: Pandula Ivan | B203: S | C203: 0 | D203: 0 | E203: 0 | F203: 0.00% | G203: B
A204: Poupě Jaroslav | B204: S | C204: 0 | D204: 0 | E204: 0 | F204: 0.00% | G204: B
A205: Pulicar Jaroslav | B205: S | C205: 0 | D205: 0 | E205: 0 | F205: 0.00% | G205: B
A206: Racek Petr | B206: S | C206: 0 | D206: 0 | E206: 0 | F206: 0.00% | G206: B
A207: Stránský Lukáš | B207: S | C207: 0 | D207: 0 | E207: 0 | F207: 0.00% | G207: B
A208: Svoboda Vít | B208: S | C208: 0 | D208: 0 | E208: 0 | F208: 0.00% | G208: B
A209: Sysel Tomáš | B209: S | C209: 0 | D209: 0 | E209: 0 | F209: 0.00% | G209: B
A210: Šílený Josef | B210: S | C210: 0 | D210: 0 | E210: 0 | F210: 0.00% | G210: B
A211: Tůma Martin | B211: S | C211: 0 | D211: 0 | E211: 0 | F211: 0.00% | G211: B
A212: Ušatý Miroslav | B212: S | C212: 0 | D212: 0 | E212: 0 | F212: 0.00% | G212: B
A213: Vala Jiří | B213: S | C213: 0 | D213: 0 | E213: 0 | F213: 0.00% | G213: B
A214: Valapka Peter | B214: S | C214: 0 | D214: 0 | E214: 0 | F214: 0.00% | G214: B
... 354 more rows

Sheet VysledkovaListina
A1: =Vstup!C2&IF(Vstup!C3<>"",", "&Vstup!C3,"") -> Josefovský brokový trojboj, 60 TERČŮ
A2: =Vstup!C4&", "&Vstup!C5 -> SPORTING, 20.03.2022
A4: VÝSLEDKOVÁ LISTINA
A5: Pořadí | B5: Příjmení, jméno | C5: Kat. | D5: Linie / Střeliště | T5: Fin. | U5: R | V5: Σ
D6: =Data!D3 -> Vysoká věž | E6: =Data!D4 -> Trap | F6: =Data!D5 -> Zajíc | G6: =Data!D6 -> 0 | H6: =Data!D7 -> 0 | I6: =Data!D8 -> 0 | J6: =Data!D9 -> 0 | K6: =Data!D10 -> 0 | L6: =Data!D11 -> 0 | M6: =Data!D12 -> 0 | N6: =Data!D13 -> 0 | O6: =Data!D14 -> 0 | P6: =Data!D15 -> 0 | Q6: =Data!D16 -> 0 | R6: =Data!D17 -> 0 | S6: =Data!D18 -> 0
A8: 1 | B8: =IF(Vstup!C18<>"",Vstup!C18,"") -> Frenkl Jiří | C8: S | D8: =VLOOKUP($B8,VysledkyDoplneni!$C$7:$T$126,3,0) -> 19 | E8: =VLOOKUP($B8,VysledkyDoplneni!$C$7:$T$126,4,0) -> 19 | F8: =VLOOKUP($B8,VysledkyDoplneni!$C$7:$T$126,5,0) -> 19 | G8: =VLOOKUP($B8,VysledkyDoplneni!$C$7:$T$126,6,0) -> 0 | H8: =VLOOKUP($B8,VysledkyDoplneni!$C$7:$T$126,7,0) -> 0 | I8: =VLOOKUP($B8,VysledkyDoplneni!$C$7:$T$126,8,0) -> 0 | J8: =VLOOKUP($B8,VysledkyDoplneni!$C$7:$T$126,9,0) -> 0 | K8: =VLOOKUP($B8,VysledkyDoplneni!$C$7:$T$126,10,0) -> 0 | L8: =VLOOKUP($B8,VysledkyDoplneni!$C$7:$T$126,11,0) -> 0 | M8: =VLOOKUP($B8,VysledkyDoplneni!$C$7:$T$126,12,0) -> 0 | N8: =VLOOKUP($B8,VysledkyDoplneni!$C$7:$T$126,13,0) -> 0 | O8: =VLOOKUP($B8,VysledkyDoplneni!$C$7:$T$126,14,0) -> 0 | P8: =VLOOKUP($B8,VysledkyDoplneni!$C$7:$T$126,15,0) -> 0 | Q8: =VLOOKUP($B8,VysledkyDoplneni!$C$7:$T$126,16,0) -> 0 | R8: =VLOOKUP($B8,VysledkyDoplneni!$C$7:$T$126,17,0) -> 0 | S8: =VLOOKUP($B8,VysledkyDoplneni!$C$7:$T$126,18,0) -> 0 | V8: =SUM(D8:S8) -> 57 | W8: =(V8/(Data!$B$18*X8)) -> 95.0% | X8: =COUNTIF(D8:S8,">0") -> 3
A9: 2 | B9: =IF(Vstup!C48<>"",Vstup!C48,"") -> Kočí Radek | C9: S | D9: =VLOOKUP($B9,VysledkyDoplneni!$C$7:$T$126,3,0) -> 18 | E9: =VLOOKUP($B9,VysledkyDoplneni!$C$7:$T$126,4,0) -> 16 | F9: =VLOOKUP($B9,VysledkyDoplneni!$C$7:$T$126,5,0) -> 19 | G9: =VLOOKUP($B9,VysledkyDoplneni!$C$7:$T$126,6,0) -> 0 | H9: =VLOOKUP($B9,VysledkyDoplneni!$C$7:$T$126,7,0) -> 0 | I9: =VLOOKUP($B9,VysledkyDoplneni!$C$7:$T$126,8,0) -> 0 | J9: =VLOOKUP($B9,VysledkyDoplneni!$C$7:$T$126,9,0) -> 0 | K9: =VLOOKUP($B9,VysledkyDoplneni!$C$7:$T$126,10,0) -> 0 | L9: =VLOOKUP($B9,VysledkyDoplneni!$C$7:$T$126,11,0) -> 0 | M9: =VLOOKUP($B9,VysledkyDoplneni!$C$7:$T$126,12,0) -> 0 | N9: =VLOOKUP($B9,VysledkyDoplneni!$C$7:$T$126,13,0) -> 0 | O9: =VLOOKUP($B9,VysledkyDoplneni!$C$7:$T$126,14,0) -> 0 | P9: =VLOOKUP($B9,VysledkyDoplneni!$C$7:$T$126,15,0) -> 0 | Q9: =VLOOKUP($B9,VysledkyDoplneni!$C$7:$T$126,16,0) -> 0 | R9: =VLOOKUP($B9,VysledkyDoplneni!$C$7:$T$126,17,0) -> 0 | S9: =VLOOKUP($B9,VysledkyDoplneni!$C$7:$T$126,18,0) -> 0 | V9: =SUM(D9:S9) -> 53 | W9: =(V9/(Data!$B$18*X9)) -> 88.3% | X9: =COUNTIF(D9:S9,">0") -> 3
A10: 3 | B10: =IF(Vstup!C52<>"",Vstup!C52,"") -> Kubík Jindřich | C10: S | D10: =VLOOKUP($B10,VysledkyDoplneni!$C$7:$T$126,3,0) -> 15 | E10: =VLOOKUP($B10,VysledkyDoplneni!$C$7:$T$126,4,0) -> 18 | F10: =VLOOKUP($B10,VysledkyDoplneni!$C$7:$T$126,5,0) -> 19 | G10: =VLOOKUP($B10,VysledkyDoplneni!$C$7:$T$126,6,0) -> 0 | H10: =VLOOKUP($B10,VysledkyDoplneni!$C$7:$T$126,7,0) -> 0 | I10: =VLOOKUP($B10,VysledkyDoplneni!$C$7:$T$126,8,0) -> 0 | J10: =VLOOKUP($B10,VysledkyDoplneni!$C$7:$T$126,9,0) -> 0 | K10: =VLOOKUP($B10,VysledkyDoplneni!$C$7:$T$126,10,0) -> 0 | L10: =VLOOKUP($B10,VysledkyDoplneni!$C$7:$T$126,11,0) -> 0 | M10: =VLOOKUP($B10,VysledkyDoplneni!$C$7:$T$126,12,0) -> 0 | N10: =VLOOKUP($B10,VysledkyDoplneni!$C$7:$T$126,13,0) -> 0 | O10: =VLOOKUP($B10,VysledkyDoplneni!$C$7:$T$126,14,0) -> 0 | P10: =VLOOKUP($B10,VysledkyDoplneni!$C$7:$T$126,15,0) -> 0 | Q10: =VLOOKUP($B10,VysledkyDoplneni!$C$7:$T$126,16,0) -> 0 | R10: =VLOOKUP($B10,VysledkyDoplneni!$C$7:$T$126,17,0) -> 0 | S10: =VLOOKUP($B10,VysledkyDoplneni!$C$7:$T$126,18,0) -> 0 | U10: 5 | V10: =SUM(D10:S10) -> 52 | W10: =(V10/(Data!$B$18*X10)) -> 86.7% | X10: 3
A11: 4 | B11: =IF(Vstup!C23<>"",Vstup!C23,"") -> Kotrbáček Václav | C11: S | D11: =VLOOKUP($B11,VysledkyDoplneni!$C$7:$T$126,3,0) -> 19 | E11: =VLOOKUP($B11,VysledkyDoplneni!$C$7:$T$126,4,0) -> 16 | F11: =VLOOKUP($B11,VysledkyDoplneni!$C$7:$T$126,5,0) -> 17 | G11: =VLOOKUP($B11,VysledkyDoplneni!$C$7:$T$126,6,0) -> 0 | H11: =VLOOKUP($B11,VysledkyDoplneni!$C$7:$T$126,7,0) -> 0 | I11: =VLOOKUP($B11,VysledkyDoplneni!$C$7:$T$126,8,0) -> 0 | J11: =VLOOKUP($B11,VysledkyDoplneni!$C$7:$T$126,9,0) -> 0 | K11: =VLOOKUP($B11,VysledkyDoplneni!$C$7:$T$126,10,0) -> 0 | L11: =VLOOKUP($B11,VysledkyDoplneni!$C$7:$T$126,11,0) -> 0 | M11: =VLOOKUP($B11,VysledkyDoplneni!$C$7:$T$126,12,0) -> 0 | N11: =VLOOKUP($B11,VysledkyDoplneni!$C$7:$T$126,13,0) -> 0 | O11: =VLOOKUP($B11,VysledkyDoplneni!$C$7:$T$126,14,0) -> 0 | P11: =VLOOKUP($B11,VysledkyDoplneni!$C$7:$T$126,15,0) -> 0 | Q11: =VLOOKUP($B11,VysledkyDoplneni!$C$7:$T$126,16,0) -> 0 | R11: =VLOOKUP($B11,VysledkyDoplneni!$C$7:$T$126,17,0) -> 0 | S11: =VLOOKUP($B11,VysledkyDoplneni!$C$7:$T$126,18,0) -> 0 | V11: =SUM(D11:S11) -> 52 | W11: =(V11/(Data!$B$18*X11)) -> 86.7% | X11: 3
A12: 5 | B12: =IF(Vstup!C41<>"",Vstup!C41,"") -> Noháček Pavel | C12: S | D12: =VLOOKUP($B12,VysledkyDoplneni!$C$7:$T$126,3,0) -> 18 | E12: =VLOOKUP($B12,VysledkyDoplneni!$C$7:$T$126,4,0) -> 15 | F12: =VLOOKUP($B12,VysledkyDoplneni!$C$7:$T$126,5,0) -> 19 | G12: =VLOOKUP($B12,VysledkyDoplneni!$C$7:$T$126,6,0) -> 0 | H12: =VLOOKUP($B12,VysledkyDoplneni!$C$7:$T$126,7,0) -> 0 | I12: =VLOOKUP($B12,VysledkyDoplneni!$C$7:$T$126,8,0) -> 0 | J12: =VLOOKUP($B12,VysledkyDoplneni!$C$7:$T$126,9,0) -> 0 | K12: =VLOOKUP($B12,VysledkyDoplneni!$C$7:$T$126,10,0) -> 0 | L12: =VLOOKUP($B12,VysledkyDoplneni!$C$7:$T$126,11,0) -> 0 | M12: =VLOOKUP($B12,VysledkyDoplneni!$C$7:$T$126,12,0) -> 0 | N12: =VLOOKUP($B12,VysledkyDoplneni!$C$7:$T$126,13,0) -> 0 | O12: =VLOOKUP($B12,VysledkyDoplneni!$C$7:$T$126,14,0) -> 0 | P12: =VLOOKUP($B12,VysledkyDoplneni!$C$7:$T$126,15,0) -> 0 | Q12: =VLOOKUP($B12,VysledkyDoplneni!$C$7:$T$126,16,0) -> 0 | R12: =VLOOKUP($B12,VysledkyDoplneni!$C$7:$T$126,17,0) -> 0 | S12: =VLOOKUP($B12,VysledkyDoplneni!$C$7:$T$126,18,0) -> 0 | V12: =SUM(D12:S12) -> 52 | W12: =(V12/(Data!$B$18*X12)) -> 86.7% | X12: 3
A13: 6 | B13: =IF(Vstup!C10<>"",Vstup!C10,"") -> Vaněk Matěj | C13: S | D13: =VLOOKUP($B13,VysledkyDoplneni!$C$7:$T$126,3,0) -> 16 | E13: =VLOOKUP($B13,VysledkyDoplneni!$C$7:$T$126,4,0) -> 16 | F13: =VLOOKUP($B13,VysledkyDoplneni!$C$7:$T$126,5,0) -> 20 | G13: =VLOOKUP($B13,VysledkyDoplneni!$C$7:$T$126,6,0) -> 0 | H13: =VLOOKUP($B13,VysledkyDoplneni!$C$7:$T$126,7,0) -> 0 | I13: =VLOOKUP($B13,VysledkyDoplneni!$C$7:$T$126,8,0) -> 0 | J13: =VLOOKUP($B13,VysledkyDoplneni!$C$7:$T$126,9,0) -> 0 | K13: =VLOOKUP($B13,VysledkyDoplneni!$C$7:$T$126,10,0) -> 0 | L13: =VLOOKUP($B13,VysledkyDoplneni!$C$7:$T$126,11,0) -> 0 | M13: =VLOOKUP($B13,VysledkyDoplneni!$C$7:$T$126,12,0) -> 0 | N13: =VLOOKUP($B13,VysledkyDoplneni!$C$7:$T$126,13,0) -> 0 | O13: =VLOOKUP($B13,VysledkyDoplneni!$C$7:$T$126,14,0) -> 0 | P13: =VLOOKUP($B13,VysledkyDoplneni!$C$7:$T$126,15,0) -> 0 | Q13: =VLOOKUP($B13,VysledkyDoplneni!$C$7:$T$126,16,0) -> 0 | R13: =VLOOKUP($B13,VysledkyDoplneni!$C$7:$T$126,17,0) -> 0 | S13: =VLOOKUP($B13,VysledkyDoplneni!$C$7:$T$126,18,0) -> 0 | V13: =SUM(D13:S13) -> 52 | W13: =(V13/(Data!$B$18*X13)) -> 86.7% | X13: 3
A14: 7 | B14: =IF(Vstup!C27<>"",Vstup!C27,"") -> Čechura Petr | C14: S | D14: =VLOOKUP($B14,VysledkyDoplneni!$C$7:$T$126,3,0) -> 14 | E14: =VLOOKUP($B14,VysledkyDoplneni!$C$7:$T$126,4,0) -> 19 | F14: =VLOOKUP($B14,VysledkyDoplneni!$C$7:$T$126,5,0) -> 19 | G14: =VLOOKUP($B14,VysledkyDoplneni!$C$7:$T$126,6,0) -> 0 | H14: =VLOOKUP($B14,VysledkyDoplneni!$C$7:$T$126,7,0) -> 0 | I14: =VLOOKUP($B14,VysledkyDoplneni!$C$7:$T$126,8,0) -> 0 | J14: =VLOOKUP($B14,VysledkyDoplneni!$C$7:$T$126,9,0) -> 0 | K14: =VLOOKUP($B14,VysledkyDoplneni!$C$7:$T$126,10,0) -> 0 | L14: =VLOOKUP($B14,VysledkyDoplneni!$C$7:$T$126,11,0) -> 0 | M14: =VLOOKUP($B14,VysledkyDoplneni!$C$7:$T$126,12,0) -> 0 | N14: =VLOOKUP($B14,VysledkyDoplneni!$C$7:$T$126,13,0) -> 0 | O14: =VLOOKUP($B14,VysledkyDoplneni!$C$7:$T$126,14,0) -> 0 | P14: =VLOOKUP($B14,VysledkyDoplneni!$C$7:$T$126,15,0) -> 0 | Q14: =VLOOKUP($B14,VysledkyDoplneni!$C$7:$T$126,16,0) -> 0 | R14: =VLOOKUP($B14,VysledkyDoplneni!$C$7:$T$126,17,0) -> 0 | S14: =VLOOKUP($B14,VysledkyDoplneni!$C$7:$T$126,18,0) -> 0 | V14: =SUM(D14:S14) -> 52 | W14: =(V14/(Data!$B$18*X14)) -> 86.7% | X14: 3
A15: 8 | B15: =IF(Vstup!C45<>"",Vstup!C45,"") -> Hromada Jaroslav | C15: S | D15: =VLOOKUP($B15,VysledkyDoplneni!$C$7:$T$126,3,0) -> 18 | E15: =VLOOKUP($B15,VysledkyDoplneni!$C$7:$T$126,4,0) -> 17 | F15: =VLOOKUP($B15,VysledkyDoplneni!$C$7:$T$126,5,0) -> 16 | G15: =VLOOKUP($B15,VysledkyDoplneni!$C$7:$T$126,6,0) -> 0 | H15: =VLOOKUP($B15,VysledkyDoplneni!$C$7:$T$126,7,0) -> 0 | I15: =VLOOKUP($B15,VysledkyDoplneni!$C$7:$T$126,8,0) -> 0 | J15: =VLOOKUP($B15,VysledkyDoplneni!$C$7:$T$126,9,0) -> 0 | K15: =VLOOKUP($B15,VysledkyDoplneni!$C$7:$T$126,10,0) -> 0 | L15: =VLOOKUP($B15,VysledkyDoplneni!$C$7:$T$126,11,0) -> 0 | M15: =VLOOKUP($B15,VysledkyDoplneni!$C$7:$T$126,12,0) -> 0 | N15: =VLOOKUP($B15,VysledkyDoplneni!$C$7:$T$126,13,0) -> 0 | O15: =VLOOKUP($B15,VysledkyDoplneni!$C$7:$T$126,14,0) -> 0 | P15: =VLOOKUP($B15,VysledkyDoplneni!$C$7:$T$126,15,0) -> 0 | Q15: =VLOOKUP($B15,VysledkyDoplneni!$C$7:$T$126,16,0) -> 0 | R15: =VLOOKUP($B15,VysledkyDoplneni!$C$7:$T$126,17,0) -> 0 | S15: =VLOOKUP($B15,VysledkyDoplneni!$C$7:$T$126,18,0) -> 0 | V15: =SUM(D15:S15) -> 51 | W15: =(V15/(Data!$B$18*X15)) -> 85.0% | X15: 3
A16: 9 | B16: =IF(Vstup!C31<>"",Vstup!C31,"") -> Volf Jiří | C16: S | D16: =VLOOKUP($B16,VysledkyDoplneni!$C$7:$T$126,3,0) -> 15 | E16: =VLOOKUP($B16,VysledkyDoplneni!$C$7:$T$126,4,0) -> 16 | F16: =VLOOKUP($B16,VysledkyDoplneni!$C$7:$T$126,5,0) -> 20 | G16: =VLOOKUP($B16,VysledkyDoplneni!$C$7:$T$126,6,0) -> 0 | H16: =VLOOKUP($B16,VysledkyDoplneni!$C$7:$T$126,7,0) -> 0 | I16: =VLOOKUP($B16,VysledkyDoplneni!$C$7:$T$126,8,0) -> 0 | J16: =VLOOKUP($B16,VysledkyDoplneni!$C$7:$T$126,9,0) -> 0 | K16: =VLOOKUP($B16,VysledkyDoplneni!$C$7:$T$126,10,0) -> 0 | L16: =VLOOKUP($B16,VysledkyDoplneni!$C$7:$T$126,11,0) -> 0 | M16: =VLOOKUP($B16,VysledkyDoplneni!$C$7:$T$126,12,0) -> 0 | N16: =VLOOKUP($B16,VysledkyDoplneni!$C$7:$T$126,13,0) -> 0 | O16: =VLOOKUP($B16,VysledkyDoplneni!$C$7:$T$126,14,0) -> 0 | P16: =VLOOKUP($B16,VysledkyDoplneni!$C$7:$T$126,15,0) -> 0 | Q16: =VLOOKUP($B16,VysledkyDoplneni!$C$7:$T$126,16,0) -> 0 | R16: =VLOOKUP($B16,VysledkyDoplneni!$C$7:$T$126,17,0) -> 0 | S16: =VLOOKUP($B16,VysledkyDoplneni!$C$7:$T$126,18,0) -> 0 | V16: =SUM(D16:S16) -> 51 | W16: =(V16/(Data!$B$18*X16)) -> 85.0% | X16: 3
A17: 10 | B17: =IF(Vstup!C26<>"",Vstup!C26,"") -> Bém Josef | C17: S | D17: =VLOOKUP($B17,VysledkyDoplneni!$C$7:$T$126,3,0) -> 19 | E17: =VLOOKUP($B17,VysledkyDoplneni!$C$7:$T$126,4,0) -> 15 | F17: =VLOOKUP($B17,VysledkyDoplneni!$C$7:$T$126,5,0) -> 15 | G17: =VLOOKUP($B17,VysledkyDoplneni!$C$7:$T$126,6,0) -> 0 | H17: =VLOOKUP($B17,VysledkyDoplneni!$C$7:$T$126,7,0) -> 0 | I17: =VLOOKUP($B17,VysledkyDoplneni!$C$7:$T$126,8,0) -> 0 | J17: =VLOOKUP($B17,VysledkyDoplneni!$C$7:$T$126,9,0) -> 0 | K17: =VLOOKUP($B17,VysledkyDoplneni!$C$7:$T$126,10,0) -> 0 | L17: =VLOOKUP($B17,VysledkyDoplneni!$C$7:$T$126,11,0) -> 0 | M17: =VLOOKUP($B17,VysledkyDoplneni!$C$7:$T$126,12,0) -> 0 | N17: =VLOOKUP($B17,VysledkyDoplneni!$C$7:$T$126,13,0) -> 0 | O17: =VLOOKUP($B17,VysledkyDoplneni!$C$7:$T$126,14,0) -> 0 | P17: =VLOOKUP($B17,VysledkyDoplneni!$C$7:$T$126,15,0) -> 0 | Q17: =VLOOKUP($B17,VysledkyDoplneni!$C$7:$T$126,16,0) -> 0 | R17: =VLOOKUP($B17,VysledkyDoplneni!$C$7:$T$126,17,0) -> 0 | S17: =VLOOKUP($B17,VysledkyDoplneni!$C$7:$T$126,18,0) -> 0 | V17: =SUM(D17:S17) -> 49 | W17: =(V17/(Data!$B$18*X17)) -> 81.7% | X17: 3
A18: 11 | B18: =IF(Vstup!C54<>"",Vstup!C54,"") -> Šindelář Milan | C18: S | D18: =VLOOKUP($B18,VysledkyDoplneni!$C$7:$T$126,3,0) -> 18 | E18: =VLOOKUP($B18,VysledkyDoplneni!$C$7:$T$126,4,0) -> 12 | F18: =VLOOKUP($B18,VysledkyDoplneni!$C$7:$T$126,5,0) -> 19 | G18: =VLOOKUP($B18,VysledkyDoplneni!$C$7:$T$126,6,0) -> 0 | H18: =VLOOKUP($B18,VysledkyDoplneni!$C$7:$T$126,7,0) -> 0 | I18: =VLOOKUP($B18,VysledkyDoplneni!$C$7:$T$126,8,0) -> 0 | J18: =VLOOKUP($B18,VysledkyDoplneni!$C$7:$T$126,9,0) -> 0 | K18: =VLOOKUP($B18,VysledkyDoplneni!$C$7:$T$126,10,0) -> 0 | L18: =VLOOKUP($B18,VysledkyDoplneni!$C$7:$T$126,11,0) -> 0 | M18: =VLOOKUP($B18,VysledkyDoplneni!$C$7:$T$126,12,0) -> 0 | N18: =VLOOKUP($B18,VysledkyDoplneni!$C$7:$T$126,13,0) -> 0 | O18: =VLOOKUP($B18,VysledkyDoplneni!$C$7:$T$126,14,0) -> 0 | P18: =VLOOKUP($B18,VysledkyDoplneni!$C$7:$T$126,15,0) -> 0 | Q18: =VLOOKUP($B18,VysledkyDoplneni!$C$7:$T$126,16,0) -> 0 | R18: =VLOOKUP($B18,VysledkyDoplneni!$C$7:$T$126,17,0) -> 0 | S18: =VLOOKUP($B18,VysledkyDoplneni!$C$7:$T$126,18,0) -> 0 | V18: =SUM(D18:S18) -> 49 | W18: =(V18/(Data!$B$18*X18)) -> 81.7% | X18: 3
A19: 12 | B19: =IF(Vstup!C44<>"",Vstup!C44,"") -> Mach Jan | C19: S | D19: =VLOOKUP($B19,VysledkyDoplneni!$C$7:$T$126,3,0) -> 19 | E19: =VLOOKUP($B19,VysledkyDoplneni!$C$7:$T$126,4,0) -> 9 | F19: =VLOOKUP($B19,VysledkyDoplneni!$C$7:$T$126,5,0) -> 20 | G19: =VLOOKUP($B19,VysledkyDoplneni!$C$7:$T$126,6,0) -> 0 | H19: =VLOOKUP($B19,VysledkyDoplneni!$C$7:$T$126,7,0) -> 0 | I19: =VLOOKUP($B19,VysledkyDoplneni!$C$7:$T$126,8,0) -> 0 | J19: =VLOOKUP($B19,VysledkyDoplneni!$C$7:$T$126,9,0) -> 0 | K19: =VLOOKUP($B19,VysledkyDoplneni!$C$7:$T$126,10,0) -> 0 | L19: =VLOOKUP($B19,VysledkyDoplneni!$C$7:$T$126,11,0) -> 0 | M19: =VLOOKUP($B19,VysledkyDoplneni!$C$7:$T$126,12,0) -> 0 | N19: =VLOOKUP($B19,VysledkyDoplneni!$C$7:$T$126,13,0) -> 0 | O19: =VLOOKUP($B19,VysledkyDoplneni!$C$7:$T$126,14,0) -> 0 | P19: =VLOOKUP($B19,VysledkyDoplneni!$C$7:$T$126,15,0) -> 0 | Q19: =VLOOKUP($B19,VysledkyDoplneni!$C$7:$T$126,16,0) -> 0 | R19: =VLOOKUP($B19,VysledkyDoplneni!$C$7:$T$126,17,0) -> 0 | S19: =VLOOKUP($B19,VysledkyDoplneni!$C$7:$T$126,18,0) -> 0 | V19: =SUM(D19:S19) -> 48 | W19: =(V19/(Data!$B$18*X19)) -> 80.0% | X19: 3
A20: 13 | B20: =IF(Vstup!C36<>"",Vstup!C36,"") -> Leihs Gustav | C20: S | D20: =VLOOKUP($B20,VysledkyDoplneni!$C$7:$T$126,3,0) -> 16 | E20: =VLOOKUP($B20,VysledkyDoplneni!$C$7:$T$126,4,0) -> 15 | F20: =VLOOKUP($B20,VysledkyDoplneni!$C$7:$T$126,5,0) -> 17 | G20: =VLOOKUP($B20,VysledkyDoplneni!$C$7:$T$126,6,0) -> 0 | H20: =VLOOKUP($B20,VysledkyDoplneni!$C$7:$T$126,7,0) -> 0 | I20: =VLOOKUP($B20,VysledkyDoplneni!$C$7:$T$126,8,0) -> 0 | J20: =VLOOKUP($B20,VysledkyDoplneni!$C$7:$T$126,9,0) -> 0 | K20: =VLOOKUP($B20,VysledkyDoplneni!$C$7:$T$126,10,0) -> 0 | L20: =VLOOKUP($B20,VysledkyDoplneni!$C$7:$T$126,11,0) -> 0 | M20: =VLOOKUP($B20,VysledkyDoplneni!$C$7:$T$126,12,0) -> 0 | N20: =VLOOKUP($B20,VysledkyDoplneni!$C$7:$T$126,13,0) -> 0 | O20: =VLOOKUP($B20,VysledkyDoplneni!$C$7:$T$126,14,0) -> 0 | P20: =VLOOKUP($B20,VysledkyDoplneni!$C$7:$T$126,15,0) -> 0 | Q20: =VLOOKUP($B20,VysledkyDoplneni!$C$7:$T$126,16,0) -> 0 | R20: =VLOOKUP($B20,VysledkyDoplneni!$C$7:$T$126,17,0) -> 0 | S20: =VLOOKUP($B20,VysledkyDoplneni!$C$7:$T$126,18,0) -> 0 | V20: =SUM(D20:S20) -> 48 | W20: =(V20/(Data!$B$18*X20)) -> 80.0% | X20: 3
A21: 14 | B21: =IF(Vstup!C21<>"",Vstup!C21,"") -> Trepka Jiří | C21: S | D21: =VLOOKUP($B21,VysledkyDoplneni!$C$7:$T$126,3,0) -> 15 | E21: =VLOOKUP($B21,VysledkyDoplneni!$C$7:$T$126,4,0) -> 17 | F21: =VLOOKUP($B21,VysledkyDoplneni!$C$7:$T$126,5,0) -> 16 | G21: =VLOOKUP($B21,VysledkyDoplneni!$C$7:$T$126,6,0) -> 0 | H21: =VLOOKUP($B21,VysledkyDoplneni!$C$7:$T$126,7,0) -> 0 | I21: =VLOOKUP($B21,VysledkyDoplneni!$C$7:$T$126,8,0) -> 0 | J21: =VLOOKUP($B21,VysledkyDoplneni!$C$7:$T$126,9,0) -> 0 | K21: =VLOOKUP($B21,VysledkyDoplneni!$C$7:$T$126,10,0) -> 0 | L21: =VLOOKUP($B21,VysledkyDoplneni!$C$7:$T$126,11,0) -> 0 | M21: =VLOOKUP($B21,VysledkyDoplneni!$C$7:$T$126,12,0) -> 0 | N21: =VLOOKUP($B21,VysledkyDoplneni!$C$7:$T$126,13,0) -> 0 | O21: =VLOOKUP($B21,VysledkyDoplneni!$C$7:$T$126,14,0) -> 0 | P21: =VLOOKUP($B21,VysledkyDoplneni!$C$7:$T$126,15,0) -> 0 | Q21: =VLOOKUP($B21,VysledkyDoplneni!$C$7:$T$126,16,0) -> 0 | R21: =VLOOKUP($B21,VysledkyDoplneni!$C$7:$T$126,17,0) -> 0 | S21: =VLOOKUP($B21,VysledkyDoplneni!$C$7:$T$126,18,0) -> 0 | V21: =SUM(D21:S21) -> 48 | W21: =(V21/(Data!$B$18*X21)) -> 80.0% | X21: 3
A22: 15 | B22: =IF(Vstup!C40<>"",Vstup!C40,"") -> Noháček Jaroslav | C22: S | D22: =VLOOKUP($B22,VysledkyDoplneni!$C$7:$T$126,3,0) -> 15 | E22: =VLOOKUP($B22,VysledkyDoplneni!$C$7:$T$126,4,0) -> 14 | F22: =VLOOKUP($B22,VysledkyDoplneni!$C$7:$T$126,5,0) -> 18 | G22: =VLOOKUP($B22,VysledkyDoplneni!$C$7:$T$126,6,0) -> 0 | H22: =VLOOKUP($B22,VysledkyDoplneni!$C$7:$T$126,7,0) -> 0 | I22: =VLOOKUP($B22,VysledkyDoplneni!$C$7:$T$126,8,0) -> 0 | J22: =VLOOKUP($B22,VysledkyDoplneni!$C$7:$T$126,9,0) -> 0 | K22: =VLOOKUP($B22,VysledkyDoplneni!$C$7:$T$126,10,0) -> 0 | L22: =VLOOKUP($B22,VysledkyDoplneni!$C$7:$T$126,11,0) -> 0 | M22: =VLOOKUP($B22,VysledkyDoplneni!$C$7:$T$126,12,0) -> 0 | N22: =VLOOKUP($B22,VysledkyDoplneni!$C$7:$T$126,13,0) -> 0 | O22: =VLOOKUP($B22,VysledkyDoplneni!$C$7:$T$126,14,0) -> 0 | P22: =VLOOKUP($B22,VysledkyDoplneni!$C$7:$T$126,15,0) -> 0 | Q22: =VLOOKUP($B22,VysledkyDoplneni!$C$7:$T$126,16,0) -> 0 | R22: =VLOOKUP($B22,VysledkyDoplneni!$C$7:$T$126,17,0) -> 0 | S22: =VLOOKUP($B22,VysledkyDoplneni!$C$7:$T$126,18,0) -> 0 | V22: =SUM(D22:S22) -> 47 | W22: =(V22/(Data!$B$18*X22)) -> 78.3% | X22: 3
A23: 16 | B23: =IF(Vstup!C51<>"",Vstup!C51,"") -> Štengl Jiří | C23: S | D23: =VLOOKUP($B23,VysledkyDoplneni!$C$7:$T$126,3,0) -> 13 | E23: =VLOOKUP($B23,VysledkyDoplneni!$C$7:$T$126,4,0) -> 15 | F23: =VLOOKUP($B23,VysledkyDoplneni!$C$7:$T$126,5,0) -> 19 | G23: =VLOOKUP($B23,VysledkyDoplneni!$C$7:$T$126,6,0) -> 0 | H23: =VLOOKUP($B23,VysledkyDoplneni!$C$7:$T$126,7,0) -> 0 | I23: =VLOOKUP($B23,VysledkyDoplneni!$C$7:$T$126,8,0) -> 0 | J23: =VLOOKUP($B23,VysledkyDoplneni!$C$7:$T$126,9,0) -> 0 | K23: =VLOOKUP($B23,VysledkyDoplneni!$C$7:$T$126,10,0) -> 0 | L23: =VLOOKUP($B23,VysledkyDoplneni!$C$7:$T$126,11,0) -> 0 | M23: =VLOOKUP($B23,VysledkyDoplneni!$C$7:$T$126,12,0) -> 0 | N23: =VLOOKUP($B23,VysledkyDoplneni!$C$7:$T$126,13,0) -> 0 | O23: =VLOOKUP($B23,VysledkyDoplneni!$C$7:$T$126,14,0) -> 0 | P23: =VLOOKUP($B23,VysledkyDoplneni!$C$7:$T$126,15,0) -> 0 | Q23: =VLOOKUP($B23,VysledkyDoplneni!$C$7:$T$126,16,0) -> 0 | R23: =VLOOKUP($B23,VysledkyDoplneni!$C$7:$T$126,17,0) -> 0 | S23: =VLOOKUP($B23,VysledkyDoplneni!$C$7:$T$126,18,0) -> 0 | V23: =SUM(D23:S23) -> 47 | W23: =(V23/(Data!$B$18*X23)) -> 78.3% | X23: 3
A24: 17 | B24: =IF(Vstup!C19<>"",Vstup!C19,"") -> Adámek Bohuslav | C24: S | D24: =VLOOKUP($B24,VysledkyDoplneni!$C$7:$T$126,3,0) -> 15 | E24: =VLOOKUP($B24,VysledkyDoplneni!$C$7:$T$126,4,0) -> 15 | F24: =VLOOKUP($B24,VysledkyDoplneni!$C$7:$T$126,5,0) -> 16 | G24: =VLOOKUP($B24,VysledkyDoplneni!$C$7:$T$126,6,0) -> 0 | H24: =VLOOKUP($B24,VysledkyDoplneni!$C$7:$T$126,7,0) -> 0 | I24: =VLOOKUP($B24,VysledkyDoplneni!$C$7:$T$126,8,0) -> 0 | J24: =VLOOKUP($B24,VysledkyDoplneni!$C$7:$T$126,9,0) -> 0 | K24: =VLOOKUP($B24,VysledkyDoplneni!$C$7:$T$126,10,0) -> 0 | L24: =VLOOKUP($B24,VysledkyDoplneni!$C$7:$T$126,11,0) -> 0 | M24: =VLOOKUP($B24,VysledkyDoplneni!$C$7:$T$126,12,0) -> 0 | N24: =VLOOKUP($B24,VysledkyDoplneni!$C$7:$T$126,13,0) -> 0 | O24: =VLOOKUP($B24,VysledkyDoplneni!$C$7:$T$126,14,0) -> 0 | P24: =VLOOKUP($B24,VysledkyDoplneni!$C$7:$T$126,15,0) -> 0 | Q24: =VLOOKUP($B24,VysledkyDoplneni!$C$7:$T$126,16,0) -> 0 | R24: =VLOOKUP($B24,VysledkyDoplneni!$C$7:$T$126,17,0) -> 0 | S24: =VLOOKUP($B24,VysledkyDoplneni!$C$7:$T$126,18,0) -> 0 | V24: =SUM(D24:S24) -> 46 | W24: =(V24/(Data!$B$18*X24)) -> 76.7% | X24: 3
A25: 18 | B25: =IF(Vstup!C29<>"",Vstup!C29,"") -> Sedláček Jiří | C25: S | D25: =VLOOKUP($B25,VysledkyDoplneni!$C$7:$T$126,3,0) -> 12 | E25: =VLOOKUP($B25,VysledkyDoplneni!$C$7:$T$126,4,0) -> 14 | F25: =VLOOKUP($B25,VysledkyDoplneni!$C$7:$T$126,5,0) -> 20 | G25: =VLOOKUP($B25,VysledkyDoplneni!$C$7:$T$126,6,0) -> 0 | H25: =VLOOKUP($B25,VysledkyDoplneni!$C$7:$T$126,7,0) -> 0 | I25: =VLOOKUP($B25,VysledkyDoplneni!$C$7:$T$126,8,0) -> 0 | J25: =VLOOKUP($B25,VysledkyDoplneni!$C$7:$T$126,9,0) -> 0 | K25: =VLOOKUP($B25,VysledkyDoplneni!$C$7:$T$126,10,0) -> 0 | L25: =VLOOKUP($B25,VysledkyDoplneni!$C$7:$T$126,11,0) -> 0 | M25: =VLOOKUP($B25,VysledkyDoplneni!$C$7:$T$126,12,0) -> 0 | N25: =VLOOKUP($B25,VysledkyDoplneni!$C$7:$T$126,13,0) -> 0 | O25: =VLOOKUP($B25,VysledkyDoplneni!$C$7:$T$126,14,0) -> 0 | P25: =VLOOKUP($B25,VysledkyDoplneni!$C$7:$T$126,15,0) -> 0 | Q25: =VLOOKUP($B25,VysledkyDoplneni!$C$7:$T$126,16,0) -> 0 | R25: =VLOOKUP($B25,VysledkyDoplneni!$C$7:$T$126,17,0) -> 0 | S25: =VLOOKUP($B25,VysledkyDoplneni!$C$7:$T$126,18,0) -> 0 | V25: =SUM(D25:S25) -> 46 | W25: =(V25/(Data!$B$18*X25)) -> 76.7% | X25: 3
A26: 19 | B26: =IF(Vstup!C38<>"",Vstup!C38,"") -> Růžek Luboš | C26: S | D26: =VLOOKUP($B26,VysledkyDoplneni!$C$7:$T$126,3,0) -> 19 | E26: =VLOOKUP($B26,VysledkyDoplneni!$C$7:$T$126,4,0) -> 11 | F26: =VLOOKUP($B26,VysledkyDoplneni!$C$7:$T$126,5,0) -> 14 | G26: =VLOOKUP($B26,VysledkyDoplneni!$C$7:$T$126,6,0) -> 0 | H26: =VLOOKUP($B26,VysledkyDoplneni!$C$7:$T$126,7,0) -> 0 | I26: =VLOOKUP($B26,VysledkyDoplneni!$C$7:$T$126,8,0) -> 0 | J26: =VLOOKUP($B26,VysledkyDoplneni!$C$7:$T$126,9,0) -> 0 | K26: =VLOOKUP($B26,VysledkyDoplneni!$C$7:$T$126,10,0) -> 0 | L26: =VLOOKUP($B26,VysledkyDoplneni!$C$7:$T$126,11,0) -> 0 | M26: =VLOOKUP($B26,VysledkyDoplneni!$C$7:$T$126,12,0) -> 0 | N26: =VLOOKUP($B26,VysledkyDoplneni!$C$7:$T$126,13,0) -> 0 | O26: =VLOOKUP($B26,VysledkyDoplneni!$C$7:$T$126,14,0) -> 0 | P26: =VLOOKUP($B26,VysledkyDoplneni!$C$7:$T$126,15,0) -> 0 | Q26: =VLOOKUP($B26,VysledkyDoplneni!$C$7:$T$126,16,0) -> 0 | R26: =VLOOKUP($B26,VysledkyDoplneni!$C$7:$T$126,17,0) -> 0 | S26: =VLOOKUP($B26,VysledkyDoplneni!$C$7:$T$126,18,0) -> 0 | V26: =SUM(D26:S26) -> 44 | W26: =(V26/(Data!$B$18*X26)) -> 73.3% | X26: 3
A27: 20 | B27: =IF(Vstup!C46<>"",Vstup!C46,"") -> Racek Petr | C27: S | D27: =VLOOKUP($B27,VysledkyDoplneni!$C$7:$T$126,3,0) -> 15 | E27: =VLOOKUP($B27,VysledkyDoplneni!$C$7:$T$126,4,0) -> 15 | F27: =VLOOKUP($B27,VysledkyDoplneni!$C$7:$T$126,5,0) -> 14 | G27: =VLOOKUP($B27,VysledkyDoplneni!$C$7:$T$126,6,0) -> 0 | H27: =VLOOKUP($B27,VysledkyDoplneni!$C$7:$T$126,7,0) -> 0 | I27: =VLOOKUP($B27,VysledkyDoplneni!$C$7:$T$126,8,0) -> 0 | J27: =VLOOKUP($B27,VysledkyDoplneni!$C$7:$T$126,9,0) -> 0 | K27: =VLOOKUP($B27,VysledkyDoplneni!$C$7:$T$126,10,0) -> 0 | L27: =VLOOKUP($B27,VysledkyDoplneni!$C$7:$T$126,11,0) -> 0 | M27: =VLOOKUP($B27,VysledkyDoplneni!$C$7:$T$126,12,0) -> 0 | N27: =VLOOKUP($B27,VysledkyDoplneni!$C$7:$T$126,13,0) -> 0 | O27: =VLOOKUP($B27,VysledkyDoplneni!$C$7:$T$126,14,0) -> 0 | P27: =VLOOKUP($B27,VysledkyDoplneni!$C$7:$T$126,15,0) -> 0 | Q27: =VLOOKUP($B27,VysledkyDoplneni!$C$7:$T$126,16,0) -> 0 | R27: =VLOOKUP($B27,VysledkyDoplneni!$C$7:$T$126,17,0) -> 0 | S27: =VLOOKUP($B27,VysledkyDoplneni!$C$7:$T$126,18,0) -> 0 | V27: =SUM(D27:S27) -> 44 | W27: =(V27/(Data!$B$18*X27)) -> 73.3% | X27: 3
A28: 21 | B28: =IF(Vstup!C49<>"",Vstup!C49,"") -> Pechan Josef | C28: S | D28: =VLOOKUP($B28,VysledkyDoplneni!$C$7:$T$126,3,0) -> 14 | E28: =VLOOKUP($B28,VysledkyDoplneni!$C$7:$T$126,4,0) -> 15 | F28: =VLOOKUP($B28,VysledkyDoplneni!$C$7:$T$126,5,0) -> 15 | G28: =VLOOKUP($B28,VysledkyDoplneni!$C$7:$T$126,6,0) -> 0 | H28: =VLOOKUP($B28,VysledkyDoplneni!$C$7:$T$126,7,0) -> 0 | I28: =VLOOKUP($B28,VysledkyDoplneni!$C$7:$T$126,8,0) -> 0 | J28: =VLOOKUP($B28,VysledkyDoplneni!$C$7:$T$126,9,0) -> 0 | K28: =VLOOKUP($B28,VysledkyDoplneni!$C$7:$T$126,10,0) -> 0 | L28: =VLOOKUP($B28,VysledkyDoplneni!$C$7:$T$126,11,0) -> 0 | M28: =VLOOKUP($B28,VysledkyDoplneni!$C$7:$T$126,12,0) -> 0 | N28: =VLOOKUP($B28,VysledkyDoplneni!$C$7:$T$126,13,0) -> 0 | O28: =VLOOKUP($B28,VysledkyDoplneni!$C$7:$T$126,14,0) -> 0 | P28: =VLOOKUP($B28,VysledkyDoplneni!$C$7:$T$126,15,0) -> 0 | Q28: =VLOOKUP($B28,VysledkyDoplneni!$C$7:$T$126,16,0) -> 0 | R28: =VLOOKUP($B28,VysledkyDoplneni!$C$7:$T$126,17,0) -> 0 | S28: =VLOOKUP($B28,VysledkyDoplneni!$C$7:$T$126,18,0) -> 0 | V28: =SUM(D28:S28) -> 44 | W28: =(V28/(Data!$B$18*X28)) -> 73.3% | X28: 3
A29: 22 | B29: =IF(Vstup!C43<>"",Vstup!C43,"") -> Lusk Stanislav | C29: S | D29: =VLOOKUP($B29,VysledkyDoplneni!$C$7:$T$126,3,0) -> 17 | E29: =VLOOKUP($B29,VysledkyDoplneni!$C$7:$T$126,4,0) -> 11 | F29: =VLOOKUP($B29,VysledkyDoplneni!$C$7:$T$126,5,0) -> 14 | G29: =VLOOKUP($B29,VysledkyDoplneni!$C$7:$T$126,6,0) -> 0 | H29: =VLOOKUP($B29,VysledkyDoplneni!$C$7:$T$126,7,0) -> 0 | I29: =VLOOKUP($B29,VysledkyDoplneni!$C$7:$T$126,8,0) -> 0 | J29: =VLOOKUP($B29,VysledkyDoplneni!$C$7:$T$126,9,0) -> 0 | K29: =VLOOKUP($B29,VysledkyDoplneni!$C$7:$T$126,10,0) -> 0 | L29: =VLOOKUP($B29,VysledkyDoplneni!$C$7:$T$126,11,0) -> 0 | M29: =VLOOKUP($B29,VysledkyDoplneni!$C$7:$T$126,12,0) -> 0 | N29: =VLOOKUP($B29,VysledkyDoplneni!$C$7:$T$126,13,0) -> 0 | O29: =VLOOKUP($B29,VysledkyDoplneni!$C$7:$T$126,14,0) -> 0 | P29: =VLOOKUP($B29,VysledkyDoplneni!$C$7:$T$126,15,0) -> 0 | Q29: =VLOOKUP($B29,VysledkyDoplneni!$C$7:$T$126,16,0) -> 0 | R29: =VLOOKUP($B29,VysledkyDoplneni!$C$7:$T$126,17,0) -> 0 | S29: =VLOOKUP($B29,VysledkyDoplneni!$C$7:$T$126,18,0) -> 0 | V29: =SUM(D29:S29) -> 42 | W29: =(V29/(Data!$B$18*X29)) -> 70.0% | X29: 3
A30: 23 | B30: =IF(Vstup!C9<>"",Vstup!C9,"") -> Štenglová Michaela | C30: S | D30: =VLOOKUP($B30,VysledkyDoplneni!$C$7:$T$126,3,0) -> 15 | E30: =VLOOKUP($B30,VysledkyDoplneni!$C$7:$T$126,4,0) -> 14 | F30: =VLOOKUP($B30,VysledkyDoplneni!$C$7:$T$126,5,0) -> 13 | G30: =VLOOKUP($B30,VysledkyDoplneni!$C$7:$T$126,6,0) -> 0 | H30: =VLOOKUP($B30,VysledkyDoplneni!$C$7:$T$126,7,0) -> 0 | I30: =VLOOKUP($B30,VysledkyDoplneni!$C$7:$T$126,8,0) -> 0 | J30: =VLOOKUP($B30,VysledkyDoplneni!$C$7:$T$126,9,0) -> 0 | K30: =VLOOKUP($B30,VysledkyDoplneni!$C$7:$T$126,10,0) -> 0 | L30: =VLOOKUP($B30,VysledkyDoplneni!$C$7:$T$126,11,0) -> 0 | M30: =VLOOKUP($B30,VysledkyDoplneni!$C$7:$T$126,12,0) -> 0 | N30: =VLOOKUP($B30,VysledkyDoplneni!$C$7:$T$126,13,0) -> 0 | O30: =VLOOKUP($B30,VysledkyDoplneni!$C$7:$T$126,14,0) -> 0 | P30: =VLOOKUP($B30,VysledkyDoplneni!$C$7:$T$126,15,0) -> 0 | Q30: =VLOOKUP($B30,VysledkyDoplneni!$C$7:$T$126,16,0) -> 0 | R30: =VLOOKUP($B30,VysledkyDoplneni!$C$7:$T$126,17,0) -> 0 | S30: =VLOOKUP($B30,VysledkyDoplneni!$C$7:$T$126,18,0) -> 0 | V30: =SUM(D30:S30) -> 42 | W30: =(V30/(Data!$B$18*X30)) -> 70.0% | X30: 3
A31: 24 | B31: =IF(Vstup!C28<>"",Vstup!C28,"") -> Čechura Pavel | C31: S | D31: =VLOOKUP($B31,VysledkyDoplneni!$C$7:$T$126,3,0) -> 13 | E31: =VLOOKUP($B31,VysledkyDoplneni!$C$7:$T$126,4,0) -> 13 | F31: =VLOOKUP($B31,VysledkyDoplneni!$C$7:$T$126,5,0) -> 16 | G31: =VLOOKUP($B31,VysledkyDoplneni!$C$7:$T$126,6,0) -> 0 | H31: =VLOOKUP($B31,VysledkyDoplneni!$C$7:$T$126,7,0) -> 0 | I31: =VLOOKUP($B31,VysledkyDoplneni!$C$7:$T$126,8,0) -> 0 | J31: =VLOOKUP($B31,VysledkyDoplneni!$C$7:$T$126,9,0) -> 0 | K31: =VLOOKUP($B31,VysledkyDoplneni!$C$7:$T$126,10,0) -> 0 | L31: =VLOOKUP($B31,VysledkyDoplneni!$C$7:$T$126,11,0) -> 0 | M31: =VLOOKUP($B31,VysledkyDoplneni!$C$7:$T$126,12,0) -> 0 | N31: =VLOOKUP($B31,VysledkyDoplneni!$C$7:$T$126,13,0) -> 0 | O31: =VLOOKUP($B31,VysledkyDoplneni!$C$7:$T$126,14,0) -> 0 | P31: =VLOOKUP($B31,VysledkyDoplneni!$C$7:$T$126,15,0) -> 0 | Q31: =VLOOKUP($B31,VysledkyDoplneni!$C$7:$T$126,16,0) -> 0 | R31: =VLOOKUP($B31,VysledkyDoplneni!$C$7:$T$126,17,0) -> 0 | S31: =VLOOKUP($B31,VysledkyDoplneni!$C$7:$T$126,18,0) -> 0 | V31: =SUM(D31:S31) -> 42 | W31: =(V31/(Data!$B$18*X31)) -> 70.0% | X31: 3
A32: 25 | B32: =IF(Vstup!C22<>"",Vstup!C22,"") -> Dusík Vladimír | C32: S | D32: =VLOOKUP($B32,VysledkyDoplneni!$C$7:$T$126,3,0) -> 15 | E32: =VLOOKUP($B32,VysledkyDoplneni!$C$7:$T$126,4,0) -> 12 | F32: =VLOOKUP($B32,VysledkyDoplneni!$C$7:$T$126,5,0) -> 13 | G32: =VLOOKUP($B32,VysledkyDoplneni!$C$7:$T$126,6,0) -> 0 | H32: =VLOOKUP($B32,VysledkyDoplneni!$C$7:$T$126,7,0) -> 0 | I32: =VLOOKUP($B32,VysledkyDoplneni!$C$7:$T$126,8,0) -> 0 | J32: =VLOOKUP($B32,VysledkyDoplneni!$C$7:$T$126,9,0) -> 0 | K32: =VLOOKUP($B32,VysledkyDoplneni!$C$7:$T$126,10,0) -> 0 | L32: =VLOOKUP($B32,VysledkyDoplneni!$C$7:$T$126,11,0) -> 0 | M32: =VLOOKUP($B32,VysledkyDoplneni!$C$7:$T$126,12,0) -> 0 | N32: =VLOOKUP($B32,VysledkyDoplneni!$C$7:$T$126,13,0) -> 0 | O32: =VLOOKUP($B32,VysledkyDoplneni!$C$7:$T$126,14,0) -> 0 | P32: =VLOOKUP($B32,VysledkyDoplneni!$C$7:$T$126,15,0) -> 0 | Q32: =VLOOKUP($B32,VysledkyDoplneni!$C$7:$T$126,16,0) -> 0 | R32: =VLOOKUP($B32,VysledkyDoplneni!$C$7:$T$126,17,0) -> 0 | S32: =VLOOKUP($B32,VysledkyDoplneni!$C$7:$T$126,18,0) -> 0 | V32: =SUM(D32:S32) -> 40 | W32: =(V32/(Data!$B$18*X32)) -> 66.7% | X32: 3
A33: 26 | B33: =IF(Vstup!C33<>"",Vstup!C33,"") -> Šindelář Jan | C33: S | D33: =VLOOKUP($B33,VysledkyDoplneni!$C$7:$T$126,3,0) -> 8 | E33: =VLOOKUP($B33,VysledkyDoplneni!$C$7:$T$126,4,0) -> 13 | F33: =VLOOKUP($B33,VysledkyDoplneni!$C$7:$T$126,5,0) -> 19 | G33: =VLOOKUP($B33,VysledkyDoplneni!$C$7:$T$126,6,0) -> 0 | H33: =VLOOKUP($B33,VysledkyDoplneni!$C$7:$T$126,7,0) -> 0 | I33: =VLOOKUP($B33,VysledkyDoplneni!$C$7:$T$126,8,0) -> 0 | J33: =VLOOKUP($B33,VysledkyDoplneni!$C$7:$T$126,9,0) -> 0 | K33: =VLOOKUP($B33,VysledkyDoplneni!$C$7:$T$126,10,0) -> 0 | L33: =VLOOKUP($B33,VysledkyDoplneni!$C$7:$T$126,11,0) -> 0 | M33: =VLOOKUP($B33,VysledkyDoplneni!$C$7:$T$126,12,0) -> 0 | N33: =VLOOKUP($B33,VysledkyDoplneni!$C$7:$T$126,13,0) -> 0 | O33: =VLOOKUP($B33,VysledkyDoplneni!$C$7:$T$126,14,0) -> 0 | P33: =VLOOKUP($B33,VysledkyDoplneni!$C$7:$T$126,15,0) -> 0 | Q33: =VLOOKUP($B33,VysledkyDoplneni!$C$7:$T$126,16,0) -> 0 | R33: =VLOOKUP($B33,VysledkyDoplneni!$C$7:$T$126,17,0) -> 0 | S33: =VLOOKUP($B33,VysledkyDoplneni!$C$7:$T$126,18,0) -> 0 | V33: =SUM(D33:T33) -> 40 | W33: =(V33/(Data!$B$18*X33)) -> 66.7% | X33: 3
A34: 27 | B34: =IF(Vstup!C50<>"",Vstup!C50,"") -> Kučera Václav | C34: S | D34: =VLOOKUP($B34,VysledkyDoplneni!$C$7:$T$126,3,0) -> 16 | E34: =VLOOKUP($B34,VysledkyDoplneni!$C$7:$T$126,4,0) -> 13 | F34: =VLOOKUP($B34,VysledkyDoplneni!$C$7:$T$126,5,0) -> 10 | G34: =VLOOKUP($B34,VysledkyDoplneni!$C$7:$T$126,6,0) -> 0 | H34: =VLOOKUP($B34,VysledkyDoplneni!$C$7:$T$126,7,0) -> 0 | I34: =VLOOKUP($B34,VysledkyDoplneni!$C$7:$T$126,8,0) -> 0 | J34: =VLOOKUP($B34,VysledkyDoplneni!$C$7:$T$126,9,0) -> 0 | K34: =VLOOKUP($B34,VysledkyDoplneni!$C$7:$T$126,10,0) -> 0 | L34: =VLOOKUP($B34,VysledkyDoplneni!$C$7:$T$126,11,0) -> 0 | M34: =VLOOKUP($B34,VysledkyDoplneni!$C$7:$T$126,12,0) -> 0 | N34: =VLOOKUP($B34,VysledkyDoplneni!$C$7:$T$126,13,0) -> 0 | O34: =VLOOKUP($B34,VysledkyDoplneni!$C$7:$T$126,14,0) -> 0 | P34: =VLOOKUP($B34,VysledkyDoplneni!$C$7:$T$126,15,0) -> 0 | Q34: =VLOOKUP($B34,VysledkyDoplneni!$C$7:$T$126,16,0) -> 0 | R34: =VLOOKUP($B34,VysledkyDoplneni!$C$7:$T$126,17,0) -> 0 | S34: =VLOOKUP($B34,VysledkyDoplneni!$C$7:$T$126,18,0) -> 0 | V34: =SUM(D34:S34) -> 39 | W34: =(V34/(Data!$B$18*X34)) -> 65.0% | X34: =COUNTIF(D34:S34,">0") -> 3
A35: 28 | B35: =IF(Vstup!C37<>"",Vstup!C37,"") -> Škrýba Petr | C35: S | D35: =VLOOKUP($B35,VysledkyDoplneni!$C$7:$T$126,3,0) -> 15 | E35: =VLOOKUP($B35,VysledkyDoplneni!$C$7:$T$126,4,0) -> 12 | F35: =VLOOKUP($B35,VysledkyDoplneni!$C$7:$T$126,5,0) -> 12 | G35: =VLOOKUP($B35,VysledkyDoplneni!$C$7:$T$126,6,0) -> 0 | H35: =VLOOKUP($B35,VysledkyDoplneni!$C$7:$T$126,7,0) -> 0 | I35: =VLOOKUP($B35,VysledkyDoplneni!$C$7:$T$126,8,0) -> 0 | J35: =VLOOKUP($B35,VysledkyDoplneni!$C$7:$T$126,9,0) -> 0 | K35: =VLOOKUP($B35,VysledkyDoplneni!$C$7:$T$126,10,0) -> 0 | L35: =VLOOKUP($B35,VysledkyDoplneni!$C$7:$T$126,11,0) -> 0 | M35: =VLOOKUP($B35,VysledkyDoplneni!$C$7:$T$126,12,0) -> 0 | N35: =VLOOKUP($B35,VysledkyDoplneni!$C$7:$T$126,13,0) -> 0 | O35: =VLOOKUP($B35,VysledkyDoplneni!$C$7:$T$126,14,0) -> 0 | P35: =VLOOKUP($B35,VysledkyDoplneni!$C$7:$T$126,15,0) -> 0 | Q35: =VLOOKUP($B35,VysledkyDoplneni!$C$7:$T$126,16,0) -> 0 | R35: =VLOOKUP($B35,VysledkyDoplneni!$C$7:$T$126,17,0) -> 0 | S35: =VLOOKUP($B35,VysledkyDoplneni!$C$7:$T$126,18,0) -> 0 | V35: =SUM(D35:S35) -> 39 | W35: =(V35/(Data!$B$18*X35)) -> 65.0% | X35: =COUNTIF(D35:S35,">0") -> 3
A36: 29 | B36: =IF(Vstup!C13<>"",Vstup!C13,"") -> Šindelář Jiří st. | C36: S | D36: =VLOOKUP($B36,VysledkyDoplneni!$C$7:$T$126,3,0) -> 15 | E36: =VLOOKUP($B36,VysledkyDoplneni!$C$7:$T$126,4,0) -> 11 | F36: =VLOOKUP($B36,VysledkyDoplneni!$C$7:$T$126,5,0) -> 12 | G36: =VLOOKUP($B36,VysledkyDoplneni!$C$7:$T$126,6,0) -> 0 | H36: =VLOOKUP($B36,VysledkyDoplneni!$C$7:$T$126,7,0) -> 0 | I36: =VLOOKUP($B36,VysledkyDoplneni!$C$7:$T$126,8,0) -> 0 | J36: =VLOOKUP($B36,VysledkyDoplneni!$C$7:$T$126,9,0) -> 0 | K36: =VLOOKUP($B36,VysledkyDoplneni!$C$7:$T$126,10,0) -> 0 | L36: =VLOOKUP($B36,VysledkyDoplneni!$C$7:$T$126,11,0) -> 0 | M36: =VLOOKUP($B36,VysledkyDoplneni!$C$7:$T$126,12,0) -> 0 | N36: =VLOOKUP($B36,VysledkyDoplneni!$C$7:$T$126,13,0) -> 0 | O36: =VLOOKUP($B36,VysledkyDoplneni!$C$7:$T$126,14,0) -> 0 | P36: =VLOOKUP($B36,VysledkyDoplneni!$C$7:$T$126,15,0) -> 0 | Q36: =VLOOKUP($B36,VysledkyDoplneni!$C$7:$T$126,16,0) -> 0 | R36: =VLOOKUP($B36,VysledkyDoplneni!$C$7:$T$126,17,0) -> 0 | S36: =VLOOKUP($B36,VysledkyDoplneni!$C$7:$T$126,18,0) -> 0 | V36: =SUM(D36:S36) -> 38 | W36: =(V36/(Data!$B$18*X36)) -> 63.3% | X36: 3
A37: 30 | B37: =IF(Vstup!C12<>"",Vstup!C12,"") -> Černý Bohuslav | C37: S | D37: =VLOOKUP($B37,VysledkyDoplneni!$C$7:$T$126,3,0) -> 13 | E37: =VLOOKUP($B37,VysledkyDoplneni!$C$7:$T$126,4,0) -> 14 | F37: =VLOOKUP($B37,VysledkyDoplneni!$C$7:$T$126,5,0) -> 11 | G37: =VLOOKUP($B37,VysledkyDoplneni!$C$7:$T$126,6,0) -> 0 | H37: =VLOOKUP($B37,VysledkyDoplneni!$C$7:$T$126,7,0) -> 0 | I37: =VLOOKUP($B37,VysledkyDoplneni!$C$7:$T$126,8,0) -> 0 | J37: =VLOOKUP($B37,VysledkyDoplneni!$C$7:$T$126,9,0) -> 0 | K37: =VLOOKUP($B37,VysledkyDoplneni!$C$7:$T$126,10,0) -> 0 | L37: =VLOOKUP($B37,VysledkyDoplneni!$C$7:$T$126,11,0) -> 0 | M37: =VLOOKUP($B37,VysledkyDoplneni!$C$7:$T$126,12,0) -> 0 | N37: =VLOOKUP($B37,VysledkyDoplneni!$C$7:$T$126,13,0) -> 0 | O37: =VLOOKUP($B37,VysledkyDoplneni!$C$7:$T$126,14,0) -> 0 | P37: =VLOOKUP($B37,VysledkyDoplneni!$C$7:$T$126,15,0) -> 0 | Q37: =VLOOKUP($B37,VysledkyDoplneni!$C$7:$T$126,16,0) -> 0 | R37: =VLOOKUP($B37,VysledkyDoplneni!$C$7:$T$126,17,0) -> 0 | S37: =VLOOKUP($B37,VysledkyDoplneni!$C$7:$T$126,18,0) -> 0 | V37: =SUM(D37:S37) -> 38 | W37: =(V37/(Data!$B$18*X37)) -> 63.3% | X37: 3
A38: 31 | B38: =IF(Vstup!C56<>"",Vstup!C56,"") -> Ulrych Jiří | C38: S | D38: =VLOOKUP($B38,VysledkyDoplneni!$C$7:$T$126,3,0) -> 11 | E38: =VLOOKUP($B38,VysledkyDoplneni!$C$7:$T$126,4,0) -> 11 | F38: =VLOOKUP($B38,VysledkyDoplneni!$C$7:$T$126,5,0) -> 16 | G38: =VLOOKUP($B38,VysledkyDoplneni!$C$7:$T$126,6,0) -> 0 | H38: =VLOOKUP($B38,VysledkyDoplneni!$C$7:$T$126,7,0) -> 0 | I38: =VLOOKUP($B38,VysledkyDoplneni!$C$7:$T$126,8,0) -> 0 | J38: =VLOOKUP($B38,VysledkyDoplneni!$C$7:$T$126,9,0) -> 0 | K38: =VLOOKUP($B38,VysledkyDoplneni!$C$7:$T$126,10,0) -> 0 | L38: =VLOOKUP($B38,VysledkyDoplneni!$C$7:$T$126,11,0) -> 0 | M38: =VLOOKUP($B38,VysledkyDoplneni!$C$7:$T$126,12,0) -> 0 | N38: =VLOOKUP($B38,VysledkyDoplneni!$C$7:$T$126,13,0) -> 0 | O38: =VLOOKUP($B38,VysledkyDoplneni!$C$7:$T$126,14,0) -> 0 | P38: =VLOOKUP($B38,VysledkyDoplneni!$C$7:$T$126,15,0) -> 0 | Q38: =VLOOKUP($B38,VysledkyDoplneni!$C$7:$T$126,16,0) -> 0 | R38: =VLOOKUP($B38,VysledkyDoplneni!$C$7:$T$126,17,0) -> 0 | S38: =VLOOKUP($B38,VysledkyDoplneni!$C$7:$T$126,18,0) -> 0 | V38: =SUM(D38:S38) -> 38 | W38: =(V38/(Data!$B$18*X38)) -> 63.3% | X38: 3
A39: 32 | B39: =IF(Vstup!C32<>"",Vstup!C32,"") -> Navara Josef | C39: S | D39: =VLOOKUP($B39,VysledkyDoplneni!$C$7:$T$126,3,0) -> 10 | E39: =VLOOKUP($B39,VysledkyDoplneni!$C$7:$T$126,4,0) -> 15 | F39: =VLOOKUP($B39,VysledkyDoplneni!$C$7:$T$126,5,0) -> 13 | G39: =VLOOKUP($B39,VysledkyDoplneni!$C$7:$T$126,6,0) -> 0 | H39: =VLOOKUP($B39,VysledkyDoplneni!$C$7:$T$126,7,0) -> 0 | I39: =VLOOKUP($B39,VysledkyDoplneni!$C$7:$T$126,8,0) -> 0 | J39: =VLOOKUP($B39,VysledkyDoplneni!$C$7:$T$126,9,0) -> 0 | K39: =VLOOKUP($B39,VysledkyDoplneni!$C$7:$T$126,10,0) -> 0 | L39: =VLOOKUP($B39,VysledkyDoplneni!$C$7:$T$126,11,0) -> 0 | M39: =VLOOKUP($B39,VysledkyDoplneni!$C$7:$T$126,12,0) -> 0 | N39: =VLOOKUP($B39,VysledkyDoplneni!$C$7:$T$126,13,0) -> 0 | O39: =VLOOKUP($B39,VysledkyDoplneni!$C$7:$T$126,14,0) -> 0 | P39: =VLOOKUP($B39,VysledkyDoplneni!$C$7:$T$126,15,0) -> 0 | Q39: =VLOOKUP($B39,VysledkyDoplneni!$C$7:$T$126,16,0) -> 0 | R39: =VLOOKUP($B39,VysledkyDoplneni!$C$7:$T$126,17,0) -> 0 | S39: =VLOOKUP($B39,VysledkyDoplneni!$C$7:$T$126,18,0) -> 0 | V39: =SUM(D39:S39) -> 38 | W39: =(V39/(Data!$B$18*X39)) -> 63.3% | X39: 3
A40: 33 | B40: =IF(Vstup!C11<>"",Vstup!C11,"") -> Veltruský Jiří | C40: S | D40: =VLOOKUP($B40,VysledkyDoplneni!$C$7:$T$126,3,0) -> 16 | E40: =VLOOKUP($B40,VysledkyDoplneni!$C$7:$T$126,4,0) -> 9 | F40: =VLOOKUP($B40,VysledkyDoplneni!$C$7:$T$126,5,0) -> 12 | G40: =VLOOKUP($B40,VysledkyDoplneni!$C$7:$T$126,6,0) -> 0 | H40: =VLOOKUP($B40,VysledkyDoplneni!$C$7:$T$126,7,0) -> 0 | I40: =VLOOKUP($B40,VysledkyDoplneni!$C$7:$T$126,8,0) -> 0 | J40: =VLOOKUP($B40,VysledkyDoplneni!$C$7:$T$126,9,0) -> 0 | K40: =VLOOKUP($B40,VysledkyDoplneni!$C$7:$T$126,10,0) -> 0 | L40: =VLOOKUP($B40,VysledkyDoplneni!$C$7:$T$126,11,0) -> 0 | M40: =VLOOKUP($B40,VysledkyDoplneni!$C$7:$T$126,12,0) -> 0 | N40: =VLOOKUP($B40,VysledkyDoplneni!$C$7:$T$126,13,0) -> 0 | O40: =VLOOKUP($B40,VysledkyDoplneni!$C$7:$T$126,14,0) -> 0 | P40: =VLOOKUP($B40,VysledkyDoplneni!$C$7:$T$126,15,0) -> 0 | Q40: =VLOOKUP($B40,VysledkyDoplneni!$C$7:$T$126,16,0) -> 0 | R40: =VLOOKUP($B40,VysledkyDoplneni!$C$7:$T$126,17,0) -> 0 | S40: =VLOOKUP($B40,VysledkyDoplneni!$C$7:$T$126,18,0) -> 0 | V40: =SUM(D40:S40) -> 37 | W40: =(V40/(Data!$B$18*X40)) -> 61.7% | X40: 3
A41: 34 | B41: =IF(Vstup!C42<>"",Vstup!C42,"") -> Mach Josef | C41: S | D41: =VLOOKUP($B41,VysledkyDoplneni!$C$7:$T$126,3,0) -> 9 | E41: =VLOOKUP($B41,VysledkyDoplneni!$C$7:$T$126,4,0) -> 15 | F41: =VLOOKUP($B41,VysledkyDoplneni!$C$7:$T$126,5,0) -> 13 | G41: =VLOOKUP($B41,VysledkyDoplneni!$C$7:$T$126,6,0) -> 0 | H41: =VLOOKUP($B41,VysledkyDoplneni!$C$7:$T$126,7,0) -> 0 | I41: =VLOOKUP($B41,VysledkyDoplneni!$C$7:$T$126,8,0) -> 0 | J41: =VLOOKUP($B41,VysledkyDoplneni!$C$7:$T$126,9,0) -> 0 | K41: =VLOOKUP($B41,VysledkyDoplneni!$C$7:$T$126,10,0) -> 0 | L41: =VLOOKUP($B41,VysledkyDoplneni!$C$7:$T$126,11,0) -> 0 | M41: =VLOOKUP($B41,VysledkyDoplneni!$C$7:$T$126,12,0) -> 0 | N41: =VLOOKUP($B41,VysledkyDoplneni!$C$7:$T$126,13,0) -> 0 | O41: =VLOOKUP($B41,VysledkyDoplneni!$C$7:$T$126,14,0) -> 0 | P41: =VLOOKUP($B41,VysledkyDoplneni!$C$7:$T$126,15,0) -> 0 | Q41: =VLOOKUP($B41,VysledkyDoplneni!$C$7:$T$126,16,0) -> 0 | R41: =VLOOKUP($B41,VysledkyDoplneni!$C$7:$T$126,17,0) -> 0 | S41: =VLOOKUP($B41,VysledkyDoplneni!$C$7:$T$126,18,0) -> 0 | V41: =SUM(D41:T41) -> 37 | W41: =(V41/(Data!$B$18*X41)) -> 61.7% | X41: =COUNTIF(D41:S41,">0") -> 3
A42: 35 | B42: =IF(Vstup!C14<>"",Vstup!C14,"") -> Mařík Josef | C42: S | D42: =VLOOKUP($B42,VysledkyDoplneni!$C$7:$T$126,3,0) -> 13 | E42: =VLOOKUP($B42,VysledkyDoplneni!$C$7:$T$126,4,0) -> 16 | F42: =VLOOKUP($B42,VysledkyDoplneni!$C$7:$T$126,5,0) -> 7 | G42: =VLOOKUP($B42,VysledkyDoplneni!$C$7:$T$126,6,0) -> 0 | H42: =VLOOKUP($B42,VysledkyDoplneni!$C$7:$T$126,7,0) -> 0 | I42: =VLOOKUP($B42,VysledkyDoplneni!$C$7:$T$126,8,0) -> 0 | J42: =VLOOKUP($B42,VysledkyDoplneni!$C$7:$T$126,9,0) -> 0 | K42: =VLOOKUP($B42,VysledkyDoplneni!$C$7:$T$126,10,0) -> 0 | L42: =VLOOKUP($B42,VysledkyDoplneni!$C$7:$T$126,11,0) -> 0 | M42: =VLOOKUP($B42,VysledkyDoplneni!$C$7:$T$126,12,0) -> 0 | N42: =VLOOKUP($B42,VysledkyDoplneni!$C$7:$T$126,13,0) -> 0 | O42: =VLOOKUP($B42,VysledkyDoplneni!$C$7:$T$126,14,0) -> 0 | P42: =VLOOKUP($B42,VysledkyDoplneni!$C$7:$T$126,15,0) -> 0 | Q42: =VLOOKUP($B42,VysledkyDoplneni!$C$7:$T$126,16,0) -> 0 | R42: =VLOOKUP($B42,VysledkyDoplneni!$C$7:$T$126,17,0) -> 0 | S42: =VLOOKUP($B42,VysledkyDoplneni!$C$7:$T$126,18,0) -> 0 | V42: =SUM(D42:S42) -> 36 | W42: =(V42/(Data!$B$18*X42)) -> 60.0% | X42: 3
A43: 36 | B43: =IF(Vstup!C25<>"",Vstup!C25,"") -> Křepelka Jan | C43: S | D43: =VLOOKUP($B43,VysledkyDoplneni!$C$7:$T$126,3,0) -> 10 | E43: =VLOOKUP($B43,VysledkyDoplneni!$C$7:$T$126,4,0) -> 11 | F43: =VLOOKUP($B43,VysledkyDoplneni!$C$7:$T$126,5,0) -> 15 | G43: =VLOOKUP($B43,VysledkyDoplneni!$C$7:$T$126,6,0) -> 0 | H43: =VLOOKUP($B43,VysledkyDoplneni!$C$7:$T$126,7,0) -> 0 | I43: =VLOOKUP($B43,VysledkyDoplneni!$C$7:$T$126,8,0) -> 0 | J43: =VLOOKUP($B43,VysledkyDoplneni!$C$7:$T$126,9,0) -> 0 | K43: =VLOOKUP($B43,VysledkyDoplneni!$C$7:$T$126,10,0) -> 0 | L43: =VLOOKUP($B43,VysledkyDoplneni!$C$7:$T$126,11,0) -> 0 | M43: =VLOOKUP($B43,VysledkyDoplneni!$C$7:$T$126,12,0) -> 0 | N43: =VLOOKUP($B43,VysledkyDoplneni!$C$7:$T$126,13,0) -> 0 | O43: =VLOOKUP($B43,VysledkyDoplneni!$C$7:$T$126,14,0) -> 0 | P43: =VLOOKUP($B43,VysledkyDoplneni!$C$7:$T$126,15,0) -> 0 | Q43: =VLOOKUP($B43,VysledkyDoplneni!$C$7:$T$126,16,0) -> 0 | R43: =VLOOKUP($B43,VysledkyDoplneni!$C$7:$T$126,17,0) -> 0 | S43: =VLOOKUP($B43,VysledkyDoplneni!$C$7:$T$126,18,0) -> 0 | V43: =SUM(D43:S43) -> 36 | W43: =(V43/(Data!$B$18*X43)) -> 60.0% | X43: 3
A44: 37 | B44: =IF(Vstup!C30<>"",Vstup!C30,"") -> Hájek Petr | C44: S | D44: =VLOOKUP($B44,VysledkyDoplneni!$C$7:$T$126,3,0) -> 11 | E44: =VLOOKUP($B44,VysledkyDoplneni!$C$7:$T$126,4,0) -> 12 | F44: =VLOOKUP($B44,VysledkyDoplneni!$C$7:$T$126,5,0) -> 12 | G44: =VLOOKUP($B44,VysledkyDoplneni!$C$7:$T$126,6,0) -> 0 | H44: =VLOOKUP($B44,VysledkyDoplneni!$C$7:$T$126,7,0) -> 0 | I44: =VLOOKUP($B44,VysledkyDoplneni!$C$7:$T$126,8,0) -> 0 | J44: =VLOOKUP($B44,VysledkyDoplneni!$C$7:$T$126,9,0) -> 0 | K44: =VLOOKUP($B44,VysledkyDoplneni!$C$7:$T$126,10,0) -> 0 | L44: =VLOOKUP($B44,VysledkyDoplneni!$C$7:$T$126,11,0) -> 0 | M44: =VLOOKUP($B44,VysledkyDoplneni!$C$7:$T$126,12,0) -> 0 | N44: =VLOOKUP($B44,VysledkyDoplneni!$C$7:$T$126,13,0) -> 0 | O44: =VLOOKUP($B44,VysledkyDoplneni!$C$7:$T$126,14,0) -> 0 | P44: =VLOOKUP($B44,VysledkyDoplneni!$C$7:$T$126,15,0) -> 0 | Q44: =VLOOKUP($B44,VysledkyDoplneni!$C$7:$T$126,16,0) -> 0 | R44: =VLOOKUP($B44,VysledkyDoplneni!$C$7:$T$126,17,0) -> 0 | S44: =VLOOKUP($B44,VysledkyDoplneni!$C$7:$T$126,18,0) -> 0 | V44: =SUM(D44:S44) -> 35 | W44: =(V44/(Data!$B$18*X44)) -> 58.3% | X44: 3
A45: 38 | B45: =IF(Vstup!C20<>"",Vstup!C20,"") -> Urban Josef | C45: S | D45: =VLOOKUP($B45,VysledkyDoplneni!$C$7:$T$126,3,0) -> 9 | E45: =VLOOKUP($B45,VysledkyDoplneni!$C$7:$T$126,4,0) -> 13 | F45: =VLOOKUP($B45,VysledkyDoplneni!$C$7:$T$126,5,0) -> 13 | G45: =VLOOKUP($B45,VysledkyDoplneni!$C$7:$T$126,6,0) -> 0 | H45: =VLOOKUP($B45,VysledkyDoplneni!$C$7:$T$126,7,0) -> 0 | I45: =VLOOKUP($B45,VysledkyDoplneni!$C$7:$T$126,8,0) -> 0 | J45: =VLOOKUP($B45,VysledkyDoplneni!$C$7:$T$126,9,0) -> 0 | K45: =VLOOKUP($B45,VysledkyDoplneni!$C$7:$T$126,10,0) -> 0 | L45: =VLOOKUP($B45,VysledkyDoplneni!$C$7:$T$126,11,0) -> 0 | M45: =VLOOKUP($B45,VysledkyDoplneni!$C$7:$T$126,12,0) -> 0 | N45: =VLOOKUP($B45,VysledkyDoplneni!$C$7:$T$126,13,0) -> 0 | O45: =VLOOKUP($B45,VysledkyDoplneni!$C$7:$T$126,14,0) -> 0 | P45: =VLOOKUP($B45,VysledkyDoplneni!$C$7:$T$126,15,0) -> 0 | Q45: =VLOOKUP($B45,VysledkyDoplneni!$C$7:$T$126,16,0) -> 0 | R45: =VLOOKUP($B45,VysledkyDoplneni!$C$7:$T$126,17,0) -> 0 | S45: =VLOOKUP($B45,VysledkyDoplneni!$C$7:$T$126,18,0) -> 0 | V45: =SUM(D45:S45) -> 35 | W45: =(V45/(Data!$B$18*X45)) -> 58.3% | X45: 3
A46: 39 | B46: =IF(Vstup!C55<>"",Vstup!C55,"") -> Förster Karel | C46: S | D46: =VLOOKUP($B46,VysledkyDoplneni!$C$7:$T$126,3,0) -> 13 | E46: =VLOOKUP($B46,VysledkyDoplneni!$C$7:$T$126,4,0) -> 12 | F46: =VLOOKUP($B46,VysledkyDoplneni!$C$7:$T$126,5,0) -> 9 | G46: =VLOOKUP($B46,VysledkyDoplneni!$C$7:$T$126,6,0) -> 0 | H46: =VLOOKUP($B46,VysledkyDoplneni!$C$7:$T$126,7,0) -> 0 | I46: =VLOOKUP($B46,VysledkyDoplneni!$C$7:$T$126,8,0) -> 0 | J46: =VLOOKUP($B46,VysledkyDoplneni!$C$7:$T$126,9,0) -> 0 | K46: =VLOOKUP($B46,VysledkyDoplneni!$C$7:$T$126,10,0) -> 0 | L46: =VLOOKUP($B46,VysledkyDoplneni!$C$7:$T$126,11,0) -> 0 | M46: =VLOOKUP($B46,VysledkyDoplneni!$C$7:$T$126,12,0) -> 0 | N46: =VLOOKUP($B46,VysledkyDoplneni!$C$7:$T$126,13,0) -> 0 | O46: =VLOOKUP($B46,VysledkyDoplneni!$C$7:$T$126,14,0) -> 0 | P46: =VLOOKUP($B46,VysledkyDoplneni!$C$7:$T$126,15,0) -> 0 | Q46: =VLOOKUP($B46,VysledkyDoplneni!$C$7:$T$126,16,0) -> 0 | R46: =VLOOKUP($B46,VysledkyDoplneni!$C$7:$T$126,17,0) -> 0 | S46: =VLOOKUP($B46,VysledkyDoplneni!$C$7:$T$126,18,0) -> 0 | V46: =SUM(D46:S46) -> 34 | W46: =(V46/(Data!$B$18*X46)) -> 56.7% | X46: 3
A47: 40 | B47: =IF(Vstup!C17<>"",Vstup!C17,"") -> Kondr Václav | C47: =IF(Vstup!C17<>"",Vstup!D17,"") -> S | D47: =VLOOKUP($B47,VysledkyDoplneni!$C$7:$T$126,3,0) -> 8 | E47: =VLOOKUP($B47,VysledkyDoplneni!$C$7:$T$126,4,0) -> 13 | F47: =VLOOKUP($B47,VysledkyDoplneni!$C$7:$T$126,5,0) -> 13 | G47: =VLOOKUP($B47,VysledkyDoplneni!$C$7:$T$126,6,0) -> 0 | H47: =VLOOKUP($B47,VysledkyDoplneni!$C$7:$T$126,7,0) -> 0 | I47: =VLOOKUP($B47,VysledkyDoplneni!$C$7:$T$126,8,0) -> 0 | J47: =VLOOKUP($B47,VysledkyDoplneni!$C$7:$T$126,9,0) -> 0 | K47: =VLOOKUP($B47,VysledkyDoplneni!$C$7:$T$126,10,0) -> 0 | L47: =VLOOKUP($B47,VysledkyDoplneni!$C$7:$T$126,11,0) -> 0 | M47: =VLOOKUP($B47,VysledkyDoplneni!$C$7:$T$126,12,0) -> 0 | N47: =VLOOKUP($B47,VysledkyDoplneni!$C$7:$T$126,13,0) -> 0 | O47: =VLOOKUP($B47,VysledkyDoplneni!$C$7:$T$126,14,0) -> 0 | P47: =VLOOKUP($B47,VysledkyDoplneni!$C$7:$T$126,15,0) -> 0 | Q47: =VLOOKUP($B47,VysledkyDoplneni!$C$7:$T$126,16,0) -> 0 | R47: =VLOOKUP($B47,VysledkyDoplneni!$C$7:$T$126,17,0) -> 0 | S47: =VLOOKUP($B47,VysledkyDoplneni!$C$7:$T$126,18,0) -> 0 | V47: =SUM(D47:S47) -> 34 | W47: =(V47/(Data!$B$18*X47)) -> 56.7% | X47: 3
A48: 41 | B48: =IF(Vstup!C39<>"",Vstup!C39,"") -> Albl Václav | C48: S | D48: =VLOOKUP($B48,VysledkyDoplneni!$C$7:$T$126,3,0) -> 8 | E48: =VLOOKUP($B48,VysledkyDoplneni!$C$7:$T$126,4,0) -> 18 | F48: =VLOOKUP($B48,VysledkyDoplneni!$C$7:$T$126,5,0) -> 7 | G48: =VLOOKUP($B48,VysledkyDoplneni!$C$7:$T$126,6,0) -> 0 | H48: =VLOOKUP($B48,VysledkyDoplneni!$C$7:$T$126,7,0) -> 0 | I48: =VLOOKUP($B48,VysledkyDoplneni!$C$7:$T$126,8,0) -> 0 | J48: =VLOOKUP($B48,VysledkyDoplneni!$C$7:$T$126,9,0) -> 0 | K48: =VLOOKUP($B48,VysledkyDoplneni!$C$7:$T$126,10,0) -> 0 | L48: =VLOOKUP($B48,VysledkyDoplneni!$C$7:$T$126,11,0) -> 0 | M48: =VLOOKUP($B48,VysledkyDoplneni!$C$7:$T$126,12,0) -> 0 | N48: =VLOOKUP($B48,VysledkyDoplneni!$C$7:$T$126,13,0) -> 0 | O48: =VLOOKUP($B48,VysledkyDoplneni!$C$7:$T$126,14,0) -> 0 | P48: =VLOOKUP($B48,VysledkyDoplneni!$C$7:$T$126,15,0) -> 0 | Q48: =VLOOKUP($B48,VysledkyDoplneni!$C$7:$T$126,16,0) -> 0 | R48: =VLOOKUP($B48,VysledkyDoplneni!$C$7:$T$126,17,0) -> 0 | S48: =VLOOKUP($B48,VysledkyDoplneni!$C$7:$T$126,18,0) -> 0 | V48: =SUM(D48:S48) -> 33 | W48: =(V48/(Data!$B$18*X48)) -> 55.0% | X48: =COUNTIF(D48:S48,">0") -> 3
A49: 42 | B49: =IF(Vstup!C24<>"",Vstup!C24,"") -> Doležal Jaroslav | C49: S | D49: =VLOOKUP($B49,VysledkyDoplneni!$C$7:$T$126,3,0) -> 7 | E49: =VLOOKUP($B49,VysledkyDoplneni!$C$7:$T$126,4,0) -> 12 | F49: =VLOOKUP($B49,VysledkyDoplneni!$C$7:$T$126,5,0) -> 14 | G49: =VLOOKUP($B49,VysledkyDoplneni!$C$7:$T$126,6,0) -> 0 | H49: =VLOOKUP($B49,VysledkyDoplneni!$C$7:$T$126,7,0) -> 0 | I49: =VLOOKUP($B49,VysledkyDoplneni!$C$7:$T$126,8,0) -> 0 | J49: =VLOOKUP($B49,VysledkyDoplneni!$C$7:$T$126,9,0) -> 0 | K49: =VLOOKUP($B49,VysledkyDoplneni!$C$7:$T$126,10,0) -> 0 | L49: =VLOOKUP($B49,VysledkyDoplneni!$C$7:$T$126,11,0) -> 0 | M49: =VLOOKUP($B49,VysledkyDoplneni!$C$7:$T$126,12,0) -> 0 | N49: =VLOOKUP($B49,VysledkyDoplneni!$C$7:$T$126,13,0) -> 0 | O49: =VLOOKUP($B49,VysledkyDoplneni!$C$7:$T$126,14,0) -> 0 | P49: =VLOOKUP($B49,VysledkyDoplneni!$C$7:$T$126,15,0) -> 0 | Q49: =VLOOKUP($B49,VysledkyDoplneni!$C$7:$T$126,16,0) -> 0 | R49: =VLOOKUP($B49,VysledkyDoplneni!$C$7:$T$126,17,0) -> 0 | S49: =VLOOKUP($B49,VysledkyDoplneni!$C$7:$T$126,18,0) -> 0 | V49: =SUM(D49:S49) -> 33 | W49: =(V49/(Data!$B$18*X49)) -> 55.0% | X49: 3
A50: 43 | B50: =IF(Vstup!C47<>"",Vstup!C47,"") -> Říha Jiří | C50: S | D50: =VLOOKUP($B50,VysledkyDoplneni!$C$7:$T$126,3,0) -> 6 | E50: =VLOOKUP($B50,VysledkyDoplneni!$C$7:$T$126,4,0) -> 14 | F50: =VLOOKUP($B50,VysledkyDoplneni!$C$7:$T$126,5,0) -> 13 | G50: =VLOOKUP($B50,VysledkyDoplneni!$C$7:$T$126,6,0) -> 0 | H50: =VLOOKUP($B50,VysledkyDoplneni!$C$7:$T$126,7,0) -> 0 | I50: =VLOOKUP($B50,VysledkyDoplneni!$C$7:$T$126,8,0) -> 0 | J50: =VLOOKUP($B50,VysledkyDoplneni!$C$7:$T$126,9,0) -> 0 | K50: =VLOOKUP($B50,VysledkyDoplneni!$C$7:$T$126,10,0) -> 0 | L50: =VLOOKUP($B50,VysledkyDoplneni!$C$7:$T$126,11,0) -> 0 | M50: =VLOOKUP($B50,VysledkyDoplneni!$C$7:$T$126,12,0) -> 0 | N50: =VLOOKUP($B50,VysledkyDoplneni!$C$7:$T$126,13,0) -> 0 | O50: =VLOOKUP($B50,VysledkyDoplneni!$C$7:$T$126,14,0) -> 0 | P50: =VLOOKUP($B50,VysledkyDoplneni!$C$7:$T$126,15,0) -> 0 | Q50: =VLOOKUP($B50,VysledkyDoplneni!$C$7:$T$126,16,0) -> 0 | R50: =VLOOKUP($B50,VysledkyDoplneni!$C$7:$T$126,17,0) -> 0 | S50: =VLOOKUP($B50,VysledkyDoplneni!$C$7:$T$126,18,0) -> 0 | V50: =SUM(D50:S50) -> 33 | W50: =(V50/(Data!$B$18*X50)) -> 55.0% | X50: 3
A51: 44 | B51: =IF(Vstup!C53<>"",Vstup!C53,"") -> Vodička Miroslav | C51: S | D51: =VLOOKUP($B51,VysledkyDoplneni!$C$7:$T$126,3,0) -> 9 | E51: =VLOOKUP($B51,VysledkyDoplneni!$C$7:$T$126,4,0) -> 7 | F51: =VLOOKUP($B51,VysledkyDoplneni!$C$7:$T$126,5,0) -> 11 | G51: =VLOOKUP($B51,VysledkyDoplneni!$C$7:$T$126,6,0) -> 0 | H51: =VLOOKUP($B51,VysledkyDoplneni!$C$7:$T$126,7,0) -> 0 | I51: =VLOOKUP($B51,VysledkyDoplneni!$C$7:$T$126,8,0) -> 0 | J51: =VLOOKUP($B51,VysledkyDoplneni!$C$7:$T$126,9,0) -> 0 | K51: =VLOOKUP($B51,VysledkyDoplneni!$C$7:$T$126,10,0) -> 0 | L51: =VLOOKUP($B51,VysledkyDoplneni!$C$7:$T$126,11,0) -> 0 | M51: =VLOOKUP($B51,VysledkyDoplneni!$C$7:$T$126,12,0) -> 0 | N51: =VLOOKUP($B51,VysledkyDoplneni!$C$7:$T$126,13,0) -> 0 | O51: =VLOOKUP($B51,VysledkyDoplneni!$C$7:$T$126,14,0) -> 0 | P51: =VLOOKUP($B51,VysledkyDoplneni!$C$7:$T$126,15,0) -> 0 | Q51: =VLOOKUP($B51,VysledkyDoplneni!$C$7:$T$126,16,0) -> 0 | R51: =VLOOKUP($B51,VysledkyDoplneni!$C$7:$T$126,17,0) -> 0 | S51: =VLOOKUP($B51,VysledkyDoplneni!$C$7:$T$126,18,0) -> 0 | V51: =SUM(D51:S51) -> 27 | W51: =(V51/(Data!$B$18*X51)) -> 45.0% | X51: 3
A52: 45 | B52: =IF(Vstup!C16<>"",Vstup!C16,"") -> Lízal Miroslav ml. | C52: S | D52: =VLOOKUP($B52,VysledkyDoplneni!$C$7:$T$126,3,0) -> 8 | E52: =VLOOKUP($B52,VysledkyDoplneni!$C$7:$T$126,4,0) -> 16 | F52: =VLOOKUP($B52,VysledkyDoplneni!$C$7:$T$126,5,0) -> 2 | G52: =VLOOKUP($B52,VysledkyDoplneni!$C$7:$T$126,6,0) -> 0 | H52: =VLOOKUP($B52,VysledkyDoplneni!$C$7:$T$126,7,0) -> 0 | I52: =VLOOKUP($B52,VysledkyDoplneni!$C$7:$T$126,8,0) -> 0 | J52: =VLOOKUP($B52,VysledkyDoplneni!$C$7:$T$126,9,0) -> 0 | K52: =VLOOKUP($B52,VysledkyDoplneni!$C$7:$T$126,10,0) -> 0 | L52: =VLOOKUP($B52,VysledkyDoplneni!$C$7:$T$126,11,0) -> 0 | M52: =VLOOKUP($B52,VysledkyDoplneni!$C$7:$T$126,12,0) -> 0 | N52: =VLOOKUP($B52,VysledkyDoplneni!$C$7:$T$126,13,0) -> 0 | O52: =VLOOKUP($B52,VysledkyDoplneni!$C$7:$T$126,14,0) -> 0 | P52: =VLOOKUP($B52,VysledkyDoplneni!$C$7:$T$126,15,0) -> 0 | Q52: =VLOOKUP($B52,VysledkyDoplneni!$C$7:$T$126,16,0) -> 0 | R52: =VLOOKUP($B52,VysledkyDoplneni!$C$7:$T$126,17,0) -> 0 | S52: =VLOOKUP($B52,VysledkyDoplneni!$C$7:$T$126,18,0) -> 0 | V52: =SUM(D52:S52) -> 26 | W52: =(V52/(Data!$B$18*X52)) -> 43.3% | X52: 3
A53: 46 | B53: =IF(Vstup!C15<>"",Vstup!C15,"") -> Lízalová Veronika | C53: S | D53: =VLOOKUP($B53,VysledkyDoplneni!$C$7:$T$126,3,0) -> 3 | E53: =VLOOKUP($B53,VysledkyDoplneni!$C$7:$T$126,4,0) -> 5 | F53: =VLOOKUP($B53,VysledkyDoplneni!$C$7:$T$126,5,0) -> 9 | G53: =VLOOKUP($B53,VysledkyDoplneni!$C$7:$T$126,6,0) -> 0 | H53: =VLOOKUP($B53,VysledkyDoplneni!$C$7:$T$126,7,0) -> 0 | I53: =VLOOKUP($B53,VysledkyDoplneni!$C$7:$T$126,8,0) -> 0 | J53: =VLOOKUP($B53,VysledkyDoplneni!$C$7:$T$126,9,0) -> 0 | K53: =VLOOKUP($B53,VysledkyDoplneni!$C$7:$T$126,10,0) -> 0 | L53: =VLOOKUP($B53,VysledkyDoplneni!$C$7:$T$126,11,0) -> 0 | M53: =VLOOKUP($B53,VysledkyDoplneni!$C$7:$T$126,12,0) -> 0 | N53: =VLOOKUP($B53,VysledkyDoplneni!$C$7:$T$126,13,0) -> 0 | O53: =VLOOKUP($B53,VysledkyDoplneni!$C$7:$T$126,14,0) -> 0 | P53: =VLOOKUP($B53,VysledkyDoplneni!$C$7:$T$126,15,0) -> 0 | Q53: =VLOOKUP($B53,VysledkyDoplneni!$C$7:$T$126,16,0) -> 0 | R53: =VLOOKUP($B53,VysledkyDoplneni!$C$7:$T$126,17,0) -> 0 | S53: =VLOOKUP($B53,VysledkyDoplneni!$C$7:$T$126,18,0) -> 0 | V53: =SUM(D53:S53) -> 17 | W53: =(V53/(Data!$B$18*X53)) -> 28.3% | X53: 3
A54: 47 | B54: =IF(Vstup!C34<>"",Vstup!C34,"") -> Jira Tomáš | C54: S | D54: =VLOOKUP($B54,VysledkyDoplneni!$C$7:$T$126,3,0) -> 3 | E54: =VLOOKUP($B54,VysledkyDoplneni!$C$7:$T$126,4,0) -> 9 | F54: =VLOOKUP($B54,VysledkyDoplneni!$C$7:$T$126,5,0) -> 4 | G54: =VLOOKUP($B54,VysledkyDoplneni!$C$7:$T$126,6,0) -> 0 | H54: =VLOOKUP($B54,VysledkyDoplneni!$C$7:$T$126,7,0) -> 0 | I54: =VLOOKUP($B54,VysledkyDoplneni!$C$7:$T$126,8,0) -> 0 | J54: =VLOOKUP($B54,VysledkyDoplneni!$C$7:$T$126,9,0) -> 0 | K54: =VLOOKUP($B54,VysledkyDoplneni!$C$7:$T$126,10,0) -> 0 | L54: =VLOOKUP($B54,VysledkyDoplneni!$C$7:$T$126,11,0) -> 0 | M54: =VLOOKUP($B54,VysledkyDoplneni!$C$7:$T$126,12,0) -> 0 | N54: =VLOOKUP($B54,VysledkyDoplneni!$C$7:$T$126,13,0) -> 0 | O54: =VLOOKUP($B54,VysledkyDoplneni!$C$7:$T$126,14,0) -> 0 | P54: =VLOOKUP($B54,VysledkyDoplneni!$C$7:$T$126,15,0) -> 0 | Q54: =VLOOKUP($B54,VysledkyDoplneni!$C$7:$T$126,16,0) -> 0 | R54: =VLOOKUP($B54,VysledkyDoplneni!$C$7:$T$126,17,0) -> 0 | S54: =VLOOKUP($B54,VysledkyDoplneni!$C$7:$T$126,18,0) -> 0 | V54: =SUM(D54:S54) -> 16 | W54: =(V54/(Data!$B$18*X54)) -> 26.7% | X54: 3
A55: 48 | B55: =IF(Vstup!C35<>"",Vstup!C35,"") -> Gorschenek Martin | C55: S | D55: =VLOOKUP($B55,VysledkyDoplneni!$C$7:$T$126,3,0) -> 6 | E55: =VLOOKUP($B55,VysledkyDoplneni!$C$7:$T$126,4,0) -> 3 | F55: =VLOOKUP($B55,VysledkyDoplneni!$C$7:$T$126,5,0) -> 1 | G55: =VLOOKUP($B55,VysledkyDoplneni!$C$7:$T$126,6,0) -> 0 | H55: =VLOOKUP($B55,VysledkyDoplneni!$C$7:$T$126,7,0) -> 0 | I55: =VLOOKUP($B55,VysledkyDoplneni!$C$7:$T$126,8,0) -> 0 | J55: =VLOOKUP($B55,VysledkyDoplneni!$C$7:$T$126,9,0) -> 0 | K55: =VLOOKUP($B55,VysledkyDoplneni!$C$7:$T$126,10,0) -> 0 | L55: =VLOOKUP($B55,VysledkyDoplneni!$C$7:$T$126,11,0) -> 0 | M55: =VLOOKUP($B55,VysledkyDoplneni!$C$7:$T$126,12,0) -> 0 | N55: =VLOOKUP($B55,VysledkyDoplneni!$C$7:$T$126,13,0) -> 0 | O55: =VLOOKUP($B55,VysledkyDoplneni!$C$7:$T$126,14,0) -> 0 | P55: =VLOOKUP($B55,VysledkyDoplneni!$C$7:$T$126,15,0) -> 0 | Q55: =VLOOKUP($B55,VysledkyDoplneni!$C$7:$T$126,16,0) -> 0 | R55: =VLOOKUP($B55,VysledkyDoplneni!$C$7:$T$126,17,0) -> 0 | S55: =VLOOKUP($B55,VysledkyDoplneni!$C$7:$T$126,18,0) -> 0 | V55: =SUM(D55:S55) -> 10 | W55: =(V55/(Data!$B$18*X55)) -> 16.7% | X55: 3
A56: 49 | B56: =IF(Vstup!C58<>"",Vstup!C58,"") ->  | C56: S | D56: =VLOOKUP($B56,VysledkyDoplneni!$C$7:$T$126,3,0) -> 0 | E56: =VLOOKUP($B56,VysledkyDoplneni!$C$7:$T$126,4,0) -> 0 | F56: =VLOOKUP($B56,VysledkyDoplneni!$C$7:$T$126,5,0) -> 0 | G56: =VLOOKUP($B56,VysledkyDoplneni!$C$7:$T$126,6,0) -> 0 | H56: =VLOOKUP($B56,VysledkyDoplneni!$C$7:$T$126,7,0) -> 0 | I56: =VLOOKUP($B56,VysledkyDoplneni!$C$7:$T$126,8,0) -> 0 | J56: =VLOOKUP($B56,VysledkyDoplneni!$C$7:$T$126,9,0) -> 0 | K56: =VLOOKUP($B56,VysledkyDoplneni!$C$7:$T$126,10,0) -> 0 | L56: =VLOOKUP($B56,VysledkyDoplneni!$C$7:$T$126,11,0) -> 0 | M56: =VLOOKUP($B56,VysledkyDoplneni!$C$7:$T$126,12,0) -> 0 | N56: =VLOOKUP($B56,VysledkyDoplneni!$C$7:$T$126,13,0) -> 0 | O56: =VLOOKUP($B56,VysledkyDoplneni!$C$7:$T$126,14,0) -> 0 | P56: =VLOOKUP($B56,VysledkyDoplneni!$C$7:$T$126,15,0) -> 0 | Q56: =VLOOKUP($B56,VysledkyDoplneni!$C$7:$T$126,16,0) -> 0 | R56: =VLOOKUP($B56,VysledkyDoplneni!$C$7:$T$126,17,0) -> 0 | S56: =VLOOKUP($B56,VysledkyDoplneni!$C$7:$T$126,18,0) -> 0 | V56: =SUM(D56:S56) -> 0 | W56: =(V56/(Data!$B$18*X56)) ->  | X56: 0
A57: 50 | B57: =IF(Vstup!C57<>"",Vstup!C57,"") ->  | C57: S | D57: =VLOOKUP($B57,VysledkyDoplneni!$C$7:$T$126,3,0) -> 0 | E57: =VLOOKUP($B57,VysledkyDoplneni!$C$7:$T$126,4,0) -> 0 | F57: =VLOOKUP($B57,VysledkyDoplneni!$C$7:$T$126,5,0) -> 0 | G57: =VLOOKUP($B57,VysledkyDoplneni!$C$7:$T$126,6,0) -> 0 | H57: =VLOOKUP($B57,VysledkyDoplneni!$C$7:$T$126,7,0) -> 0 | I57: =VLOOKUP($B57,VysledkyDoplneni!$C$7:$T$126,8,0) -> 0 | J57: =VLOOKUP($B57,VysledkyDoplneni!$C$7:$T$126,9,0) -> 0 | K57: =VLOOKUP($B57,VysledkyDoplneni!$C$7:$T$126,10,0) -> 0 | L57: =VLOOKUP($B57,VysledkyDoplneni!$C$7:$T$126,11,0) -> 0 | M57: =VLOOKUP($B57,VysledkyDoplneni!$C$7:$T$126,12,0) -> 0 | N57: =VLOOKUP($B57,VysledkyDoplneni!$C$7:$T$126,13,0) -> 0 | O57: =VLOOKUP($B57,VysledkyDoplneni!$C$7:$T$126,14,0) -> 0 | P57: =VLOOKUP($B57,VysledkyDoplneni!$C$7:$T$126,15,0) -> 0 | Q57: =VLOOKUP($B57,VysledkyDoplneni!$C$7:$T$126,16,0) -> 0 | R57: =VLOOKUP($B57,VysledkyDoplneni!$C$7:$T$126,17,0) -> 0 | S57: =VLOOKUP($B57,VysledkyDoplneni!$C$7:$T$126,18,0) -> 0 | V57: =SUM(D57:T57) -> 0 | W57: =(V57/(Data!$B$18*X57)) ->  | X57: 0
A58: 51 | B58: =IF(Vstup!C59<>"",Vstup!C59,"") ->  | C58: S | D58: =VLOOKUP($B58,VysledkyDoplneni!$C$7:$T$126,3,0) -> 0 | E58: =VLOOKUP($B58,VysledkyDoplneni!$C$7:$T$126,4,0) -> 0 | F58: =VLOOKUP($B58,VysledkyDoplneni!$C$7:$T$126,5,0) -> 0 | G58: =VLOOKUP($B58,VysledkyDoplneni!$C$7:$T$126,6,0) -> 0 | H58: =VLOOKUP($B58,VysledkyDoplneni!$C$7:$T$126,7,0) -> 0 | I58: =VLOOKUP($B58,VysledkyDoplneni!$C$7:$T$126,8,0) -> 0 | J58: =VLOOKUP($B58,VysledkyDoplneni!$C$7:$T$126,9,0) -> 0 | K58: =VLOOKUP($B58,VysledkyDoplneni!$C$7:$T$126,10,0) -> 0 | L58: =VLOOKUP($B58,VysledkyDoplneni!$C$7:$T$126,11,0) -> 0 | M58: =VLOOKUP($B58,VysledkyDoplneni!$C$7:$T$126,12,0) -> 0 | N58: =VLOOKUP($B58,VysledkyDoplneni!$C$7:$T$126,13,0) -> 0 | O58: =VLOOKUP($B58,VysledkyDoplneni!$C$7:$T$126,14,0) -> 0 | P58: =VLOOKUP($B58,VysledkyDoplneni!$C$7:$T$126,15,0) -> 0 | Q58: =VLOOKUP($B58,VysledkyDoplneni!$C$7:$T$126,16,0) -> 0 | R58: =VLOOKUP($B58,VysledkyDoplneni!$C$7:$T$126,17,0) -> 0 | S58: =VLOOKUP($B58,VysledkyDoplneni!$C$7:$T$126,18,0) -> 0 | V58: =SUM(D58:S58) -> 0 | W58: =(V58/(Data!$B$18*X58)) ->  | X58: 0
A59: 52 | B59: =IF(Vstup!C60<>"",Vstup!C60,"") ->  | C59: S | D59: =VLOOKUP($B59,VysledkyDoplneni!$C$7:$T$126,3,0) -> 0 | E59: =VLOOKUP($B59,VysledkyDoplneni!$C$7:$T$126,4,0) -> 0 | F59: =VLOOKUP($B59,VysledkyDoplneni!$C$7:$T$126,5,0) -> 0 | G59: =VLOOKUP($B59,VysledkyDoplneni!$C$7:$T$126,6,0) -> 0 | H59: =VLOOKUP($B59,VysledkyDoplneni!$C$7:$T$126,7,0) -> 0 | I59: =VLOOKUP($B59,VysledkyDoplneni!$C$7:$T$126,8,0) -> 0 | J59: =VLOOKUP($B59,VysledkyDoplneni!$C$7:$T$126,9,0) -> 0 | K59: =VLOOKUP($B59,VysledkyDoplneni!$C$7:$T$126,10,0) -> 0 | L59: =VLOOKUP($B59,VysledkyDoplneni!$C$7:$T$126,11,0) -> 0 | M59: =VLOOKUP($B59,VysledkyDoplneni!$C$7:$T$126,12,0) -> 0 | N59: =VLOOKUP($B59,VysledkyDoplneni!$C$7:$T$126,13,0) -> 0 | O59: =VLOOKUP($B59,VysledkyDoplneni!$C$7:$T$126,14,0) -> 0 | P59: =VLOOKUP($B59,VysledkyDoplneni!$C$7:$T$126,15,0) -> 0 | Q59: =VLOOKUP($B59,VysledkyDoplneni!$C$7:$T$126,16,0) -> 0 | R59: =VLOOKUP($B59,VysledkyDoplneni!$C$7:$T$126,17,0) -> 0 | S59: =VLOOKUP($B59,VysledkyDoplneni!$C$7:$T$126,18,0) -> 0 | V59: =SUM(D59:T59) -> 0 | W59: =(V59/(Data!$B$18*X59)) ->  | X59: 0
A60: 53 | B60: =IF(Vstup!C63<>"",Vstup!C63,"") ->  | C60: S | D60: =VLOOKUP($B60,VysledkyDoplneni!$C$7:$T$126,3,0) -> 0 | E60: =VLOOKUP($B60,VysledkyDoplneni!$C$7:$T$126,4,0) -> 0 | F60: =VLOOKUP($B60,VysledkyDoplneni!$C$7:$T$126,5,0) -> 0 | G60: =VLOOKUP($B60,VysledkyDoplneni!$C$7:$T$126,6,0) -> 0 | H60: =VLOOKUP($B60,VysledkyDoplneni!$C$7:$T$126,7,0) -> 0 | I60: =VLOOKUP($B60,VysledkyDoplneni!$C$7:$T$126,8,0) -> 0 | J60: =VLOOKUP($B60,VysledkyDoplneni!$C$7:$T$126,9,0) -> 0 | K60: =VLOOKUP($B60,VysledkyDoplneni!$C$7:$T$126,10,0) -> 0 | L60: =VLOOKUP($B60,VysledkyDoplneni!$C$7:$T$126,11,0) -> 0 | M60: =VLOOKUP($B60,VysledkyDoplneni!$C$7:$T$126,12,0) -> 0 | N60: =VLOOKUP($B60,VysledkyDoplneni!$C$7:$T$126,13,0) -> 0 | O60: =VLOOKUP($B60,VysledkyDoplneni!$C$7:$T$126,14,0) -> 0 | P60: =VLOOKUP($B60,VysledkyDoplneni!$C$7:$T$126,15,0) -> 0 | Q60: =VLOOKUP($B60,VysledkyDoplneni!$C$7:$T$126,16,0) -> 0 | R60: =VLOOKUP($B60,VysledkyDoplneni!$C$7:$T$126,17,0) -> 0 | S60: =VLOOKUP($B60,VysledkyDoplneni!$C$7:$T$126,18,0) -> 0 | V60: =SUM(D60:T60) -> 0 | W60: =(V60/(Data!$B$18*X60)) ->  | X60: 0
A61: 54 | B61: =IF(Vstup!C61<>"",Vstup!C61,"") ->  | C61: S | D61: =VLOOKUP($B61,VysledkyDoplneni!$C$7:$T$126,3,0) -> 0 | E61: =VLOOKUP($B61,VysledkyDoplneni!$C$7:$T$126,4,0) -> 0 | F61: =VLOOKUP($B61,VysledkyDoplneni!$C$7:$T$126,5,0) -> 0 | G61: =VLOOKUP($B61,VysledkyDoplneni!$C$7:$T$126,6,0) -> 0 | H61: =VLOOKUP($B61,VysledkyDoplneni!$C$7:$T$126,7,0) -> 0 | I61: =VLOOKUP($B61,VysledkyDoplneni!$C$7:$T$126,8,0) -> 0 | J61: =VLOOKUP($B61,VysledkyDoplneni!$C$7:$T$126,9,0) -> 0 | K61: =VLOOKUP($B61,VysledkyDoplneni!$C$7:$T$126,10,0) -> 0 | L61: =VLOOKUP($B61,VysledkyDoplneni!$C$7:$T$126,11,0) -> 0 | M61: =VLOOKUP($B61,VysledkyDoplneni!$C$7:$T$126,12,0) -> 0 | N61: =VLOOKUP($B61,VysledkyDoplneni!$C$7:$T$126,13,0) -> 0 | O61: =VLOOKUP($B61,VysledkyDoplneni!$C$7:$T$126,14,0) -> 0 | P61: =VLOOKUP($B61,VysledkyDoplneni!$C$7:$T$126,15,0) -> 0 | Q61: =VLOOKUP($B61,VysledkyDoplneni!$C$7:$T$126,16,0) -> 0 | R61: =VLOOKUP($B61,VysledkyDoplneni!$C$7:$T$126,17,0) -> 0 | S61: =VLOOKUP($B61,VysledkyDoplneni!$C$7:$T$126,18,0) -> 0 | V61: =SUM(D61:S61) -> 0 | W61: =(V61/(Data!$B$18*X61)) ->  | X61: 0
A62: 55 | B62: =IF(Vstup!C64<>"",Vstup!C64,"") ->  | C62: S | D62: =VLOOKUP($B62,VysledkyDoplneni!$C$7:$T$126,3,0) -> 0 | E62: =VLOOKUP($B62,VysledkyDoplneni!$C$7:$T$126,4,0) -> 0 | F62: =VLOOKUP($B62,VysledkyDoplneni!$C$7:$T$126,5,0) -> 0 | G62: =VLOOKUP($B62,VysledkyDoplneni!$C$7:$T$126,6,0) -> 0 | H62: =VLOOKUP($B62,VysledkyDoplneni!$C$7:$T$126,7,0) -> 0 | I62: =VLOOKUP($B62,VysledkyDoplneni!$C$7:$T$126,8,0) -> 0 | J62: =VLOOKUP($B62,VysledkyDoplneni!$C$7:$T$126,9,0) -> 0 | K62: =VLOOKUP($B62,VysledkyDoplneni!$C$7:$T$126,10,0) -> 0 | L62: =VLOOKUP($B62,VysledkyDoplneni!$C$7:$T$126,11,0) -> 0 | M62: =VLOOKUP($B62,VysledkyDoplneni!$C$7:$T$126,12,0) -> 0 | N62: =VLOOKUP($B62,VysledkyDoplneni!$C$7:$T$126,13,0) -> 0 | O62: =VLOOKUP($B62,VysledkyDoplneni!$C$7:$T$126,14,0) -> 0 | P62: =VLOOKUP($B62,VysledkyDoplneni!$C$7:$T$126,15,0) -> 0 | Q62: =VLOOKUP($B62,VysledkyDoplneni!$C$7:$T$126,16,0) -> 0 | R62: =VLOOKUP($B62,VysledkyDoplneni!$C$7:$T$126,17,0) -> 0 | S62: =VLOOKUP($B62,VysledkyDoplneni!$C$7:$T$126,18,0) -> 0 | V62: =SUM(D62:S62) -> 0 | W62: =(V62/(Data!$B$18*X62)) ->  | X62: 0
A63: 56 | B63: =IF(Vstup!C62<>"",Vstup!C62,"") ->  | C63: S | D63: =VLOOKUP($B63,VysledkyDoplneni!$C$7:$T$126,3,0) -> 0 | E63: =VLOOKUP($B63,VysledkyDoplneni!$C$7:$T$126,4,0) -> 0 | F63: =VLOOKUP($B63,VysledkyDoplneni!$C$7:$T$126,5,0) -> 0 | G63: =VLOOKUP($B63,VysledkyDoplneni!$C$7:$T$126,6,0) -> 0 | H63: =VLOOKUP($B63,VysledkyDoplneni!$C$7:$T$126,7,0) -> 0 | I63: =VLOOKUP($B63,VysledkyDoplneni!$C$7:$T$126,8,0) -> 0 | J63: =VLOOKUP($B63,VysledkyDoplneni!$C$7:$T$126,9,0) -> 0 | K63: =VLOOKUP($B63,VysledkyDoplneni!$C$7:$T$126,10,0) -> 0 | L63: =VLOOKUP($B63,VysledkyDoplneni!$C$7:$T$126,11,0) -> 0 | M63: =VLOOKUP($B63,VysledkyDoplneni!$C$7:$T$126,12,0) -> 0 | N63: =VLOOKUP($B63,VysledkyDoplneni!$C$7:$T$126,13,0) -> 0 | O63: =VLOOKUP($B63,VysledkyDoplneni!$C$7:$T$126,14,0) -> 0 | P63: =VLOOKUP($B63,VysledkyDoplneni!$C$7:$T$126,15,0) -> 0 | Q63: =VLOOKUP($B63,VysledkyDoplneni!$C$7:$T$126,16,0) -> 0 | R63: =VLOOKUP($B63,VysledkyDoplneni!$C$7:$T$126,17,0) -> 0 | S63: =VLOOKUP($B63,VysledkyDoplneni!$C$7:$T$126,18,0) -> 0 | V63: =SUM(D63:S63) -> 0 | W63: =(V63/(Data!$B$18*X63)) ->  | X63: 0
A64: 57 | B64: =IF(Vstup!C117<>"",Vstup!C117,"") ->  | C64: S | D64: =VLOOKUP($B64,VysledkyDoplneni!$C$7:$T$126,3,0) -> 0 | E64: =VLOOKUP($B64,VysledkyDoplneni!$C$7:$T$126,4,0) -> 0 | F64: =VLOOKUP($B64,VysledkyDoplneni!$C$7:$T$126,5,0) -> 0 | G64: =VLOOKUP($B64,VysledkyDoplneni!$C$7:$T$126,6,0) -> 0 | H64: =VLOOKUP($B64,VysledkyDoplneni!$C$7:$T$126,7,0) -> 0 | I64: =VLOOKUP($B64,VysledkyDoplneni!$C$7:$T$126,8,0) -> 0 | J64: =VLOOKUP($B64,VysledkyDoplneni!$C$7:$T$126,9,0) -> 0 | K64: =VLOOKUP($B64,VysledkyDoplneni!$C$7:$T$126,10,0) -> 0 | L64: =VLOOKUP($B64,VysledkyDoplneni!$C$7:$T$126,11,0) -> 0 | M64: =VLOOKUP($B64,VysledkyDoplneni!$C$7:$T$126,12,0) -> 0 | N64: =VLOOKUP($B64,VysledkyDoplneni!$C$7:$T$126,13,0) -> 0 | O64: =VLOOKUP($B64,VysledkyDoplneni!$C$7:$T$126,14,0) -> 0 | P64: =VLOOKUP($B64,VysledkyDoplneni!$C$7:$T$126,15,0) -> 0 | Q64: =VLOOKUP($B64,VysledkyDoplneni!$C$7:$T$126,16,0) -> 0 | R64: =VLOOKUP($B64,VysledkyDoplneni!$C$7:$T$126,17,0) -> 0 | S64: =VLOOKUP($B64,VysledkyDoplneni!$C$7:$T$126,18,0) -> 0 | V64: 0 | W64: =(V64/(Data!$B$18*X64)) ->  | X64: 0
A65: 58 | B65: =IF(Vstup!C76<>"",Vstup!C76,"") ->  | C65: S | D65: =VLOOKUP($B65,VysledkyDoplneni!$C$7:$T$126,3,0) -> 0 | E65: =VLOOKUP($B65,VysledkyDoplneni!$C$7:$T$126,4,0) -> 0 | F65: =VLOOKUP($B65,VysledkyDoplneni!$C$7:$T$126,5,0) -> 0 | G65: =VLOOKUP($B65,VysledkyDoplneni!$C$7:$T$126,6,0) -> 0 | H65: =VLOOKUP($B65,VysledkyDoplneni!$C$7:$T$126,7,0) -> 0 | I65: =VLOOKUP($B65,VysledkyDoplneni!$C$7:$T$126,8,0) -> 0 | J65: =VLOOKUP($B65,VysledkyDoplneni!$C$7:$T$126,9,0) -> 0 | K65: =VLOOKUP($B65,VysledkyDoplneni!$C$7:$T$126,10,0) -> 0 | L65: =VLOOKUP($B65,VysledkyDoplneni!$C$7:$T$126,11,0) -> 0 | M65: =VLOOKUP($B65,VysledkyDoplneni!$C$7:$T$126,12,0) -> 0 | N65: =VLOOKUP($B65,VysledkyDoplneni!$C$7:$T$126,13,0) -> 0 | O65: =VLOOKUP($B65,VysledkyDoplneni!$C$7:$T$126,14,0) -> 0 | P65: =VLOOKUP($B65,VysledkyDoplneni!$C$7:$T$126,15,0) -> 0 | Q65: =VLOOKUP($B65,VysledkyDoplneni!$C$7:$T$126,16,0) -> 0 | R65: =VLOOKUP($B65,VysledkyDoplneni!$C$7:$T$126,17,0) -> 0 | S65: =VLOOKUP($B65,VysledkyDoplneni!$C$7:$T$126,18,0) -> 0 | V65: 0 | W65: =(V65/(Data!$B$18*X65)) ->  | X65: 0
A66: 59 | B66: =IF(Vstup!C96<>"",Vstup!C96,"") ->  | C66: S | D66: =VLOOKUP($B66,VysledkyDoplneni!$C$7:$T$126,3,0) -> 0 | E66: =VLOOKUP($B66,VysledkyDoplneni!$C$7:$T$126,4,0) -> 0 | F66: =VLOOKUP($B66,VysledkyDoplneni!$C$7:$T$126,5,0) -> 0 | G66: =VLOOKUP($B66,VysledkyDoplneni!$C$7:$T$126,6,0) -> 0 | H66: =VLOOKUP($B66,VysledkyDoplneni!$C$7:$T$126,7,0) -> 0 | I66: =VLOOKUP($B66,VysledkyDoplneni!$C$7:$T$126,8,0) -> 0 | J66: =VLOOKUP($B66,VysledkyDoplneni!$C$7:$T$126,9,0) -> 0 | K66: =VLOOKUP($B66,VysledkyDoplneni!$C$7:$T$126,10,0) -> 0 | L66: =VLOOKUP($B66,VysledkyDoplneni!$C$7:$T$126,11,0) -> 0 | M66: =VLOOKUP($B66,VysledkyDoplneni!$C$7:$T$126,12,0) -> 0 | N66: =VLOOKUP($B66,VysledkyDoplneni!$C$7:$T$126,13,0) -> 0 | O66: =VLOOKUP($B66,VysledkyDoplneni!$C$7:$T$126,14,0) -> 0 | P66: =VLOOKUP($B66,VysledkyDoplneni!$C$7:$T$126,15,0) -> 0 | Q66: =VLOOKUP($B66,VysledkyDoplneni!$C$7:$T$126,16,0) -> 0 | R66: =VLOOKUP($B66,VysledkyDoplneni!$C$7:$T$126,17,0) -> 0 | S66: =VLOOKUP($B66,VysledkyDoplneni!$C$7:$T$126,18,0) -> 0 | V66: 0 | W66: =(V66/(Data!$B$18*X66)) ->  | X66: 0
A67: 60 | B67: =IF(Vstup!C103<>"",Vstup!C103,"") ->  | C67: S | D67: =VLOOKUP($B67,VysledkyDoplneni!$C$7:$T$126,3,0) -> 0 | E67: =VLOOKUP($B67,VysledkyDoplneni!$C$7:$T$126,4,0) -> 0 | F67: =VLOOKUP($B67,VysledkyDoplneni!$C$7:$T$126,5,0) -> 0 | G67: =VLOOKUP($B67,VysledkyDoplneni!$C$7:$T$126,6,0) -> 0 | H67: =VLOOKUP($B67,VysledkyDoplneni!$C$7:$T$126,7,0) -> 0 | I67: =VLOOKUP($B67,VysledkyDoplneni!$C$7:$T$126,8,0) -> 0 | J67: =VLOOKUP($B67,VysledkyDoplneni!$C$7:$T$126,9,0) -> 0 | K67: =VLOOKUP($B67,VysledkyDoplneni!$C$7:$T$126,10,0) -> 0 | L67: =VLOOKUP($B67,VysledkyDoplneni!$C$7:$T$126,11,0) -> 0 | M67: =VLOOKUP($B67,VysledkyDoplneni!$C$7:$T$126,12,0) -> 0 | N67: =VLOOKUP($B67,VysledkyDoplneni!$C$7:$T$126,13,0) -> 0 | O67: =VLOOKUP($B67,VysledkyDoplneni!$C$7:$T$126,14,0) -> 0 | P67: =VLOOKUP($B67,VysledkyDoplneni!$C$7:$T$126,15,0) -> 0 | Q67: =VLOOKUP($B67,VysledkyDoplneni!$C$7:$T$126,16,0) -> 0 | R67: =VLOOKUP($B67,VysledkyDoplneni!$C$7:$T$126,17,0) -> 0 | S67: =VLOOKUP($B67,VysledkyDoplneni!$C$7:$T$126,18,0) -> 0 | V67: 0 | W67: =(V67/(Data!$B$18*X67)) ->  | X67: 0
A68: 61 | B68: =IF(Vstup!C82<>"",Vstup!C82,"") ->  | C68: S | D68: =VLOOKUP($B68,VysledkyDoplneni!$C$7:$T$126,3,0) -> 0 | E68: =VLOOKUP($B68,VysledkyDoplneni!$C$7:$T$126,4,0) -> 0 | F68: =VLOOKUP($B68,VysledkyDoplneni!$C$7:$T$126,5,0) -> 0 | G68: =VLOOKUP($B68,VysledkyDoplneni!$C$7:$T$126,6,0) -> 0 | H68: =VLOOKUP($B68,VysledkyDoplneni!$C$7:$T$126,7,0) -> 0 | I68: =VLOOKUP($B68,VysledkyDoplneni!$C$7:$T$126,8,0) -> 0 | J68: =VLOOKUP($B68,VysledkyDoplneni!$C$7:$T$126,9,0) -> 0 | K68: =VLOOKUP($B68,VysledkyDoplneni!$C$7:$T$126,10,0) -> 0 | L68: =VLOOKUP($B68,VysledkyDoplneni!$C$7:$T$126,11,0) -> 0 | M68: =VLOOKUP($B68,VysledkyDoplneni!$C$7:$T$126,12,0) -> 0 | N68: =VLOOKUP($B68,VysledkyDoplneni!$C$7:$T$126,13,0) -> 0 | O68: =VLOOKUP($B68,VysledkyDoplneni!$C$7:$T$126,14,0) -> 0 | P68: =VLOOKUP($B68,VysledkyDoplneni!$C$7:$T$126,15,0) -> 0 | Q68: =VLOOKUP($B68,VysledkyDoplneni!$C$7:$T$126,16,0) -> 0 | R68: =VLOOKUP($B68,VysledkyDoplneni!$C$7:$T$126,17,0) -> 0 | S68: =VLOOKUP($B68,VysledkyDoplneni!$C$7:$T$126,18,0) -> 0 | V68: 0 | W68: =(V68/(Data!$B$18*X68)) ->  | X68: 0
A69: 62 | B69: =IF(Vstup!C84<>"",Vstup!C84,"") ->  | C69: S | D69: =VLOOKUP($B69,VysledkyDoplneni!$C$7:$T$126,3,0) -> 0 | E69: =VLOOKUP($B69,VysledkyDoplneni!$C$7:$T$126,4,0) -> 0 | F69: =VLOOKUP($B69,VysledkyDoplneni!$C$7:$T$126,5,0) -> 0 | G69: =VLOOKUP($B69,VysledkyDoplneni!$C$7:$T$126,6,0) -> 0 | H69: =VLOOKUP($B69,VysledkyDoplneni!$C$7:$T$126,7,0) -> 0 | I69: =VLOOKUP($B69,VysledkyDoplneni!$C$7:$T$126,8,0) -> 0 | J69: =VLOOKUP($B69,VysledkyDoplneni!$C$7:$T$126,9,0) -> 0 | K69: =VLOOKUP($B69,VysledkyDoplneni!$C$7:$T$126,10,0) -> 0 | L69: =VLOOKUP($B69,VysledkyDoplneni!$C$7:$T$126,11,0) -> 0 | M69: =VLOOKUP($B69,VysledkyDoplneni!$C$7:$T$126,12,0) -> 0 | N69: =VLOOKUP($B69,VysledkyDoplneni!$C$7:$T$126,13,0) -> 0 | O69: =VLOOKUP($B69,VysledkyDoplneni!$C$7:$T$126,14,0) -> 0 | P69: =VLOOKUP($B69,VysledkyDoplneni!$C$7:$T$126,15,0) -> 0 | Q69: =VLOOKUP($B69,VysledkyDoplneni!$C$7:$T$126,16,0) -> 0 | R69: =VLOOKUP($B69,VysledkyDoplneni!$C$7:$T$126,17,0) -> 0 | S69: =VLOOKUP($B69,VysledkyDoplneni!$C$7:$T$126,18,0) -> 0 | V69: 0 | W69: =(V69/(Data!$B$18*X69)) ->  | X69: 0
A70: 63 | B70: =IF(Vstup!C99<>"",Vstup!C99,"") ->  | C70: S | D70: =VLOOKUP($B70,VysledkyDoplneni!$C$7:$T$126,3,0) -> 0 | E70: =VLOOKUP($B70,VysledkyDoplneni!$C$7:$T$126,4,0) -> 0 | F70: =VLOOKUP($B70,VysledkyDoplneni!$C$7:$T$126,5,0) -> 0 | G70: =VLOOKUP($B70,VysledkyDoplneni!$C$7:$T$126,6,0) -> 0 | H70: =VLOOKUP($B70,VysledkyDoplneni!$C$7:$T$126,7,0) -> 0 | I70: =VLOOKUP($B70,VysledkyDoplneni!$C$7:$T$126,8,0) -> 0 | J70: =VLOOKUP($B70,VysledkyDoplneni!$C$7:$T$126,9,0) -> 0 | K70: =VLOOKUP($B70,VysledkyDoplneni!$C$7:$T$126,10,0) -> 0 | L70: =VLOOKUP($B70,VysledkyDoplneni!$C$7:$T$126,11,0) -> 0 | M70: =VLOOKUP($B70,VysledkyDoplneni!$C$7:$T$126,12,0) -> 0 | N70: =VLOOKUP($B70,VysledkyDoplneni!$C$7:$T$126,13,0) -> 0 | O70: =VLOOKUP($B70,VysledkyDoplneni!$C$7:$T$126,14,0) -> 0 | P70: =VLOOKUP($B70,VysledkyDoplneni!$C$7:$T$126,15,0) -> 0 | Q70: =VLOOKUP($B70,VysledkyDoplneni!$C$7:$T$126,16,0) -> 0 | R70: =VLOOKUP($B70,VysledkyDoplneni!$C$7:$T$126,17,0) -> 0 | S70: =VLOOKUP($B70,VysledkyDoplneni!$C$7:$T$126,18,0) -> 0 | V70: 0 | W70: =(V70/(Data!$B$18*X70)) ->  | X70: 0
A71: 64 | B71: =IF(Vstup!C67<>"",Vstup!C67,"") ->  | C71: S | D71: =VLOOKUP($B71,VysledkyDoplneni!$C$7:$T$126,3,0) -> 0 | E71: =VLOOKUP($B71,VysledkyDoplneni!$C$7:$T$126,4,0) -> 0 | F71: =VLOOKUP($B71,VysledkyDoplneni!$C$7:$T$126,5,0) -> 0 | G71: =VLOOKUP($B71,VysledkyDoplneni!$C$7:$T$126,6,0) -> 0 | H71: =VLOOKUP($B71,VysledkyDoplneni!$C$7:$T$126,7,0) -> 0 | I71: =VLOOKUP($B71,VysledkyDoplneni!$C$7:$T$126,8,0) -> 0 | J71: =VLOOKUP($B71,VysledkyDoplneni!$C$7:$T$126,9,0) -> 0 | K71: =VLOOKUP($B71,VysledkyDoplneni!$C$7:$T$126,10,0) -> 0 | L71: =VLOOKUP($B71,VysledkyDoplneni!$C$7:$T$126,11,0) -> 0 | M71: =VLOOKUP($B71,VysledkyDoplneni!$C$7:$T$126,12,0) -> 0 | N71: =VLOOKUP($B71,VysledkyDoplneni!$C$7:$T$126,13,0) -> 0 | O71: =VLOOKUP($B71,VysledkyDoplneni!$C$7:$T$126,14,0) -> 0 | P71: =VLOOKUP($B71,VysledkyDoplneni!$C$7:$T$126,15,0) -> 0 | Q71: =VLOOKUP($B71,VysledkyDoplneni!$C$7:$T$126,16,0) -> 0 | R71: =VLOOKUP($B71,VysledkyDoplneni!$C$7:$T$126,17,0) -> 0 | S71: =VLOOKUP($B71,VysledkyDoplneni!$C$7:$T$126,18,0) -> 0 | V71: 0 | W71: =(V71/(Data!$B$18*X71)) ->  | X71: 0
A72: 65 | B72: =IF(Vstup!C71<>"",Vstup!C71,"") ->  | C72: S | D72: =VLOOKUP($B72,VysledkyDoplneni!$C$7:$T$126,3,0) -> 0 | E72: =VLOOKUP($B72,VysledkyDoplneni!$C$7:$T$126,4,0) -> 0 | F72: =VLOOKUP($B72,VysledkyDoplneni!$C$7:$T$126,5,0) -> 0 | G72: =VLOOKUP($B72,VysledkyDoplneni!$C$7:$T$126,6,0) -> 0 | H72: =VLOOKUP($B72,VysledkyDoplneni!$C$7:$T$126,7,0) -> 0 | I72: =VLOOKUP($B72,VysledkyDoplneni!$C$7:$T$126,8,0) -> 0 | J72: =VLOOKUP($B72,VysledkyDoplneni!$C$7:$T$126,9,0) -> 0 | K72: =VLOOKUP($B72,VysledkyDoplneni!$C$7:$T$126,10,0) -> 0 | L72: =VLOOKUP($B72,VysledkyDoplneni!$C$7:$T$126,11,0) -> 0 | M72: =VLOOKUP($B72,VysledkyDoplneni!$C$7:$T$126,12,0) -> 0 | N72: =VLOOKUP($B72,VysledkyDoplneni!$C$7:$T$126,13,0) -> 0 | O72: =VLOOKUP($B72,VysledkyDoplneni!$C$7:$T$126,14,0) -> 0 | P72: =VLOOKUP($B72,VysledkyDoplneni!$C$7:$T$126,15,0) -> 0 | Q72: =VLOOKUP($B72,VysledkyDoplneni!$C$7:$T$126,16,0) -> 0 | R72: =VLOOKUP($B72,VysledkyDoplneni!$C$7:$T$126,17,0) -> 0 | S72: =VLOOKUP($B72,VysledkyDoplneni!$C$7:$T$126,18,0) -> 0 | V72: 0 | W72: =(V72/(Data!$B$18*X72)) ->  | X72: 0
A73: 66 | B73: =IF(Vstup!C98<>"",Vstup!C98,"") ->  | C73: S | D73: =VLOOKUP($B73,VysledkyDoplneni!$C$7:$T$126,3,0) -> 0 | E73: =VLOOKUP($B73,VysledkyDoplneni!$C$7:$T$126,4,0) -> 0 | F73: =VLOOKUP($B73,VysledkyDoplneni!$C$7:$T$126,5,0) -> 0 | G73: =VLOOKUP($B73,VysledkyDoplneni!$C$7:$T$126,6,0) -> 0 | H73: =VLOOKUP($B73,VysledkyDoplneni!$C$7:$T$126,7,0) -> 0 | I73: =VLOOKUP($B73,VysledkyDoplneni!$C$7:$T$126,8,0) -> 0 | J73: =VLOOKUP($B73,VysledkyDoplneni!$C$7:$T$126,9,0) -> 0 | K73: =VLOOKUP($B73,VysledkyDoplneni!$C$7:$T$126,10,0) -> 0 | L73: =VLOOKUP($B73,VysledkyDoplneni!$C$7:$T$126,11,0) -> 0 | M73: =VLOOKUP($B73,VysledkyDoplneni!$C$7:$T$126,12,0) -> 0 | N73: =VLOOKUP($B73,VysledkyDoplneni!$C$7:$T$126,13,0) -> 0 | O73: =VLOOKUP($B73,VysledkyDoplneni!$C$7:$T$126,14,0) -> 0 | P73: =VLOOKUP($B73,VysledkyDoplneni!$C$7:$T$126,15,0) -> 0 | Q73: =VLOOKUP($B73,VysledkyDoplneni!$C$7:$T$126,16,0) -> 0 | R73: =VLOOKUP($B73,VysledkyDoplneni!$C$7:$T$126,17,0) -> 0 | S73: =VLOOKUP($B73,VysledkyDoplneni!$C$7:$T$126,18,0) -> 0 | V73: 0 | W73: =(V73/(Data!$B$18*X73)) ->  | X73: =COUNTIF(D73:S73,">0") -> 0
A74: 67 | B74: =IF(Vstup!C81<>"",Vstup!C81,"") ->  | C74: S | D74: =VLOOKUP($B74,VysledkyDoplneni!$C$7:$T$126,3,0) -> 0 | E74: =VLOOKUP($B74,VysledkyDoplneni!$C$7:$T$126,4,0) -> 0 | F74: =VLOOKUP($B74,VysledkyDoplneni!$C$7:$T$126,5,0) -> 0 | G74: =VLOOKUP($B74,VysledkyDoplneni!$C$7:$T$126,6,0) -> 0 | H74: =VLOOKUP($B74,VysledkyDoplneni!$C$7:$T$126,7,0) -> 0 | I74: =VLOOKUP($B74,VysledkyDoplneni!$C$7:$T$126,8,0) -> 0 | J74: =VLOOKUP($B74,VysledkyDoplneni!$C$7:$T$126,9,0) -> 0 | K74: =VLOOKUP($B74,VysledkyDoplneni!$C$7:$T$126,10,0) -> 0 | L74: =VLOOKUP($B74,VysledkyDoplneni!$C$7:$T$126,11,0) -> 0 | M74: =VLOOKUP($B74,VysledkyDoplneni!$C$7:$T$126,12,0) -> 0 | N74: =VLOOKUP($B74,VysledkyDoplneni!$C$7:$T$126,13,0) -> 0 | O74: =VLOOKUP($B74,VysledkyDoplneni!$C$7:$T$126,14,0) -> 0 | P74: =VLOOKUP($B74,VysledkyDoplneni!$C$7:$T$126,15,0) -> 0 | Q74: =VLOOKUP($B74,VysledkyDoplneni!$C$7:$T$126,16,0) -> 0 | R74: =VLOOKUP($B74,VysledkyDoplneni!$C$7:$T$126,17,0) -> 0 | S74: =VLOOKUP($B74,VysledkyDoplneni!$C$7:$T$126,18,0) -> 0 | V74: 0 | W74: =(V74/(Data!$B$18*X74)) ->  | X74: 0
A75: 68 | B75: =IF(Vstup!C66<>"",Vstup!C66,"") ->  | C75: S | D75: =VLOOKUP($B75,VysledkyDoplneni!$C$7:$T$126,3,0) -> 0 | E75: =VLOOKUP($B75,VysledkyDoplneni!$C$7:$T$126,4,0) -> 0 | F75: =VLOOKUP($B75,VysledkyDoplneni!$C$7:$T$126,5,0) -> 0 | G75: =VLOOKUP($B75,VysledkyDoplneni!$C$7:$T$126,6,0) -> 0 | H75: =VLOOKUP($B75,VysledkyDoplneni!$C$7:$T$126,7,0) -> 0 | I75: =VLOOKUP($B75,VysledkyDoplneni!$C$7:$T$126,8,0) -> 0 | J75: =VLOOKUP($B75,VysledkyDoplneni!$C$7:$T$126,9,0) -> 0 | K75: =VLOOKUP($B75,VysledkyDoplneni!$C$7:$T$126,10,0) -> 0 | L75: =VLOOKUP($B75,VysledkyDoplneni!$C$7:$T$126,11,0) -> 0 | M75: =VLOOKUP($B75,VysledkyDoplneni!$C$7:$T$126,12,0) -> 0 | N75: =VLOOKUP($B75,VysledkyDoplneni!$C$7:$T$126,13,0) -> 0 | O75: =VLOOKUP($B75,VysledkyDoplneni!$C$7:$T$126,14,0) -> 0 | P75: =VLOOKUP($B75,VysledkyDoplneni!$C$7:$T$126,15,0) -> 0 | Q75: =VLOOKUP($B75,VysledkyDoplneni!$C$7:$T$126,16,0) -> 0 | R75: =VLOOKUP($B75,VysledkyDoplneni!$C$7:$T$126,17,0) -> 0 | S75: =VLOOKUP($B75,VysledkyDoplneni!$C$7:$T$126,18,0) -> 0 | V75: 0 | W75: =(V75/(Data!$B$18*X75)) ->  | X75: 0
A76: 69 | B76: =IF(Vstup!C75<>"",Vstup!C75,"") ->  | C76: S | D76: =VLOOKUP($B76,VysledkyDoplneni!$C$7:$T$126,3,0) -> 0 | E76: =VLOOKUP($B76,VysledkyDoplneni!$C$7:$T$126,4,0) -> 0 | F76: =VLOOKUP($B76,VysledkyDoplneni!$C$7:$T$126,5,0) -> 0 | G76: =VLOOKUP($B76,VysledkyDoplneni!$C$7:$T$126,6,0) -> 0 | H76: =VLOOKUP($B76,VysledkyDoplneni!$C$7:$T$126,7,0) -> 0 | I76: =VLOOKUP($B76,VysledkyDoplneni!$C$7:$T$126,8,0) -> 0 | J76: =VLOOKUP($B76,VysledkyDoplneni!$C$7:$T$126,9,0) -> 0 | K76: =VLOOKUP($B76,VysledkyDoplneni!$C$7:$T$126,10,0) -> 0 | L76: =VLOOKUP($B76,VysledkyDoplneni!$C$7:$T$126,11,0) -> 0 | M76: =VLOOKUP($B76,VysledkyDoplneni!$C$7:$T$126,12,0) -> 0 | N76: =VLOOKUP($B76,VysledkyDoplneni!$C$7:$T$126,13,0) -> 0 | O76: =VLOOKUP($B76,VysledkyDoplneni!$C$7:$T$126,14,0) -> 0 | P76: =VLOOKUP($B76,VysledkyDoplneni!$C$7:$T$126,15,0) -> 0 | Q76: =VLOOKUP($B76,VysledkyDoplneni!$C$7:$T$126,16,0) -> 0 | R76: =VLOOKUP($B76,VysledkyDoplneni!$C$7:$T$126,17,0) -> 0 | S76: =VLOOKUP($B76,VysledkyDoplneni!$C$7:$T$126,18,0) -> 0 | V76: 0 | W76: =(V76/(Data!$B$18*X76)) ->  | X76: 0
A77: 70 | B77: =IF(Vstup!C85<>"",Vstup!C85,"") ->  | C77: S | D77: =VLOOKUP($B77,VysledkyDoplneni!$C$7:$T$126,3,0) -> 0 | E77: =VLOOKUP($B77,VysledkyDoplneni!$C$7:$T$126,4,0) -> 0 | F77: =VLOOKUP($B77,VysledkyDoplneni!$C$7:$T$126,5,0) -> 0 | G77: =VLOOKUP($B77,VysledkyDoplneni!$C$7:$T$126,6,0) -> 0 | H77: =VLOOKUP($B77,VysledkyDoplneni!$C$7:$T$126,7,0) -> 0 | I77: =VLOOKUP($B77,VysledkyDoplneni!$C$7:$T$126,8,0) -> 0 | J77: =VLOOKUP($B77,VysledkyDoplneni!$C$7:$T$126,9,0) -> 0 | K77: =VLOOKUP($B77,VysledkyDoplneni!$C$7:$T$126,10,0) -> 0 | L77: =VLOOKUP($B77,VysledkyDoplneni!$C$7:$T$126,11,0) -> 0 | M77: =VLOOKUP($B77,VysledkyDoplneni!$C$7:$T$126,12,0) -> 0 | N77: =VLOOKUP($B77,VysledkyDoplneni!$C$7:$T$126,13,0) -> 0 | O77: =VLOOKUP($B77,VysledkyDoplneni!$C$7:$T$126,14,0) -> 0 | P77: =VLOOKUP($B77,VysledkyDoplneni!$C$7:$T$126,15,0) -> 0 | Q77: =VLOOKUP($B77,VysledkyDoplneni!$C$7:$T$126,16,0) -> 0 | R77: =VLOOKUP($B77,VysledkyDoplneni!$C$7:$T$126,17,0) -> 0 | S77: =VLOOKUP($B77,VysledkyDoplneni!$C$7:$T$126,18,0) -> 0 | V77: 0 | W77: =(V77/(Data!$B$18*X77)) ->  | X77: 0
A78: 71 | B78: =IF(Vstup!C97<>"",Vstup!C97,"") ->  | C78: S | D78: =VLOOKUP($B78,VysledkyDoplneni!$C$7:$T$126,3,0) -> 0 | E78: =VLOOKUP($B78,VysledkyDoplneni!$C$7:$T$126,4,0) -> 0 | F78: =VLOOKUP($B78,VysledkyDoplneni!$C$7:$T$126,5,0) -> 0 | G78: =VLOOKUP($B78,VysledkyDoplneni!$C$7:$T$126,6,0) -> 0 | H78: =VLOOKUP($B78,VysledkyDoplneni!$C$7:$T$126,7,0) -> 0 | I78: =VLOOKUP($B78,VysledkyDoplneni!$C$7:$T$126,8,0) -> 0 | J78: =VLOOKUP($B78,VysledkyDoplneni!$C$7:$T$126,9,0) -> 0 | K78: =VLOOKUP($B78,VysledkyDoplneni!$C$7:$T$126,10,0) -> 0 | L78: =VLOOKUP($B78,VysledkyDoplneni!$C$7:$T$126,11,0) -> 0 | M78: =VLOOKUP($B78,VysledkyDoplneni!$C$7:$T$126,12,0) -> 0 | N78: =VLOOKUP($B78,VysledkyDoplneni!$C$7:$T$126,13,0) -> 0 | O78: =VLOOKUP($B78,VysledkyDoplneni!$C$7:$T$126,14,0) -> 0 | P78: =VLOOKUP($B78,VysledkyDoplneni!$C$7:$T$126,15,0) -> 0 | Q78: =VLOOKUP($B78,VysledkyDoplneni!$C$7:$T$126,16,0) -> 0 | R78: =VLOOKUP($B78,VysledkyDoplneni!$C$7:$T$126,17,0) -> 0 | S78: =VLOOKUP($B78,VysledkyDoplneni!$C$7:$T$126,18,0) -> 0 | V78: 0 | W78: =(V78/(Data!$B$18*X78)) ->  | X78: 0
A79: 72 | B79: =IF(Vstup!C101<>"",Vstup!C101,"") ->  | C79: S | D79: =VLOOKUP($B79,VysledkyDoplneni!$C$7:$T$126,3,0) -> 0 | E79: =VLOOKUP($B79,VysledkyDoplneni!$C$7:$T$126,4,0) -> 0 | F79: =VLOOKUP($B79,VysledkyDoplneni!$C$7:$T$126,5,0) -> 0 | G79: =VLOOKUP($B79,VysledkyDoplneni!$C$7:$T$126,6,0) -> 0 | H79: =VLOOKUP($B79,VysledkyDoplneni!$C$7:$T$126,7,0) -> 0 | I79: =VLOOKUP($B79,VysledkyDoplneni!$C$7:$T$126,8,0) -> 0 | J79: =VLOOKUP($B79,VysledkyDoplneni!$C$7:$T$126,9,0) -> 0 | K79: =VLOOKUP($B79,VysledkyDoplneni!$C$7:$T$126,10,0) -> 0 | L79: =VLOOKUP($B79,VysledkyDoplneni!$C$7:$T$126,11,0) -> 0 | M79: =VLOOKUP($B79,VysledkyDoplneni!$C$7:$T$126,12,0) -> 0 | N79: =VLOOKUP($B79,VysledkyDoplneni!$C$7:$T$126,13,0) -> 0 | O79: =VLOOKUP($B79,VysledkyDoplneni!$C$7:$T$126,14,0) -> 0 | P79: =VLOOKUP($B79,VysledkyDoplneni!$C$7:$T$126,15,0) -> 0 | Q79: =VLOOKUP($B79,VysledkyDoplneni!$C$7:$T$126,16,0) -> 0 | R79: =VLOOKUP($B79,VysledkyDoplneni!$C$7:$T$126,17,0) -> 0 | S79: =VLOOKUP($B79,VysledkyDoplneni!$C$7:$T$126,18,0) -> 0 | V79: 0 | W79: =(V79/(Data!$B$18*X79)) ->  | X79: 0
A80: 73 | B80: =IF(Vstup!C74<>"",Vstup!C74,"") ->  | C80: S | D80: =VLOOKUP($B80,VysledkyDoplneni!$C$7:$T$126,3,0) -> 0 | E80: =VLOOKUP($B80,VysledkyDoplneni!$C$7:$T$126,4,0) -> 0 | F80: =VLOOKUP($B80,VysledkyDoplneni!$C$7:$T$126,5,0) -> 0 | G80: =VLOOKUP($B80,VysledkyDoplneni!$C$7:$T$126,6,0) -> 0 | H80: =VLOOKUP($B80,VysledkyDoplneni!$C$7:$T$126,7,0) -> 0 | I80: =VLOOKUP($B80,VysledkyDoplneni!$C$7:$T$126,8,0) -> 0 | J80: =VLOOKUP($B80,VysledkyDoplneni!$C$7:$T$126,9,0) -> 0 | K80: =VLOOKUP($B80,VysledkyDoplneni!$C$7:$T$126,10,0) -> 0 | L80: =VLOOKUP($B80,VysledkyDoplneni!$C$7:$T$126,11,0) -> 0 | M80: =VLOOKUP($B80,VysledkyDoplneni!$C$7:$T$126,12,0) -> 0 | N80: =VLOOKUP($B80,VysledkyDoplneni!$C$7:$T$126,13,0) -> 0 | O80: =VLOOKUP($B80,VysledkyDoplneni!$C$7:$T$126,14,0) -> 0 | P80: =VLOOKUP($B80,VysledkyDoplneni!$C$7:$T$126,15,0) -> 0 | Q80: =VLOOKUP($B80,VysledkyDoplneni!$C$7:$T$126,16,0) -> 0 | R80: =VLOOKUP($B80,VysledkyDoplneni!$C$7:$T$126,17,0) -> 0 | S80: =VLOOKUP($B80,VysledkyDoplneni!$C$7:$T$126,18,0) -> 0 | V80: 0 | W80: =(V80/(Data!$B$18*X80)) ->  | X80: 0
A81: 74 | B81: =IF(Vstup!C89<>"",Vstup!C89,"") ->  | C81: S | D81: =VLOOKUP($B81,VysledkyDoplneni!$C$7:$T$126,3,0) -> 0 | E81: =VLOOKUP($B81,VysledkyDoplneni!$C$7:$T$126,4,0) -> 0 | F81: =VLOOKUP($B81,VysledkyDoplneni!$C$7:$T$126,5,0) -> 0 | G81: =VLOOKUP($B81,VysledkyDoplneni!$C$7:$T$126,6,0) -> 0 | H81: =VLOOKUP($B81,VysledkyDoplneni!$C$7:$T$126,7,0) -> 0 | I81: =VLOOKUP($B81,VysledkyDoplneni!$C$7:$T$126,8,0) -> 0 | J81: =VLOOKUP($B81,VysledkyDoplneni!$C$7:$T$126,9,0) -> 0 | K81: =VLOOKUP($B81,VysledkyDoplneni!$C$7:$T$126,10,0) -> 0 | L81: =VLOOKUP($B81,VysledkyDoplneni!$C$7:$T$126,11,0) -> 0 | M81: =VLOOKUP($B81,VysledkyDoplneni!$C$7:$T$126,12,0) -> 0 | N81: =VLOOKUP($B81,VysledkyDoplneni!$C$7:$T$126,13,0) -> 0 | O81: =VLOOKUP($B81,VysledkyDoplneni!$C$7:$T$126,14,0) -> 0 | P81: =VLOOKUP($B81,VysledkyDoplneni!$C$7:$T$126,15,0) -> 0 | Q81: =VLOOKUP($B81,VysledkyDoplneni!$C$7:$T$126,16,0) -> 0 | R81: =VLOOKUP($B81,VysledkyDoplneni!$C$7:$T$126,17,0) -> 0 | S81: =VLOOKUP($B81,VysledkyDoplneni!$C$7:$T$126,18,0) -> 0 | V81: 0 | W81: =(V81/(Data!$B$18*X81)) ->  | X81: 0
A82: 75 | B82: =IF(Vstup!C90<>"",Vstup!C90,"") ->  | C82: S | D82: =VLOOKUP($B82,VysledkyDoplneni!$C$7:$T$126,3,0) -> 0 | E82: =VLOOKUP($B82,VysledkyDoplneni!$C$7:$T$126,4,0) -> 0 | F82: =VLOOKUP($B82,VysledkyDoplneni!$C$7:$T$126,5,0) -> 0 | G82: =VLOOKUP($B82,VysledkyDoplneni!$C$7:$T$126,6,0) -> 0 | H82: =VLOOKUP($B82,VysledkyDoplneni!$C$7:$T$126,7,0) -> 0 | I82: =VLOOKUP($B82,VysledkyDoplneni!$C$7:$T$126,8,0) -> 0 | J82: =VLOOKUP($B82,VysledkyDoplneni!$C$7:$T$126,9,0) -> 0 | K82: =VLOOKUP($B82,VysledkyDoplneni!$C$7:$T$126,10,0) -> 0 | L82: =VLOOKUP($B82,VysledkyDoplneni!$C$7:$T$126,11,0) -> 0 | M82: =VLOOKUP($B82,VysledkyDoplneni!$C$7:$T$126,12,0) -> 0 | N82: =VLOOKUP($B82,VysledkyDoplneni!$C$7:$T$126,13,0) -> 0 | O82: =VLOOKUP($B82,VysledkyDoplneni!$C$7:$T$126,14,0) -> 0 | P82: =VLOOKUP($B82,VysledkyDoplneni!$C$7:$T$126,15,0) -> 0 | Q82: =VLOOKUP($B82,VysledkyDoplneni!$C$7:$T$126,16,0) -> 0 | R82: =VLOOKUP($B82,VysledkyDoplneni!$C$7:$T$126,17,0) -> 0 | S82: =VLOOKUP($B82,VysledkyDoplneni!$C$7:$T$126,18,0) -> 0 | V82: 0 | W82: =(V82/(Data!$B$18*X82)) ->  | X82: 0
A83: 76 | B83: =IF(Vstup!C94<>"",Vstup!C94,"") ->  | C83: S | D83: =VLOOKUP($B83,VysledkyDoplneni!$C$7:$T$126,3,0) -> 0 | E83: =VLOOKUP($B83,VysledkyDoplneni!$C$7:$T$126,4,0) -> 0 | F83: =VLOOKUP($B83,VysledkyDoplneni!$C$7:$T$126,5,0) -> 0 | G83: =VLOOKUP($B83,VysledkyDoplneni!$C$7:$T$126,6,0) -> 0 | H83: =VLOOKUP($B83,VysledkyDoplneni!$C$7:$T$126,7,0) -> 0 | I83: =VLOOKUP($B83,VysledkyDoplneni!$C$7:$T$126,8,0) -> 0 | J83: =VLOOKUP($B83,VysledkyDoplneni!$C$7:$T$126,9,0) -> 0 | K83: =VLOOKUP($B83,VysledkyDoplneni!$C$7:$T$126,10,0) -> 0 | L83: =VLOOKUP($B83,VysledkyDoplneni!$C$7:$T$126,11,0) -> 0 | M83: =VLOOKUP($B83,VysledkyDoplneni!$C$7:$T$126,12,0) -> 0 | N83: =VLOOKUP($B83,VysledkyDoplneni!$C$7:$T$126,13,0) -> 0 | O83: =VLOOKUP($B83,VysledkyDoplneni!$C$7:$T$126,14,0) -> 0 | P83: =VLOOKUP($B83,VysledkyDoplneni!$C$7:$T$126,15,0) -> 0 | Q83: =VLOOKUP($B83,VysledkyDoplneni!$C$7:$T$126,16,0) -> 0 | R83: =VLOOKUP($B83,VysledkyDoplneni!$C$7:$T$126,17,0) -> 0 | S83: =VLOOKUP($B83,VysledkyDoplneni!$C$7:$T$126,18,0) -> 0 | V83: 0 | W83: =(V83/(Data!$B$18*X83)) ->  | X83: 0
A84: 77 | B84: =IF(Vstup!C83<>"",Vstup!C83,"") ->  | C84: S | D84: =VLOOKUP($B84,VysledkyDoplneni!$C$7:$T$126,3,0) -> 0 | E84: =VLOOKUP($B84,VysledkyDoplneni!$C$7:$T$126,4,0) -> 0 | F84: =VLOOKUP($B84,VysledkyDoplneni!$C$7:$T$126,5,0) -> 0 | G84: =VLOOKUP($B84,VysledkyDoplneni!$C$7:$T$126,6,0) -> 0 | H84: =VLOOKUP($B84,VysledkyDoplneni!$C$7:$T$126,7,0) -> 0 | I84: =VLOOKUP($B84,VysledkyDoplneni!$C$7:$T$126,8,0) -> 0 | J84: =VLOOKUP($B84,VysledkyDoplneni!$C$7:$T$126,9,0) -> 0 | K84: =VLOOKUP($B84,VysledkyDoplneni!$C$7:$T$126,10,0) -> 0 | L84: =VLOOKUP($B84,VysledkyDoplneni!$C$7:$T$126,11,0) -> 0 | M84: =VLOOKUP($B84,VysledkyDoplneni!$C$7:$T$126,12,0) -> 0 | N84: =VLOOKUP($B84,VysledkyDoplneni!$C$7:$T$126,13,0) -> 0 | O84: =VLOOKUP($B84,VysledkyDoplneni!$C$7:$T$126,14,0) -> 0 | P84: =VLOOKUP($B84,VysledkyDoplneni!$C$7:$T$126,15,0) -> 0 | Q84: =VLOOKUP($B84,VysledkyDoplneni!$C$7:$T$126,16,0) -> 0 | R84: =VLOOKUP($B84,VysledkyDoplneni!$C$7:$T$126,17,0) -> 0 | S84: =VLOOKUP($B84,VysledkyDoplneni!$C$7:$T$126,18,0) -> 0 | V84: 0 | W84: =(V84/(Data!$B$18*X84)) ->  | X84: 0
A85: 78 | B85: =IF(Vstup!C77<>"",Vstup!C77,"") ->  | C85: S | D85: =VLOOKUP($B85,VysledkyDoplneni!$C$7:$T$126,3,0) -> 0 | E85: =VLOOKUP($B85,VysledkyDoplneni!$C$7:$T$126,4,0) -> 0 | F85: =VLOOKUP($B85,VysledkyDoplneni!$C$7:$T$126,5,0) -> 0 | G85: =VLOOKUP($B85,VysledkyDoplneni!$C$7:$T$126,6,0) -> 0 | H85: =VLOOKUP($B85,VysledkyDoplneni!$C$7:$T$126,7,0) -> 0 | I85: =VLOOKUP($B85,VysledkyDoplneni!$C$7:$T$126,8,0) -> 0 | J85: =VLOOKUP($B85,VysledkyDoplneni!$C$7:$T$126,9,0) -> 0 | K85: =VLOOKUP($B85,VysledkyDoplneni!$C$7:$T$126,10,0) -> 0 | L85: =VLOOKUP($B85,VysledkyDoplneni!$C$7:$T$126,11,0) -> 0 | M85: =VLOOKUP($B85,VysledkyDoplneni!$C$7:$T$126,12,0) -> 0 | N85: =VLOOKUP($B85,VysledkyDoplneni!$C$7:$T$126,13,0) -> 0 | O85: =VLOOKUP($B85,VysledkyDoplneni!$C$7:$T$126,14,0) -> 0 | P85: =VLOOKUP($B85,VysledkyDoplneni!$C$7:$T$126,15,0) -> 0 | Q85: =VLOOKUP($B85,VysledkyDoplneni!$C$7:$T$126,16,0) -> 0 | R85: =VLOOKUP($B85,VysledkyDoplneni!$C$7:$T$126,17,0) -> 0 | S85: =VLOOKUP($B85,VysledkyDoplneni!$C$7:$T$126,18,0) -> 0 | V85: 0 | W85: =(V85/(Data!$B$18*X85)) ->  | X85: 0
A86: 79 | B86: =IF(Vstup!C86<>"",Vstup!C86,"") ->  | C86: S | D86: =VLOOKUP($B86,VysledkyDoplneni!$C$7:$T$126,3,0) -> 0 | E86: =VLOOKUP($B86,VysledkyDoplneni!$C$7:$T$126,4,0) -> 0 | F86: =VLOOKUP($B86,VysledkyDoplneni!$C$7:$T$126,5,0) -> 0 | G86: =VLOOKUP($B86,VysledkyDoplneni!$C$7:$T$126,6,0) -> 0 | H86: =VLOOKUP($B86,VysledkyDoplneni!$C$7:$T$126,7,0) -> 0 | I86: =VLOOKUP($B86,VysledkyDoplneni!$C$7:$T$126,8,0) -> 0 | J86: =VLOOKUP($B86,VysledkyDoplneni!$C$7:$T$126,9,0) -> 0 | K86: =VLOOKUP($B86,VysledkyDoplneni!$C$7:$T$126,10,0) -> 0 | L86: =VLOOKUP($B86,VysledkyDoplneni!$C$7:$T$126,11,0) -> 0 | M86: =VLOOKUP($B86,VysledkyDoplneni!$C$7:$T$126,12,0) -> 0 | N86: =VLOOKUP($B86,VysledkyDoplneni!$C$7:$T$126,13,0) -> 0 | O86: =VLOOKUP($B86,VysledkyDoplneni!$C$7:$T$126,14,0) -> 0 | P86: =VLOOKUP($B86,VysledkyDoplneni!$C$7:$T$126,15,0) -> 0 | Q86: =VLOOKUP($B86,VysledkyDoplneni!$C$7:$T$126,16,0) -> 0 | R86: =VLOOKUP($B86,VysledkyDoplneni!$C$7:$T$126,17,0) -> 0 | S86: =VLOOKUP($B86,VysledkyDoplneni!$C$7:$T$126,18,0) -> 0 | V86: 0 | W86: =(V86/(Data!$B$18*X86)) ->  | X86: 0
A87: 80 | B87: =IF(Vstup!C72<>"",Vstup!C72,"") ->  | C87: S | D87: =VLOOKUP($B87,VysledkyDoplneni!$C$7:$T$126,3,0) -> 0 | E87: =VLOOKUP($B87,VysledkyDoplneni!$C$7:$T$126,4,0) -> 0 | F87: =VLOOKUP($B87,VysledkyDoplneni!$C$7:$T$126,5,0) -> 0 | G87: =VLOOKUP($B87,VysledkyDoplneni!$C$7:$T$126,6,0) -> 0 | H87: =VLOOKUP($B87,VysledkyDoplneni!$C$7:$T$126,7,0) -> 0 | I87: =VLOOKUP($B87,VysledkyDoplneni!$C$7:$T$126,8,0) -> 0 | J87: =VLOOKUP($B87,VysledkyDoplneni!$C$7:$T$126,9,0) -> 0 | K87: =VLOOKUP($B87,VysledkyDoplneni!$C$7:$T$126,10,0) -> 0 | L87: =VLOOKUP($B87,VysledkyDoplneni!$C$7:$T$126,11,0) -> 0 | M87: =VLOOKUP($B87,VysledkyDoplneni!$C$7:$T$126,12,0) -> 0 | N87: =VLOOKUP($B87,VysledkyDoplneni!$C$7:$T$126,13,0) -> 0 | O87: =VLOOKUP($B87,VysledkyDoplneni!$C$7:$T$126,14,0) -> 0 | P87: =VLOOKUP($B87,VysledkyDoplneni!$C$7:$T$126,15,0) -> 0 | Q87: =VLOOKUP($B87,VysledkyDoplneni!$C$7:$T$126,16,0) -> 0 | R87: =VLOOKUP($B87,VysledkyDoplneni!$C$7:$T$126,17,0) -> 0 | S87: =VLOOKUP($B87,VysledkyDoplneni!$C$7:$T$126,18,0) -> 0 | V87: 0 | W87: =(V87/(Data!$B$18*X87)) ->  | X87: 0
A88: 81 | B88: =IF(Vstup!C87<>"",Vstup!C87,"") ->  | C88: S | D88: =VLOOKUP($B88,VysledkyDoplneni!$C$7:$T$126,3,0) -> 0 | E88: =VLOOKUP($B88,VysledkyDoplneni!$C$7:$T$126,4,0) -> 0 | F88: =VLOOKUP($B88,VysledkyDoplneni!$C$7:$T$126,5,0) -> 0 | G88: =VLOOKUP($B88,VysledkyDoplneni!$C$7:$T$126,6,0) -> 0 | H88: =VLOOKUP($B88,VysledkyDoplneni!$C$7:$T$126,7,0) -> 0 | I88: =VLOOKUP($B88,VysledkyDoplneni!$C$7:$T$126,8,0) -> 0 | J88: =VLOOKUP($B88,VysledkyDoplneni!$C$7:$T$126,9,0) -> 0 | K88: =VLOOKUP($B88,VysledkyDoplneni!$C$7:$T$126,10,0) -> 0 | L88: =VLOOKUP($B88,VysledkyDoplneni!$C$7:$T$126,11,0) -> 0 | M88: =VLOOKUP($B88,VysledkyDoplneni!$C$7:$T$126,12,0) -> 0 | N88: =VLOOKUP($B88,VysledkyDoplneni!$C$7:$T$126,13,0) -> 0 | O88: =VLOOKUP($B88,VysledkyDoplneni!$C$7:$T$126,14,0) -> 0 | P88: =VLOOKUP($B88,VysledkyDoplneni!$C$7:$T$126,15,0) -> 0 | Q88: =VLOOKUP($B88,VysledkyDoplneni!$C$7:$T$126,16,0) -> 0 | R88: =VLOOKUP($B88,VysledkyDoplneni!$C$7:$T$126,17,0) -> 0 | S88: =VLOOKUP($B88,VysledkyDoplneni!$C$7:$T$126,18,0) -> 0 | V88: 0 | W88: =(V88/(Data!$B$18*X88)) ->  | X88: 0
A89: 82 | B89: =IF(Vstup!C95<>"",Vstup!C95,"") ->  | C89: S | D89: =VLOOKUP($B89,VysledkyDoplneni!$C$7:$T$126,3,0) -> 0 | E89: =VLOOKUP($B89,VysledkyDoplneni!$C$7:$T$126,4,0) -> 0 | F89: =VLOOKUP($B89,VysledkyDoplneni!$C$7:$T$126,5,0) -> 0 | G89: =VLOOKUP($B89,VysledkyDoplneni!$C$7:$T$126,6,0) -> 0 | H89: =VLOOKUP($B89,VysledkyDoplneni!$C$7:$T$126,7,0) -> 0 | I89: =VLOOKUP($B89,VysledkyDoplneni!$C$7:$T$126,8,0) -> 0 | J89: =VLOOKUP($B89,VysledkyDoplneni!$C$7:$T$126,9,0) -> 0 | K89: =VLOOKUP($B89,VysledkyDoplneni!$C$7:$T$126,10,0) -> 0 | L89: =VLOOKUP($B89,VysledkyDoplneni!$C$7:$T$126,11,0) -> 0 | M89: =VLOOKUP($B89,VysledkyDoplneni!$C$7:$T$126,12,0) -> 0 | N89: =VLOOKUP($B89,VysledkyDoplneni!$C$7:$T$126,13,0) -> 0 | O89: =VLOOKUP($B89,VysledkyDoplneni!$C$7:$T$126,14,0) -> 0 | P89: =VLOOKUP($B89,VysledkyDoplneni!$C$7:$T$126,15,0) -> 0 | Q89: =VLOOKUP($B89,VysledkyDoplneni!$C$7:$T$126,16,0) -> 0 | R89: =VLOOKUP($B89,VysledkyDoplneni!$C$7:$T$126,17,0) -> 0 | S89: =VLOOKUP($B89,VysledkyDoplneni!$C$7:$T$126,18,0) -> 0 | V89: 0 | W89: =(V89/(Data!$B$18*X89)) ->  | X89: 0
A90: 83 | B90: =IF(Vstup!C80<>"",Vstup!C80,"") ->  | C90: S | D90: =VLOOKUP($B90,VysledkyDoplneni!$C$7:$T$126,3,0) -> 0 | E90: =VLOOKUP($B90,VysledkyDoplneni!$C$7:$T$126,4,0) -> 0 | F90: =VLOOKUP($B90,VysledkyDoplneni!$C$7:$T$126,5,0) -> 0 | G90: =VLOOKUP($B90,VysledkyDoplneni!$C$7:$T$126,6,0) -> 0 | H90: =VLOOKUP($B90,VysledkyDoplneni!$C$7:$T$126,7,0) -> 0 | I90: =VLOOKUP($B90,VysledkyDoplneni!$C$7:$T$126,8,0) -> 0 | J90: =VLOOKUP($B90,VysledkyDoplneni!$C$7:$T$126,9,0) -> 0 | K90: =VLOOKUP($B90,VysledkyDoplneni!$C$7:$T$126,10,0) -> 0 | L90: =VLOOKUP($B90,VysledkyDoplneni!$C$7:$T$126,11,0) -> 0 | M90: =VLOOKUP($B90,VysledkyDoplneni!$C$7:$T$126,12,0) -> 0 | N90: =VLOOKUP($B90,VysledkyDoplneni!$C$7:$T$126,13,0) -> 0 | O90: =VLOOKUP($B90,VysledkyDoplneni!$C$7:$T$126,14,0) -> 0 | P90: =VLOOKUP($B90,VysledkyDoplneni!$C$7:$T$126,15,0) -> 0 | Q90: =VLOOKUP($B90,VysledkyDoplneni!$C$7:$T$126,16,0) -> 0 | R90: =VLOOKUP($B90,VysledkyDoplneni!$C$7:$T$126,17,0) -> 0 | S90: =VLOOKUP($B90,VysledkyDoplneni!$C$7:$T$126,18,0) -> 0 | V90: 0 | W90: =(V90/(Data!$B$18*X90)) ->  | X90: 0
A91: 84 | B91: =IF(Vstup!C73<>"",Vstup!C73,"") ->  | C91: S | D91: =VLOOKUP($B91,VysledkyDoplneni!$C$7:$T$126,3,0) -> 0 | E91: =VLOOKUP($B91,VysledkyDoplneni!$C$7:$T$126,4,0) -> 0 | F91: =VLOOKUP($B91,VysledkyDoplneni!$C$7:$T$126,5,0) -> 0 | G91: =VLOOKUP($B91,VysledkyDoplneni!$C$7:$T$126,6,0) -> 0 | H91: =VLOOKUP($B91,VysledkyDoplneni!$C$7:$T$126,7,0) -> 0 | I91: =VLOOKUP($B91,VysledkyDoplneni!$C$7:$T$126,8,0) -> 0 | J91: =VLOOKUP($B91,VysledkyDoplneni!$C$7:$T$126,9,0) -> 0 | K91: =VLOOKUP($B91,VysledkyDoplneni!$C$7:$T$126,10,0) -> 0 | L91: =VLOOKUP($B91,VysledkyDoplneni!$C$7:$T$126,11,0) -> 0 | M91: =VLOOKUP($B91,VysledkyDoplneni!$C$7:$T$126,12,0) -> 0 | N91: =VLOOKUP($B91,VysledkyDoplneni!$C$7:$T$126,13,0) -> 0 | O91: =VLOOKUP($B91,VysledkyDoplneni!$C$7:$T$126,14,0) -> 0 | P91: =VLOOKUP($B91,VysledkyDoplneni!$C$7:$T$126,15,0) -> 0 | Q91: =VLOOKUP($B91,VysledkyDoplneni!$C$7:$T$126,16,0) -> 0 | R91: =VLOOKUP($B91,VysledkyDoplneni!$C$7:$T$126,17,0) -> 0 | S91: =VLOOKUP($B91,VysledkyDoplneni!$C$7:$T$126,18,0) -> 0 | V91: 0 | W91: =(V91/(Data!$B$18*X91)) ->  | X91: 0
A92: 85 | B92: =IF(Vstup!C79<>"",Vstup!C79,"") ->  | C92: S | D92: =VLOOKUP($B92,VysledkyDoplneni!$C$7:$T$126,3,0) -> 0 | E92: =VLOOKUP($B92,VysledkyDoplneni!$C$7:$T$126,4,0) -> 0 | F92: =VLOOKUP($B92,VysledkyDoplneni!$C$7:$T$126,5,0) -> 0 | G92: =VLOOKUP($B92,VysledkyDoplneni!$C$7:$T$126,6,0) -> 0 | H92: =VLOOKUP($B92,VysledkyDoplneni!$C$7:$T$126,7,0) -> 0 | I92: =VLOOKUP($B92,VysledkyDoplneni!$C$7:$T$126,8,0) -> 0 | J92: =VLOOKUP($B92,VysledkyDoplneni!$C$7:$T$126,9,0) -> 0 | K92: =VLOOKUP($B92,VysledkyDoplneni!$C$7:$T$126,10,0) -> 0 | L92: =VLOOKUP($B92,VysledkyDoplneni!$C$7:$T$126,11,0) -> 0 | M92: =VLOOKUP($B92,VysledkyDoplneni!$C$7:$T$126,12,0) -> 0 | N92: =VLOOKUP($B92,VysledkyDoplneni!$C$7:$T$126,13,0) -> 0 | O92: =VLOOKUP($B92,VysledkyDoplneni!$C$7:$T$126,14,0) -> 0 | P92: =VLOOKUP($B92,VysledkyDoplneni!$C$7:$T$126,15,0) -> 0 | Q92: =VLOOKUP($B92,VysledkyDoplneni!$C$7:$T$126,16,0) -> 0 | R92: =VLOOKUP($B92,VysledkyDoplneni!$C$7:$T$126,17,0) -> 0 | S92: =VLOOKUP($B92,VysledkyDoplneni!$C$7:$T$126,18,0) -> 0 | V92: 0 | W92: =(V92/(Data!$B$18*X92)) ->  | X92: 0
A93: 86 | B93: =IF(Vstup!C88<>"",Vstup!C88,"") ->  | C93: S | D93: =VLOOKUP($B93,VysledkyDoplneni!$C$7:$T$126,3,0) -> 0 | E93: =VLOOKUP($B93,VysledkyDoplneni!$C$7:$T$126,4,0) -> 0 | F93: =VLOOKUP($B93,VysledkyDoplneni!$C$7:$T$126,5,0) -> 0 | G93: =VLOOKUP($B93,VysledkyDoplneni!$C$7:$T$126,6,0) -> 0 | H93: =VLOOKUP($B93,VysledkyDoplneni!$C$7:$T$126,7,0) -> 0 | I93: =VLOOKUP($B93,VysledkyDoplneni!$C$7:$T$126,8,0) -> 0 | J93: =VLOOKUP($B93,VysledkyDoplneni!$C$7:$T$126,9,0) -> 0 | K93: =VLOOKUP($B93,VysledkyDoplneni!$C$7:$T$126,10,0) -> 0 | L93: =VLOOKUP($B93,VysledkyDoplneni!$C$7:$T$126,11,0) -> 0 | M93: =VLOOKUP($B93,VysledkyDoplneni!$C$7:$T$126,12,0) -> 0 | N93: =VLOOKUP($B93,VysledkyDoplneni!$C$7:$T$126,13,0) -> 0 | O93: =VLOOKUP($B93,VysledkyDoplneni!$C$7:$T$126,14,0) -> 0 | P93: =VLOOKUP($B93,VysledkyDoplneni!$C$7:$T$126,15,0) -> 0 | Q93: =VLOOKUP($B93,VysledkyDoplneni!$C$7:$T$126,16,0) -> 0 | R93: =VLOOKUP($B93,VysledkyDoplneni!$C$7:$T$126,17,0) -> 0 | S93: =VLOOKUP($B93,VysledkyDoplneni!$C$7:$T$126,18,0) -> 0 | V93: 0 | W93: =(V93/(Data!$B$18*X93)) ->  | X93: 0
A94: 87 | B94: =IF(Vstup!C93<>"",Vstup!C93,"") ->  | C94: S | D94: =VLOOKUP($B94,VysledkyDoplneni!$C$7:$T$126,3,0) -> 0 | E94: =VLOOKUP($B94,VysledkyDoplneni!$C$7:$T$126,4,0) -> 0 | F94: =VLOOKUP($B94,VysledkyDoplneni!$C$7:$T$126,5,0) -> 0 | G94: =VLOOKUP($B94,VysledkyDoplneni!$C$7:$T$126,6,0) -> 0 | H94: =VLOOKUP($B94,VysledkyDoplneni!$C$7:$T$126,7,0) -> 0 | I94: =VLOOKUP($B94,VysledkyDoplneni!$C$7:$T$126,8,0) -> 0 | J94: =VLOOKUP($B94,VysledkyDoplneni!$C$7:$T$126,9,0) -> 0 | K94: =VLOOKUP($B94,VysledkyDoplneni!$C$7:$T$126,10,0) -> 0 | L94: =VLOOKUP($B94,VysledkyDoplneni!$C$7:$T$126,11,0) -> 0 | M94: =VLOOKUP($B94,VysledkyDoplneni!$C$7:$T$126,12,0) -> 0 | N94: =VLOOKUP($B94,VysledkyDoplneni!$C$7:$T$126,13,0) -> 0 | O94: =VLOOKUP($B94,VysledkyDoplneni!$C$7:$T$126,14,0) -> 0 | P94: =VLOOKUP($B94,VysledkyDoplneni!$C$7:$T$126,15,0) -> 0 | Q94: =VLOOKUP($B94,VysledkyDoplneni!$C$7:$T$126,16,0) -> 0 | R94: =VLOOKUP($B94,VysledkyDoplneni!$C$7:$T$126,17,0) -> 0 | S94: =VLOOKUP($B94,VysledkyDoplneni!$C$7:$T$126,18,0) -> 0 | V94: 0 | W94: =(V94/(Data!$B$18*X94)) ->  | X94: 0
A95: 88 | B95: =IF(Vstup!C100<>"",Vstup!C100,"") ->  | C95: S | D95: =VLOOKUP($B95,VysledkyDoplneni!$C$7:$T$126,3,0) -> 0 | E95: =VLOOKUP($B95,VysledkyDoplneni!$C$7:$T$126,4,0) -> 0 | F95: =VLOOKUP($B95,VysledkyDoplneni!$C$7:$T$126,5,0) -> 0 | G95: =VLOOKUP($B95,VysledkyDoplneni!$C$7:$T$126,6,0) -> 0 | H95: =VLOOKUP($B95,VysledkyDoplneni!$C$7:$T$126,7,0) -> 0 | I95: =VLOOKUP($B95,VysledkyDoplneni!$C$7:$T$126,8,0) -> 0 | J95: =VLOOKUP($B95,VysledkyDoplneni!$C$7:$T$126,9,0) -> 0 | K95: =VLOOKUP($B95,VysledkyDoplneni!$C$7:$T$126,10,0) -> 0 | L95: =VLOOKUP($B95,VysledkyDoplneni!$C$7:$T$126,11,0) -> 0 | M95: =VLOOKUP($B95,VysledkyDoplneni!$C$7:$T$126,12,0) -> 0 | N95: =VLOOKUP($B95,VysledkyDoplneni!$C$7:$T$126,13,0) -> 0 | O95: =VLOOKUP($B95,VysledkyDoplneni!$C$7:$T$126,14,0) -> 0 | P95: =VLOOKUP($B95,VysledkyDoplneni!$C$7:$T$126,15,0) -> 0 | Q95: =VLOOKUP($B95,VysledkyDoplneni!$C$7:$T$126,16,0) -> 0 | R95: =VLOOKUP($B95,VysledkyDoplneni!$C$7:$T$126,17,0) -> 0 | S95: =VLOOKUP($B95,VysledkyDoplneni!$C$7:$T$126,18,0) -> 0 | V95: 0 | W95: =(V95/(Data!$B$18*X95)) ->  | X95: 0
A96: 89 | B96: =IF(Vstup!C92<>"",Vstup!C92,"") ->  | C96: S | D96: =VLOOKUP($B96,VysledkyDoplneni!$C$7:$T$126,3,0) -> 0 | E96: =VLOOKUP($B96,VysledkyDoplneni!$C$7:$T$126,4,0) -> 0 | F96: =VLOOKUP($B96,VysledkyDoplneni!$C$7:$T$126,5,0) -> 0 | G96: =VLOOKUP($B96,VysledkyDoplneni!$C$7:$T$126,6,0) -> 0 | H96: =VLOOKUP($B96,VysledkyDoplneni!$C$7:$T$126,7,0) -> 0 | I96: =VLOOKUP($B96,VysledkyDoplneni!$C$7:$T$126,8,0) -> 0 | J96: =VLOOKUP($B96,VysledkyDoplneni!$C$7:$T$126,9,0) -> 0 | K96: =VLOOKUP($B96,VysledkyDoplneni!$C$7:$T$126,10,0) -> 0 | L96: =VLOOKUP($B96,VysledkyDoplneni!$C$7:$T$126,11,0) -> 0 | M96: =VLOOKUP($B96,VysledkyDoplneni!$C$7:$T$126,12,0) -> 0 | N96: =VLOOKUP($B96,VysledkyDoplneni!$C$7:$T$126,13,0) -> 0 | O96: =VLOOKUP($B96,VysledkyDoplneni!$C$7:$T$126,14,0) -> 0 | P96: =VLOOKUP($B96,VysledkyDoplneni!$C$7:$T$126,15,0) -> 0 | Q96: =VLOOKUP($B96,VysledkyDoplneni!$C$7:$T$126,16,0) -> 0 | R96: =VLOOKUP($B96,VysledkyDoplneni!$C$7:$T$126,17,0) -> 0 | S96: =VLOOKUP($B96,VysledkyDoplneni!$C$7:$T$126,18,0) -> 0 | V96: 0 | W96: =(V96/(Data!$B$18*X96)) ->  | X96: 0
A97: 90 | B97: =IF(Vstup!C91<>"",Vstup!C91,"") ->  | C97: S | D97: =VLOOKUP($B97,VysledkyDoplneni!$C$7:$T$126,3,0) -> 0 | E97: =VLOOKUP($B97,VysledkyDoplneni!$C$7:$T$126,4,0) -> 0 | F97: =VLOOKUP($B97,VysledkyDoplneni!$C$7:$T$126,5,0) -> 0 | G97: =VLOOKUP($B97,VysledkyDoplneni!$C$7:$T$126,6,0) -> 0 | H97: =VLOOKUP($B97,VysledkyDoplneni!$C$7:$T$126,7,0) -> 0 | I97: =VLOOKUP($B97,VysledkyDoplneni!$C$7:$T$126,8,0) -> 0 | J97: =VLOOKUP($B97,VysledkyDoplneni!$C$7:$T$126,9,0) -> 0 | K97: =VLOOKUP($B97,VysledkyDoplneni!$C$7:$T$126,10,0) -> 0 | L97: =VLOOKUP($B97,VysledkyDoplneni!$C$7:$T$126,11,0) -> 0 | M97: =VLOOKUP($B97,VysledkyDoplneni!$C$7:$T$126,12,0) -> 0 | N97: =VLOOKUP($B97,VysledkyDoplneni!$C$7:$T$126,13,0) -> 0 | O97: =VLOOKUP($B97,VysledkyDoplneni!$C$7:$T$126,14,0) -> 0 | P97: =VLOOKUP($B97,VysledkyDoplneni!$C$7:$T$126,15,0) -> 0 | Q97: =VLOOKUP($B97,VysledkyDoplneni!$C$7:$T$126,16,0) -> 0 | R97: =VLOOKUP($B97,VysledkyDoplneni!$C$7:$T$126,17,0) -> 0 | S97: =VLOOKUP($B97,VysledkyDoplneni!$C$7:$T$126,18,0) -> 0 | V97: 0 | W97: =(V97/(Data!$B$18*X97)) ->  | X97: 0
A98: 91 | B98: =IF(Vstup!C102<>"",Vstup!C102,"") ->  | C98: S | D98: =VLOOKUP($B98,VysledkyDoplneni!$C$7:$T$126,3,0) -> 0 | E98: =VLOOKUP($B98,VysledkyDoplneni!$C$7:$T$126,4,0) -> 0 | F98: =VLOOKUP($B98,VysledkyDoplneni!$C$7:$T$126,5,0) -> 0 | G98: =VLOOKUP($B98,VysledkyDoplneni!$C$7:$T$126,6,0) -> 0 | H98: =VLOOKUP($B98,VysledkyDoplneni!$C$7:$T$126,7,0) -> 0 | I98: =VLOOKUP($B98,VysledkyDoplneni!$C$7:$T$126,8,0) -> 0 | J98: =VLOOKUP($B98,VysledkyDoplneni!$C$7:$T$126,9,0) -> 0 | K98: =VLOOKUP($B98,VysledkyDoplneni!$C$7:$T$126,10,0) -> 0 | L98: =VLOOKUP($B98,VysledkyDoplneni!$C$7:$T$126,11,0) -> 0 | M98: =VLOOKUP($B98,VysledkyDoplneni!$C$7:$T$126,12,0) -> 0 | N98: =VLOOKUP($B98,VysledkyDoplneni!$C$7:$T$126,13,0) -> 0 | O98: =VLOOKUP($B98,VysledkyDoplneni!$C$7:$T$126,14,0) -> 0 | P98: =VLOOKUP($B98,VysledkyDoplneni!$C$7:$T$126,15,0) -> 0 | Q98: =VLOOKUP($B98,VysledkyDoplneni!$C$7:$T$126,16,0) -> 0 | R98: =VLOOKUP($B98,VysledkyDoplneni!$C$7:$T$126,17,0) -> 0 | S98: =VLOOKUP($B98,VysledkyDoplneni!$C$7:$T$126,18,0) -> 0 | V98: 0 | W98: =(V98/(Data!$B$18*X98)) ->  | X98: 0
A99: 92 | B99: =IF(Vstup!C65<>"",Vstup!C65,"") ->  | C99: S | D99: =VLOOKUP($B99,VysledkyDoplneni!$C$7:$T$126,3,0) -> 0 | E99: =VLOOKUP($B99,VysledkyDoplneni!$C$7:$T$126,4,0) -> 0 | F99: =VLOOKUP($B99,VysledkyDoplneni!$C$7:$T$126,5,0) -> 0 | G99: =VLOOKUP($B99,VysledkyDoplneni!$C$7:$T$126,6,0) -> 0 | H99: =VLOOKUP($B99,VysledkyDoplneni!$C$7:$T$126,7,0) -> 0 | I99: =VLOOKUP($B99,VysledkyDoplneni!$C$7:$T$126,8,0) -> 0 | J99: =VLOOKUP($B99,VysledkyDoplneni!$C$7:$T$126,9,0) -> 0 | K99: =VLOOKUP($B99,VysledkyDoplneni!$C$7:$T$126,10,0) -> 0 | L99: =VLOOKUP($B99,VysledkyDoplneni!$C$7:$T$126,11,0) -> 0 | M99: =VLOOKUP($B99,VysledkyDoplneni!$C$7:$T$126,12,0) -> 0 | N99: =VLOOKUP($B99,VysledkyDoplneni!$C$7:$T$126,13,0) -> 0 | O99: =VLOOKUP($B99,VysledkyDoplneni!$C$7:$T$126,14,0) -> 0 | P99: =VLOOKUP($B99,VysledkyDoplneni!$C$7:$T$126,15,0) -> 0 | Q99: =VLOOKUP($B99,VysledkyDoplneni!$C$7:$T$126,16,0) -> 0 | R99: =VLOOKUP($B99,VysledkyDoplneni!$C$7:$T$126,17,0) -> 0 | S99: =VLOOKUP($B99,VysledkyDoplneni!$C$7:$T$126,18,0) -> 0 | V99: =SUM(D99:T99) -> 0 | W99: =(V99/(Data!$B$18*X99)) ->  | X99: 0
A100: 93 | B100: =IF(Vstup!C69<>"",Vstup!C69,"") ->  | C100: S | D100: =VLOOKUP($B100,VysledkyDoplneni!$C$7:$T$126,3,0) -> 0 | E100: =VLOOKUP($B100,VysledkyDoplneni!$C$7:$T$126,4,0) -> 0 | F100: =VLOOKUP($B100,VysledkyDoplneni!$C$7:$T$126,5,0) -> 0 | G100: =VLOOKUP($B100,VysledkyDoplneni!$C$7:$T$126,6,0) -> 0 | H100: =VLOOKUP($B100,VysledkyDoplneni!$C$7:$T$126,7,0) -> 0 | I100: =VLOOKUP($B100,VysledkyDoplneni!$C$7:$T$126,8,0) -> 0 | J100: =VLOOKUP($B100,VysledkyDoplneni!$C$7:$T$126,9,0) -> 0 | K100: =VLOOKUP($B100,VysledkyDoplneni!$C$7:$T$126,10,0) -> 0 | L100: =VLOOKUP($B100,VysledkyDoplneni!$C$7:$T$126,11,0) -> 0 | M100: =VLOOKUP($B100,VysledkyDoplneni!$C$7:$T$126,12,0) -> 0 | N100: =VLOOKUP($B100,VysledkyDoplneni!$C$7:$T$126,13,0) -> 0 | O100: =VLOOKUP($B100,VysledkyDoplneni!$C$7:$T$126,14,0) -> 0 | P100: =VLOOKUP($B100,VysledkyDoplneni!$C$7:$T$126,15,0) -> 0 | Q100: =VLOOKUP($B100,VysledkyDoplneni!$C$7:$T$126,16,0) -> 0 | R100: =VLOOKUP($B100,VysledkyDoplneni!$C$7:$T$126,17,0) -> 0 | S100: =VLOOKUP($B100,VysledkyDoplneni!$C$7:$T$126,18,0) -> 0 | V100: =SUM(D100:S100) -> 0 | W100: =(V100/(Data!$B$18*X100)) ->  | X100: 0
A101: 94 | B101: =IF(Vstup!C68<>"",Vstup!C68,"") ->  | C101: S | D101: =VLOOKUP($B101,VysledkyDoplneni!$C$7:$T$126,3,0) -> 0 | E101: =VLOOKUP($B101,VysledkyDoplneni!$C$7:$T$126,4,0) -> 0 | F101: =VLOOKUP($B101,VysledkyDoplneni!$C$7:$T$126,5,0) -> 0 | G101: =VLOOKUP($B101,VysledkyDoplneni!$C$7:$T$126,6,0) -> 0 | H101: =VLOOKUP($B101,VysledkyDoplneni!$C$7:$T$126,7,0) -> 0 | I101: =VLOOKUP($B101,VysledkyDoplneni!$C$7:$T$126,8,0) -> 0 | J101: =VLOOKUP($B101,VysledkyDoplneni!$C$7:$T$126,9,0) -> 0 | K101: =VLOOKUP($B101,VysledkyDoplneni!$C$7:$T$126,10,0) -> 0 | L101: =VLOOKUP($B101,VysledkyDoplneni!$C$7:$T$126,11,0) -> 0 | M101: =VLOOKUP($B101,VysledkyDoplneni!$C$7:$T$126,12,0) -> 0 | N101: =VLOOKUP($B101,VysledkyDoplneni!$C$7:$T$126,13,0) -> 0 | O101: =VLOOKUP($B101,VysledkyDoplneni!$C$7:$T$126,14,0) -> 0 | P101: =VLOOKUP($B101,VysledkyDoplneni!$C$7:$T$126,15,0) -> 0 | Q101: =VLOOKUP($B101,VysledkyDoplneni!$C$7:$T$126,16,0) -> 0 | R101: =VLOOKUP($B101,VysledkyDoplneni!$C$7:$T$126,17,0) -> 0 | S101: =VLOOKUP($B101,VysledkyDoplneni!$C$7:$T$126,18,0) -> 0 | V101: 0 | W101: =(V101/(Data!$B$18*X101)) ->  | X101: 0
A102: 95 | B102: =IF(Vstup!C104<>"",Vstup!C104,"") ->  | C102: S | D102: =VLOOKUP($B102,VysledkyDoplneni!$C$7:$T$126,3,0) -> 0 | E102: =VLOOKUP($B102,VysledkyDoplneni!$C$7:$T$126,4,0) -> 0 | F102: =VLOOKUP($B102,VysledkyDoplneni!$C$7:$T$126,5,0) -> 0 | G102: =VLOOKUP($B102,VysledkyDoplneni!$C$7:$T$126,6,0) -> 0 | H102: =VLOOKUP($B102,VysledkyDoplneni!$C$7:$T$126,7,0) -> 0 | I102: =VLOOKUP($B102,VysledkyDoplneni!$C$7:$T$126,8,0) -> 0 | J102: =VLOOKUP($B102,VysledkyDoplneni!$C$7:$T$126,9,0) -> 0 | K102: =VLOOKUP($B102,VysledkyDoplneni!$C$7:$T$126,10,0) -> 0 | L102: =VLOOKUP($B102,VysledkyDoplneni!$C$7:$T$126,11,0) -> 0 | M102: =VLOOKUP($B102,VysledkyDoplneni!$C$7:$T$126,12,0) -> 0 | N102: =VLOOKUP($B102,VysledkyDoplneni!$C$7:$T$126,13,0) -> 0 | O102: =VLOOKUP($B102,VysledkyDoplneni!$C$7:$T$126,14,0) -> 0 | P102: =VLOOKUP($B102,VysledkyDoplneni!$C$7:$T$126,15,0) -> 0 | Q102: =VLOOKUP($B102,VysledkyDoplneni!$C$7:$T$126,16,0) -> 0 | R102: =VLOOKUP($B102,VysledkyDoplneni!$C$7:$T$126,17,0) -> 0 | S102: =VLOOKUP($B102,VysledkyDoplneni!$C$7:$T$126,18,0) -> 0 | V102: 0 | W102: =(V102/(Data!$B$18*X102)) ->  | X102: 0
A103: 96 | B103: =IF(Vstup!C70<>"",Vstup!C70,"") ->  | C103: S | D103: =VLOOKUP($B103,VysledkyDoplneni!$C$7:$T$126,3,0) -> 0 | E103: =VLOOKUP($B103,VysledkyDoplneni!$C$7:$T$126,4,0) -> 0 | F103: =VLOOKUP($B103,VysledkyDoplneni!$C$7:$T$126,5,0) -> 0 | G103: =VLOOKUP($B103,VysledkyDoplneni!$C$7:$T$126,6,0) -> 0 | H103: =VLOOKUP($B103,VysledkyDoplneni!$C$7:$T$126,7,0) -> 0 | I103: =VLOOKUP($B103,VysledkyDoplneni!$C$7:$T$126,8,0) -> 0 | J103: =VLOOKUP($B103,VysledkyDoplneni!$C$7:$T$126,9,0) -> 0 | K103: =VLOOKUP($B103,VysledkyDoplneni!$C$7:$T$126,10,0) -> 0 | L103: =VLOOKUP($B103,VysledkyDoplneni!$C$7:$T$126,11,0) -> 0 | M103: =VLOOKUP($B103,VysledkyDoplneni!$C$7:$T$126,12,0) -> 0 | N103: =VLOOKUP($B103,VysledkyDoplneni!$C$7:$T$126,13,0) -> 0 | O103: =VLOOKUP($B103,VysledkyDoplneni!$C$7:$T$126,14,0) -> 0 | P103: =VLOOKUP($B103,VysledkyDoplneni!$C$7:$T$126,15,0) -> 0 | Q103: =VLOOKUP($B103,VysledkyDoplneni!$C$7:$T$126,16,0) -> 0 | R103: =VLOOKUP($B103,VysledkyDoplneni!$C$7:$T$126,17,0) -> 0 | S103: =VLOOKUP($B103,VysledkyDoplneni!$C$7:$T$126,18,0) -> 0 | V103: 0 | W103: =(V103/(Data!$B$18*X103)) ->  | X103: 0
A104: 97 | B104: =IF(Vstup!C78<>"",Vstup!C78,"") ->  | C104: S | D104: =VLOOKUP($B104,VysledkyDoplneni!$C$7:$T$126,3,0) -> 0 | E104: =VLOOKUP($B104,VysledkyDoplneni!$C$7:$T$126,4,0) -> 0 | F104: =VLOOKUP($B104,VysledkyDoplneni!$C$7:$T$126,5,0) -> 0 | G104: =VLOOKUP($B104,VysledkyDoplneni!$C$7:$T$126,6,0) -> 0 | H104: =VLOOKUP($B104,VysledkyDoplneni!$C$7:$T$126,7,0) -> 0 | I104: =VLOOKUP($B104,VysledkyDoplneni!$C$7:$T$126,8,0) -> 0 | J104: =VLOOKUP($B104,VysledkyDoplneni!$C$7:$T$126,9,0) -> 0 | K104: =VLOOKUP($B104,VysledkyDoplneni!$C$7:$T$126,10,0) -> 0 | L104: =VLOOKUP($B104,VysledkyDoplneni!$C$7:$T$126,11,0) -> 0 | M104: =VLOOKUP($B104,VysledkyDoplneni!$C$7:$T$126,12,0) -> 0 | N104: =VLOOKUP($B104,VysledkyDoplneni!$C$7:$T$126,13,0) -> 0 | O104: =VLOOKUP($B104,VysledkyDoplneni!$C$7:$T$126,14,0) -> 0 | P104: =VLOOKUP($B104,VysledkyDoplneni!$C$7:$T$126,15,0) -> 0 | Q104: =VLOOKUP($B104,VysledkyDoplneni!$C$7:$T$126,16,0) -> 0 | R104: =VLOOKUP($B104,VysledkyDoplneni!$C$7:$T$126,17,0) -> 0 | S104: =VLOOKUP($B104,VysledkyDoplneni!$C$7:$T$126,18,0) -> 0 | V104: 0 | W104: =(V104/(Data!$B$18*X104)) ->  | X104: 0
A105: 98 | B105: =IF(Vstup!C105<>"",Vstup!C105,"") ->  | C105: S | D105: =VLOOKUP($B105,VysledkyDoplneni!$C$7:$T$126,3,0) -> 0 | E105: =VLOOKUP($B105,VysledkyDoplneni!$C$7:$T$126,4,0) -> 0 | F105: =VLOOKUP($B105,VysledkyDoplneni!$C$7:$T$126,5,0) -> 0 | G105: =VLOOKUP($B105,VysledkyDoplneni!$C$7:$T$126,6,0) -> 0 | H105: =VLOOKUP($B105,VysledkyDoplneni!$C$7:$T$126,7,0) -> 0 | I105: =VLOOKUP($B105,VysledkyDoplneni!$C$7:$T$126,8,0) -> 0 | J105: =VLOOKUP($B105,VysledkyDoplneni!$C$7:$T$126,9,0) -> 0 | K105: =VLOOKUP($B105,VysledkyDoplneni!$C$7:$T$126,10,0) -> 0 | L105: =VLOOKUP($B105,VysledkyDoplneni!$C$7:$T$126,11,0) -> 0 | M105: =VLOOKUP($B105,VysledkyDoplneni!$C$7:$T$126,12,0) -> 0 | N105: =VLOOKUP($B105,VysledkyDoplneni!$C$7:$T$126,13,0) -> 0 | O105: =VLOOKUP($B105,VysledkyDoplneni!$C$7:$T$126,14,0) -> 0 | P105: =VLOOKUP($B105,VysledkyDoplneni!$C$7:$T$126,15,0) -> 0 | Q105: =VLOOKUP($B105,VysledkyDoplneni!$C$7:$T$126,16,0) -> 0 | R105: =VLOOKUP($B105,VysledkyDoplneni!$C$7:$T$126,17,0) -> 0 | S105: =VLOOKUP($B105,VysledkyDoplneni!$C$7:$T$126,18,0) -> 0 | V105: 0 | W105: =(V105/(Data!$B$18*X105)) ->  | X105: 0
A106: 99 | B106: =IF(Vstup!C106<>"",Vstup!C106,"") ->  | C106: S | D106: =VLOOKUP($B106,VysledkyDoplneni!$C$7:$T$126,3,0) -> 0 | E106: =VLOOKUP($B106,VysledkyDoplneni!$C$7:$T$126,4,0) -> 0 | F106: =VLOOKUP($B106,VysledkyDoplneni!$C$7:$T$126,5,0) -> 0 | G106: =VLOOKUP($B106,VysledkyDoplneni!$C$7:$T$126,6,0) -> 0 | H106: =VLOOKUP($B106,VysledkyDoplneni!$C$7:$T$126,7,0) -> 0 | I106: =VLOOKUP($B106,VysledkyDoplneni!$C$7:$T$126,8,0) -> 0 | J106: =VLOOKUP($B106,VysledkyDoplneni!$C$7:$T$126,9,0) -> 0 | K106: =VLOOKUP($B106,VysledkyDoplneni!$C$7:$T$126,10,0) -> 0 | L106: =VLOOKUP($B106,VysledkyDoplneni!$C$7:$T$126,11,0) -> 0 | M106: =VLOOKUP($B106,VysledkyDoplneni!$C$7:$T$126,12,0) -> 0 | N106: =VLOOKUP($B106,VysledkyDoplneni!$C$7:$T$126,13,0) -> 0 | O106: =VLOOKUP($B106,VysledkyDoplneni!$C$7:$T$126,14,0) -> 0 | P106: =VLOOKUP($B106,VysledkyDoplneni!$C$7:$T$126,15,0) -> 0 | Q106: =VLOOKUP($B106,VysledkyDoplneni!$C$7:$T$126,16,0) -> 0 | R106: =VLOOKUP($B106,VysledkyDoplneni!$C$7:$T$126,17,0) -> 0 | S106: =VLOOKUP($B106,VysledkyDoplneni!$C$7:$T$126,18,0) -> 0 | V106: 0 | W106: =(V106/(Data!$B$18*X106)) ->  | X106: 0
A107: 100 | B107: =IF(Vstup!C107<>"",Vstup!C107,"") ->  | C107: S | D107: =VLOOKUP($B107,VysledkyDoplneni!$C$7:$T$126,3,0) -> 0 | E107: =VLOOKUP($B107,VysledkyDoplneni!$C$7:$T$126,4,0) -> 0 | F107: =VLOOKUP($B107,VysledkyDoplneni!$C$7:$T$126,5,0) -> 0 | G107: =VLOOKUP($B107,VysledkyDoplneni!$C$7:$T$126,6,0) -> 0 | H107: =VLOOKUP($B107,VysledkyDoplneni!$C$7:$T$126,7,0) -> 0 | I107: =VLOOKUP($B107,VysledkyDoplneni!$C$7:$T$126,8,0) -> 0 | J107: =VLOOKUP($B107,VysledkyDoplneni!$C$7:$T$126,9,0) -> 0 | K107: =VLOOKUP($B107,VysledkyDoplneni!$C$7:$T$126,10,0) -> 0 | L107: =VLOOKUP($B107,VysledkyDoplneni!$C$7:$T$126,11,0) -> 0 | M107: =VLOOKUP($B107,VysledkyDoplneni!$C$7:$T$126,12,0) -> 0 | N107: =VLOOKUP($B107,VysledkyDoplneni!$C$7:$T$126,13,0) -> 0 | O107: =VLOOKUP($B107,VysledkyDoplneni!$C$7:$T$126,14,0) -> 0 | P107: =VLOOKUP($B107,VysledkyDoplneni!$C$7:$T$126,15,0) -> 0 | Q107: =VLOOKUP($B107,VysledkyDoplneni!$C$7:$T$126,16,0) -> 0 | R107: =VLOOKUP($B107,VysledkyDoplneni!$C$7:$T$126,17,0) -> 0 | S107: =VLOOKUP($B107,VysledkyDoplneni!$C$7:$T$126,18,0) -> 0 | V107: 0 | W107: =(V107/(Data!$B$18*X107)) ->  | X107: 0
A108: 101 | B108: =IF(Vstup!C108<>"",Vstup!C108,"") ->  | C108: S | D108: =VLOOKUP($B108,VysledkyDoplneni!$C$7:$T$126,3,0) -> 0 | E108: =VLOOKUP($B108,VysledkyDoplneni!$C$7:$T$126,4,0) -> 0 | F108: =VLOOKUP($B108,VysledkyDoplneni!$C$7:$T$126,5,0) -> 0 | G108: =VLOOKUP($B108,VysledkyDoplneni!$C$7:$T$126,6,0) -> 0 | H108: =VLOOKUP($B108,VysledkyDoplneni!$C$7:$T$126,7,0) -> 0 | I108: =VLOOKUP($B108,VysledkyDoplneni!$C$7:$T$126,8,0) -> 0 | J108: =VLOOKUP($B108,VysledkyDoplneni!$C$7:$T$126,9,0) -> 0 | K108: =VLOOKUP($B108,VysledkyDoplneni!$C$7:$T$126,10,0) -> 0 | L108: =VLOOKUP($B108,VysledkyDoplneni!$C$7:$T$126,11,0) -> 0 | M108: =VLOOKUP($B108,VysledkyDoplneni!$C$7:$T$126,12,0) -> 0 | N108: =VLOOKUP($B108,VysledkyDoplneni!$C$7:$T$126,13,0) -> 0 | O108: =VLOOKUP($B108,VysledkyDoplneni!$C$7:$T$126,14,0) -> 0 | P108: =VLOOKUP($B108,VysledkyDoplneni!$C$7:$T$126,15,0) -> 0 | Q108: =VLOOKUP($B108,VysledkyDoplneni!$C$7:$T$126,16,0) -> 0 | R108: =VLOOKUP($B108,VysledkyDoplneni!$C$7:$T$126,17,0) -> 0 | S108: =VLOOKUP($B108,VysledkyDoplneni!$C$7:$T$126,18,0) -> 0 | V108: 0 | W108: =(V108/(Data!$B$18*X108)) ->  | X108: 0
A109: 102 | B109: =IF(Vstup!C109<>"",Vstup!C109,"") ->  | C109: S | D109: =VLOOKUP($B109,VysledkyDoplneni!$C$7:$T$126,3,0) -> 0 | E109: =VLOOKUP($B109,VysledkyDoplneni!$C$7:$T$126,4,0) -> 0 | F109: =VLOOKUP($B109,VysledkyDoplneni!$C$7:$T$126,5,0) -> 0 | G109: =VLOOKUP($B109,VysledkyDoplneni!$C$7:$T$126,6,0) -> 0 | H109: =VLOOKUP($B109,VysledkyDoplneni!$C$7:$T$126,7,0) -> 0 | I109: =VLOOKUP($B109,VysledkyDoplneni!$C$7:$T$126,8,0) -> 0 | J109: =VLOOKUP($B109,VysledkyDoplneni!$C$7:$T$126,9,0) -> 0 | K109: =VLOOKUP($B109,VysledkyDoplneni!$C$7:$T$126,10,0) -> 0 | L109: =VLOOKUP($B109,VysledkyDoplneni!$C$7:$T$126,11,0) -> 0 | M109: =VLOOKUP($B109,VysledkyDoplneni!$C$7:$T$126,12,0) -> 0 | N109: =VLOOKUP($B109,VysledkyDoplneni!$C$7:$T$126,13,0) -> 0 | O109: =VLOOKUP($B109,VysledkyDoplneni!$C$7:$T$126,14,0) -> 0 | P109: =VLOOKUP($B109,VysledkyDoplneni!$C$7:$T$126,15,0) -> 0 | Q109: =VLOOKUP($B109,VysledkyDoplneni!$C$7:$T$126,16,0) -> 0 | R109: =VLOOKUP($B109,VysledkyDoplneni!$C$7:$T$126,17,0) -> 0 | S109: =VLOOKUP($B109,VysledkyDoplneni!$C$7:$T$126,18,0) -> 0 | V109: 0 | W109: =(V109/(Data!$B$18*X109)) ->  | X109: 0
A110: 103 | B110: =IF(Vstup!C110<>"",Vstup!C110,"") ->  | C110: S | D110: =VLOOKUP($B110,VysledkyDoplneni!$C$7:$T$126,3,0) -> 0 | E110: =VLOOKUP($B110,VysledkyDoplneni!$C$7:$T$126,4,0) -> 0 | F110: =VLOOKUP($B110,VysledkyDoplneni!$C$7:$T$126,5,0) -> 0 | G110: =VLOOKUP($B110,VysledkyDoplneni!$C$7:$T$126,6,0) -> 0 | H110: =VLOOKUP($B110,VysledkyDoplneni!$C$7:$T$126,7,0) -> 0 | I110: =VLOOKUP($B110,VysledkyDoplneni!$C$7:$T$126,8,0) -> 0 | J110: =VLOOKUP($B110,VysledkyDoplneni!$C$7:$T$126,9,0) -> 0 | K110: =VLOOKUP($B110,VysledkyDoplneni!$C$7:$T$126,10,0) -> 0 | L110: =VLOOKUP($B110,VysledkyDoplneni!$C$7:$T$126,11,0) -> 0 | M110: =VLOOKUP($B110,VysledkyDoplneni!$C$7:$T$126,12,0) -> 0 | N110: =VLOOKUP($B110,VysledkyDoplneni!$C$7:$T$126,13,0) -> 0 | O110: =VLOOKUP($B110,VysledkyDoplneni!$C$7:$T$126,14,0) -> 0 | P110: =VLOOKUP($B110,VysledkyDoplneni!$C$7:$T$126,15,0) -> 0 | Q110: =VLOOKUP($B110,VysledkyDoplneni!$C$7:$T$126,16,0) -> 0 | R110: =VLOOKUP($B110,VysledkyDoplneni!$C$7:$T$126,17,0) -> 0 | S110: =VLOOKUP($B110,VysledkyDoplneni!$C$7:$T$126,18,0) -> 0 | V110: 0 | W110: =(V110/(Data!$B$18*X110)) ->  | X110: 0
A111: 104 | B111: =IF(Vstup!C111<>"",Vstup!C111,"") ->  | C111: S | D111: =VLOOKUP($B111,VysledkyDoplneni!$C$7:$T$126,3,0) -> 0 | E111: =VLOOKUP($B111,VysledkyDoplneni!$C$7:$T$126,4,0) -> 0 | F111: =VLOOKUP($B111,VysledkyDoplneni!$C$7:$T$126,5,0) -> 0 | G111: =VLOOKUP($B111,VysledkyDoplneni!$C$7:$T$126,6,0) -> 0 | H111: =VLOOKUP($B111,VysledkyDoplneni!$C$7:$T$126,7,0) -> 0 | I111: =VLOOKUP($B111,VysledkyDoplneni!$C$7:$T$126,8,0) -> 0 | J111: =VLOOKUP($B111,VysledkyDoplneni!$C$7:$T$126,9,0) -> 0 | K111: =VLOOKUP($B111,VysledkyDoplneni!$C$7:$T$126,10,0) -> 0 | L111: =VLOOKUP($B111,VysledkyDoplneni!$C$7:$T$126,11,0) -> 0 | M111: =VLOOKUP($B111,VysledkyDoplneni!$C$7:$T$126,12,0) -> 0 | N111: =VLOOKUP($B111,VysledkyDoplneni!$C$7:$T$126,13,0) -> 0 | O111: =VLOOKUP($B111,VysledkyDoplneni!$C$7:$T$126,14,0) -> 0 | P111: =VLOOKUP($B111,VysledkyDoplneni!$C$7:$T$126,15,0) -> 0 | Q111: =VLOOKUP($B111,VysledkyDoplneni!$C$7:$T$126,16,0) -> 0 | R111: =VLOOKUP($B111,VysledkyDoplneni!$C$7:$T$126,17,0) -> 0 | S111: =VLOOKUP($B111,VysledkyDoplneni!$C$7:$T$126,18,0) -> 0 | V111: 0 | W111: =(V111/(Data!$B$18*X111)) ->  | X111: 0
A112: 105 | B112: =IF(Vstup!C112<>"",Vstup!C112,"") ->  | C112: S | D112: =VLOOKUP($B112,VysledkyDoplneni!$C$7:$T$126,3,0) -> 0 | E112: =VLOOKUP($B112,VysledkyDoplneni!$C$7:$T$126,4,0) -> 0 | F112: =VLOOKUP($B112,VysledkyDoplneni!$C$7:$T$126,5,0) -> 0 | G112: =VLOOKUP($B112,VysledkyDoplneni!$C$7:$T$126,6,0) -> 0 | H112: =VLOOKUP($B112,VysledkyDoplneni!$C$7:$T$126,7,0) -> 0 | I112: =VLOOKUP($B112,VysledkyDoplneni!$C$7:$T$126,8,0) -> 0 | J112: =VLOOKUP($B112,VysledkyDoplneni!$C$7:$T$126,9,0) -> 0 | K112: =VLOOKUP($B112,VysledkyDoplneni!$C$7:$T$126,10,0) -> 0 | L112: =VLOOKUP($B112,VysledkyDoplneni!$C$7:$T$126,11,0) -> 0 | M112: =VLOOKUP($B112,VysledkyDoplneni!$C$7:$T$126,12,0) -> 0 | N112: =VLOOKUP($B112,VysledkyDoplneni!$C$7:$T$126,13,0) -> 0 | O112: =VLOOKUP($B112,VysledkyDoplneni!$C$7:$T$126,14,0) -> 0 | P112: =VLOOKUP($B112,VysledkyDoplneni!$C$7:$T$126,15,0) -> 0 | Q112: =VLOOKUP($B112,VysledkyDoplneni!$C$7:$T$126,16,0) -> 0 | R112: =VLOOKUP($B112,VysledkyDoplneni!$C$7:$T$126,17,0) -> 0 | S112: =VLOOKUP($B112,VysledkyDoplneni!$C$7:$T$126,18,0) -> 0 | V112: =SUM(D112:S112) -> 0 | W112: =(V112/(Data!$B$18*X112)) ->  | X112: 0
A113: 106 | B113: =IF(Vstup!C113<>"",Vstup!C113,"") ->  | C113: S | D113: =VLOOKUP($B113,VysledkyDoplneni!$C$7:$T$126,3,0) -> 0 | E113: =VLOOKUP($B113,VysledkyDoplneni!$C$7:$T$126,4,0) -> 0 | F113: =VLOOKUP($B113,VysledkyDoplneni!$C$7:$T$126,5,0) -> 0 | G113: =VLOOKUP($B113,VysledkyDoplneni!$C$7:$T$126,6,0) -> 0 | H113: =VLOOKUP($B113,VysledkyDoplneni!$C$7:$T$126,7,0) -> 0 | I113: =VLOOKUP($B113,VysledkyDoplneni!$C$7:$T$126,8,0) -> 0 | J113: =VLOOKUP($B113,VysledkyDoplneni!$C$7:$T$126,9,0) -> 0 | K113: =VLOOKUP($B113,VysledkyDoplneni!$C$7:$T$126,10,0) -> 0 | L113: =VLOOKUP($B113,VysledkyDoplneni!$C$7:$T$126,11,0) -> 0 | M113: =VLOOKUP($B113,VysledkyDoplneni!$C$7:$T$126,12,0) -> 0 | N113: =VLOOKUP($B113,VysledkyDoplneni!$C$7:$T$126,13,0) -> 0 | O113: =VLOOKUP($B113,VysledkyDoplneni!$C$7:$T$126,14,0) -> 0 | P113: =VLOOKUP($B113,VysledkyDoplneni!$C$7:$T$126,15,0) -> 0 | Q113: =VLOOKUP($B113,VysledkyDoplneni!$C$7:$T$126,16,0) -> 0 | R113: =VLOOKUP($B113,VysledkyDoplneni!$C$7:$T$126,17,0) -> 0 | S113: =VLOOKUP($B113,VysledkyDoplneni!$C$7:$T$126,18,0) -> 0 | V113: 0 | W113: =(V113/(Data!$B$18*X113)) ->  | X113: 0
A114: 107 | B114: =IF(Vstup!C114<>"",Vstup!C114,"") ->  | C114: S | D114: =VLOOKUP($B114,VysledkyDoplneni!$C$7:$T$126,3,0) -> 0 | E114: =VLOOKUP($B114,VysledkyDoplneni!$C$7:$T$126,4,0) -> 0 | F114: =VLOOKUP($B114,VysledkyDoplneni!$C$7:$T$126,5,0) -> 0 | G114: =VLOOKUP($B114,VysledkyDoplneni!$C$7:$T$126,6,0) -> 0 | H114: =VLOOKUP($B114,VysledkyDoplneni!$C$7:$T$126,7,0) -> 0 | I114: =VLOOKUP($B114,VysledkyDoplneni!$C$7:$T$126,8,0) -> 0 | J114: =VLOOKUP($B114,VysledkyDoplneni!$C$7:$T$126,9,0) -> 0 | K114: =VLOOKUP($B114,VysledkyDoplneni!$C$7:$T$126,10,0) -> 0 | L114: =VLOOKUP($B114,VysledkyDoplneni!$C$7:$T$126,11,0) -> 0 | M114: =VLOOKUP($B114,VysledkyDoplneni!$C$7:$T$126,12,0) -> 0 | N114: =VLOOKUP($B114,VysledkyDoplneni!$C$7:$T$126,13,0) -> 0 | O114: =VLOOKUP($B114,VysledkyDoplneni!$C$7:$T$126,14,0) -> 0 | P114: =VLOOKUP($B114,VysledkyDoplneni!$C$7:$T$126,15,0) -> 0 | Q114: =VLOOKUP($B114,VysledkyDoplneni!$C$7:$T$126,16,0) -> 0 | R114: =VLOOKUP($B114,VysledkyDoplneni!$C$7:$T$126,17,0) -> 0 | S114: =VLOOKUP($B114,VysledkyDoplneni!$C$7:$T$126,18,0) -> 0 | V114: 0 | W114: =(V114/(Data!$B$18*X114)) ->  | X114: 0
A115: 108 | B115: =IF(Vstup!C115<>"",Vstup!C115,"") ->  | C115: S | D115: =VLOOKUP($B115,VysledkyDoplneni!$C$7:$T$126,3,0) -> 0 | E115: =VLOOKUP($B115,VysledkyDoplneni!$C$7:$T$126,4,0) -> 0 | F115: =VLOOKUP($B115,VysledkyDoplneni!$C$7:$T$126,5,0) -> 0 | G115: =VLOOKUP($B115,VysledkyDoplneni!$C$7:$T$126,6,0) -> 0 | H115: =VLOOKUP($B115,VysledkyDoplneni!$C$7:$T$126,7,0) -> 0 | I115: =VLOOKUP($B115,VysledkyDoplneni!$C$7:$T$126,8,0) -> 0 | J115: =VLOOKUP($B115,VysledkyDoplneni!$C$7:$T$126,9,0) -> 0 | K115: =VLOOKUP($B115,VysledkyDoplneni!$C$7:$T$126,10,0) -> 0 | L115: =VLOOKUP($B115,VysledkyDoplneni!$C$7:$T$126,11,0) -> 0 | M115: =VLOOKUP($B115,VysledkyDoplneni!$C$7:$T$126,12,0) -> 0 | N115: =VLOOKUP($B115,VysledkyDoplneni!$C$7:$T$126,13,0) -> 0 | O115: =VLOOKUP($B115,VysledkyDoplneni!$C$7:$T$126,14,0) -> 0 | P115: =VLOOKUP($B115,VysledkyDoplneni!$C$7:$T$126,15,0) -> 0 | Q115: =VLOOKUP($B115,VysledkyDoplneni!$C$7:$T$126,16,0) -> 0 | R115: =VLOOKUP($B115,VysledkyDoplneni!$C$7:$T$126,17,0) -> 0 | S115: =VLOOKUP($B115,VysledkyDoplneni!$C$7:$T$126,18,0) -> 0 | V115: 0 | W115: =(V115/(Data!$B$18*X115)) ->  | X115: 0
A116: 109 | B116: =IF(Vstup!C116<>"",Vstup!C116,"") ->  | C116: S | D116: =VLOOKUP($B116,VysledkyDoplneni!$C$7:$T$126,3,0) -> 0 | E116: =VLOOKUP($B116,VysledkyDoplneni!$C$7:$T$126,4,0) -> 0 | F116: =VLOOKUP($B116,VysledkyDoplneni!$C$7:$T$126,5,0) -> 0 | G116: =VLOOKUP($B116,VysledkyDoplneni!$C$7:$T$126,6,0) -> 0 | H116: =VLOOKUP($B116,VysledkyDoplneni!$C$7:$T$126,7,0) -> 0 | I116: =VLOOKUP($B116,VysledkyDoplneni!$C$7:$T$126,8,0) -> 0 | J116: =VLOOKUP($B116,VysledkyDoplneni!$C$7:$T$126,9,0) -> 0 | K116: =VLOOKUP($B116,VysledkyDoplneni!$C$7:$T$126,10,0) -> 0 | L116: =VLOOKUP($B116,VysledkyDoplneni!$C$7:$T$126,11,0) -> 0 | M116: =VLOOKUP($B116,VysledkyDoplneni!$C$7:$T$126,12,0) -> 0 | N116: =VLOOKUP($B116,VysledkyDoplneni!$C$7:$T$126,13,0) -> 0 | O116: =VLOOKUP($B116,VysledkyDoplneni!$C$7:$T$126,14,0) -> 0 | P116: =VLOOKUP($B116,VysledkyDoplneni!$C$7:$T$126,15,0) -> 0 | Q116: =VLOOKUP($B116,VysledkyDoplneni!$C$7:$T$126,16,0) -> 0 | R116: =VLOOKUP($B116,VysledkyDoplneni!$C$7:$T$126,17,0) -> 0 | S116: =VLOOKUP($B116,VysledkyDoplneni!$C$7:$T$126,18,0) -> 0 | V116: 0 | W116: =(V116/(Data!$B$18*X116)) ->  | X116: 0
B117: =IF(Vstup!C118<>"",Vstup!C118,"") ->  | C117: S | D117: =VLOOKUP($B117,VysledkyDoplneni!$C$7:$T$126,3,0) -> 0 | E117: =VLOOKUP($B117,VysledkyDoplneni!$C$7:$T$126,4,0) -> 0 | F117: =VLOOKUP($B117,VysledkyDoplneni!$C$7:$T$126,5,0) -> 0 | G117: =VLOOKUP($B117,VysledkyDoplneni!$C$7:$T$126,6,0) -> 0 | H117: =VLOOKUP($B117,VysledkyDoplneni!$C$7:$T$126,7,0) -> 0 | I117: =VLOOKUP($B117,VysledkyDoplneni!$C$7:$T$126,8,0) -> 0 | J117: =VLOOKUP($B117,VysledkyDoplneni!$C$7:$T$126,9,0) -> 0 | K117: =VLOOKUP($B117,VysledkyDoplneni!$C$7:$T$126,10,0) -> 0 | L117: =VLOOKUP($B117,VysledkyDoplneni!$C$7:$T$126,11,0) -> 0 | M117: =VLOOKUP($B117,VysledkyDoplneni!$C$7:$T$126,12,0) -> 0 | N117: =VLOOKUP($B117,VysledkyDoplneni!$C$7:$T$126,13,0) -> 0 | O117: =VLOOKUP($B117,VysledkyDoplneni!$C$7:$T$126,14,0) -> 0 | P117: =VLOOKUP($B117,VysledkyDoplneni!$C$7:$T$126,15,0) -> 0 | Q117: =VLOOKUP($B117,VysledkyDoplneni!$C$7:$T$126,16,0) -> 0 | R117: =VLOOKUP($B117,VysledkyDoplneni!$C$7:$T$126,17,0) -> 0 | S117: =VLOOKUP($B117,VysledkyDoplneni!$C$7:$T$126,18,0) -> 0 | V117: =SUM(D117:S117) -> 0 | W117: =(V117/(Data!$B$18*X117)) ->  | X117: 0
B118: =IF(Vstup!C119<>"",Vstup!C119,"") ->  | C118: S | D118: =VLOOKUP($B118,VysledkyDoplneni!$C$7:$T$126,3,0) -> 0 | E118: =VLOOKUP($B118,VysledkyDoplneni!$C$7:$T$126,4,0) -> 0 | F118: =VLOOKUP($B118,VysledkyDoplneni!$C$7:$T$126,5,0) -> 0 | G118: =VLOOKUP($B118,VysledkyDoplneni!$C$7:$T$126,6,0) -> 0 | H118: =VLOOKUP($B118,VysledkyDoplneni!$C$7:$T$126,7,0) -> 0 | I118: =VLOOKUP($B118,VysledkyDoplneni!$C$7:$T$126,8,0) -> 0 | J118: =VLOOKUP($B118,VysledkyDoplneni!$C$7:$T$126,9,0) -> 0 | K118: =VLOOKUP($B118,VysledkyDoplneni!$C$7:$T$126,10,0) -> 0 | L118: =VLOOKUP($B118,VysledkyDoplneni!$C$7:$T$126,11,0) -> 0 | M118: =VLOOKUP($B118,VysledkyDoplneni!$C$7:$T$126,12,0) -> 0 | N118: =VLOOKUP($B118,VysledkyDoplneni!$C$7:$T$126,13,0) -> 0 | O118: =VLOOKUP($B118,VysledkyDoplneni!$C$7:$T$126,14,0) -> 0 | P118: =VLOOKUP($B118,VysledkyDoplneni!$C$7:$T$126,15,0) -> 0 | Q118: =VLOOKUP($B118,VysledkyDoplneni!$C$7:$T$126,16,0) -> 0 | R118: =VLOOKUP($B118,VysledkyDoplneni!$C$7:$T$126,17,0) -> 0 | S118: =VLOOKUP($B118,VysledkyDoplneni!$C$7:$T$126,18,0) -> 0 | V118: 0 | W118: =(V118/(Data!$B$18*X118)) ->  | X118: 0
B119: =IF(Vstup!C120<>"",Vstup!C120,"") ->  | C119: S | D119: =VLOOKUP($B119,VysledkyDoplneni!$C$7:$T$126,3,0) -> 0 | E119: =VLOOKUP($B119,VysledkyDoplneni!$C$7:$T$126,4,0) -> 0 | F119: =VLOOKUP($B119,VysledkyDoplneni!$C$7:$T$126,5,0) -> 0 | G119: =VLOOKUP($B119,VysledkyDoplneni!$C$7:$T$126,6,0) -> 0 | H119: =VLOOKUP($B119,VysledkyDoplneni!$C$7:$T$126,7,0) -> 0 | I119: =VLOOKUP($B119,VysledkyDoplneni!$C$7:$T$126,8,0) -> 0 | J119: =VLOOKUP($B119,VysledkyDoplneni!$C$7:$T$126,9,0) -> 0 | K119: =VLOOKUP($B119,VysledkyDoplneni!$C$7:$T$126,10,0) -> 0 | L119: =VLOOKUP($B119,VysledkyDoplneni!$C$7:$T$126,11,0) -> 0 | M119: =VLOOKUP($B119,VysledkyDoplneni!$C$7:$T$126,12,0) -> 0 | N119: =VLOOKUP($B119,VysledkyDoplneni!$C$7:$T$126,13,0) -> 0 | O119: =VLOOKUP($B119,VysledkyDoplneni!$C$7:$T$126,14,0) -> 0 | P119: =VLOOKUP($B119,VysledkyDoplneni!$C$7:$T$126,15,0) -> 0 | Q119: =VLOOKUP($B119,VysledkyDoplneni!$C$7:$T$126,16,0) -> 0 | R119: =VLOOKUP($B119,VysledkyDoplneni!$C$7:$T$126,17,0) -> 0 | S119: =VLOOKUP($B119,VysledkyDoplneni!$C$7:$T$126,18,0) -> 0 | V119: 0 | W119: =(V119/(Data!$B$18*X119)) ->  | X119: 0
B120: =IF(Vstup!C121<>"",Vstup!C121,"") ->  | C120: S | D120: =VLOOKUP($B120,VysledkyDoplneni!$C$7:$T$126,3,0) -> 0 | E120: =VLOOKUP($B120,VysledkyDoplneni!$C$7:$T$126,4,0) -> 0 | F120: =VLOOKUP($B120,VysledkyDoplneni!$C$7:$T$126,5,0) -> 0 | G120: =VLOOKUP($B120,VysledkyDoplneni!$C$7:$T$126,6,0) -> 0 | H120: =VLOOKUP($B120,VysledkyDoplneni!$C$7:$T$126,7,0) -> 0 | I120: =VLOOKUP($B120,VysledkyDoplneni!$C$7:$T$126,8,0) -> 0 | J120: =VLOOKUP($B120,VysledkyDoplneni!$C$7:$T$126,9,0) -> 0 | K120: =VLOOKUP($B120,VysledkyDoplneni!$C$7:$T$126,10,0) -> 0 | L120: =VLOOKUP($B120,VysledkyDoplneni!$C$7:$T$126,11,0) -> 0 | M120: =VLOOKUP($B120,VysledkyDoplneni!$C$7:$T$126,12,0) -> 0 | N120: =VLOOKUP($B120,VysledkyDoplneni!$C$7:$T$126,13,0) -> 0 | O120: =VLOOKUP($B120,VysledkyDoplneni!$C$7:$T$126,14,0) -> 0 | P120: =VLOOKUP($B120,VysledkyDoplneni!$C$7:$T$126,15,0) -> 0 | Q120: =VLOOKUP($B120,VysledkyDoplneni!$C$7:$T$126,16,0) -> 0 | R120: =VLOOKUP($B120,VysledkyDoplneni!$C$7:$T$126,17,0) -> 0 | S120: =VLOOKUP($B120,VysledkyDoplneni!$C$7:$T$126,18,0) -> 0 | V120: 0 | W120: =(V120/(Data!$B$18*X120)) ->  | X120: 0
B121: =IF(Vstup!C122<>"",Vstup!C122,"") ->  | C121: S | D121: =VLOOKUP($B121,VysledkyDoplneni!$C$7:$T$126,3,0) -> 0 | E121: =VLOOKUP($B121,VysledkyDoplneni!$C$7:$T$126,4,0) -> 0 | F121: =VLOOKUP($B121,VysledkyDoplneni!$C$7:$T$126,5,0) -> 0 | G121: =VLOOKUP($B121,VysledkyDoplneni!$C$7:$T$126,6,0) -> 0 | H121: =VLOOKUP($B121,VysledkyDoplneni!$C$7:$T$126,7,0) -> 0 | I121: =VLOOKUP($B121,VysledkyDoplneni!$C$7:$T$126,8,0) -> 0 | J121: =VLOOKUP($B121,VysledkyDoplneni!$C$7:$T$126,9,0) -> 0 | K121: =VLOOKUP($B121,VysledkyDoplneni!$C$7:$T$126,10,0) -> 0 | L121: =VLOOKUP($B121,VysledkyDoplneni!$C$7:$T$126,11,0) -> 0 | M121: =VLOOKUP($B121,VysledkyDoplneni!$C$7:$T$126,12,0) -> 0 | N121: =VLOOKUP($B121,VysledkyDoplneni!$C$7:$T$126,13,0) -> 0 | O121: =VLOOKUP($B121,VysledkyDoplneni!$C$7:$T$126,14,0) -> 0 | P121: =VLOOKUP($B121,VysledkyDoplneni!$C$7:$T$126,15,0) -> 0 | Q121: =VLOOKUP($B121,VysledkyDoplneni!$C$7:$T$126,16,0) -> 0 | R121: =VLOOKUP($B121,VysledkyDoplneni!$C$7:$T$126,17,0) -> 0 | S121: =VLOOKUP($B121,VysledkyDoplneni!$C$7:$T$126,18,0) -> 0 | V121: 0 | W121: =(V121/(Data!$B$18*X121)) ->  | X121: 0
B122: =IF(Vstup!C123<>"",Vstup!C123,"") ->  | C122: S | D122: =VLOOKUP($B122,VysledkyDoplneni!$C$7:$T$126,3,0) -> 0 | E122: =VLOOKUP($B122,VysledkyDoplneni!$C$7:$T$126,4,0) -> 0 | F122: =VLOOKUP($B122,VysledkyDoplneni!$C$7:$T$126,5,0) -> 0 | G122: =VLOOKUP($B122,VysledkyDoplneni!$C$7:$T$126,6,0) -> 0 | H122: =VLOOKUP($B122,VysledkyDoplneni!$C$7:$T$126,7,0) -> 0 | I122: =VLOOKUP($B122,VysledkyDoplneni!$C$7:$T$126,8,0) -> 0 | J122: =VLOOKUP($B122,VysledkyDoplneni!$C$7:$T$126,9,0) -> 0 | K122: =VLOOKUP($B122,VysledkyDoplneni!$C$7:$T$126,10,0) -> 0 | L122: =VLOOKUP($B122,VysledkyDoplneni!$C$7:$T$126,11,0) -> 0 | M122: =VLOOKUP($B122,VysledkyDoplneni!$C$7:$T$126,12,0) -> 0 | N122: =VLOOKUP($B122,VysledkyDoplneni!$C$7:$T$126,13,0) -> 0 | O122: =VLOOKUP($B122,VysledkyDoplneni!$C$7:$T$126,14,0) -> 0 | P122: =VLOOKUP($B122,VysledkyDoplneni!$C$7:$T$126,15,0) -> 0 | Q122: =VLOOKUP($B122,VysledkyDoplneni!$C$7:$T$126,16,0) -> 0 | R122: =VLOOKUP($B122,VysledkyDoplneni!$C$7:$T$126,17,0) -> 0 | S122: =VLOOKUP($B122,VysledkyDoplneni!$C$7:$T$126,18,0) -> 0 | V122: 0 | W122: =(V122/(Data!$B$18*X122)) ->  | X122: 0
B123: =IF(Vstup!C124<>"",Vstup!C124,"") ->  | C123: =IF(Vstup!C124<>"",Vstup!D124,"") ->  | D123: =VLOOKUP($B123,VysledkyDoplneni!$C$7:$T$126,3,0) -> 0 | E123: =VLOOKUP($B123,VysledkyDoplneni!$C$7:$T$126,4,0) -> 0 | F123: =VLOOKUP($B123,VysledkyDoplneni!$C$7:$T$126,5,0) -> 0 | G123: =VLOOKUP($B123,VysledkyDoplneni!$C$7:$T$126,6,0) -> 0 | H123: =VLOOKUP($B123,VysledkyDoplneni!$C$7:$T$126,7,0) -> 0 | I123: =VLOOKUP($B123,VysledkyDoplneni!$C$7:$T$126,8,0) -> 0 | J123: =VLOOKUP($B123,VysledkyDoplneni!$C$7:$T$126,9,0) -> 0 | K123: =VLOOKUP($B123,VysledkyDoplneni!$C$7:$T$126,10,0) -> 0 | L123: =VLOOKUP($B123,VysledkyDoplneni!$C$7:$T$126,11,0) -> 0 | M123: =VLOOKUP($B123,VysledkyDoplneni!$C$7:$T$126,12,0) -> 0 | N123: =VLOOKUP($B123,VysledkyDoplneni!$C$7:$T$126,13,0) -> 0 | O123: =VLOOKUP($B123,VysledkyDoplneni!$C$7:$T$126,14,0) -> 0 | P123: =VLOOKUP($B123,VysledkyDoplneni!$C$7:$T$126,15,0) -> 0 | Q123: =VLOOKUP($B123,VysledkyDoplneni!$C$7:$T$126,16,0) -> 0 | R123: =VLOOKUP($B123,VysledkyDoplneni!$C$7:$T$126,17,0) -> 0 | S123: =VLOOKUP($B123,VysledkyDoplneni!$C$7:$T$126,18,0) -> 0 | V123: 0 | W123: =(V123/(Data!$B$18*X123)) ->  | X123: 0
B124: =IF(Vstup!C125<>"",Vstup!C125,"") ->  | C124: =IF(Vstup!C125<>"",Vstup!D125,"") ->  | D124: =VLOOKUP($B124,VysledkyDoplneni!$C$7:$T$126,3,0) -> 0 | E124: =VLOOKUP($B124,VysledkyDoplneni!$C$7:$T$126,4,0) -> 0 | F124: =VLOOKUP($B124,VysledkyDoplneni!$C$7:$T$126,5,0) -> 0 | G124: =VLOOKUP($B124,VysledkyDoplneni!$C$7:$T$126,6,0) -> 0 | H124: =VLOOKUP($B124,VysledkyDoplneni!$C$7:$T$126,7,0) -> 0 | I124: =VLOOKUP($B124,VysledkyDoplneni!$C$7:$T$126,8,0) -> 0 | J124: =VLOOKUP($B124,VysledkyDoplneni!$C$7:$T$126,9,0) -> 0 | K124: =VLOOKUP($B124,VysledkyDoplneni!$C$7:$T$126,10,0) -> 0 | L124: =VLOOKUP($B124,VysledkyDoplneni!$C$7:$T$126,11,0) -> 0 | M124: =VLOOKUP($B124,VysledkyDoplneni!$C$7:$T$126,12,0) -> 0 | N124: =VLOOKUP($B124,VysledkyDoplneni!$C$7:$T$126,13,0) -> 0 | O124: =VLOOKUP($B124,VysledkyDoplneni!$C$7:$T$126,14,0) -> 0 | P124: =VLOOKUP($B124,VysledkyDoplneni!$C$7:$T$126,15,0) -> 0 | Q124: =VLOOKUP($B124,VysledkyDoplneni!$C$7:$T$126,16,0) -> 0 | R124: =VLOOKUP($B124,VysledkyDoplneni!$C$7:$T$126,17,0) -> 0 | S124: =VLOOKUP($B124,VysledkyDoplneni!$C$7:$T$126,18,0) -> 0 | V124: 0 | W124: =(V124/(Data!$B$18*X124)) ->  | X124: 0
B125: =IF(Vstup!C126<>"",Vstup!C126,"") ->  | C125: =IF(Vstup!C126<>"",Vstup!D126,"") ->  | D125: =VLOOKUP($B125,VysledkyDoplneni!$C$7:$T$126,3,0) -> 0 | E125: =VLOOKUP($B125,VysledkyDoplneni!$C$7:$T$126,4,0) -> 0 | F125: =VLOOKUP($B125,VysledkyDoplneni!$C$7:$T$126,5,0) -> 0 | G125: =VLOOKUP($B125,VysledkyDoplneni!$C$7:$T$126,6,0) -> 0 | H125: =VLOOKUP($B125,VysledkyDoplneni!$C$7:$T$126,7,0) -> 0 | I125: =VLOOKUP($B125,VysledkyDoplneni!$C$7:$T$126,8,0) -> 0 | J125: =VLOOKUP($B125,VysledkyDoplneni!$C$7:$T$126,9,0) -> 0 | K125: =VLOOKUP($B125,VysledkyDoplneni!$C$7:$T$126,10,0) -> 0 | L125: =VLOOKUP($B125,VysledkyDoplneni!$C$7:$T$126,11,0) -> 0 | M125: =VLOOKUP($B125,VysledkyDoplneni!$C$7:$T$126,12,0) -> 0 | N125: =VLOOKUP($B125,VysledkyDoplneni!$C$7:$T$126,13,0) -> 0 | O125: =VLOOKUP($B125,VysledkyDoplneni!$C$7:$T$126,14,0) -> 0 | P125: =VLOOKUP($B125,VysledkyDoplneni!$C$7:$T$126,15,0) -> 0 | Q125: =VLOOKUP($B125,VysledkyDoplneni!$C$7:$T$126,16,0) -> 0 | R125: =VLOOKUP($B125,VysledkyDoplneni!$C$7:$T$126,17,0) -> 0 | S125: =VLOOKUP($B125,VysledkyDoplneni!$C$7:$T$126,18,0) -> 0 | V125: 0 | W125: =(V125/(Data!$B$18*X125)) ->  | X125: 0
B126: =IF(Vstup!C127<>"",Vstup!C127,"") ->  | C126: =IF(Vstup!C127<>"",Vstup!D127,"") ->  | D126: =VLOOKUP($B126,VysledkyDoplneni!$C$7:$T$126,3,0) -> 0 | E126: =VLOOKUP($B126,VysledkyDoplneni!$C$7:$T$126,4,0) -> 0 | F126: =VLOOKUP($B126,VysledkyDoplneni!$C$7:$T$126,5,0) -> 0 | G126: =VLOOKUP($B126,VysledkyDoplneni!$C$7:$T$126,6,0) -> 0 | H126: =VLOOKUP($B126,VysledkyDoplneni!$C$7:$T$126,7,0) -> 0 | I126: =VLOOKUP($B126,VysledkyDoplneni!$C$7:$T$126,8,0) -> 0 | J126: =VLOOKUP($B126,VysledkyDoplneni!$C$7:$T$126,9,0) -> 0 | K126: =VLOOKUP($B126,VysledkyDoplneni!$C$7:$T$126,10,0) -> 0 | L126: =VLOOKUP($B126,VysledkyDoplneni!$C$7:$T$126,11,0) -> 0 | M126: =VLOOKUP($B126,VysledkyDoplneni!$C$7:$T$126,12,0) -> 0 | N126: =VLOOKUP($B126,VysledkyDoplneni!$C$7:$T$126,13,0) -> 0 | O126: =VLOOKUP($B126,VysledkyDoplneni!$C$7:$T$126,14,0) -> 0 | P126: =VLOOKUP($B126,VysledkyDoplneni!$C$7:$T$126,15,0) -> 0 | Q126: =VLOOKUP($B126,VysledkyDoplneni!$C$7:$T$126,16,0) -> 0 | R126: =VLOOKUP($B126,VysledkyDoplneni!$C$7:$T$126,17,0) -> 0 | S126: =VLOOKUP($B126,VysledkyDoplneni!$C$7:$T$126,18,0) -> 0 | V126: 0 | W126: =(V126/(Data!$B$18*X126)) ->  | X126: 0
B127: =IF(Vstup!C128<>"",Vstup!C128,"") ->  | C127: =IF(Vstup!C128<>"",Vstup!D128,"") ->  | D127: =VLOOKUP($B127,VysledkyDoplneni!$C$7:$T$126,3,0) -> 0 | E127: =VLOOKUP($B127,VysledkyDoplneni!$C$7:$T$126,4,0) -> 0 | F127: =VLOOKUP($B127,VysledkyDoplneni!$C$7:$T$126,5,0) -> 0 | G127: =VLOOKUP($B127,VysledkyDoplneni!$C$7:$T$126,6,0) -> 0 | H127: =VLOOKUP($B127,VysledkyDoplneni!$C$7:$T$126,7,0) -> 0 | I127: =VLOOKUP($B127,VysledkyDoplneni!$C$7:$T$126,8,0) -> 0 | J127: =VLOOKUP($B127,VysledkyDoplneni!$C$7:$T$126,9,0) -> 0 | K127: =VLOOKUP($B127,VysledkyDoplneni!$C$7:$T$126,10,0) -> 0 | L127: =VLOOKUP($B127,VysledkyDoplneni!$C$7:$T$126,11,0) -> 0 | M127: =VLOOKUP($B127,VysledkyDoplneni!$C$7:$T$126,12,0) -> 0 | N127: =VLOOKUP($B127,VysledkyDoplneni!$C$7:$T$126,13,0) -> 0 | O127: =VLOOKUP($B127,VysledkyDoplneni!$C$7:$T$126,14,0) -> 0 | P127: =VLOOKUP($B127,VysledkyDoplneni!$C$7:$T$126,15,0) -> 0 | Q127: =VLOOKUP($B127,VysledkyDoplneni!$C$7:$T$126,16,0) -> 0 | R127: =VLOOKUP($B127,VysledkyDoplneni!$C$7:$T$126,17,0) -> 0 | S127: =VLOOKUP($B127,VysledkyDoplneni!$C$7:$T$126,18,0) -> 0 | V127: 0 | W127: =(V127/(Data!$B$18*X127)) ->  | X127: 0
D128: =SUM(D8:D127)/(COUNTIF(D8:D127,">0")*Data!$B$18) -> 65.5% | E128: =SUM(E8:E127)/(COUNTIF(E8:E127,">0")*Data!$B$18) -> 67.0% | F128: =SUM(F8:F127)/(COUNTIF(F8:F127,">0")*Data!$B$18) -> 70.3% | G128: =SUM(G8:G127)/(COUNTIF(G8:G127,">0")*Data!$B$18) ->  | H128: =SUM(H8:H127)/(COUNTIF(H8:H127,">0")*Data!$B$18) ->  | I128: =SUM(I8:I127)/(COUNTIF(I8:I127,">0")*Data!$B$18) ->  | J128: =SUM(J8:J127)/(COUNTIF(J8:J127,">0")*Data!$B$18) ->  | K128: =SUM(K8:K127)/(COUNTIF(K8:K127,">0")*Data!$B$18) ->  | L128: =SUM(L8:L127)/(COUNTIF(L8:L127,">0")*Data!$B$18) ->  | M128: =SUM(M8:M127)/(COUNTIF(M8:M127,">0")*Data!$B$18) ->  | N128: =SUM(N8:N127)/(COUNTIF(N8:N127,">0")*Data!$B$18) ->  | O128: =SUM(O8:O127)/(COUNTIF(O8:O127,">0")*Data!$B$18) ->  | P128: =SUM(P8:P127)/(COUNTIF(P8:P127,">0")*Data!$B$18) ->  | Q128: =SUM(Q8:Q127)/(COUNTIF(Q8:Q127,">0")*Data!$B$18) ->  | R128: =SUM(R8:R127)/(COUNTIF(R8:R127,">0")*Data!$B$18) ->  | S128: =SUM(S8:S127)/(COUNTIF(S8:S127,">0")*Data!$B$18) -> 

Sheet Sk1 (hidden)
A2: POLOŽKOVÝ LIST
A3: =Vstup!$C$2&IF(Vstup!$C$3<>"",", "&Vstup!$C$3,"") -> Josefovský brokový trojboj, 60 TERČŮ
A4: =Vstup!$C$4&", "&Vstup!$C$5 -> SPORTING, 20.03.2022
A6: Skupina: | C6: 1 | D6: Kolo : | E6: 1 | F6: Rozhodčí: | J6: ____________________________________________________________________________________________ | AJ6: ∑ | AK6: Podpis
A7: St. č. | B7: Příjmení, jméno | E7: Kat. | F7: Terče
A8: 1 | B8: Štenglová Michaela | E8: S | F8: 20 | G8: 19 | H8: 18 | I8: 17 | J8: 16 | K8: 15 | L8: 14 | M8: 13 | N8: 12 | O8: 11 | P8: 10 | Q8: 9 | R8: 8 | S8: 7 | T8: 6 | U8: 5 | V8: 4 | W8: 3 | X8: 2 | Y8: 1
A12: 2 | B12: Vaněk Matěj | E12: S | F12: 20 | G12: 19 | H12: 18 | I12: 17 | J12: 16 | K12: 15 | L12: 14 | M12: 13 | N12: 12 | O12: 11 | P12: 10 | Q12: 9 | R12: 8 | S12: 7 | T12: 6 | U12: 5 | V12: 4 | W12: 3 | X12: 2 | Y12: 1
A16: 3 | B16: Veltruský Jiří | E16: S | F16: 20 | G16: 19 | H16: 18 | I16: 17 | J16: 16 | K16: 15 | L16: 14 | M16: 13 | N16: 12 | O16: 11 | P16: 10 | Q16: 9 | R16: 8 | S16: 7 | T16: 6 | U16: 5 | V16: 4 | W16: 3 | X16: 2 | Y16: 1
A20: 4 | B20: Černý Bohuslav | E20: S | F20: 20 | G20: 19 | H20: 18 | I20: 17 | J20: 16 | K20: 15 | L20: 14 | M20: 13 | N20: 12 | O20: 11 | P20: 10 | Q20: 9 | R20: 8 | S20: 7 | T20: 6 | U20: 5 | V20: 4 | W20: 3 | X20: 2 | Y20: 1
A24: 5 | B24: Šindelář Jiří st. | E24: S | F24: 20 | G24: 19 | H24: 18 | I24: 17 | J24: 16 | K24: 15 | L24: 14 | M24: 13 | N24: 12 | O24: 11 | P24: 10 | Q24: 9 | R24: 8 | S24: 7 | T24: 6 | U24: 5 | V24: 4 | W24: 3 | X24: 2 | Y24: 1
A28: 6 | B28: Mařík Josef | E28: S | F28: 20 | G28: 19 | H28: 18 | I28: 17 | J28: 16 | K28: 15 | L28: 14 | M28: 13 | N28: 12 | O28: 11 | P28: 10 | Q28: 9 | R28: 8 | S28: 7 | T28: 6 | U28: 5 | V28: 4 | W28: 3 | X28: 2 | Y28: 1
A32: Poznámky:

Sheet Sk2 (hidden)
A2: POLOŽKOVÝ LIST
A3: =Vstup!C2&IF(Vstup!C3<>"",", "&Vstup!C3,"") -> Josefovský brokový trojboj, 60 TERČŮ
A4: =Vstup!C4&", "&Vstup!C5 -> SPORTING, 20.03.2022
A6: Skupina: | C6: 2 | D6: Kolo : | E6: 1 | F6: Rozhodčí: | J6: ____________________________________________________________________________________________ | AJ6: ∑ | AK6: Podpis
A7: St. č. | B7: Příjmení, jméno | E7: Kat. | F7: Terče
A8: 7 | B8: Lízalová Veronika | E8: S | F8: 20 | G8: 19 | H8: 18 | I8: 17 | J8: 16 | K8: 15 | L8: 14 | M8: 13 | N8: 12 | O8: 11 | P8: 10 | Q8: 9 | R8: 8 | S8: 7 | T8: 6 | U8: 5 | V8: 4 | W8: 3 | X8: 2 | Y8: 1
A12: 8 | B12: Lízal Miroslav ml. | E12: S | F12: 20 | G12: 19 | H12: 18 | I12: 17 | J12: 16 | K12: 15 | L12: 14 | M12: 13 | N12: 12 | O12: 11 | P12: 10 | Q12: 9 | R12: 8 | S12: 7 | T12: 6 | U12: 5 | V12: 4 | W12: 3 | X12: 2 | Y12: 1
A16: 9 | B16: Kondr Václav | E16: S | F16: 20 | G16: 19 | H16: 18 | I16: 17 | J16: 16 | K16: 15 | L16: 14 | M16: 13 | N16: 12 | O16: 11 | P16: 10 | Q16: 9 | R16: 8 | S16: 7 | T16: 6 | U16: 5 | V16: 4 | W16: 3 | X16: 2 | Y16: 1
A20: 10 | B20: Frenkl Jiří | E20: S | F20: 20 | G20: 19 | H20: 18 | I20: 17 | J20: 16 | K20: 15 | L20: 14 | M20: 13 | N20: 12 | O20: 11 | P20: 10 | Q20: 9 | R20: 8 | S20: 7 | T20: 6 | U20: 5 | V20: 4 | W20: 3 | X20: 2 | Y20: 1
A24: 11 | B24: Adámek Bohuslav | E24: S | F24: 20 | G24: 19 | H24: 18 | I24: 17 | J24: 16 | K24: 15 | L24: 14 | M24: 13 | N24: 12 | O24: 11 | P24: 10 | Q24: 9 | R24: 8 | S24: 7 | T24: 6 | U24: 5 | V24: 4 | W24: 3 | X24: 2 | Y24: 1
A28: 12 | B28: Urban Josef | E28: S | F28: 20 | G28: 19 | H28: 18 | I28: 17 | J28: 16 | K28: 15 | L28: 14 | M28: 13 | N28: 12 | O28: 11 | P28: 10 | Q28: 9 | R28: 8 | S28: 7 | T28: 6 | U28: 5 | V28: 4 | W28: 3 | X28: 2 | Y28: 1
A32: Poznámky:

Sheet Sk3 (hidden)
A2: POLOŽKOVÝ LIST
A3: =Vstup!C2&IF(Vstup!C3<>"",", "&Vstup!C3,"") -> Josefovský brokový trojboj, 60 TERČŮ
A4: =Vstup!C4&", "&Vstup!C5 -> SPORTING, 20.03.2022
A6: Skupina: | C6: 3 | D6: Kolo : | E6: 1 | F6: Rozhodčí: | J6: ____________________________________________________________________________________________ | AJ6: ∑ | AK6: Podpis
A7: St. č. | B7: Příjmení, jméno | F7: Terče
A8: 13 | B8: Trepka Jiří | E8: S | F8: 20 | G8: 19 | H8: 18 | I8: 17 | J8: 16 | K8: 15 | L8: 14 | M8: 13 | N8: 12 | O8: 11 | P8: 10 | Q8: 9 | R8: 8 | S8: 7 | T8: 6 | U8: 5 | V8: 4 | W8: 3 | X8: 2 | Y8: 1
A12: 14 | B12: Dusík Vladimír | E12: S | F12: 20 | G12: 19 | H12: 18 | I12: 17 | J12: 16 | K12: 15 | L12: 14 | M12: 13 | N12: 12 | O12: 11 | P12: 10 | Q12: 9 | R12: 8 | S12: 7 | T12: 6 | U12: 5 | V12: 4 | W12: 3 | X12: 2 | Y12: 1
A16: 15 | B16: Kotrbáček Václav | E16: S | F16: 20 | G16: 19 | H16: 18 | I16: 17 | J16: 16 | K16: 15 | L16: 14 | M16: 13 | N16: 12 | O16: 11 | P16: 10 | Q16: 9 | R16: 8 | S16: 7 | T16: 6 | U16: 5 | V16: 4 | W16: 3 | X16: 2 | Y16: 1
A20: 16 | B20: Doležal Jaroslav | E20: S | F20: 20 | G20: 19 | H20: 18 | I20: 17 | J20: 16 | K20: 15 | L20: 14 | M20: 13 | N20: 12 | O20: 11 | P20: 10 | Q20: 9 | R20: 8 | S20: 7 | T20: 6 | U20: 5 | V20: 4 | W20: 3 | X20: 2 | Y20: 1
A24: 17 | B24: Křepelka Jan | E24: S | F24: 20 | G24: 19 | H24: 18 | I24: 17 | J24: 16 | K24: 15 | L24: 14 | M24: 13 | N24: 12 | O24: 11 | P24: 10 | Q24: 9 | R24: 8 | S24: 7 | T24: 6 | U24: 5 | V24: 4 | W24: 3 | X24: 2 | Y24: 1
A28: 18 | B28: Bém Josef | E28: S | F28: 20 | G28: 19 | H28: 18 | I28: 17 | J28: 16 | K28: 15 | L28: 14 | M28: 13 | N28: 12 | O28: 11 | P28: 10 | Q28: 9 | R28: 8 | S28: 7 | T28: 6 | U28: 5 | V28: 4 | W28: 3 | X28: 2 | Y28: 1
A32: Poznámky:

Sheet Sk4 (hidden)
A2: POLOŽKOVÝ LIST
A3: =Vstup!C2&IF(Vstup!C3<>"",", "&Vstup!C3,"") -> Josefovský brokový trojboj, 60 TERČŮ
A4: =Vstup!C4&", "&Vstup!C5 -> SPORTING, 20.03.2022
A6: Skupina: | C6: 4 | D6: Kolo : | E6: 1 | F6: Rozhodčí: | J6: ____________________________________________________________________________________________ | AJ6: ∑ | AK6: Podpis
A7: St. č. | B7: Příjmení, jméno | E7: Kat. | F7: Terče
A8: 19 | B8: Čechura Petr | E8: S | F8: 20 | G8: 19 | H8: 18 | I8: 17 | J8: 16 | K8: 15 | L8: 14 | M8: 13 | N8: 12 | O8: 11 | P8: 10 | Q8: 9 | R8: 8 | S8: 7 | T8: 6 | U8: 5 | V8: 4 | W8: 3 | X8: 2 | Y8: 1
A12: 20 | B12: Čechura Pavel | E12: S | F12: 20 | G12: 19 | H12: 18 | I12: 17 | J12: 16 | K12: 15 | L12: 14 | M12: 13 | N12: 12 | O12: 11 | P12: 10 | Q12: 9 | R12: 8 | S12: 7 | T12: 6 | U12: 5 | V12: 4 | W12: 3 | X12: 2 | Y12: 1
A16: 21 | B16: Sedláček Jiří | E16: S | F16: 20 | G16: 19 | H16: 18 | I16: 17 | J16: 16 | K16: 15 | L16: 14 | M16: 13 | N16: 12 | O16: 11 | P16: 10 | Q16: 9 | R16: 8 | S16: 7 | T16: 6 | U16: 5 | V16: 4 | W16: 3 | X16: 2 | Y16: 1
A20: 22 | B20: Hájek Petr | E20: S | F20: 20 | G20: 19 | H20: 18 | I20: 17 | J20: 16 | K20: 15 | L20: 14 | M20: 13 | N20: 12 | O20: 11 | P20: 10 | Q20: 9 | R20: 8 | S20: 7 | T20: 6 | U20: 5 | V20: 4 | W20: 3 | X20: 2 | Y20: 1
A24: 23 | B24: Volf Jiří | E24: S | F24: 20 | G24: 19 | H24: 18 | I24: 17 | J24: 16 | K24: 15 | L24: 14 | M24: 13 | N24: 12 | O24: 11 | P24: 10 | Q24: 9 | R24: 8 | S24: 7 | T24: 6 | U24: 5 | V24: 4 | W24: 3 | X24: 2 | Y24: 1
A28: 24 | B28: Navara Josef | E28: S | F28: 20 | G28: 19 | H28: 18 | I28: 17 | J28: 16 | K28: 15 | L28: 14 | M28: 13 | N28: 12 | O28: 11 | P28: 10 | Q28: 9 | R28: 8 | S28: 7 | T28: 6 | U28: 5 | V28: 4 | W28: 3 | X28: 2 | Y28: 1
A32: Poznámky:

Sheet Sk5 (hidden)
A2: POLOŽKOVÝ LIST
A3: =Vstup!C2&IF(Vstup!C3<>"",", "&Vstup!C3,"") -> Josefovský brokový trojboj, 60 TERČŮ
A4: =Vstup!C4&", "&Vstup!C5 -> SPORTING, 20.03.2022
A6: Skupina: | C6: 5 | D6: Kolo : | E6: 1 | F6: Rozhodčí: | J6: ____________________________________________________________________________________________ | AJ6: ∑ | AK6: Podpis
A7: St. č. | B7: Příjmení, jméno | E7: Kat. | F7: Terče
A8: 25 | B8: Šindelář Jan | E8: S | F8: 20 | G8: 19 | H8: 18 | I8: 17 | J8: 16 | K8: 15 | L8: 14 | M8: 13 | N8: 12 | O8: 11 | P8: 10 | Q8: 9 | R8: 8 | S8: 7 | T8: 6 | U8: 5 | V8: 4 | W8: 3 | X8: 2 | Y8: 1
A12: 26 | B12: Jira Tomáš | E12: S | F12: 20 | G12: 19 | H12: 18 | I12: 17 | J12: 16 | K12: 15 | L12: 14 | M12: 13 | N12: 12 | O12: 11 | P12: 10 | Q12: 9 | R12: 8 | S12: 7 | T12: 6 | U12: 5 | V12: 4 | W12: 3 | X12: 2 | Y12: 1
A16: 27 | B16: Gorschenek Martin | E16: S | F16: 20 | G16: 19 | H16: 18 | I16: 17 | J16: 16 | K16: 15 | L16: 14 | M16: 13 | N16: 12 | O16: 11 | P16: 10 | Q16: 9 | R16: 8 | S16: 7 | T16: 6 | U16: 5 | V16: 4 | W16: 3 | X16: 2 | Y16: 1
A20: 28 | B20: Leihs Gustav | E20: S | F20: 20 | G20: 19 | H20: 18 | I20: 17 | J20: 16 | K20: 15 | L20: 14 | M20: 13 | N20: 12 | O20: 11 | P20: 10 | Q20: 9 | R20: 8 | S20: 7 | T20: 6 | U20: 5 | V20: 4 | W20: 3 | X20: 2 | Y20: 1
A24: 29 | B24: Škrýba Petr | E24: S | F24: 20 | G24: 19 | H24: 18 | I24: 17 | J24: 16 | K24: 15 | L24: 14 | M24: 13 | N24: 12 | O24: 11 | P24: 10 | Q24: 9 | R24: 8 | S24: 7 | T24: 6 | U24: 5 | V24: 4 | W24: 3 | X24: 2 | Y24: 1
A28: 30 | B28: Růžek Luboš | E28: S | F28: 20 | G28: 19 | H28: 18 | I28: 17 | J28: 16 | K28: 15 | L28: 14 | M28: 13 | N28: 12 | O28: 11 | P28: 10 | Q28: 9 | R28: 8 | S28: 7 | T28: 6 | U28: 5 | V28: 4 | W28: 3 | X28: 2 | Y28: 1
A32: Poznámky:

Sheet Sk6 (hidden)
A2: POLOŽKOVÝ LIST
A3: =Vstup!C2&IF(Vstup!C3<>"",", "&Vstup!C3,"") -> Josefovský brokový trojboj, 60 TERČŮ
A4: =Vstup!C4&", "&Vstup!C5 -> SPORTING, 20.03.2022
A6: Skupina: | C6: 6 | D6: Kolo : | E6: 1 | F6: Rozhodčí: | J6: ____________________________________________________________________________________________ | AJ6: ∑ | AK6: Podpis
A7: St. č. | B7: Příjmení, jméno | E7: Kat. | F7: Terče
A8: 31 | B8: Albl Václav | E8: S | F8: 20 | G8: 19 | H8: 18 | I8: 17 | J8: 16 | K8: 15 | L8: 14 | M8: 13 | N8: 12 | O8: 11 | P8: 10 | Q8: 9 | R8: 8 | S8: 7 | T8: 6 | U8: 5 | V8: 4 | W8: 3 | X8: 2 | Y8: 1
A12: 32 | B12: Noháček Jaroslav | E12: S | F12: 20 | G12: 19 | H12: 18 | I12: 17 | J12: 16 | K12: 15 | L12: 14 | M12: 13 | N12: 12 | O12: 11 | P12: 10 | Q12: 9 | R12: 8 | S12: 7 | T12: 6 | U12: 5 | V12: 4 | W12: 3 | X12: 2 | Y12: 1
A16: 33 | B16: Noháček Pavel | E16: S | F16: 20 | G16: 19 | H16: 18 | I16: 17 | J16: 16 | K16: 15 | L16: 14 | M16: 13 | N16: 12 | O16: 11 | P16: 10 | Q16: 9 | R16: 8 | S16: 7 | T16: 6 | U16: 5 | V16: 4 | W16: 3 | X16: 2 | Y16: 1
A20: 34 | B20: Mach Josef | E20: S | F20: 20 | G20: 19 | H20: 18 | I20: 17 | J20: 16 | K20: 15 | L20: 14 | M20: 13 | N20: 12 | O20: 11 | P20: 10 | Q20: 9 | R20: 8 | S20: 7 | T20: 6 | U20: 5 | V20: 4 | W20: 3 | X20: 2 | Y20: 1
A24: 35 | B24: Lusk Stanislav | E24: S | F24: 20 | G24: 19 | H24: 18 | I24: 17 | J24: 16 | K24: 15 | L24: 14 | M24: 13 | N24: 12 | O24: 11 | P24: 10 | Q24: 9 | R24: 8 | S24: 7 | T24: 6 | U24: 5 | V24: 4 | W24: 3 | X24: 2 | Y24: 1
A28: 36 | B28: Mach Jan | E28: S | F28: 20 | G28: 19 | H28: 18 | I28: 17 | J28: 16 | K28: 15 | L28: 14 | M28: 13 | N28: 12 | O28: 11 | P28: 10 | Q28: 9 | R28: 8 | S28: 7 | T28: 6 | U28: 5 | V28: 4 | W28: 3 | X28: 2 | Y28: 1
A32: Poznámky:

Sheet Sk7 (hidden)
A2: POLOŽKOVÝ LIST
A3: =Vstup!C2&IF(Vstup!C3<>"",", "&Vstup!C3,"") -> Josefovský brokový trojboj, 60 TERČŮ
A4: =Vstup!C4&", "&Vstup!C5 -> SPORTING, 20.03.2022
A6: Skupina: | C6: 7 | D6: Kolo : | E6: 1 | F6: Rozhodčí: | J6: ____________________________________________________________________________________________ | AJ6: ∑ | AK6: Podpis
A7: St. č. | B7: Příjmení, jméno | E7: Kat. | F7: Terče
A8: 37 | B8: Hromada Jaroslav | E8: S | F8: 20 | G8: 19 | H8: 18 | I8: 17 | J8: 16 | K8: 15 | L8: 14 | M8: 13 | N8: 12 | O8: 11 | P8: 10 | Q8: 9 | R8: 8 | S8: 7 | T8: 6 | U8: 5 | V8: 4 | W8: 3 | X8: 2 | Y8: 1
A12: 38 | B12: Racek Petr | E12: S | F12: 20 | G12: 19 | H12: 18 | I12: 17 | J12: 16 | K12: 15 | L12: 14 | M12: 13 | N12: 12 | O12: 11 | P12: 10 | Q12: 9 | R12: 8 | S12: 7 | T12: 6 | U12: 5 | V12: 4 | W12: 3 | X12: 2 | Y12: 1
A16: 39 | B16: Říha Jiří | E16: S | F16: 20 | G16: 19 | H16: 18 | I16: 17 | J16: 16 | K16: 15 | L16: 14 | M16: 13 | N16: 12 | O16: 11 | P16: 10 | Q16: 9 | R16: 8 | S16: 7 | T16: 6 | U16: 5 | V16: 4 | W16: 3 | X16: 2 | Y16: 1
A20: 40 | B20: Kočí Radek | E20: S | F20: 20 | G20: 19 | H20: 18 | I20: 17 | J20: 16 | K20: 15 | L20: 14 | M20: 13 | N20: 12 | O20: 11 | P20: 10 | Q20: 9 | R20: 8 | S20: 7 | T20: 6 | U20: 5 | V20: 4 | W20: 3 | X20: 2 | Y20: 1
A24: 41 | B24: Pechan Josef | E24: S | F24: 20 | G24: 19 | H24: 18 | I24: 17 | J24: 16 | K24: 15 | L24: 14 | M24: 13 | N24: 12 | O24: 11 | P24: 10 | Q24: 9 | R24: 8 | S24: 7 | T24: 6 | U24: 5 | V24: 4 | W24: 3 | X24: 2 | Y24: 1
A28: 42 | B28: Kučera Václav | E28: S | F28: 20 | G28: 19 | H28: 18 | I28: 17 | J28: 16 | K28: 15 | L28: 14 | M28: 13 | N28: 12 | O28: 11 | P28: 10 | Q28: 9 | R28: 8 | S28: 7 | T28: 6 | U28: 5 | V28: 4 | W28: 3 | X28: 2 | Y28: 1
A32: Poznámky:

Sheet Sk8 (hidden)
A2: POLOŽKOVÝ LIST
A3: =Vstup!C2&IF(Vstup!C3<>"",", "&Vstup!C3,"") -> Josefovský brokový trojboj, 60 TERČŮ
A4: =Vstup!C4&", "&Vstup!C5 -> SPORTING, 20.03.2022
A6: Skupina: | C6: 8 | D6: Kolo : | E6: 1 | F6: Rozhodčí: | J6: ____________________________________________________________________________________________ | AJ6: ∑ | AK6: Podpis
A7: St. č. | B7: Příjmení, jméno | E7: Kat. | F7: Terče
A8: 43 | B8: Štengl Jiří | E8: S | F8: 20 | G8: 19 | H8: 18 | I8: 17 | J8: 16 | K8: 15 | L8: 14 | M8: 13 | N8: 12 | O8: 11 | P8: 10 | Q8: 9 | R8: 8 | S8: 7 | T8: 6 | U8: 5 | V8: 4 | W8: 3 | X8: 2 | Y8: 1
A12: 44 | B12: Kubík Jindřich | E12: S | F12: 20 | G12: 19 | H12: 18 | I12: 17 | J12: 16 | K12: 15 | L12: 14 | M12: 13 | N12: 12 | O12: 11 | P12: 10 | Q12: 9 | R12: 8 | S12: 7 | T12: 6 | U12: 5 | V12: 4 | W12: 3 | X12: 2 | Y12: 1
A16: 45 | B16: Vodička Miroslav | E16: S | F16: 20 | G16: 19 | H16: 18 | I16: 17 | J16: 16 | K16: 15 | L16: 14 | M16: 13 | N16: 12 | O16: 11 | P16: 10 | Q16: 9 | R16: 8 | S16: 7 | T16: 6 | U16: 5 | V16: 4 | W16: 3 | X16: 2 | Y16: 1
A20: 46 | B20: Šindelář Milan | E20: S | F20: 20 | G20: 19 | H20: 18 | I20: 17 | J20: 16 | K20: 15 | L20: 14 | M20: 13 | N20: 12 | O20: 11 | P20: 10 | Q20: 9 | R20: 8 | S20: 7 | T20: 6 | U20: 5 | V20: 4 | W20: 3 | X20: 2 | Y20: 1
A24: 47 | B24: Förster Karel | E24: S | F24: 20 | G24: 19 | H24: 18 | I24: 17 | J24: 16 | K24: 15 | L24: 14 | M24: 13 | N24: 12 | O24: 11 | P24: 10 | Q24: 9 | R24: 8 | S24: 7 | T24: 6 | U24: 5 | V24: 4 | W24: 3 | X24: 2 | Y24: 1
A28: 48 | B28: Ulrych Jiří | E28: S | F28: 20 | G28: 19 | H28: 18 | I28: 17 | J28: 16 | K28: 15 | L28: 14 | M28: 13 | N28: 12 | O28: 11 | P28: 10 | Q28: 9 | R28: 8 | S28: 7 | T28: 6 | U28: 5 | V28: 4 | W28: 3 | X28: 2 | Y28: 1
A32: Poznámky:

Sheet Sk9
A2: POLOŽKOVÝ LIST
A3: =Vstup!C2&IF(Vstup!C3<>"",", "&Vstup!C3,"") -> Josefovský brokový trojboj, 60 TERČŮ
A4: =Vstup!C4&", "&Vstup!C5 -> SPORTING, 20.03.2022
A6: Skupina: | C6: 9 | D6: Kolo : | E6: 1 | F6: Rozhodčí: | J6: ____________________________________________________________________________________________ | AJ6: ∑ | AK6: Podpis
A7: St. č. | B7: Příjmení, jméno | E7: Kat. | F7: Terče
A8: 49 | B8: Vaněk Matěj | E8: S | F8: 20 | G8: 19 | H8: 18 | I8: 17 | J8: 16 | K8: 15 | L8: 14 | M8: 13 | N8: 12 | O8: 11 | P8: 10 | Q8: 9 | R8: 8 | S8: 7 | T8: 6 | U8: 5 | V8: 4 | W8: 3 | X8: 2 | Y8: 1
A12: 50 | B12: Noháček Pavel | E12: S | F12: 20 | G12: 19 | H12: 18 | I12: 17 | J12: 16 | K12: 15 | L12: 14 | M12: 13 | N12: 12 | O12: 11 | P12: 10 | Q12: 9 | R12: 8 | S12: 7 | T12: 6 | U12: 5 | V12: 4 | W12: 3 | X12: 2 | Y12: 1
A16: 51 | B16: Kotrbáček Václav | E16: S | F16: 20 | G16: 19 | H16: 18 | I16: 17 | J16: 16 | K16: 15 | L16: 14 | M16: 13 | N16: 12 | O16: 11 | P16: 10 | Q16: 9 | R16: 8 | S16: 7 | T16: 6 | U16: 5 | V16: 4 | W16: 3 | X16: 2 | Y16: 1
A20: 52 | B20: Kubík Jindřich | E20: S | F20: 20 | G20: 19 | H20: 18 | I20: 17 | J20: 16 | K20: 15 | L20: 14 | M20: 13 | N20: 12 | O20: 11 | P20: 10 | Q20: 9 | R20: 8 | S20: 7 | T20: 6 | U20: 5 | V20: 4 | W20: 3 | X20: 2 | Y20: 1
A24: 53 | B24: Čechura Petr | E24: S | F24: 20 | G24: 19 | H24: 18 | I24: 17 | J24: 16 | K24: 15 | L24: 14 | M24: 13 | N24: 12 | O24: 11 | P24: 10 | Q24: 9 | R24: 8 | S24: 7 | T24: 6 | U24: 5 | V24: 4 | W24: 3 | X24: 2 | Y24: 1
A28: 54 | E28: S | F28: 20 | G28: 19 | H28: 18 | I28: 17 | J28: 16 | K28: 15 | L28: 14 | M28: 13 | N28: 12 | O28: 11 | P28: 10 | Q28: 9 | R28: 8 | S28: 7 | T28: 6 | U28: 5 | V28: 4 | W28: 3 | X28: 2 | Y28: 1
A32: Poznámky:

Sheet Sk10 (hidden)
A2: POLOŽKOVÝ LIST
A3: =Vstup!C2&IF(Vstup!C3<>"",", "&Vstup!C3,"") -> Josefovský brokový trojboj, 60 TERČŮ
A4: =Vstup!C4&", "&Vstup!C5 -> SPORTING, 20.03.2022
A6: Skupina: | C6: 10 | D6: Kolo : | E6: 1 | F6: Rozhodčí: | J6: ____________________________________________________________________________________________ | AJ6: ∑ | AK6: Podpis
A7: St. č. | B7: Příjmení, jméno | E7: Kat. | F7: Terče
E8: S | F8: 20 | G8: 19 | H8: 18 | I8: 17 | J8: 16 | K8: 15 | L8: 14 | M8: 13 | N8: 12 | O8: 11 | P8: 10 | Q8: 9 | R8: 8 | S8: 7 | T8: 6 | U8: 5 | V8: 4 | W8: 3 | X8: 2 | Y8: 1
E12: S | F12: 20 | G12: 19 | H12: 18 | I12: 17 | J12: 16 | K12: 15 | L12: 14 | M12: 13 | N12: 12 | O12: 11 | P12: 10 | Q12: 9 | R12: 8 | S12: 7 | T12: 6 | U12: 5 | V12: 4 | W12: 3 | X12: 2 | Y12: 1
E16: S | F16: 20 | G16: 19 | H16: 18 | I16: 17 | J16: 16 | K16: 15 | L16: 14 | M16: 13 | N16: 12 | O16: 11 | P16: 10 | Q16: 9 | R16: 8 | S16: 7 | T16: 6 | U16: 5 | V16: 4 | W16: 3 | X16: 2 | Y16: 1
E20: S | F20: 20 | G20: 19 | H20: 18 | I20: 17 | J20: 16 | K20: 15 | L20: 14 | M20: 13 | N20: 12 | O20: 11 | P20: 10 | Q20: 9 | R20: 8 | S20: 7 | T20: 6 | U20: 5 | V20: 4 | W20: 3 | X20: 2 | Y20: 1
E24: S | F24: 20 | G24: 19 | H24: 18 | I24: 17 | J24: 16 | K24: 15 | L24: 14 | M24: 13 | N24: 12 | O24: 11 | P24: 10 | Q24: 9 | R24: 8 | S24: 7 | T24: 6 | U24: 5 | V24: 4 | W24: 3 | X24: 2 | Y24: 1
E28: S | F28: 20 | G28: 19 | H28: 18 | I28: 17 | J28: 16 | K28: 15 | L28: 14 | M28: 13 | N28: 12 | O28: 11 | P28: 10 | Q28: 9 | R28: 8 | S28: 7 | T28: 6 | U28: 5 | V28: 4 | W28: 3 | X28: 2 | Y28: 1
A32: Poznámky:

Sheet Sk11 (hidden)
A2: POLOŽKOVÝ LIST
A3: =Vstup!C2&IF(Vstup!C3<>"",", "&Vstup!C3,"") -> Josefovský brokový trojboj, 60 TERČŮ
A4: =Vstup!C4&", "&Vstup!C5 -> SPORTING, 20.03.2022
A6: Skupina: | C6: 11 | D6: Kolo : | E6: 1 | F6: Rozhodčí: | J6: ____________________________________________________________________________________________ | AJ6: ∑ | AK6: Podpis
A7: St. č. | B7: Příjmení, jméno | E7: Kat. | F7: Terče
A8: 61 | B8: Racek Petr | E8: B | F8: 20 | G8: 19 | H8: 18 | I8: 17 | J8: 16 | K8: 15 | L8: 14 | M8: 13 | N8: 12 | O8: 11 | P8: 10 | Q8: 9 | R8: 8 | S8: 7 | T8: 6 | U8: 5 | V8: 4 | W8: 3 | X8: 2 | Y8: 1
A12: 62 | B12: Štengl Jiří | E12: A | F12: 20 | G12: 19 | H12: 18 | I12: 17 | J12: 16 | K12: 15 | L12: 14 | M12: 13 | N12: 12 | O12: 11 | P12: 10 | Q12: 9 | R12: 8 | S12: 7 | T12: 6 | U12: 5 | V12: 4 | W12: 3 | X12: 2 | Y12: 1
A16: 63 | B16: Kubal Zdeněk | F16: 20 | G16: 19 | H16: 18 | I16: 17 | J16: 16 | K16: 15 | L16: 14 | M16: 13 | N16: 12 | O16: 11 | P16: 10 | Q16: 9 | R16: 8 | S16: 7 | T16: 6 | U16: 5 | V16: 4 | W16: 3 | X16: 2 | Y16: 1
A20: 64 | B20: Hrubý Josef | F20: 20 | G20: 19 | H20: 18 | I20: 17 | J20: 16 | K20: 15 | L20: 14 | M20: 13 | N20: 12 | O20: 11 | P20: 10 | Q20: 9 | R20: 8 | S20: 7 | T20: 6 | U20: 5 | V20: 4 | W20: 3 | X20: 2 | Y20: 1
A24: 65 | B24: Zeman Milan | F24: 20 | G24: 19 | H24: 18 | I24: 17 | J24: 16 | K24: 15 | L24: 14 | M24: 13 | N24: 12 | O24: 11 | P24: 10 | Q24: 9 | R24: 8 | S24: 7 | T24: 6 | U24: 5 | V24: 4 | W24: 3 | X24: 2 | Y24: 1
A28: 66 | B28: Frenkl Jiří | F28: 20 | G28: 19 | H28: 18 | I28: 17 | J28: 16 | K28: 15 | L28: 14 | M28: 13 | N28: 12 | O28: 11 | P28: 10 | Q28: 9 | R28: 8 | S28: 7 | T28: 6 | U28: 5 | V28: 4 | W28: 3 | X28: 2 | Y28: 1
A32: Poznámky:

Sheet Sk12 (hidden)
A2: POLOŽKOVÝ LIST
A3: =Vstup!C2&IF(Vstup!C3<>"",", "&Vstup!C3,"") -> Josefovský brokový trojboj, 60 TERČŮ
A4: =Vstup!C4&", "&Vstup!C5 -> SPORTING, 20.03.2022
A6: Skupina: | C6: 12 | D6: Kolo : | E6: 1 | F6: Rozhodčí: | J6: ____________________________________________________________________________________________ | AJ6: ∑ | AK6: Podpis
A7: St. č. | B7: Příjmení, jméno | E7: Kat. | F7: Terče
A8: 67 | F8: 20 | G8: 19 | H8: 18 | I8: 17 | J8: 16 | K8: 15 | L8: 14 | M8: 13 | N8: 12 | O8: 11 | P8: 10 | Q8: 9 | R8: 8 | S8: 7 | T8: 6 | U8: 5 | V8: 4 | W8: 3 | X8: 2 | Y8: 1
A12: 68 | F12: 20 | G12: 19 | H12: 18 | I12: 17 | J12: 16 | K12: 15 | L12: 14 | M12: 13 | N12: 12 | O12: 11 | P12: 10 | Q12: 9 | R12: 8 | S12: 7 | T12: 6 | U12: 5 | V12: 4 | W12: 3 | X12: 2 | Y12: 1
A16: 69 | F16: 20 | G16: 19 | H16: 18 | I16: 17 | J16: 16 | K16: 15 | L16: 14 | M16: 13 | N16: 12 | O16: 11 | P16: 10 | Q16: 9 | R16: 8 | S16: 7 | T16: 6 | U16: 5 | V16: 4 | W16: 3 | X16: 2 | Y16: 1
A20: 70 | F20: 20 | G20: 19 | H20: 18 | I20: 17 | J20: 16 | K20: 15 | L20: 14 | M20: 13 | N20: 12 | O20: 11 | P20: 10 | Q20: 9 | R20: 8 | S20: 7 | T20: 6 | U20: 5 | V20: 4 | W20: 3 | X20: 2 | Y20: 1
A24: 71 | F24: 20 | G24: 19 | H24: 18 | I24: 17 | J24: 16 | K24: 15 | L24: 14 | M24: 13 | N24: 12 | O24: 11 | P24: 10 | Q24: 9 | R24: 8 | S24: 7 | T24: 6 | U24: 5 | V24: 4 | W24: 3 | X24: 2 | Y24: 1
A28: 72 | F28: 20 | G28: 19 | H28: 18 | I28: 17 | J28: 16 | K28: 15 | L28: 14 | M28: 13 | N28: 12 | O28: 11 | P28: 10 | Q28: 9 | R28: 8 | S28: 7 | T28: 6 | U28: 5 | V28: 4 | W28: 3 | X28: 2 | Y28: 1
A32: Poznámky:

Sheet Sk13 (hidden)
A2: POLOŽKOVÝ LIST
A3: =Vstup!C2&IF(Vstup!C3<>"",", "&Vstup!C3,"") -> Josefovský brokový trojboj, 60 TERČŮ
A4: =Vstup!C4&", "&Vstup!C5 -> SPORTING, 20.03.2022
A6: Skupina: | C6: 13 | D6: Kolo : | E6: 1 | F6: Rozhodčí: | J6: ____________________________________________________________________________________________ | AJ6: ∑ | AK6: Podpis
A7: St. č. | B7: Příjmení, jméno | E7: Kat. | F7: Terče
A8: 73 | F8: 20 | G8: 19 | H8: 18 | I8: 17 | J8: 16 | K8: 15 | L8: 14 | M8: 13 | N8: 12 | O8: 11 | P8: 10 | Q8: 9 | R8: 8 | S8: 7 | T8: 6 | U8: 5 | V8: 4 | W8: 3 | X8: 2 | Y8: 1
A12: 74 | F12: 20 | G12: 19 | H12: 18 | I12: 17 | J12: 16 | K12: 15 | L12: 14 | M12: 13 | N12: 12 | O12: 11 | P12: 10 | Q12: 9 | R12: 8 | S12: 7 | T12: 6 | U12: 5 | V12: 4 | W12: 3 | X12: 2 | Y12: 1
A16: 75 | F16: 20 | G16: 19 | H16: 18 | I16: 17 | J16: 16 | K16: 15 | L16: 14 | M16: 13 | N16: 12 | O16: 11 | P16: 10 | Q16: 9 | R16: 8 | S16: 7 | T16: 6 | U16: 5 | V16: 4 | W16: 3 | X16: 2 | Y16: 1
A20: 76 | F20: 20 | G20: 19 | H20: 18 | I20: 17 | J20: 16 | K20: 15 | L20: 14 | M20: 13 | N20: 12 | O20: 11 | P20: 10 | Q20: 9 | R20: 8 | S20: 7 | T20: 6 | U20: 5 | V20: 4 | W20: 3 | X20: 2 | Y20: 1
A24: 77 | F24: 20 | G24: 19 | H24: 18 | I24: 17 | J24: 16 | K24: 15 | L24: 14 | M24: 13 | N24: 12 | O24: 11 | P24: 10 | Q24: 9 | R24: 8 | S24: 7 | T24: 6 | U24: 5 | V24: 4 | W24: 3 | X24: 2 | Y24: 1
A28: 78 | F28: 20 | G28: 19 | H28: 18 | I28: 17 | J28: 16 | K28: 15 | L28: 14 | M28: 13 | N28: 12 | O28: 11 | P28: 10 | Q28: 9 | R28: 8 | S28: 7 | T28: 6 | U28: 5 | V28: 4 | W28: 3 | X28: 2 | Y28: 1
A32: Poznámky:

Sheet Sk14 (hidden)
A2: POLOŽKOVÝ LIST
A3: =Vstup!C2&IF(Vstup!C3<>"",", "&Vstup!C3,"") -> Josefovský brokový trojboj, 60 TERČŮ
A4: =Vstup!C4&", "&Vstup!C5 -> SPORTING, 20.03.2022
A6: Skupina: | C6: 14 | D6: Kolo : | E6: 1 | F6: Rozhodčí: | J6: ____________________________________________________________________________________________ | AJ6: ∑ | AK6: Podpis
A7: St. č. | B7: Příjmení, jméno | E7: Kat. | F7: Terče
A8: 79 | F8: 20 | G8: 19 | H8: 18 | I8: 17 | J8: 16 | K8: 15 | L8: 14 | M8: 13 | N8: 12 | O8: 11 | P8: 10 | Q8: 9 | R8: 8 | S8: 7 | T8: 6 | U8: 5 | V8: 4 | W8: 3 | X8: 2 | Y8: 1
A12: 80 | F12: 20 | G12: 19 | H12: 18 | I12: 17 | J12: 16 | K12: 15 | L12: 14 | M12: 13 | N12: 12 | O12: 11 | P12: 10 | Q12: 9 | R12: 8 | S12: 7 | T12: 6 | U12: 5 | V12: 4 | W12: 3 | X12: 2 | Y12: 1
A16: 81 | F16: 20 | G16: 19 | H16: 18 | I16: 17 | J16: 16 | K16: 15 | L16: 14 | M16: 13 | N16: 12 | O16: 11 | P16: 10 | Q16: 9 | R16: 8 | S16: 7 | T16: 6 | U16: 5 | V16: 4 | W16: 3 | X16: 2 | Y16: 1
A20: 82 | F20: 20 | G20: 19 | H20: 18 | I20: 17 | J20: 16 | K20: 15 | L20: 14 | M20: 13 | N20: 12 | O20: 11 | P20: 10 | Q20: 9 | R20: 8 | S20: 7 | T20: 6 | U20: 5 | V20: 4 | W20: 3 | X20: 2 | Y20: 1
A24: 83 | F24: 20 | G24: 19 | H24: 18 | I24: 17 | J24: 16 | K24: 15 | L24: 14 | M24: 13 | N24: 12 | O24: 11 | P24: 10 | Q24: 9 | R24: 8 | S24: 7 | T24: 6 | U24: 5 | V24: 4 | W24: 3 | X24: 2 | Y24: 1
A28: 84 | F28: 20 | G28: 19 | H28: 18 | I28: 17 | J28: 16 | K28: 15 | L28: 14 | M28: 13 | N28: 12 | O28: 11 | P28: 10 | Q28: 9 | R28: 8 | S28: 7 | T28: 6 | U28: 5 | V28: 4 | W28: 3 | X28: 2 | Y28: 1
A32: Poznámky:

Sheet Sk15 (hidden)
A2: POLOŽKOVÝ LIST
A3: =Vstup!C2&IF(Vstup!C3<>"",", "&Vstup!C3,"") -> Josefovský brokový trojboj, 60 TERČŮ
A4: =Vstup!C4&", "&Vstup!C5 -> SPORTING, 20.03.2022
A6: Skupina: | C6: 15 | D6: Kolo : | E6: 8 | F6: Rozhodčí: | J6: ____________________________________________________________________________________________ | AJ6: ∑ | AK6: Podpis
A7: St. č. | B7: Příjmení, jméno | E7: Kat. | F7: Terče
A8: 86 | B8: Štengl Jiří | E8: A | F8: 20 | G8: 19 | H8: 18 | I8: 17 | J8: 16 | K8: 15 | L8: 14 | M8: 13 | N8: 12 | O8: 11 | P8: 10 | Q8: 9 | R8: 8 | S8: 7 | T8: 6 | U8: 5 | V8: 4 | W8: 3 | X8: 2 | Y8: 1
A12: 87 | B12: Zigo Martin | E12: A | F12: 20 | G12: 19 | H12: 18 | I12: 17 | J12: 16 | K12: 15 | L12: 14 | M12: 13 | N12: 12 | O12: 11 | P12: 10 | Q12: 9 | R12: 8 | S12: 7 | T12: 6 | U12: 5 | V12: 4 | W12: 3 | X12: 2 | Y12: 1
A16: 88 | B16: Špaček Pavel | E16: A | F16: 20 | G16: 19 | H16: 18 | I16: 17 | J16: 16 | K16: 15 | L16: 14 | M16: 13 | N16: 12 | O16: 11 | P16: 10 | Q16: 9 | R16: 8 | S16: 7 | T16: 6 | U16: 5 | V16: 4 | W16: 3 | X16: 2 | Y16: 1
A20: 89 | F20: 20 | G20: 19 | H20: 18 | I20: 17 | J20: 16 | K20: 15 | L20: 14 | M20: 13 | N20: 12 | O20: 11 | P20: 10 | Q20: 9 | R20: 8 | S20: 7 | T20: 6 | U20: 5 | V20: 4 | W20: 3 | X20: 2 | Y20: 1
A24: 90 | F24: 20 | G24: 19 | H24: 18 | I24: 17 | J24: 16 | K24: 15 | L24: 14 | M24: 13 | N24: 12 | O24: 11 | P24: 10 | Q24: 9 | R24: 8 | S24: 7 | T24: 6 | U24: 5 | V24: 4 | W24: 3 | X24: 2 | Y24: 1
A28: 85 | B28: Otáhal Milan | E28: V | F28: 20 | G28: 19 | H28: 18 | I28: 17 | J28: 16 | K28: 15 | L28: 14 | M28: 13 | N28: 12 | O28: 11 | P28: 10 | Q28: 9 | R28: 8 | S28: 7 | T28: 6 | U28: 5 | V28: 4 | W28: 3 | X28: 2 | Y28: 1
A32: Poznámky:

Sheet Sk16 (hidden)
A2: POLOŽKOVÝ LIST
A3: =Vstup!C2&IF(Vstup!C3<>"",", "&Vstup!C3,"") -> Josefovský brokový trojboj, 60 TERČŮ
A4: =Vstup!C4&", "&Vstup!C5 -> SPORTING, 20.03.2022
A6: Skupina: | C6: 16 | D6: Kolo : | E6: 1 | F6: Rozhodčí: | J6: ____________________________________________________________________________________________ | AJ6: ∑ | AK6: Podpis
A7: St. č. | B7: Příjmení, jméno | E7: Kat. | F7: Terče
A8: 91 | F8: 20 | G8: 19 | H8: 18 | I8: 17 | J8: 16 | K8: 15 | L8: 14 | M8: 13 | N8: 12 | O8: 11 | P8: 10 | Q8: 9 | R8: 8 | S8: 7 | T8: 6 | U8: 5 | V8: 4 | W8: 3 | X8: 2 | Y8: 1
A12: 92 | F12: 20 | G12: 19 | H12: 18 | I12: 17 | J12: 16 | K12: 15 | L12: 14 | M12: 13 | N12: 12 | O12: 11 | P12: 10 | Q12: 9 | R12: 8 | S12: 7 | T12: 6 | U12: 5 | V12: 4 | W12: 3 | X12: 2 | Y12: 1
A16: 93 | F16: 20 | G16: 19 | H16: 18 | I16: 17 | J16: 16 | K16: 15 | L16: 14 | M16: 13 | N16: 12 | O16: 11 | P16: 10 | Q16: 9 | R16: 8 | S16: 7 | T16: 6 | U16: 5 | V16: 4 | W16: 3 | X16: 2 | Y16: 1
A20: 94 | F20: 20 | G20: 19 | H20: 18 | I20: 17 | J20: 16 | K20: 15 | L20: 14 | M20: 13 | N20: 12 | O20: 11 | P20: 10 | Q20: 9 | R20: 8 | S20: 7 | T20: 6 | U20: 5 | V20: 4 | W20: 3 | X20: 2 | Y20: 1
A24: 95 | F24: 20 | G24: 19 | H24: 18 | I24: 17 | J24: 16 | K24: 15 | L24: 14 | M24: 13 | N24: 12 | O24: 11 | P24: 10 | Q24: 9 | R24: 8 | S24: 7 | T24: 6 | U24: 5 | V24: 4 | W24: 3 | X24: 2 | Y24: 1
A28: 96 | F28: 20 | G28: 19 | H28: 18 | I28: 17 | J28: 16 | K28: 15 | L28: 14 | M28: 13 | N28: 12 | O28: 11 | P28: 10 | Q28: 9 | R28: 8 | S28: 7 | T28: 6 | U28: 5 | V28: 4 | W28: 3 | X28: 2 | Y28: 1
A32: Poznámky:

Sheet Sk17 (hidden)
A2: POLOŽKOVÝ LIST
A3: =Vstup!C2&IF(Vstup!C3<>"",", "&Vstup!C3,"") -> Josefovský brokový trojboj, 60 TERČŮ
A4: =Vstup!C4&", "&Vstup!C5 -> SPORTING, 20.03.2022
A6: Skupina: | C6: 17 | D6: Kolo : | E6: 1 | F6: Rozhodčí: | J6: ____________________________________________________________________________________________ | AJ6: ∑ | AK6: Podpis
A7: St. č. | B7: Příjmení, jméno | E7: Kat. | F7: Terče
A8: 97 | F8: 20 | G8: 19 | H8: 18 | I8: 17 | J8: 16 | K8: 15 | L8: 14 | M8: 13 | N8: 12 | O8: 11 | P8: 10 | Q8: 9 | R8: 8 | S8: 7 | T8: 6 | U8: 5 | V8: 4 | W8: 3 | X8: 2 | Y8: 1
A12: 98 | F12: 20 | G12: 19 | H12: 18 | I12: 17 | J12: 16 | K12: 15 | L12: 14 | M12: 13 | N12: 12 | O12: 11 | P12: 10 | Q12: 9 | R12: 8 | S12: 7 | T12: 6 | U12: 5 | V12: 4 | W12: 3 | X12: 2 | Y12: 1
A16: 99 | F16: 20 | G16: 19 | H16: 18 | I16: 17 | J16: 16 | K16: 15 | L16: 14 | M16: 13 | N16: 12 | O16: 11 | P16: 10 | Q16: 9 | R16: 8 | S16: 7 | T16: 6 | U16: 5 | V16: 4 | W16: 3 | X16: 2 | Y16: 1
A20: 100 | F20: 20 | G20: 19 | H20: 18 | I20: 17 | J20: 16 | K20: 15 | L20: 14 | M20: 13 | N20: 12 | O20: 11 | P20: 10 | Q20: 9 | R20: 8 | S20: 7 | T20: 6 | U20: 5 | V20: 4 | W20: 3 | X20: 2 | Y20: 1
A24: 101 | F24: 20 | G24: 19 | H24: 18 | I24: 17 | J24: 16 | K24: 15 | L24: 14 | M24: 13 | N24: 12 | O24: 11 | P24: 10 | Q24: 9 | R24: 8 | S24: 7 | T24: 6 | U24: 5 | V24: 4 | W24: 3 | X24: 2 | Y24: 1
A28: 102 | F28: 20 | G28: 19 | H28: 18 | I28: 17 | J28: 16 | K28: 15 | L28: 14 | M28: 13 | N28: 12 | O28: 11 | P28: 10 | Q28: 9 | R28: 8 | S28: 7 | T28: 6 | U28: 5 | V28: 4 | W28: 3 | X28: 2 | Y28: 1
A32: Poznámky:

Sheet Sk18 (hidden)
A2: POLOŽKOVÝ LIST
A3: =Vstup!C2&IF(Vstup!C3<>"",", "&Vstup!C3,"") -> Josefovský brokový trojboj, 60 TERČŮ
A4: =Vstup!C4&", "&Vstup!C5 -> SPORTING, 20.03.2022
A6: Skupina: | C6: 18 | D6: Kolo : | E6: 1 | F6: Rozhodčí: | J6: ____________________________________________________________________________________________ | AJ6: ∑ | AK6: Podpis
A7: St. č. | B7: Příjmení, jméno | E7: Kat. | F7: Terče
A8: 103 | F8: 20 | G8: 19 | H8: 18 | I8: 17 | J8: 16 | K8: 15 | L8: 14 | M8: 13 | N8: 12 | O8: 11 | P8: 10 | Q8: 9 | R8: 8 | S8: 7 | T8: 6 | U8: 5 | V8: 4 | W8: 3 | X8: 2 | Y8: 1
A12: 104 | F12: 20 | G12: 19 | H12: 18 | I12: 17 | J12: 16 | K12: 15 | L12: 14 | M12: 13 | N12: 12 | O12: 11 | P12: 10 | Q12: 9 | R12: 8 | S12: 7 | T12: 6 | U12: 5 | V12: 4 | W12: 3 | X12: 2 | Y12: 1
A16: 105 | F16: 20 | G16: 19 | H16: 18 | I16: 17 | J16: 16 | K16: 15 | L16: 14 | M16: 13 | N16: 12 | O16: 11 | P16: 10 | Q16: 9 | R16: 8 | S16: 7 | T16: 6 | U16: 5 | V16: 4 | W16: 3 | X16: 2 | Y16: 1
A20: 106 | F20: 20 | G20: 19 | H20: 18 | I20: 17 | J20: 16 | K20: 15 | L20: 14 | M20: 13 | N20: 12 | O20: 11 | P20: 10 | Q20: 9 | R20: 8 | S20: 7 | T20: 6 | U20: 5 | V20: 4 | W20: 3 | X20: 2 | Y20: 1
A24: 107 | F24: 20 | G24: 19 | H24: 18 | I24: 17 | J24: 16 | K24: 15 | L24: 14 | M24: 13 | N24: 12 | O24: 11 | P24: 10 | Q24: 9 | R24: 8 | S24: 7 | T24: 6 | U24: 5 | V24: 4 | W24: 3 | X24: 2 | Y24: 1
A28: 108 | F28: 20 | G28: 19 | H28: 18 | I28: 17 | J28: 16 | K28: 15 | L28: 14 | M28: 13 | N28: 12 | O28: 11 | P28: 10 | Q28: 9 | R28: 8 | S28: 7 | T28: 6 | U28: 5 | V28: 4 | W28: 3 | X28: 2 | Y28: 1
A32: Poznámky:

Sheet Sk19 (hidden)
A2: POLOŽKOVÝ LIST
A3: =Vstup!C2&IF(Vstup!C3<>"",", "&Vstup!C3,"") -> Josefovský brokový trojboj, 60 TERČŮ
A4: =Vstup!C4&", "&Vstup!C5 -> SPORTING, 20.03.2022
A6: Skupina: | C6: 19 | D6: Kolo : | E6: 1 | F6: Rozhodčí: | J6: ____________________________________________________________________________________________ | AJ6: ∑ | AK6: Podpis
A7: St. č. | B7: Příjmení, jméno | E7: Kat. | F7: Terče
A8: 109 | F8: 20 | G8: 19 | H8: 18 | I8: 17 | J8: 16 | K8: 15 | L8: 14 | M8: 13 | N8: 12 | O8: 11 | P8: 10 | Q8: 9 | R8: 8 | S8: 7 | T8: 6 | U8: 5 | V8: 4 | W8: 3 | X8: 2 | Y8: 1
A12: 110 | F12: 20 | G12: 19 | H12: 18 | I12: 17 | J12: 16 | K12: 15 | L12: 14 | M12: 13 | N12: 12 | O12: 11 | P12: 10 | Q12: 9 | R12: 8 | S12: 7 | T12: 6 | U12: 5 | V12: 4 | W12: 3 | X12: 2 | Y12: 1
A16: 111 | F16: 20 | G16: 19 | H16: 18 | I16: 17 | J16: 16 | K16: 15 | L16: 14 | M16: 13 | N16: 12 | O16: 11 | P16: 10 | Q16: 9 | R16: 8 | S16: 7 | T16: 6 | U16: 5 | V16: 4 | W16: 3 | X16: 2 | Y16: 1
A20: 112 | F20: 20 | G20: 19 | H20: 18 | I20: 17 | J20: 16 | K20: 15 | L20: 14 | M20: 13 | N20: 12 | O20: 11 | P20: 10 | Q20: 9 | R20: 8 | S20: 7 | T20: 6 | U20: 5 | V20: 4 | W20: 3 | X20: 2 | Y20: 1
A24: 113 | F24: 20 | G24: 19 | H24: 18 | I24: 17 | J24: 16 | K24: 15 | L24: 14 | M24: 13 | N24: 12 | O24: 11 | P24: 10 | Q24: 9 | R24: 8 | S24: 7 | T24: 6 | U24: 5 | V24: 4 | W24: 3 | X24: 2 | Y24: 1
A28: 114 | F28: 20 | G28: 19 | H28: 18 | I28: 17 | J28: 16 | K28: 15 | L28: 14 | M28: 13 | N28: 12 | O28: 11 | P28: 10 | Q28: 9 | R28: 8 | S28: 7 | T28: 6 | U28: 5 | V28: 4 | W28: 3 | X28: 2 | Y28: 1
A32: Poznámky:

Sheet Sk20 (hidden)
A2: POLOŽKOVÝ LIST
A3: =Vstup!C2&IF(Vstup!C3<>"",", "&Vstup!C3,"") -> Josefovský brokový trojboj, 60 TERČŮ
A4: =Vstup!C4&", "&Vstup!C5 -> SPORTING, 20.03.2022
A6: Skupina: | C6: 20 | D6: Kolo : | E6: 1 | F6: Rozhodčí: | J6: ____________________________________________________________________________________________ | AJ6: ∑ | AK6: Podpis
A7: St. č. | B7: Příjmení, jméno | E7: Kat. | F7: Terče
A8: 115 | F8: 20 | G8: 19 | H8: 18 | I8: 17 | J8: 16 | K8: 15 | L8: 14 | M8: 13 | N8: 12 | O8: 11 | P8: 10 | Q8: 9 | R8: 8 | S8: 7 | T8: 6 | U8: 5 | V8: 4 | W8: 3 | X8: 2 | Y8: 1
A12: 116 | F12: 20 | G12: 19 | H12: 18 | I12: 17 | J12: 16 | K12: 15 | L12: 14 | M12: 13 | N12: 12 | O12: 11 | P12: 10 | Q12: 9 | R12: 8 | S12: 7 | T12: 6 | U12: 5 | V12: 4 | W12: 3 | X12: 2 | Y12: 1
A16: 117 | F16: 20 | G16: 19 | H16: 18 | I16: 17 | J16: 16 | K16: 15 | L16: 14 | M16: 13 | N16: 12 | O16: 11 | P16: 10 | Q16: 9 | R16: 8 | S16: 7 | T16: 6 | U16: 5 | V16: 4 | W16: 3 | X16: 2 | Y16: 1
A20: 118 | F20: 20 | G20: 19 | H20: 18 | I20: 17 | J20: 16 | K20: 15 | L20: 14 | M20: 13 | N20: 12 | O20: 11 | P20: 10 | Q20: 9 | R20: 8 | S20: 7 | T20: 6 | U20: 5 | V20: 4 | W20: 3 | X20: 2 | Y20: 1
A24: 119 | F24: 20 | G24: 19 | H24: 18 | I24: 17 | J24: 16 | K24: 15 | L24: 14 | M24: 13 | N24: 12 | O24: 11 | P24: 10 | Q24: 9 | R24: 8 | S24: 7 | T24: 6 | U24: 5 | V24: 4 | W24: 3 | X24: 2 | Y24: 1
A28: 120 | F28: 20 | G28: 19 | H28: 18 | I28: 17 | J28: 16 | K28: 15 | L28: 14 | M28: 13 | N28: 12 | O28: 11 | P28: 10 | Q28: 9 | R28: 8 | S28: 7 | T28: 6 | U28: 5 | V28: 4 | W28: 3 | X28: 2 | Y28: 1
A32: Poznámky:

Sheet ASAT (hidden)
D1: K A T E G O R I E A S A T 2 0 1 3
I2: Ústaleč CS160 | J2: Ústaleč LP150 | K2: Vráž LP100 | L2: Písek ČMMJ CS100 | M2: Ústaleč LP150 | N2: Brno CS150 | O2: Ústaleč CS150 | P2: Bzenec LP200 | Q2: Ústaleč LP200 | R2: Písek LP120 | S2: Š. Dvory CS200 | T2: Ústaleč LP150 | U2: Dnešice LP150 | V2: Ústaleč LP160 | W2: Vráž LP100 | X2: Počet absol. závodů | Y2: Celkový počet terčů | Z2: Celkový počet zásahů | AA2: Průměr | AB2: Kategorie
D3: Přijmeni | E3: Jméno | G3: Kat | H3: Datum narození | I3: 25.3. | J3: 7.4. | K3: 22.4. | L3: 29.4. | M3: 8.5. | N3: 19.5. | O3: 2.6. | P3: 16.-17.6. | Q3: 5.-6.7. | R3: 21.7. | S3: 4.-5.8. | T3: 11.8. | U3: 2.9. | V3: 15.9. | W3: 6.10.
I4: 160 | J4: 150 | K4: 100 | L4: 100 | M4: 150 | N4: 150 | O4: 150 | P4: 200 | Q4: 200 | R4: 120 | S4: 200 | T4: 150 | U4: 150 | V4: 160 | W4: 100
A5: =D5&" "&E5&F5 -> Čech Petr | B5: =AB5 -> J | D5: Čech | E5: Petr | G5: J | L5: 79 | X5: =COUNTIF(I5:W5,">0") -> 1 | Y5: =IF(I5,$I$4) +IF(J5,$J$4) + IF(K5,$K$4) +IF(L5,$L$4) +IF(M5,$M$4) +IF(N5,$N$4) +IF(O5,$O$4) +IF(P5,$P$4) +IF(Q5,$Q$4) +IF(R5,$R$4) +IF(S5,$S$4) +IF(T5,$T$4) +IF(U5,$U$4) +IF(V5,$V$4) +IF(W5,$W$4) -> 100 | Z5: =SUM(I5:W5) -> 79 | AA5: =IF(Y5=0,0,Z5/Y5) -> 79.0% | AB5: J
A6: =D6&" "&E6&F6 -> Chocholatý Libor | B6: =AB6 -> J | D6: Chocholatý | E6: Libor | G6: J | L6: 78 | X6: 1 | Y6: 100 | Z6: 78 | AA6: 78.0% | AB6: J
A7: Hřebec Jan ml. | B7: J | D7: Hřebec | E7: Jan | F7: ml. | G7: J | I7: 117 | J7: 94 | K7: 78 | L7: 75 | N7: 97 | O7: 107 | P7: 141 | Q7: 136 | S7: 165 | T7: 113 | U7: 101 | W7: 66 | X7: 12 | Y7: 1810 | Z7: 1290 | AA7: 71.3% | AB7: J
A8: Kopáček Radim | B8: J | D8: Kopáček | E8: Radim | G8: J | L8: 82 | R8: 81 | W8: 62 | X8: 3 | Y8: 320 | Z8: 225 | AA8: 70.3% | AB8: J
A9: Divíšek Martin ml. | B9: J | D9: Divíšek | E9: Martin | F9: ml. | G9: J | I9: 98 | J9: 97 | L9: 65 | M9: 72 | O9: 99 | R9: 81 | S9: 138 | T9: 103 | U9: 102 | W9: 83 | X9: 10 | Y9: 1430 | Z9: 938 | AA9: 65.6% | AB9: J
A10: Vaněk Matěj | B10: J | D10: Vaněk | E10: Matěj | G10: J | I10: 121 | L10: 65 | M10: 91 | Q10: 132 | U10: 84 | X10: 5 | Y10: 760 | Z10: 493 | AA10: 64.9% | AB10: J
A11: Linhart Filip | B11: J | D11: Linhart | E11: Filip | G11: J | P11: 128 | W11: 62 | X11: 2 | Y11: 300 | Z11: 190 | AA11: 63.3% | AB11: J
A12: Korčák Daniel | B12: J | D12: Korčák | E12: Daniel | G12: J | L12: 63 | X12: 1 | Y12: 100 | Z12: 63 | AA12: 63.0% | AB12: J
A13: Čechura Miroslav | B13: J | D13: Čechura | E13: Miroslav | G13: J | I13: 91 | J13: 82 | X13: 2 | Y13: 310 | Z13: 173 | AA13: 55.8% | AB13: J
A14: Šindelář Jiří ml. | B14: J | D14: Šindelář | E14: Jiří | F14: ml. | G14: J | U14: 81 | X14: 1 | Y14: 150 | Z14: 81 | AA14: 54.0% | AB14: J
A15: Můčka Michal | B15: J | D15: Můčka | E15: Michal | G15: J | K15: 53 | Q15: 107 | U15: 74 | W15: 62 | X15: 4 | Y15: 550 | Z15: 296 | AA15: 53.8% | AB15: J
A16: Ferkl Jan ml. | B16: J | D16: Ferkl | E16: Jan | F16: ml. | G16: J | H16: 1994-11-22 | X16: 0 | Y16: 0 | Z16: 0 | AA16: 0.0% | AB16: J
A17: Mikula Petr | B17: J | D17: Mikula | E17: Petr | G17: J | X17: 0 | Y17: 0 | Z17: 0 | AA17: 0.0% | AB17: J
A18: Štenglová Michaela | B18: Ž | D18: Štenglová | E18: Michaela | G18: Ž | J18: 77 | K18: 69 | L18: 67 | O18: 103 | P18: 144 | Q18: 129 | R18: 64 | U18: 91 | V18: 95 | W18: 58 | X18: 10 | Y18: 1430 | Z18: 897 | AA18: 62.7% | AB18: Ž
A19: Urie Zuzana | B19: Ž | D19: Urie | E19: Zuzana | G19: Ž | K19: 57 | R19: 64 | W19: 70 | X19: 3 | Y19: 320 | Z19: 191 | AA19: 59.7% | AB19: Ž
A20: Staňková Eva | B20: Ž | D20: Staňková | E20: Eva | G20: Ž | L20: 59 | Q20: 118 | X20: 2 | Y20: 300 | Z20: 177 | AA20: 59.0% | AB20: Ž
A21: Bajtlová Helena | B21: Ž | D21: Bajtlová | E21: Helena | G21: Ž | K21: 52 | X21: 1 | Y21: 100 | Z21: 52 | AA21: 52.0% | AB21: Ž
A22: Hýnová Šárka | B22: Ž | D22: Hýnová | E22: Šárka | G22: Ž | I22: 61 | X22: 1 | Y22: 160 | Z22: 61 | AA22: 38.1% | AB22: Ž
A23: Krejzová Vlasta | B23: Ž | D23: Krejzová | E23: Vlasta | G23: Ž | H23: 1959-06-27 | X23: 0 | Y23: 0 | Z23: 0 | AA23: 0.0% | AB23: Ž
A24: Víchová Anna | B24: Ž | D24: Víchová | E24: Anna | G24: Ž | X24: 0 | Y24: 0 | Z24: 0 | AA24: 0.0% | AB24: Ž
A25: Wlodarczyk Remigiusz | B25: A | D25: Wlodarczyk | E25: Remigiusz | G25: S | O25: 137 | X25: 1 | Y25: 150 | Z25: 137 | AA25: 91.3% | AB25: A
A26: Zvolánek Petr | B26: A | D26: Zvolánek | E26: Petr | G26: S | H26: 1969-12-16 | T26: 137 | X26: 1 | Y26: 150 | Z26: 137 | AA26: 91.3% | AB26: A
A27: Kořínek Jindřich | B27: A | D27: Kořínek | E27: Jindřich | G27: S | H27: 1960-04-05 | L27: 89 | X27: 1 | Y27: 100 | Z27: 89 | AA27: 89.0% | AB27: A
A28: Mrhálek Karel | B28: A | D28: Mrhálek | E28: Karel | G28: S | H28: 1960-06-27 | L28: 88 | X28: 1 | Y28: 100 | Z28: 88 | AA28: 88.0% | AB28: A
A29: Špaček Pavel | B29: A | D29: Špaček | E29: Pavel | G29: S | K29: 87 | L29: 85 | P29: 183 | S29: 184 | U29: 111 | X29: 5 | Y29: 750 | Z29: 650 | AA29: 86.7% | AB29: A
A30: Zázvorka Pavel | B30: A | D30: Zázvorka | E30: Pavel | G30: S | H30: 1962-10-05 | I30: 148 | J30: 126 | K30: 90 | L30: 95 | M30: 121 | O30: 142 | Q30: 174 | R30: 101 | U30: 118 | V30: 124 | W30: 86 | X30: 11 | Y30: 1540 | Z30: 1325 | AA30: 86.0% | AB30: A
A31: Rybín Milan | B31: A | D31: Rybín | E31: Milan | G31: S | H31: 1967-09-11 | I31: 147 | J31: 113 | L31: 84 | M31: 119 | O31: 138 | P31: 173 | Q31: 170 | R31: 104 | S31: 187 | T31: 125 | U31: 116 | V31: 133 | W31: 89 | X31: 13 | Y31: 1990 | Z31: 1698 | AA31: 85.3% | AB31: A
A32: Lyczykowski Kryzstof | B32: A | D32: Lyczykowski | E32: Kryzstof | G32: S | N32: 127 | X32: 1 | Y32: 150 | Z32: 127 | AA32: 84.7% | AB32: A
A33: Činčera Přemysl | B33: A | D33: Činčera | E33: Přemysl | G33: S | H33: 1963-10-02 | I33: 140 | J33: 124 | K33: 90 | L33: 89 | M33: 116 | O33: 143 | Q33: 168 | R33: 96 | T33: 132 | U33: 118 | V33: 121 | W33: 92 | X33: 12 | Y33: 1690 | Z33: 1429 | AA33: 84.6% | AB33: A
A34: Můčka Igor | B34: A | D34: Můčka | E34: Igor | G34: S | H34: 1967-12-11 | K34: 96 | L34: 85 | P34: 174 | Q34: 159 | U34: 115 | W34: 81 | X34: 6 | Y34: 850 | Z34: 710 | AA34: 83.5% | AB34: A
A35: Plucinski Marcin | B35: A | D35: Plucinski | E35: Marcin | G35: S | N35: 125 | X35: 1 | Y35: 150 | Z35: 125 | AA35: 83.3% | AB35: A
A36: Michálek Lubomír | B36: A | D36: Michálek | E36: Lubomír | G36: S | H36: 1967-03-10 | I36: 139 | J36: 125 | M36: 108 | N36: 119 | O36: 129 | P36: 176 | Q36: 152 | R36: 101 | S36: 186 | V36: 128 | X36: 10 | Y36: 1640 | Z36: 1363 | AA36: 83.1% | AB36: A
A37: Halouzka Benedikt | B37: A | D37: Halouzka | E37: Benedikt | G37: S | H37: 1964-04-08 | I37: 132 | K37: 85 | W37: 81 | X37: 3 | Y37: 360 | Z37: 298 | AA37: 82.8% | AB37: A
A38: Kaminski Marcin | B38: A | D38: Kaminski | E38: Marcin | G38: S | N38: 124 | X38: 1 | Y38: 150 | Z38: 124 | AA38: 82.7% | AB38: A
A39: Divíšek Martin | B39: A | D39: Divíšek | E39: Martin | G39: S | H39: 1968-08-27 | I39: 136 | J39: 105 | K39: 87 | L39: 88 | M39: 118 | O39: 127 | P39: 172 | Q39: 161 | R39: 98 | S39: 179 | T39: 121 | U39: 117 | V39: 132 | W39: 86 | X39: 14 | Y39: 2090 | Z39: 1727 | AA39: 82.6% | AB39: A
A40: Jankovský Jakub | B40: A | D40: Jankovský | E40: Jakub | G40: S | H40: 1992-02-02 | J40: 110 | K40: 86 | L40: 78 | N40: 130 | R40: 101 | X40: 5 | Y40: 620 | Z40: 505 | AA40: 81.5% | AB40: A
A41: Jankovský Miroslav | B41: A | D41: Jankovský | E41: Miroslav | G41: S | H41: 1963-11-22 | J41: 111 | K41: 86 | L41: 81 | N41: 118 | R41: 99 | S41: 174 | T41: 122 | W41: 79 | X41: 8 | Y41: 1070 | Z41: 870 | AA41: 81.3% | AB41: A
A42: Salaj Josef | B42: A | D42: Salaj | E42: Josef | G42: S | H42: 1962-07-05 | K42: 82 | P42: 163 | Q42: 150 | U42: 126 | W42: 87 | X42: 5 | Y42: 750 | Z42: 608 | AA42: 81.1% | AB42: A
A43: Někoranec Igor | B43: A | D43: Někoranec | E43: Igor | G43: S | W43: 81 | X43: 1 | Y43: 100 | Z43: 81 | AA43: 81.0% | AB43: A
A44: Škanta Marek | B44: A | D44: Škanta | E44: Marek | G44: S | H44: 1973-01-31 | I44: 131 | J44: 108 | L44: 86 | N44: 124 | O44: 126 | R44: 89 | T44: 128 | X44: 7 | Y44: 980 | Z44: 792 | AA44: 80.8% | AB44: A
A45: Hřebec Jan | B45: A | D45: Hřebec | E45: Jan | G45: S | I45: 131 | J45: 115 | K45: 89 | L45: 78 | M45: 114 | N45: 117 | O45: 124 | P45: 171 | Q45: 153 | R45: 86 | S45: 171 | T45: 121 | U45: 116 | V45: 130 | W45: 92 | X45: 15 | Y45: 2240 | Z45: 1808 | AA45: 80.7% | AB45: A
A46: Němeček Josef | B46: A | D46: Němeček | E46: Josef | G46: S | H46: 1971-01-30 | N46: 121 | X46: 1 | Y46: 150 | Z46: 121 | AA46: 80.7% | AB46: A
A47: Vaňáč Václav | B47: A | D47: Vaňáč | E47: Václav | G47: S | H47: 1961-01-18 | I47: 129 | K47: 83 | L47: 89 | M47: 113 | O47: 132 | Q47: 155 | R47: 94 | V47: 123 | W47: 82 | X47: 9 | Y47: 1240 | Z47: 1000 | AA47: 80.6% | AB47: A
A48: Hruška Pavel | B48: A | D48: Hruška | E48: Pavel | G48: S | H48: 1961-04-23 | L48: 82 | P48: 155 | S48: 164 | X48: 3 | Y48: 500 | Z48: 401 | AA48: 80.2% | AB48: A
A49: Šlechta Martin | B49: A | D49: Šlechta | E49: Martin | G49: S | H49: 1978-02-09 | L49: 78 | O49: 121 | X49: 2 | Y49: 250 | Z49: 199 | AA49: 79.6% | AB49: A
A50: Stanislav Tomáš | B50: A | D50: Stanislav | E50: Tomáš | G50: S | H50: 1971-02-26 | K50: 88 | P50: 165 | Q50: 158 | U50: 114 | V50: 122 | W50: 76 | X50: 6 | Y50: 910 | Z50: 723 | AA50: 79.5% | AB50: A
A51: Hondl František | B51: A | D51: Hondl | E51: František | G51: S | H51: 1979-07-09 | J51: 112 | K51: 83 | Q51: 163 | R51: 96 | U51: 115 | X51: 5 | Y51: 720 | Z51: 569 | AA51: 79.0% | AB51: A
A52: Straka Ladislav ml. | B52: A | D52: Straka | E52: Ladislav | F52: ml. | G52: S | H52: 1981-04-17 | K52: 86 | R52: 87 | W52: 78 | X52: 3 | Y52: 320 | Z52: 251 | AA52: 78.4% | AB52: A
A53: Štengl Jiří | B53: A | D53: Štengl | E53: Jiří | G53: S | H53: 1969-08-31 | I53: 119 | J53: 114 | K53: 79 | L53: 79 | M53: 109 | O53: 132 | P53: 165 | Q53: 161 | R53: 96 | U53: 116 | V53: 108 | W53: 84 | X53: 12 | Y53: 1740 | Z53: 1362 | AA53: 78.3% | AB53: A
A54: Komárek Josef | B54: A | D54: Komárek | E54: Josef | G54: S | H54: 1972-04-02 | J54: 109 | N54: 106 | O54: 131 | P54: 167 | Q54: 155 | R54: 85 | S54: 168 | V54: 116 | W54: 81 | X54: 9 | Y54: 1430 | Z54: 1118 | AA54: 78.2% | AB54: A
A55: Vlček Martin | B55: A | D55: Vlček | E55: Martin | G55: S | K55: 78 | X55: 1 | Y55: 100 | Z55: 78 | AA55: 78.0% | AB55: A
A56: Štícha Lubomír | B56: A | D56: Štícha | E56: Lubomír | G56: S | I56: 128 | J56: 110 | K56: 89 | L56: 82 | M56: 108 | N56: 108 | O56: 132 | Q56: 148 | R56: 92 | S56: 157 | T56: 115 | U56: 111 | V56: 128 | W56: 81 | X56: 14 | Y56: 2040 | Z56: 1589 | AA56: 77.9% | AB56: A
A57: Kaprálek Michal | B57: A | D57: Kaprálek | E57: Michal | G57: S | H57: 1974-05-20 | K57: 76 | R57: 90 | W57: 83 | X57: 3 | Y57: 320 | Z57: 249 | AA57: 77.8% | AB57: A
A58: Tomeček Karel | B58: A | D58: Tomeček | E58: Karel | G58: S | H58: 1965-07-09 | P58: 157 | W58: 76 | X58: 2 | Y58: 300 | Z58: 233 | AA58: 77.7% | AB58: A
A59: Černošek Milan | B59: A | D59: Černošek | E59: Milan | G59: S | H59: 1964-05-13 | I59: 115 | J59: 102 | K59: 79 | L59: 79 | M59: 115 | N59: 126 | P59: 154 | Q59: 148 | S59: 171 | W59: 83 | X59: 10 | Y59: 1510 | Z59: 1172 | AA59: 77.6% | AB59: A
A60: Zigo Martin | B60: A | D60: Zigo | E60: Martin | G60: S | H60: 1971-12-29 | L60: 74 | P60: 157 | X60: 2 | Y60: 300 | Z60: 231 | AA60: 77.0% | AB60: A
A61: Pacal Antonín | B61: A | D61: Pacal | E61: Antonín | G61: S | H61: 1972-01-10 | K61: 75 | W61: 79 | X61: 2 | Y61: 200 | Z61: 154 | AA61: 77.0% | AB61: A
A62: Lengyel Jan | B62: A | D62: Lengyel | E62: Jan | G62: S | H62: 1988-07-24 | I62: 119 | J62: 110 | K62: 82 | M62: 114 | N62: 116 | Q62: 160 | T62: 114 | W62: 78 | X62: 8 | Y62: 1160 | Z62: 893 | AA62: 77.0% | AB62: A
A63: Halouzka Lukáš | B63: A | D63: Halouzka | E63: Lukáš | G63: S | X63: 0 | Y63: 0 | Z63: 0 | AA63: 0.0% | AB63: A
A64: Jarolím Zdeněk | B64: A | D64: Jarolím | E64: Zdeněk | G64: S | X64: 0 | Y64: 0 | Z64: 0 | AA64: 0.0% | AB64: A
A65: Kobes Jan | B65: A | D65: Kobes | E65: Jan | G65: S | H65: 1973-07-17 | X65: 0 | Y65: 0 | Z65: 0 | AA65: 0.0% | AB65: A
A66: Kroupa Roman | B66: A | D66: Kroupa | E66: Roman | G66: S | X66: 0 | Y66: 0 | Z66: 0 | AA66: 0.0% | AB66: A
A67: Musil Zdeněk | B67: A | D67: Musil | E67: Zdeněk | G67: S | H67: 1972-08-23 | X67: 0 | Y67: 0 | Z67: 0 | AA67: 0.0% | AB67: A
A68: Pápeš Milan | B68: A | D68: Pápeš | E68: Milan | G68: S | H68: 1970-03-13 | X68: 0 | Y68: 0 | Z68: 0 | AA68: 0.0% | AB68: A
A69: Pluczinski Marcin | B69: A | D69: Pluczinski | E69: Marcin | G69: S | X69: =COUNTIF(I69:W69,">0") -> 0 | Y69: =IF(I69,$I$4) +IF(J69,$J$4) + IF(K69,$K$4) +IF(L69,$L$4) +IF(M69,$M$4) +IF(N69,$N$4) +IF(O69,$O$4) +IF(P69,$P$4) +IF(Q69,$Q$4) +IF(R69,$R$4) +IF(S69,$S$4) +IF(T69,$T$4) +IF(U69,$U$4) +IF(V69,$V$4) +IF(W69,$W$4) -> 0 | Z69: =SUM(I69:W69) -> 0 | AA69: =IF(Y69=0,0,Z69/Y69) -> 0.0% | AB69: A
A70: =D70&" "&E70&F70 -> Podsedník Ladislav | B70: =AB70 -> A | D70: Podsedník | E70: Ladislav | G70: S | X70: 0 | Y70: 0 | Z70: 0 | AA70: 0.0% | AB70: A
A71: Vranka Petr | B71: A | D71: Vranka | E71: Petr | G71: S | X71: 0 | Y71: 0 | Z71: 0 | AA71: 0.0% | AB71: A
A72: Vrzáň Josef ml. | B72: A | D72: Vrzáň | E72: Josef | F72: ml. | G72: S | H72: 1978-06-23 | X72: 0 | Y72: 0 | Z72: 0 | AA72: 0.0% | AB72: A
A73: Jiráček Zdeněk | B73: B | D73: Jiráček | E73: Zdeněk | G73: S | H73: 1958-01-07 | S73: 162 | W73: 68 | X73: 2 | Y73: 300 | Z73: 230 | AA73: 76.7% | AB73: B
A74: Pučálka Karel | B74: B | D74: Pučálka | E74: Karel | G74: S | H74: 1975-09-14 | K74: 80 | L74: 82 | N74: 110 | S74: 155 | W74: 68 | X74: 5 | Y74: 650 | Z74: 495 | AA74: 76.2% | AB74: B
A75: Mácha Karel | B75: B | D75: Mácha | E75: Karel | G75: S | H75: 1968-10-25 | K75: 78 | L75: 78 | P75: 153 | R75: 87 | X75: 4 | Y75: 520 | Z75: 396 | AA75: 76.2% | AB75: B
A76: Čechura Martin | B76: B | D76: Čechura | E76: Martin | G76: S | H76: 1966-08-05 | I76: 123 | J76: 105 | M76: 118 | T76: 123 | V76: 117 | X76: 5 | Y76: 770 | Z76: 586 | AA76: 76.1% | AB76: B
A77: Honz Petr | B77: B | D77: Honz | E77: Petr | G77: S | H77: 1965-08-25 | I77: 121 | J77: 114 | K77: 81 | L77: 75 | M77: 102 | O77: 121 | Q77: 151 | R77: 96 | T77: 110 | U77: 110 | V77: 120 | W77: 84 | X77: 12 | Y77: 1690 | Z77: 1285 | AA77: 76.0% | AB77: B
A78: Rykr Eduard | B78: B | D78: Rykr | E78: Eduard | G78: S | H78: 1962-01-28 | K78: 76 | X78: 1 | Y78: 100 | Z78: 76 | AA78: 76.0% | AB78: B
A79: Vrbas Josef | B79: B | D79: Vrbas | E79: Josef | G79: S | H79: 1962-09-16 | K79: 76 | X79: 1 | Y79: 100 | Z79: 76 | AA79: 76.0% | AB79: B
A80: Chaloupský Zdeněk | B80: B | D80: Chaloupský | E80: Zdeněk | G80: S | L80: 76 | X80: 1 | Y80: 100 | Z80: 76 | AA80: 76.0% | AB80: B
A81: Dočkal Jiří | B81: B | D81: Dočkal | E81: Jiří | G81: S | L81: 80 | W81: 71 | X81: 2 | Y81: 200 | Z81: 151 | AA81: 75.5% | AB81: B
A82: Mateiczek Marek | B82: B | D82: Mateiczek | E82: Marek | G82: S | N82: 113 | X82: 1 | Y82: 150 | Z82: 113 | AA82: 75.3% | AB82: B
A83: Novák Libor | B83: B | D83: Novák | E83: Libor | G83: S | H83: 1975-05-23 | J83: 112 | M83: 110 | W83: 79 | X83: 3 | Y83: 400 | Z83: 301 | AA83: 75.3% | AB83: B
A84: Vaněk Roman | B84: B | D84: Vaněk | E84: Roman | G84: S | H84: 1972-02-24 | I84: 120 | J84: 98 | K84: 81 | L84: 78 | M84: 99 | O84: 124 | Q84: 150 | R84: 91 | T84: 129 | U84: 114 | V84: 109 | X84: 11 | Y84: 1590 | Z84: 1193 | AA84: 75.0% | AB84: B
A85: Kraus Josef | B85: B | D85: Kraus | E85: Josef | G85: S | L85: 75 | X85: 1 | Y85: 100 | Z85: 75 | AA85: 75.0% | AB85: B
A86: Molnár Anton | B86: B | D86: Molnár | E86: Anton | G86: S | K86: 71 | R86: 92 | W86: 76 | X86: 3 | Y86: 320 | Z86: 239 | AA86: 74.7% | AB86: B
A87: Staněk Tomáš | B87: B | D87: Staněk | E87: Tomáš | G87: S | H87: 1976-05-29 | J87: 121 | K87: 60 | L87: 86 | P87: 135 | Q87: 158 | X87: 5 | Y87: 750 | Z87: 560 | AA87: 74.7% | AB87: B
A88: Spanilý Ivo | B88: B | D88: Spanilý | E88: Ivo | G88: S | H88: 1969-04-27 | K88: 73 | W88: 76 | X88: 2 | Y88: 200 | Z88: 149 | AA88: 74.5% | AB88: B
A89: Sochor Jiří | B89: B | D89: Sochor | E89: Jiří | G89: S | H89: 1965-09-19 | P89: 149 | X89: 1 | Y89: 200 | Z89: 149 | AA89: 74.5% | AB89: B
A90: Borák Ondřej | B90: B | D90: Borák | E90: Ondřej | G90: S | H90: 1982-09-17 | J90: 108 | L90: 78 | X90: 2 | Y90: 250 | Z90: 186 | AA90: 74.4% | AB90: B
A91: Mocek Michal | B91: B | D91: Mocek | E91: Michal | G91: S | H91: 1977-06-21 | L91: 77 | U91: 109 | X91: 2 | Y91: 250 | Z91: 186 | AA91: 74.4% | AB91: B
A92: Bělík Michal | B92: B | D92: Bělík | E92: Michal | G92: S | H92: 1977-08-16 | K92: 74 | X92: 1 | Y92: 100 | Z92: 74 | AA92: 74.0% | AB92: B
A93: Chrudimský Petr | B93: B | D93: Chrudimský | E93: Petr | G93: S | H93: 1970-08-05 | L93: 74 | X93: 1 | Y93: 100 | Z93: 74 | AA93: 74.0% | AB93: B
A94: Koloc Martin | B94: B | D94: Koloc | E94: Martin | G94: S | H94: 1961-07-10 | K94: 85 | R94: 80 | S94: 160 | T94: 115 | U94: 100 | V94: 109 | W94: 76 | X94: 7 | Y94: 980 | Z94: 725 | AA94: 74.0% | AB94: B
A95: Fojt Martin | B95: B | D95: Fojt | E95: Martin | G95: S | H95: 1979-09-10 | K95: 77 | W95: 70 | X95: 2 | Y95: 200 | Z95: 147 | AA95: 73.5% | AB95: B
A96: Husar Vladimír | B96: B | D96: Husar | E96: Vladimír | G96: S | H96: 1973-03-13 | I96: 123 | J96: 100 | K96: 77 | L96: 83 | M96: 101 | R96: 82 | T96: 118 | U96: 104 | V96: 117 | W96: 78 | X96: 10 | Y96: 1340 | Z96: 983 | AA96: 73.4% | AB96: B
A97: Ušatý Miroslav | B97: B | D97: Ušatý | E97: Miroslav | G97: S | H97: 1970-03-13 | L97: 73 | X97: 1 | Y97: 100 | Z97: 73 | AA97: 73.0% | AB97: B
A98: Lengyel Ivan | B98: B | D98: Lengyel | E98: Ivan | G98: S | H98: 1961-10-24 | K98: 75 | M98: 104 | N98: 108 | R98: 87 | T98: 114 | X98: 5 | Y98: 670 | Z98: 488 | AA98: 72.8% | AB98: B
A99: Kadlec Miroslav | B99: B | D99: Kadlec | E99: Miroslav | G99: S | H99: 1983-10-06 | R99: 87 | X99: 1 | Y99: 120 | Z99: 87 | AA99: 72.5% | AB99: B
A100: Lengyel Jiří | B100: B | D100: Lengyel | E100: Jiří | G100: S | H100: 1961-10-24 | J100: 102 | K100: 85 | M100: 99 | N100: 112 | R100: 87 | U100: 104 | W100: 77 | X100: 7 | Y100: 920 | Z100: 666 | AA100: 72.4% | AB100: B
A101: Kyliánek Petr | B101: B | D101: Kyliánek | E101: Petr | G101: S | H101: 1971-05-11 | L101: 75 | M101: 110 | R101: 82 | X101: 3 | Y101: 370 | Z101: 267 | AA101: 72.2% | AB101: B
A102: Potůček Jaroslav | B102: B | D102: Potůček | E102: Jaroslav | G102: S | H102: 1974-10-18 | K102: 72 | O102: 111 | R102: 74 | T102: 114 | W102: 76 | X102: 5 | Y102: 620 | Z102: 447 | AA102: 72.1% | AB102: B
A103: Staněk Karel | B103: B | D103: Staněk | E103: Karel | G103: S | H103: 1981-04-13 | J103: 93 | L103: 83 | Q103: 148 | X103: 3 | Y103: 450 | Z103: 324 | AA103: 72.0% | AB103: B
A104: Šrom Petr | B104: B | D104: Šrom | E104: Petr | G104: S | L104: 72 | X104: 1 | Y104: 100 | Z104: 72 | AA104: 72.0% | AB104: B
A105: Vala Jiří | B105: B | D105: Vala | E105: Jiří | G105: S | K105: 72 | X105: 1 | Y105: 100 | Z105: 72 | AA105: 72.0% | AB105: B
A106: Sokola Bronislav | B106: B | D106: Sokola | E106: Bronislav | G106: S | H106: 1966-06-19 | K106: 76 | P106: 149 | U106: 97 | W106: 73 | X106: 4 | Y106: 550 | Z106: 395 | AA106: 71.8% | AB106: B
A107: Hertl Igor | B107: B | D107: Hertl | E107: Igor | G107: S | M107: 103 | N107: 111 | Q107: 145 | R107: 92 | S107: 162 | U107: 92 | V107: 102 | X107: 7 | Y107: 1130 | Z107: 807 | AA107: 71.4% | AB107: B
A108: Mikulka Peter | B108: B | D108: Mikulka | E108: Peter | G108: S | I108: 122 | K108: 73 | L108: 76 | M108: 99 | N108: 100 | O108: 123 | P108: 149 | Q108: 129 | R108: 83 | S108: 156 | U108: 96 | V108: 102 | W108: 74 | X108: 13 | Y108: 1940 | Z108: 1382 | AA108: 71.2% | AB108: B
A109: Petrůj Zdeněk | B109: B | D109: Petrůj | E109: Zdeněk | G109: S | L109: 71 | X109: 1 | Y109: 100 | Z109: 71 | AA109: 71.0% | AB109: B
A110: Kotrc Karel | B110: B | D110: Kotrc | E110: Karel | G110: S | H110: 1960-12-10 | L110: 73 | R110: 83 | X110: 2 | Y110: 220 | Z110: 156 | AA110: 70.9% | AB110: B
A111: Škrna Jiří | B111: B | D111: Škrna | E111: Jiří | G111: S | R111: 85 | X111: 1 | Y111: 120 | Z111: 85 | AA111: 70.8% | AB111: B
A112: Jedros Witold | B112: B | D112: Jedros | E112: Witold | G112: S | O112: 106 | X112: 1 | Y112: 150 | Z112: 106 | AA112: 70.7% | AB112: B
A113: Volf Jan | B113: B | D113: Volf | E113: Jan | G113: S | P113: 141 | X113: 1 | Y113: 200 | Z113: 141 | AA113: 70.5% | AB113: B
A114: Steiner Jan | B114: B | D114: Steiner | E114: Jan | G114: S | H114: 1971-03-11 | M114: 103 | R114: 87 | X114: 2 | Y114: 270 | Z114: 190 | AA114: 70.4% | AB114: B
A115: Žofka Josef | B115: B | D115: Žofka | E115: Josef | G115: S | J115: 102 | O115: 100 | T115: 108 | V115: 117 | X115: 4 | Y115: 610 | Z115: 427 | AA115: 70.0% | AB115: B
A116: Pulicar Jaroslav | B116: B | D116: Pulicar | E116: Jaroslav | G116: S | K116: 66 | L116: 74 | X116: 2 | Y116: 200 | Z116: 140 | AA116: 70.0% | AB116: B
A117: Cieplik Waldemar | B117: B | D117: Cieplik | E117: Waldemar | G117: S | O117: 105 | X117: 1 | Y117: 150 | Z117: 105 | AA117: 70.0% | AB117: B
A118: Hanuš Jan | B118: B | D118: Hanuš | E118: Jan | G118: S | H118: 1970-03-13 | R118: 84 | X118: 1 | Y118: 120 | Z118: 84 | AA118: 70.0% | AB118: B
A119: Musel Jan | B119: B | D119: Musel | E119: Jan | G119: S | H119: 1970-03-13 | R119: 81 | U119: 107 | X119: 2 | Y119: 270 | Z119: 188 | AA119: 69.6% | AB119: B
A120: Neuvirt Martin | B120: B | D120: Neuvirt | E120: Martin | G120: S | H120: 1978-08-08 | I120: 99 | J120: 84 | L120: 54 | M120: 102 | O120: 119 | Q120: 151 | S120: 158 | T120: 115 | U120: 104 | V120: 111 | W120: 65 | X120: 11 | Y120: 1670 | Z120: 1162 | AA120: 69.6% | AB120: B
A121: Kopáček Pavel | B121: B | D121: Kopáček | E121: Pavel | G121: S | L121: 78 | R121: 74 | W121: 70 | X121: 3 | Y121: 320 | Z121: 222 | AA121: 69.4% | AB121: B
A122: Vostárek Jindřich | B122: B | D122: Vostárek | E122: Jindřich | G122: S | I122: 111 | X122: 1 | Y122: 160 | Z122: 111 | AA122: 69.4% | AB122: B
A123: Divíšek Tomáš | B123: B | D123: Divíšek | E123: Tomáš | G123: S | H123: 1973-02-26 | U123: 104 | X123: 1 | Y123: 150 | Z123: 104 | AA123: 69.3% | AB123: B
A124: Hlaváček Václav | B124: B | D124: Hlaváček | E124: Václav | G124: S | H124: 1975-07-21 | K124: 69 | X124: 1 | Y124: 100 | Z124: 69 | AA124: 69.0% | AB124: B
A125: Forster Gustav | B125: B | D125: Forster | E125: Gustav | G125: S | K125: 69 | X125: 1 | Y125: 100 | Z125: 69 | AA125: 69.0% | AB125: B
A126: Krázel Stanislav | B126: B | D126: Krázel | E126: Stanislav | G126: S | K126: 69 | X126: 1 | Y126: 100 | Z126: 69 | AA126: 69.0% | AB126: B
A127: Poupě Jaroslav | B127: B | D127: Poupě | E127: Jaroslav | G127: S | K127: 69 | X127: 1 | Y127: 100 | Z127: 69 | AA127: 69.0% | AB127: B
A128: Čech Pavel | B128: B | D128: Čech | E128: Pavel | G128: S | H128: 1976-02-24 | K128: 69 | X128: 1 | Y128: 100 | Z128: 69 | AA128: 69.0% | AB128: B
A129: Hanuš Jan | B129: B | D129: Hanuš | E129: Jan | G129: S | U129: 103 | X129: 1 | Y129: 150 | Z129: 103 | AA129: 68.7% | AB129: B
A130: Málek Vlastimil | B130: B | D130: Málek | E130: Vlastimil | G130: S | J130: 100 | K130: 78 | M130: 93 | V130: 113 | X130: 4 | Y130: 560 | Z130: 384 | AA130: 68.6% | AB130: B
A131: Klement Petr | B131: B | D131: Klement | E131: Petr | G131: S | K131: 65 | W131: 72 | X131: 2 | Y131: 200 | Z131: 137 | AA131: 68.5% | AB131: B
A132: Vranka David | B132: B | D132: Vranka | E132: David | G132: S | K132: 78 | N132: 103 | W132: 57 | X132: 3 | Y132: 350 | Z132: 238 | AA132: 68.0% | AB132: B
A133: Lebloch Vladimír | B133: B | D133: Lebloch | E133: Vladimír | G133: S | W133: 68 | X133: =COUNTIF(I133:W133,">0") -> 1 | Y133: =IF(I133,$I$4) +IF(J133,$J$4) + IF(K133,$K$4) +IF(L133,$L$4) +IF(M133,$M$4) +IF(N133,$N$4) +IF(O133,$O$4) +IF(P133,$P$4) +IF(Q133,$Q$4) +IF(R133,$R$4) +IF(S133,$S$4) +IF(T133,$T$4) +IF(U133,$U$4) +IF(V133,$V$4) +IF(W133,$W$4) -> 100 | Z133: =SUM(I133:W133) -> 68 | AA133: =IF(Y133=0,0,Z133/Y133) -> 68.0% | AB133: B
A134: =D134&" "&E134&F134 -> Vrzáň Josef | B134: =AB134 -> B | D134: Vrzáň | E134: Josef | G134: S | U134: 102 | X134: 1 | Y134: 150 | Z134: 102 | AA134: 68.0% | AB134: B
A135: Prokop Jiří | B135: B | D135: Prokop | E135: Jiří | G135: S | K135: 71 | R135: 87 | U135: 88 | V135: 105 | W135: 77 | X135: 5 | Y135: 630 | Z135: 428 | AA135: 67.9% | AB135: B
A136: Vavrečka Michal | B136: B | D136: Vavrečka | E136: Michal | G136: S | L136: 70 | N136: 100 | U136: 101 | W136: 67 | X136: 4 | Y136: 500 | Z136: 338 | AA136: 67.6% | AB136: B
A137: Buda Dušan | B137: B | D137: Buda | E137: Dušan | G137: S | W137: 67 | X137: 1 | Y137: 100 | Z137: 67 | AA137: 67.0% | AB137: B
A138: Hnízdil Milan | B138: B | D138: Hnízdil | E138: Milan | G138: S | H138: 1957-03-04 | W138: 67 | X138: 1 | Y138: 100 | Z138: 67 | AA138: 67.0% | AB138: B
A139: Frnoch Milan | B139: B | D139: Frnoch | E139: Milan | G139: S | H139: 1958-01-14 | L139: 67 | X139: 1 | Y139: 100 | Z139: 67 | AA139: 67.0% | AB139: B
A140: Němec Vít | B140: B | D140: Němec | E140: Vít | G140: S | J140: 98 | K140: 61 | Q140: 137 | T140: 110 | V140: 103 | X140: 5 | Y140: 760 | Z140: 509 | AA140: 67.0% | AB140: B
A141: Babický Jiří | B141: B | D141: Babický | E141: Jiří | G141: S | H141: 1966-04-10 | X141: 0 | Y141: 0 | Z141: 0 | AA141: 0.0% | AB141: B
A142: Bejček Václav ml. | B142: B | D142: Bejček | E142: Václav | F142: ml. | G142: S | X142: 0 | Y142: 0 | Z142: 0 | AA142: 0.0% | AB142: B
A143: Beneš Jan | B143: B | D143: Beneš | E143: Jan | G143: S | H143: 1968-12-05 | X143: 0 | Y143: 0 | Z143: 0 | AA143: 0.0% | AB143: B
A144: Červenka Zbyněk | B144: B | D144: Červenka | E144: Zbyněk | G144: S | H144: 1988-04-28 | X144: 0 | Y144: 0 | Z144: 0 | AA144: 0.0% | AB144: B
A145: Čuda Milan | B145: B | D145: Čuda | E145: Milan | G145: S | H145: 1974-01-23 | X145: 0 | Y145: 0 | Z145: 0 | AA145: 0.0% | AB145: B
A146: Hrouda Josef | B146: B | D146: Hrouda | E146: Josef | G146: S | H146: 1970-03-14 | X146: 0 | Y146: 0 | Z146: 0 | AA146: 0.0% | AB146: B
A147: Kaiser Vladimír | B147: B | D147: Kaiser | E147: Vladimír | G147: S | X147: 0 | Y147: 0 | Z147: 0 | AA147: 0.0% | AB147: B
A148: Kodeš Václav | B148: B | D148: Kodeš | E148: Václav | G148: S | H148: 1962-06-11 | X148: 0 | Y148: 0 | Z148: 0 | AA148: 0.0% | AB148: B
A149: Krejza Jan | B149: B | D149: Krejza | E149: Jan | G149: S | H149: 1985-08-14 | X149: 0 | Y149: 0 | Z149: 0 | AA149: 0.0% | AB149: B
A150: Kytlica Vilém | B150: B | D150: Kytlica | E150: Vilém | G150: S | X150: 0 | Y150: 0 | Z150: 0 | AA150: 0.0% | AB150: B
A151: Liška Vladislav | B151: B | D151: Liška | E151: Vladislav | G151: S | X151: 0 | Y151: 0 | Z151: 0 | AA151: 0.0% | AB151: B
A152: Mach Jan | B152: B | D152: Mach | E152: Jan | G152: S | X152: 0 | Y152: 0 | Z152: 0 | AA152: 0.0% | AB152: B
A153: Maruška Jaromír | B153: B | D153: Maruška | E153: Jaromír | G153: S | H153: 1976-08-12 | X153: 0 | Y153: 0 | Z153: 0 | AA153: 0.0% | AB153: B
A154: Minář Jaroslav | B154: B | D154: Minář | E154: Jaroslav | G154: S | X154: 0 | Y154: 0 | Z154: 0 | AA154: 0.0% | AB154: B
A155: Mládek Jan | B155: B | D155: Mládek | E155: Jan | G155: S | X155: 0 | Y155: 0 | Z155: 0 | AA155: 0.0% | AB155: B
A156: Nesiba Josef | B156: B | D156: Nesiba | E156: Josef | G156: S | H156: 1967-03-05 | X156: 0 | Y156: 0 | Z156: 0 | AA156: 0.0% | AB156: B
A157: Neuman Miloslav | B157: B | D157: Neuman | E157: Miloslav | G157: S | H157: 1982-03-16 | X157: 0 | Y157: 0 | Z157: 0 | AA157: 0.0% | AB157: B
A158: Ornst Milan | B158: B | D158: Ornst | E158: Milan | G158: S | H158: 1960-07-02 | X158: 0 | Y158: 0 | Z158: 0 | AA158: 0.0% | AB158: B
A159: Pandula Ivan | B159: B | D159: Pandula | E159: Ivan | G159: S | X159: 0 | Y159: 0 | Z159: 0 | AA159: 0.0% | AB159: B
A160: Pospíšil Stanislav | B160: B | D160: Pospíšil | E160: Stanislav | G160: S | X160: 0 | Y160: 0 | Z160: 0 | AA160: 0.0% | AB160: B
A161: Racek Petr | B161: B | D161: Racek | E161: Petr | G161: S | X161: 0 | Y161: 0 | Z161: 0 | AA161: 0.0% | AB161: B
A162: Stránský Lukáš | B162: B | D162: Stránský | E162: Lukáš | G162: S | X162: 0 | Y162: 0 | Z162: 0 | AA162: 0.0% | AB162: B
A163: Svoboda Vít | B163: B | D163: Svoboda | E163: Vít | G163: S | X163: 0 | Y163: 0 | Z163: 0 | AA163: 0.0% | AB163: B
A164: Sysel Tomáš | B164: B | D164: Sysel | E164: Tomáš | G164: S | X164: 0 | Y164: 0 | Z164: 0 | AA164: 0.0% | AB164: B
A165: Šílený Josef | B165: B | D165: Šílený | E165: Josef | G165: S | X165: 0 | Y165: 0 | Z165: 0 | AA165: 0.0% | AB165: B
A166: Šindelář Milan | B166: B | D166: Šindelář | E166: Milan | G166: S | H166: 1962-10-17 | X166: 0 | Y166: 0 | Z166: 0 | AA166: 0.0% | AB166: B
A167: Tůma Martin | B167: B | D167: Tůma | E167: Martin | G167: S | X167: 0 | Y167: 0 | Z167: 0 | AA167: 0.0% | AB167: B
A168: Valapka Peter | B168: B | D168: Valapka | E168: Peter | G168: S | H168: 1961-11-14 | X168: 0 | Y168: 0 | Z168: 0 | AA168: 0.0% | AB168: B
A169: Zíta Ladislav | B169: B | D169: Zíta | E169: Ladislav | G169: S | X169: 0 | Y169: 0 | Z169: 0 | AA169: 0.0% | AB169: B
A170: Žák Josef | B170: B | D170: Žák | E170: Josef | G170: S | X170: 0 | Y170: 0 | Z170: 0 | AA170: 0.0% | AB170: B
A171: Pražák Petr | B171: C | D171: Pražák | E171: Petr | G171: S | H171: 1983-05-15 | L171: 70 | U171: 97 | X171: 2 | Y171: 250 | Z171: 167 | AA171: 66.8% | AB171: C
A172: Kaiser Vladimír | B172: C | D172: Kaiser | E172: Vladimír | G172: S | R172: 80 | X172: 1 | Y172: 120 | Z172: 80 | AA172: 66.7% | AB172: C
A173: Hertl Rastislav | B173: C | D173: Hertl | E173: Rastislav | G173: S | N173: 101 | P173: 134 | U173: 97 | X173: 3 | Y173: 500 | Z173: 332 | AA173: 66.4% | AB173: C
A174: Kašpar Jiří | B174: C | D174: Kašpar | E174: Jiří | G174: S | H174: 1965-06-16 | U174: 96 | W174: 70 | X174: 2 | Y174: 250 | Z174: 166 | AA174: 66.4% | AB174: C
A175: Němec Tomáš | B175: C | D175: Němec | E175: Tomáš | G175: S | I175: 99 | M175: 109 | O175: 105 | Q175: 135 | R175: 70 | T175: 98 | X175: 6 | Y175: 930 | Z175: 616 | AA175: 66.2% | AB175: C
A176: Hýna Roman | B176: C | D176: Hýna | E176: Roman | G176: S | I176: 97 | J176: 90 | M176: 92 | O176: 99 | T176: 101 | V176: 120 | X176: 6 | Y176: 920 | Z176: 599 | AA176: 65.1% | AB176: C
A177: Čech Antonín | B177: C | D177: Čech | E177: Antonín | G177: S | L177: 65 | X177: 1 | Y177: 100 | Z177: 65 | AA177: 65.0% | AB177: C
A178: Gregor Aleš | B178: C | D178: Gregor | E178: Aleš | G178: S | H178: 1964-07-29 | K178: 70 | N178: 96 | P178: 141 | R178: 81 | U178: 86 | W178: 58 | X178: 6 | Y178: 820 | Z178: 532 | AA178: 64.9% | AB178: C
A179: Vranák Martin | B179: C | D179: Vranák | E179: Martin | G179: S | I179: 103 | J179: 82 | K179: 61 | M179: 91 | O179: 114 | P179: 140 | Q179: 107 | T179: 103 | U179: 93 | V179: 104 | W179: 76 | X179: 11 | Y179: 1670 | Z179: 1074 | AA179: 64.3% | AB179: C
A180: Červenka Jaroslav | B180: C | D180: Červenka | E180: Jaroslav | G180: S | L180: 68 | U180: 92 | X180: 2 | Y180: 250 | Z180: 160 | AA180: 64.0% | AB180: C
A181: Kirchner Milan | B181: C | D181: Kirchner | E181: Milan | G181: S | H181: 1966-11-11 | U181: 96 | X181: 1 | Y181: 150 | Z181: 96 | AA181: 64.0% | AB181: C
A182: Walter Michael | B182: C | D182: Walter | E182: Michael | G182: S | W182: 64 | X182: 1 | Y182: 100 | Z182: 64 | AA182: 64.0% | AB182: C
A183: Vícha Jakub | B183: C | D183: Vícha | E183: Jakub | G183: S | I183: 113 | P183: 117 | X183: 2 | Y183: 360 | Z183: 230 | AA183: 63.9% | AB183: C
A184: Matoušek Václav | B184: C | D184: Matoušek | E184: Václav | G184: S | H184: 1959-08-12 | K184: 64 | U184: 95 | X184: 2 | Y184: 250 | Z184: 159 | AA184: 63.6% | AB184: C
A185: Kolacia Pavel | B185: C | D185: Kolacia | E185: Pavel | G185: S | P185: 127 | X185: 1 | Y185: 200 | Z185: 127 | AA185: 63.5% | AB185: C
A186: Černý Bohuslav | B186: C | D186: Černý | E186: Bohuslav | G186: S | H186: 1966-08-22 | U186: 95 | X186: 1 | Y186: 150 | Z186: 95 | AA186: 63.3% | AB186: C
A187: Hosnedl Pavel | B187: C | D187: Hosnedl | E187: Pavel | G187: S | U187: 95 | X187: 1 | Y187: 150 | Z187: 95 | AA187: 63.3% | AB187: C
A188: Pospíšil Lubomír | B188: C | D188: Pospíšil | E188: Lubomír | G188: S | N188: 95 | X188: 1 | Y188: 150 | Z188: 95 | AA188: 63.3% | AB188: C
A189: Vrňák Libor | B189: C | D189: Vrňák | E189: Libor | G189: S | W189: 63 | X189: 1 | Y189: 100 | Z189: 63 | AA189: 63.0% | AB189: C
A190: Hoštička Eduard | B190: C | D190: Hoštička | E190: Eduard | G190: S | H190: 1974-03-29 | I190: 107 | J190: 91 | N190: 87 | Q190: 116 | R190: 51 | S190: 150 | T190: 113 | U190: 94 | V190: 90 | W190: 69 | X190: 10 | Y190: 1540 | Z190: 968 | AA190: 62.9% | AB190: C
A191: Rataj Václav | B191: C | D191: Rataj | E191: Václav | G191: S | I191: 92 | J191: 84 | M191: 83 | O191: 116 | T191: 104 | V191: 98 | X191: 6 | Y191: 920 | Z191: 577 | AA191: 62.7% | AB191: C
A192: Weiss Josef | B192: C | D192: Weiss | E192: Josef | G192: S | H192: 1962-08-19 | J192: 80 | P192: 118 | R192: 82 | S192: 145 | T192: 103 | U192: 80 | V192: 102 | W192: 60 | X192: 8 | Y192: 1230 | Z192: 770 | AA192: 62.6% | AB192: C
A193: Zborník Karel | B193: C | D193: Zborník | E193: Karel | G193: S | H193: 1969-03-05 | K193: 71 | L193: 55 | U193: 93 | X193: 3 | Y193: 350 | Z193: 219 | AA193: 62.6% | AB193: C
A194: Kureš Jan | B194: C | D194: Kureš | E194: Jan | G194: S | K194: 63 | T194: 93 | W194: 62 | X194: 3 | Y194: 350 | Z194: 218 | AA194: 62.3% | AB194: C
A195: Korál Petr | B195: C | D195: Korál | E195: Petr | G195: S | H195: 1974-01-16 | I195: 107 | J195: 91 | L195: 59 | M195: 85 | N195: 82 | O195: 91 | P195: 124 | Q195: 121 | R195: 75 | S195: 134 | T195: 105 | U195: 99 | V195: 93 | X195: 13 | Y195: 2040 | Z195: 1266 | AA195: 62.1% | AB195: C
A196: Rykr Eduard ml. | B196: C | D196: Rykr | E196: Eduard | F196: ml. | G196: S | H196: 1989-10-09 | K196: 62 | X196: 1 | Y196: 100 | Z196: 62 | AA196: 62.0% | AB196: C
A197: Hlušička Martin | B197: C | D197: Hlušička | E197: Martin | G197: S | L197: 62 | X197: =COUNTIF(I197:W197,">0") -> 1 | Y197: =IF(I197,$I$4) +IF(J197,$J$4) + IF(K197,$K$4) +IF(L197,$L$4) +IF(M197,$M$4) +IF(N197,$N$4) +IF(O197,$O$4) +IF(P197,$P$4) +IF(Q197,$Q$4) +IF(R197,$R$4) +IF(S197,$S$4) +IF(T197,$T$4) +IF(U197,$U$4) +IF(V197,$V$4) +IF(W197,$W$4) -> 100 | Z197: =SUM(I197:W197) -> 62 | AA197: =IF(Y197=0,0,Z197/Y197) -> 62.0% | AB197: C
A198: =D198&" "&E198&F198 -> Mareš Petr | B198: =AB198 -> C | D198: Mareš | E198: Petr | G198: S | U198: 93 | X198: 1 | Y198: 150 | Z198: 93 | AA198: 62.0% | AB198: C
A199: Sahula Vlastimil | B199: C | D199: Sahula | E199: Vlastimil | G199: S | H199: 1967-02-15 | J199: 84 | K199: 62 | R199: 69 | T199: 99 | W199: 67 | X199: 5 | Y199: 620 | Z199: 381 | AA199: 61.5% | AB199: C
A200: Backa Lukáš | B200: C | D200: Backa | E200: Lukáš | G200: S | W200: 61 | X200: 1 | Y200: 100 | Z200: 61 | AA200: 61.0% | AB200: C
... 224 more rows

Sheet Data (hidden)
A1: Druhy závodů : | B1: Počet terčů v položce | C1: Počet střelišť celkem : | D1: 3
A2: SPORTING | B2: 20 | C2: Názvy linií / střelišť
A3: COMPAK SPORTING | B3: 25 | C3: Linie / střeliště č. 1 : | D3: Vysoká věž
A4: TRAP | B4: 40 | C4: Linie / střeliště č. 2 : | D4: Trap
A5: DOUBLE TRAP | B5: 50 | C5: Linie / střeliště č. 3 : | D5: Zajíc
A6: SKEET | B6: 80 | C6: Linie / střeliště č. 4 :
A7: LOVECKÉ KOLO | C7: Linie / střeliště č. 5 :
C8: Linie / střeliště č. 6 :
C9: Linie / střeliště č. 7 :
C10: Linie / střeliště č. 8 :
C11: Linie / střeliště č. 9 :
C12: Linie / střeliště č. 10 :
C13: Linie / střeliště č. 11 :
A14: Počet střelců : | B14: =120-COUNTBLANK(Vstup!C9:C128) -> 48 | C14: Linie / střeliště č. 12 :
C15: Linie / střeliště č. 13 :
A16: Název závodu : | B16: Josefovský brokový trojboj | C16: Linie / střeliště č. 14 :
A17: Počet terčů : | B17: 60 | C17: Linie / střeliště č. 15 :
A18: Počet terčů v položce : | B18: 20 | C18: Linie / střeliště č. 16 :
A19: Druh závodu : | B19: SPORTING
A20: Datum : | B20: 20.03.2022
Z2999: Datum : | AA2999: =NOW() -> 2022-03-20T14:51:09.560
Z3000: Datum expirace : | AA3000: 2013-07-15
AA3001: =IF(AA3000<AA2999,0,1) -> 0

Sheet PolList (hidden)
B1: Sporting - položka 20 terčů
B2: 20 | C2: 19 | D2: 18 | E2: 17 | F2: 16 | G2: 15 | H2: 14 | I2: 13 | J2: 12 | K2: 11 | L2: 10 | M2: 9 | N2: 8 | O2: 7 | P2: 6 | Q2: 5 | R2: 4 | S2: 3 | T2: 2 | U2: 1
B6: 20 | C6: 19 | D6: 18 | E6: 17 | F6: 16 | G6: 15 | H6: 14 | I6: 13 | J6: 12 | K6: 11 | L6: 10 | M6: 9 | N6: 8 | O6: 7 | P6: 6 | Q6: 5 | R6: 4 | S6: 3 | T6: 2 | U6: 1
B10: 20 | C10: 19 | D10: 18 | E10: 17 | F10: 16 | G10: 15 | H10: 14 | I10: 13 | J10: 12 | K10: 11 | L10: 10 | M10: 9 | N10: 8 | O10: 7 | P10: 6 | Q10: 5 | R10: 4 | S10: 3 | T10: 2 | U10: 1
B14: 20 | C14: 19 | D14: 18 | E14: 17 | F14: 16 | G14: 15 | H14: 14 | I14: 13 | J14: 12 | K14: 11 | L14: 10 | M14: 9 | N14: 8 | O14: 7 | P14: 6 | Q14: 5 | R14: 4 | S14: 3 | T14: 2 | U14: 1
B18: 20 | C18: 19 | D18: 18 | E18: 17 | F18: 16 | G18: 15 | H18: 14 | I18: 13 | J18: 12 | K18: 11 | L18: 10 | M18: 9 | N18: 8 | O18: 7 | P18: 6 | Q18: 5 | R18: 4 | S18: 3 | T18: 2 | U18: 1
B22: 20 | C22: 19 | D22: 18 | E22: 17 | F22: 16 | G22: 15 | H22: 14 | I22: 13 | J22: 12 | K22: 11 | L22: 10 | M22: 9 | N22: 8 | O22: 7 | P22: 6 | Q22: 5 | R22: 4 | S22: 3 | T22: 2 | U22: 1
B27: Sporting - položka 25 terčů
B28: 25 | C28: 24 | D28: 23 | E28: 22 | F28: 21 | G28: 20 | H28: 19 | I28: 18 | J28: 17 | K28: 16 | L28: 15 | M28: 14 | N28: 13 | O28: 12 | P28: 11 | Q28: 10 | R28: 9 | S28: 8 | T28: 7 | U28: 6 | V28: 5 | W28: 4 | X28: 3 | Y28: 2 | Z28: 1
B32: 25 | C32: 24 | D32: 23 | E32: 22 | F32: 21 | G32: 20 | H32: 19 | I32: 18 | J32: 17 | K32: 16 | L32: 15 | M32: 14 | N32: 13 | O32: 12 | P32: 11 | Q32: 10 | R32: 9 | S32: 8 | T32: 7 | U32: 6 | V32: 5 | W32: 4 | X32: 3 | Y32: 2 | Z32: 1
B36: 25 | C36: 24 | D36: 23 | E36: 22 | F36: 21 | G36: 20 | H36: 19 | I36: 18 | J36: 17 | K36: 16 | L36: 15 | M36: 14 | N36: 13 | O36: 12 | P36: 11 | Q36: 10 | R36: 9 | S36: 8 | T36: 7 | U36: 6 | V36: 5 | W36: 4 | X36: 3 | Y36: 2 | Z36: 1
B40: 25 | C40: 24 | D40: 23 | E40: 22 | F40: 21 | G40: 20 | H40: 19 | I40: 18 | J40: 17 | K40: 16 | L40: 15 | M40: 14 | N40: 13 | O40: 12 | P40: 11 | Q40: 10 | R40: 9 | S40: 8 | T40: 7 | U40: 6 | V40: 5 | W40: 4 | X40: 3 | Y40: 2 | Z40: 1
B44: 25 | C44: 24 | D44: 23 | E44: 22 | F44: 21 | G44: 20 | H44: 19 | I44: 18 | J44: 17 | K44: 16 | L44: 15 | M44: 14 | N44: 13 | O44: 12 | P44: 11 | Q44: 10 | R44: 9 | S44: 8 | T44: 7 | U44: 6 | V44: 5 | W44: 4 | X44: 3 | Y44: 2 | Z44: 1
B48: 25 | C48: 24 | D48: 23 | E48: 22 | F48: 21 | G48: 20 | H48: 19 | I48: 18 | J48: 17 | K48: 16 | L48: 15 | M48: 14 | N48: 13 | O48: 12 | P48: 11 | Q48: 10 | R48: 9 | S48: 8 | T48: 7 | U48: 6 | V48: 5 | W48: 4 | X48: 3 | Y48: 2 | Z48: 1
B53: Sporting - položka 40 terčů
B54: 40 | C54: 39 | D54: 38 | E54: 37 | F54: 36 | G54: 35 | H54: 34 | I54: 33 | J54: 32 | K54: 31 | L54: 30 | M54: 29 | N54: 28 | O54: 27 | P54: 26 | Q54: 25 | R54: 24 | S54: 23 | T54: 22 | U54: 21
B56: 20 | C56: 19 | D56: 18 | E56: 17 | F56: 16 | G56: 15 | H56: 14 | I56: 13 | J56: 12 | K56: 11 | L56: 10 | M56: 9 | N56: 8 | O56: 7 | P56: 6 | Q56: 5 | R56: 4 | S56: 3 | T56: 2 | U56: 1
B58: 40 | C58: 39 | D58: 38 | E58: 37 | F58: 36 | G58: 35 | H58: 34 | I58: 33 | J58: 32 | K58: 31 | L58: 30 | M58: 29 | N58: 28 | O58: 27 | P58: 26 | Q58: 25 | R58: 24 | S58: 23 | T58: 22 | U58: 21
B60: 20 | C60: 19 | D60: 18 | E60: 17 | F60: 16 | G60: 15 | H60: 14 | I60: 13 | J60: 12 | K60: 11 | L60: 10 | M60: 9 | N60: 8 | O60: 7 | P60: 6 | Q60: 5 | R60: 4 | S60: 3 | T60: 2 | U60: 1
B62: 40 | C62: 39 | D62: 38 | E62: 37 | F62: 36 | G62: 35 | H62: 34 | I62: 33 | J62: 32 | K62: 31 | L62: 30 | M62: 29 | N62: 28 | O62: 27 | P62: 26 | Q62: 25 | R62: 24 | S62: 23 | T62: 22 | U62: 21
B64: 20 | C64: 19 | D64: 18 | E64: 17 | F64: 16 | G64: 15 | H64: 14 | I64: 13 | J64: 12 | K64: 11 | L64: 10 | M64: 9 | N64: 8 | O64: 7 | P64: 6 | Q64: 5 | R64: 4 | S64: 3 | T64: 2 | U64: 1
B66: 40 | C66: 39 | D66: 38 | E66: 37 | F66: 36 | G66: 35 | H66: 34 | I66: 33 | J66: 32 | K66: 31 | L66: 30 | M66: 29 | N66: 28 | O66: 27 | P66: 26 | Q66: 25 | R66: 24 | S66: 23 | T66: 22 | U66: 21
B68: 20 | C68: 19 | D68: 18 | E68: 17 | F68: 16 | G68: 15 | H68: 14 | I68: 13 | J68: 12 | K68: 11 | L68: 10 | M68: 9 | N68: 8 | O68: 7 | P68: 6 | Q68: 5 | R68: 4 | S68: 3 | T68: 2 | U68: 1
B70: 40 | C70: 39 | D70: 38 | E70: 37 | F70: 36 | G70: 35 | H70: 34 | I70: 33 | J70: 32 | K70: 31 | L70: 30 | M70: 29 | N70: 28 | O70: 27 | P70: 26 | Q70: 25 | R70: 24 | S70: 23 | T70: 22 | U70: 21
B72: 20 | C72: 19 | D72: 18 | E72: 17 | F72: 16 | G72: 15 | H72: 14 | I72: 13 | J72: 12 | K72: 11 | L72: 10 | M72: 9 | N72: 8 | O72: 7 | P72: 6 | Q72: 5 | R72: 4 | S72: 3 | T72: 2 | U72: 1
B74: 40 | C74: 39 | D74: 38 | E74: 37 | F74: 36 | G74: 35 | H74: 34 | I74: 33 | J74: 32 | K74: 31 | L74: 30 | M74: 29 | N74: 28 | O74: 27 | P74: 26 | Q74: 25 | R74: 24 | S74: 23 | T74: 22 | U74: 21
B76: 20 | C76: 19 | D76: 18 | E76: 17 | F76: 16 | G76: 15 | H76: 14 | I76: 13 | J76: 12 | K76: 11 | L76: 10 | M76: 9 | N76: 8 | O76: 7 | P76: 6 | Q76: 5 | R76: 4 | S76: 3 | T76: 2 | U76: 1
B79: Sporting - položka 50 terčů
B80: 50 | C80: 49 | D80: 48 | E80: 47 | F80: 46 | G80: 45 | H80: 44 | I80: 43 | J80: 42 | K80: 41 | L80: 40 | M80: 39 | N80: 38 | O80: 37 | P80: 36 | Q80: 35 | R80: 34 | S80: 33 | T80: 32 | U80: 31 | V80: 30 | W80: 29 | X80: 28 | Y80: 27 | Z80: 26
B82: 25 | C82: 24 | D82: 23 | E82: 22 | F82: 21 | G82: 20 | H82: 19 | I82: 18 | J82: 17 | K82: 16 | L82: 15 | M82: 14 | N82: 13 | O82: 12 | P82: 11 | Q82: 10 | R82: 9 | S82: 8 | T82: 7 | U82: 6 | V82: 5 | W82: 4 | X82: 3 | Y82: 2 | Z82: 1
B84: 50 | C84: 49 | D84: 48 | E84: 47 | F84: 46 | G84: 45 | H84: 44 | I84: 43 | J84: 42 | K84: 41 | L84: 40 | M84: 39 | N84: 38 | O84: 37 | P84: 36 | Q84: 35 | R84: 34 | S84: 33 | T84: 32 | U84: 31 | V84: 30 | W84: 29 | X84: 28 | Y84: 27 | Z84: 26
B86: 25 | C86: 24 | D86: 23 | E86: 22 | F86: 21 | G86: 20 | H86: 19 | I86: 18 | J86: 17 | K86: 16 | L86: 15 | M86: 14 | N86: 13 | O86: 12 | P86: 11 | Q86: 10 | R86: 9 | S86: 8 | T86: 7 | U86: 6 | V86: 5 | W86: 4 | X86: 3 | Y86: 2 | Z86: 1
B88: 50 | C88: 49 | D88: 48 | E88: 47 | F88: 46 | G88: 45 | H88: 44 | I88: 43 | J88: 42 | K88: 41 | L88: 40 | M88: 39 | N88: 38 | O88: 37 | P88: 36 | Q88: 35 | R88: 34 | S88: 33 | T88: 32 | U88: 31 | V88: 30 | W88: 29 | X88: 28 | Y88: 27 | Z88: 26
B90: 25 | C90: 24 | D90: 23 | E90: 22 | F90: 21 | G90: 20 | H90: 19 | I90: 18 | J90: 17 | K90: 16 | L90: 15 | M90: 14 | N90: 13 | O90: 12 | P90: 11 | Q90: 10 | R90: 9 | S90: 8 | T90: 7 | U90: 6 | V90: 5 | W90: 4 | X90: 3 | Y90: 2 | Z90: 1
B92: 50 | C92: 49 | D92: 48 | E92: 47 | F92: 46 | G92: 45 | H92: 44 | I92: 43 | J92: 42 | K92: 41 | L92: 40 | M92: 39 | N92: 38 | O92: 37 | P92: 36 | Q92: 35 | R92: 34 | S92: 33 | T92: 32 | U92: 31 | V92: 30 | W92: 29 | X92: 28 | Y92: 27 | Z92: 26
B94: 25 | C94: 24 | D94: 23 | E94: 22 | F94: 21 | G94: 20 | H94: 19 | I94: 18 | J94: 17 | K94: 16 | L94: 15 | M94: 14 | N94: 13 | O94: 12 | P94: 11 | Q94: 10 | R94: 9 | S94: 8 | T94: 7 | U94: 6 | V94: 5 | W94: 4 | X94: 3 | Y94: 2 | Z94: 1
B96: 50 | C96: 49 | D96: 48 | E96: 47 | F96: 46 | G96: 45 | H96: 44 | I96: 43 | J96: 42 | K96: 41 | L96: 40 | M96: 39 | N96: 38 | O96: 37 | P96: 36 | Q96: 35 | R96: 34 | S96: 33 | T96: 32 | U96: 31 | V96: 30 | W96: 29 | X96: 28 | Y96: 27 | Z96: 26
B98: 25 | C98: 24 | D98: 23 | E98: 22 | F98: 21 | G98: 20 | H98: 19 | I98: 18 | J98: 17 | K98: 16 | L98: 15 | M98: 14 | N98: 13 | O98: 12 | P98: 11 | Q98: 10 | R98: 9 | S98: 8 | T98: 7 | U98: 6 | V98: 5 | W98: 4 | X98: 3 | Y98: 2 | Z98: 1
B100: 50 | C100: 49 | D100: 48 | E100: 47 | F100: 46 | G100: 45 | H100: 44 | I100: 43 | J100: 42 | K100: 41 | L100: 40 | M100: 39 | N100: 38 | O100: 37 | P100: 36 | Q100: 35 | R100: 34 | S100: 33 | T100: 32 | U100: 31 | V100: 30 | W100: 29 | X100: 28 | Y100: 27 | Z100: 26
B102: 25 | C102: 24 | D102: 23 | E102: 22 | F102: 21 | G102: 20 | H102: 19 | I102: 18 | J102: 17 | K102: 16 | L102: 15 | M102: 14 | N102: 13 | O102: 12 | P102: 11 | Q102: 10 | R102: 9 | S102: 8 | T102: 7 | U102: 6 | V102: 5 | W102: 4 | X102: 3 | Y102: 2 | Z102: 1
B105: Sporting - položka 80 terčů
B106: 80 | C106: 79 | D106: 78 | E106: 77 | F106: 76 | G106: 75 | H106: 74 | I106: 73 | J106: 72 | K106: 71 | L106: 70 | M106: 69 | N106: 68 | O106: 67 | P106: 66 | Q106: 65 | R106: 64 | S106: 63 | T106: 62 | U106: 61
B107: 60 | C107: 59 | D107: 58 | E107: 57 | F107: 56 | G107: 55 | H107: 54 | I107: 53 | J107: 52 | K107: 51 | L107: 50 | M107: 49 | N107: 48 | O107: 47 | P107: 46 | Q107: 45 | R107: 44 | S107: 43 | T107: 42 | U107: 41
B108: 40 | C108: 39 | D108: 38 | E108: 37 | F108: 36 | G108: 35 | H108: 34 | I108: 33 | J108: 32 | K108: 31 | L108: 30 | M108: 29 | N108: 28 | O108: 27 | P108: 26 | Q108: 25 | R108: 24 | S108: 23 | T108: 22 | U108: 21
B109: 20 | C109: 19 | D109: 18 | E109: 17 | F109: 16 | G109: 15 | H109: 14 | I109: 13 | J109: 12 | K109: 11 | L109: 10 | M109: 9 | N109: 8 | O109: 7 | P109: 6 | Q109: 5 | R109: 4 | S109: 3 | T109: 2 | U109: 1
B110: 80 | C110: 79 | D110: 78 | E110: 77 | F110: 76 | G110: 75 | H110: 74 | I110: 73 | J110: 72 | K110: 71 | L110: 70 | M110: 69 | N110: 68 | O110: 67 | P110: 66 | Q110: 65 | R110: 64 | S110: 63 | T110: 62 | U110: 61
B111: 60 | C111: 59 | D111: 58 | E111: 57 | F111: 56 | G111: 55 | H111: 54 | I111: 53 | J111: 52 | K111: 51 | L111: 50 | M111: 49 | N111: 48 | O111: 47 | P111: 46 | Q111: 45 | R111: 44 | S111: 43 | T111: 42 | U111: 41
B112: 40 | C112: 39 | D112: 38 | E112: 37 | F112: 36 | G112: 35 | H112: 34 | I112: 33 | J112: 32 | K112: 31 | L112: 30 | M112: 29 | N112: 28 | O112: 27 | P112: 26 | Q112: 25 | R112: 24 | S112: 23 | T112: 22 | U112: 21
B113: 20 | C113: 19 | D113: 18 | E113: 17 | F113: 16 | G113: 15 | H113: 14 | I113: 13 | J113: 12 | K113: 11 | L113: 10 | M113: 9 | N113: 8 | O113: 7 | P113: 6 | Q113: 5 | R113: 4 | S113: 3 | T113: 2 | U113: 1
B114: 80 | C114: 79 | D114: 78 | E114: 77 | F114: 76 | G114: 75 | H114: 74 | I114: 73 | J114: 72 | K114: 71 | L114: 70 | M114: 69 | N114: 68 | O114: 67 | P114: 66 | Q114: 65 | R114: 64 | S114: 63 | T114: 62 | U114: 61
B115: 60 | C115: 59 | D115: 58 | E115: 57 | F115: 56 | G115: 55 | H115: 54 | I115: 53 | J115: 52 | K115: 51 | L115: 50 | M115: 49 | N115: 48 | O115: 47 | P115: 46 | Q115: 45 | R115: 44 | S115: 43 | T115: 42 | U115: 41
B116: 40 | C116: 39 | D116: 38 | E116: 37 | F116: 36 | G116: 35 | H116: 34 | I116: 33 | J116: 32 | K116: 31 | L116: 30 | M116: 29 | N116: 28 | O116: 27 | P116: 26 | Q116: 25 | R116: 24 | S116: 23 | T116: 22 | U116: 21
B117: 20 | C117: 19 | D117: 18 | E117: 17 | F117: 16 | G117: 15 | H117: 14 | I117: 13 | J117: 12 | K117: 11 | L117: 10 | M117: 9 | N117: 8 | O117: 7 | P117: 6 | Q117: 5 | R117: 4 | S117: 3 | T117: 2 | U117: 1
B118: 80 | C118: 79 | D118: 78 | E118: 77 | F118: 76 | G118: 75 | H118: 74 | I118: 73 | J118: 72 | K118: 71 | L118: 70 | M118: 69 | N118: 68 | O118: 67 | P118: 66 | Q118: 65 | R118: 64 | S118: 63 | T118: 62 | U118: 61
B119: 60 | C119: 59 | D119: 58 | E119: 57 | F119: 56 | G119: 55 | H119: 54 | I119: 53 | J119: 52 | K119: 51 | L119: 50 | M119: 49 | N119: 48 | O119: 47 | P119: 46 | Q119: 45 | R119: 44 | S119: 43 | T119: 42 | U119: 41
B120: 40 | C120: 39 | D120: 38 | E120: 37 | F120: 36 | G120: 35 | H120: 34 | I120: 33 | J120: 32 | K120: 31 | L120: 30 | M120: 29 | N120: 28 | O120: 27 | P120: 26 | Q120: 25 | R120: 24 | S120: 23 | T120: 22 | U120: 21
B121: 20 | C121: 19 | D121: 18 | E121: 17 | F121: 16 | G121: 15 | H121: 14 | I121: 13 | J121: 12 | K121: 11 | L121: 10 | M121: 9 | N121: 8 | O121: 7 | P121: 6 | Q121: 5 | R121: 4 | S121: 3 | T121: 2 | U121: 1
B122: 80 | C122: 79 | D122: 78 | E122: 77 | F122: 76 | G122: 75 | H122: 74 | I122: 73 | J122: 72 | K122: 71 | L122: 70 | M122: 69 | N122: 68 | O122: 67 | P122: 66 | Q122: 65 | R122: 64 | S122: 63 | T122: 62 | U122: 61
B123: 60 | C123: 59 | D123: 58 | E123: 57 | F123: 56 | G123: 55 | H123: 54 | I123: 53 | J123: 52 | K123: 51 | L123: 50 | M123: 49 | N123: 48 | O123: 47 | P123: 46 | Q123: 45 | R123: 44 | S123: 43 | T123: 42 | U123: 41
B124: 40 | C124: 39 | D124: 38 | E124: 37 | F124: 36 | G124: 35 | H124: 34 | I124: 33 | J124: 32 | K124: 31 | L124: 30 | M124: 29 | N124: 28 | O124: 27 | P124: 26 | Q124: 25 | R124: 24 | S124: 23 | T124: 22 | U124: 21
B125: 20 | C125: 19 | D125: 18 | E125: 17 | F125: 16 | G125: 15 | H125: 14 | I125: 13 | J125: 12 | K125: 11 | L125: 10 | M125: 9 | N125: 8 | O125: 7 | P125: 6 | Q125: 5 | R125: 4 | S125: 3 | T125: 2 | U125: 1
B126: 80 | C126: 79 | D126: 78 | E126: 77 | F126: 76 | G126: 75 | H126: 74 | I126: 73 | J126: 72 | K126: 71 | L126: 70 | M126: 69 | N126: 68 | O126: 67 | P126: 66 | Q126: 65 | R126: 64 | S126: 63 | T126: 62 | U126: 61
B127: 60 | C127: 59 | D127: 58 | E127: 57 | F127: 56 | G127: 55 | H127: 54 | I127: 53 | J127: 52 | K127: 51 | L127: 50 | M127: 49 | N127: 48 | O127: 47 | P127: 46 | Q127: 45 | R127: 44 | S127: 43 | T127: 42 | U127: 41
B128: 40 | C128: 39 | D128: 38 | E128: 37 | F128: 36 | G128: 35 | H128: 34 | I128: 33 | J128: 32 | K128: 31 | L128: 30 | M128: 29 | N128: 28 | O128: 27 | P128: 26 | Q128: 25 | R128: 24 | S128: 23 | T128: 22 | U128: 21
B129: 20 | C129: 19 | D129: 18 | E129: 17 | F129: 16 | G129: 15 | H129: 14 | I129: 13 | J129: 12 | K129: 11 | L129: 10 | M129: 9 | N129: 8 | O129: 7 | P129: 6 | Q129: 5 | R129: 4 | S129: 3 | T129: 2 | U129: 1
B131: Compak Sporting - položka 20 terčů
B132: Stanoviště 1 | F132: Stanoviště 2 | J132: Stanoviště 3 | N132: Stanoviště 4 | R132: Stanoviště 5
B133: 1 | C133: 2 | D133: 3 | E133: 4 | F133: 5 | G133: 6 | H133: 7 | I133: 8 | J133: 9 | K133: 10 | L133: 11 | M133: 12 | N133: 13 | O133: 14 | P133: 15 | Q133: 16 | R133: 17 | S133: 18 | T133: 19 | U133: 20
B136: Stanoviště 2 | F136: Stanoviště 3 | J136: Stanoviště 4 | N136: Stanoviště 5 | V136: Stanoviště 1
B137: 1 | C137: 2 | D137: 3 | E137: 4 | F137: 5 | G137: 6 | H137: 7 | I137: 8 | J137: 9 | K137: 10 | L137: 11 | M137: 12 | N137: 13 | O137: 14 | P137: 15 | Q137: 16 | V137: 17 | W137: 18 | X137: 19 | Y137: 20
B140: Stanoviště 3 | F140: Stanoviště 4 | J140: Stanoviště 5 | R140: Stanoviště 1 | V140: Stanoviště 2
B141: 1 | C141: 2 | D141: 3 | E141: 4 | F141: 5 | G141: 6 | H141: 7 | I141: 8 | J141: 9 | K141: 10 | L141: 11 | M141: 12 | R141: 13 | S141: 14 | T141: 15 | U141: 16 | V141: 17 | W141: 18 | X141: 19 | Y141: 20
B144: Stanoviště 4 | F144: Stanoviště 5 | N144: Stanoviště 1 | R144: Stanoviště 2 | V144: Stanoviště 3
B145: 1 | C145: 2 | D145: 3 | E145: 4 | F145: 5 | G145: 6 | H145: 7 | I145: 8 | N145: 9 | O145: 10 | P145: 11 | Q145: 12 | R145: 13 | S145: 14 | T145: 15 | U145: 16 | V145: 17 | W145: 18 | X145: 19 | Y145: 20
B148: Stanoviště 5 | J148: Stanoviště 1 | N148: Stanoviště 2 | R148: Stanoviště 3 | V148: Stanoviště 4
B149: 1 | C149: 2 | D149: 3 | E149: 4 | J149: 5 | K149: 6 | L149: 7 | M149: 8 | N149: 9 | O149: 10 | P149: 11 | Q149: 12 | R149: 13 | S149: 14 | T149: 15 | U149: 16 | V149: 17 | W149: 18 | X149: 19 | Y149: 20
F152: Stanoviště 1 | J152: Stanoviště 2 | N152: Stanoviště 3 | R152: Stanoviště 4 | V152: Stanoviště 5
F153: 1 | G153: 2 | H153: 3 | I153: 4 | J153: 5 | K153: 6 | L153: 7 | M153: 8 | N153: 9 | O153: 10 | P153: 11 | Q153: 12 | R153: 13 | S153: 14 | T153: 15 | U153: 16 | V153: 17 | W153: 18 | X153: 19 | Y153: 20
B157: Compak Sporting - položka 25 terčů
B158: Stanoviště 1 | G158: Stanoviště 2 | L158: Stanoviště 3 | Q158: Stanoviště 4 | V158: Stanoviště 5
B159: 1 | C159: 2 | D159: 3 | E159: 4 | F159: 5 | G159: 6 | H159: 7 | I159: 8 | J159: 9 | K159: 10 | L159: 11 | M159: 12 | N159: 13 | O159: 14 | P159: 15 | Q159: 16 | R159: 17 | S159: 18 | T159: 19 | U159: 20 | V159: 21 | W159: 22 | X159: 23 | Y159: 24 | Z159: 25
B162: Stanoviště 2 | G162: Stanoviště 3 | L162: Stanoviště 4 | Q162: Stanoviště 5 | AA162: Stanoviště 1
B163: 1 | C163: 2 | D163: 3 | E163: 4 | F163: 5 | G163: 6 | H163: 7 | I163: 8 | J163: 9 | K163: 10 | L163: 11 | M163: 12 | N163: 13 | O163: 14 | P163: 15 | Q163: 16 | R163: 17 | S163: 18 | T163: 19 | U163: 20 | AA163: 21 | AB163: 22 | AC163: 23 | AD163: 24 | AE163: 25
B166: Stanoviště 3 | G166: Stanoviště 4 | L166: Stanoviště 5 | V166: Stanoviště 1 | AA166: Stanoviště 2
B167: 1 | C167: 2 | D167: 3 | E167: 4 | F167: 5 | G167: 6 | H167: 7 | I167: 8 | J167: 9 | K167: 10 | L167: 11 | M167: 12 | N167: 13 | O167: 14 | P167: 15 | V167: 16 | W167: 17 | X167: 18 | Y167: 19 | Z167: 20 | AA167: 21 | AB167: 22 | AC167: 23 | AD167: 24 | AE167: 25
B170: Stanoviště 4 | G170: Stanoviště 5 | Q170: Stanoviště 1 | V170: Stanoviště 2 | AA170: Stanoviště 3
B171: 1 | C171: 2 | D171: 3 | E171: 4 | F171: 5 | G171: 6 | H171: 7 | I171: 8 | J171: 9 | K171: 10 | Q171: 11 | R171: 12 | S171: 13 | T171: 14 | U171: 15 | V171: 16 | W171: 17 | X171: 18 | Y171: 19 | Z171: 20 | AA171: 21 | AB171: 22 | AC171: 23 | AD171: 24 | AE171: 25
B174: Stanoviště 5 | L174: Stanoviště 1 | Q174: Stanoviště 2 | V174: Stanoviště 3 | AA174: Stanoviště 4
B175: 1 | C175: 2 | D175: 3 | E175: 4 | F175: 5 | L175: 6 | M175: 7 | N175: 8 | O175: 9 | P175: 10 | Q175: 11 | R175: 12 | S175: 13 | T175: 14 | U175: 15 | V175: 16 | W175: 17 | X175: 18 | Y175: 19 | Z175: 20 | AA175: 21 | AB175: 22 | AC175: 23 | AD175: 24 | AE175: 25
G178: Stanoviště 1 | L178: Stanoviště 2 | Q178: Stanoviště 3 | V178: Stanoviště 4 | AA178: Stanoviště 5
G179: 1 | H179: 2 | I179: 3 | J179: 4 | K179: 5 | L179: 6 | M179: 7 | N179: 8 | O179: 9 | P179: 10 | Q179: 11 | R179: 12 | S179: 13 | T179: 14 | U179: 15 | V179: 16 | W179: 17 | X179: 18 | Y179: 19 | Z179: 20 | AA179: 21 | AB179: 22 | AC179: 23 | AD179: 24 | AE179: 25
B183: Trap - položka 25 terčů
B184: 1 | C184: 2 | D184: 3 | E184: 4 | F184: 5 | G184: 6 | H184: 7 | I184: 8 | J184: 9 | K184: 10 | L184: 11 | M184: 12 | N184: 13 | O184: 14 | P184: 15 | Q184: 16 | R184: 17 | S184: 18 | T184: 19 | U184: 20 | V184: 21 | W184: 22 | X184: 23 | Y184: 24 | Z184: 25
B188: 1 | C188: 2 | D188: 3 | E188: 4 | F188: 5 | G188: 6 | H188: 7 | I188: 8 | J188: 9 | K188: 10 | L188: 11 | M188: 12 | N188: 13 | O188: 14 | P188: 15 | Q188: 16 | R188: 17 | S188: 18 | T188: 19 | U188: 20 | V188: 21 | W188: 22 | X188: 23 | Y188: 24 | Z188: 25
B192: 1 | C192: 2 | D192: 3 | E192: 4 | F192: 5 | G192: 6 | H192: 7 | I192: 8 | J192: 9 | K192: 10 | L192: 11 | M192: 12 | N192: 13 | O192: 14 | P192: 15 | Q192: 16 | R192: 17 | S192: 18 | T192: 19 | U192: 20 | V192: 21 | W192: 22 | X192: 23 | Y192: 24 | Z192: 25
B196: 1 | C196: 2 | D196: 3 | E196: 4 | F196: 5 | G196: 6 | H196: 7 | I196: 8 | J196: 9 | K196: 10 | L196: 11 | M196: 12 | N196: 13 | O196: 14 | P196: 15 | Q196: 16 | R196: 17 | S196: 18 | T196: 19 | U196: 20 | V196: 21 | W196: 22 | X196: 23 | Y196: 24 | Z196: 25
B200: 1 | C200: 2 | D200: 3 | E200: 4 | F200: 5 | G200: 6 | H200: 7 | I200: 8 | J200: 9 | K200: 10 | L200: 11 | M200: 12 | N200: 13 | O200: 14 | P200: 15 | Q200: 16 | R200: 17 | S200: 18 | T200: 19 | U200: 20 | V200: 21 | W200: 22 | X200: 23 | Y200: 24 | Z200: 25
B204: 1 | C204: 2 | D204: 3 | E204: 4 | F204: 5 | G204: 6 | H204: 7 | I204: 8 | J204: 9 | K204: 10 | L204: 11 | M204: 12 | N204: 13 | O204: 14 | P204: 15 | Q204: 16 | R204: 17 | S204: 18 | T204: 19 | U204: 20 | V204: 21 | W204: 22 | X204: 23 | Y204: 24 | Z204: 25
B209: Trap - položka 20 terčů
B210: 1 | C210: 2 | D210: 3 | E210: 4 | F210: 5 | G210: 6 | H210: 7 | I210: 8 | J210: 9 | K210: 10 | L210: 11 | M210: 12 | N210: 13 | O210: 14 | P210: 15 | Q210: 16 | R210: 17 | S210: 18 | T210: 19 | U210: 20
B214: 1 | C214: 2 | D214: 3 | E214: 4 | F214: 5 | G214: 6 | H214: 7 | I214: 8 | J214: 9 | K214: 10 | L214: 11 | M214: 12 | N214: 13 | O214: 14 | P214: 15 | Q214: 16 | R214: 17 | S214: 18 | T214: 19 | U214: 20
B218: 1 | C218: 2 | D218: 3 | E218: 4 | F218: 5 | G218: 6 | H218: 7 | I218: 8 | J218: 9 | K218: 10 | L218: 11 | M218: 12 | N218: 13 | O218: 14 | P218: 15 | Q218: 16 | R218: 17 | S218: 18 | T218: 19 | U218: 20
B222: 1 | C222: 2 | D222: 3 | E222: 4 | F222: 5 | G222: 6 | H222: 7 | I222: 8 | J222: 9 | K222: 10 | L222: 11 | M222: 12 | N222: 13 | O222: 14 | P222: 15 | Q222: 16 | R222: 17 | S222: 18 | T222: 19 | U222: 20
B226: 1 | C226: 2 | D226: 3 | E226: 4 | F226: 5 | G226: 6 | H226: 7 | I226: 8 | J226: 9 | K226: 10 | L226: 11 | M226: 12 | N226: 13 | O226: 14 | P226: 15 | Q226: 16 | R226: 17 | S226: 18 | T226: 19 | U226: 20
B230: 1 | C230: 2 | D230: 3 | E230: 4 | F230: 5 | G230: 6 | H230: 7 | I230: 8 | J230: 9 | K230: 10 | L230: 11 | M230: 12 | N230: 13 | O230: 14 | P230: 15 | Q230: 16 | R230: 17 | S230: 18 | T230: 19 | U230: 20
B235: Double Trap - položka 50 terčů
B236: 1 | C236: 3 | D236: 5 | E236: 7 | F236: 9 | G236: 11 | H236: 13 | I236: 15 | J236: 17 | K236: 19 | L236: 21 | M236: 23 | N236: 25 | O236: 27 | P236: 29 | Q236: 31 | R236: 33 | S236: 35 | T236: 37 | U236: 39 | V236: 41 | W236: 43 | X236: 45 | Y236: 47 | Z236: 49
B238: 2 | C238: 4 | D238: 6 | E238: 8 | F238: 10 | G238: 12 | H238: 14 | I238: 16 | J238: 18 | K238: 20 | L238: 22 | M238: 24 | N238: 26 | O238: 28 | P238: 30 | Q238: 32 | R238: 34 | S238: 36 | T238: 38 | U238: 40 | V238: 42 | W238: 44 | X238: 46 | Y238: 48 | Z238: 50
B240: 1 | C240: 3 | D240: 5 | E240: 7 | F240: 9 | G240: 11 | H240: 13 | I240: 15 | J240: 17 | K240: 19 | L240: 21 | M240: 23 | N240: 25 | O240: 27 | P240: 29 | Q240: 31 | R240: 33 | S240: 35 | T240: 37 | U240: 39 | V240: 41 | W240: 43 | X240: 45 | Y240: 47 | Z240: 49
B242: 2 | C242: 4 | D242: 6 | E242: 8 | F242: 10 | G242: 12 | H242: 14 | I242: 16 | J242: 18 | K242: 20 | L242: 22 | M242: 24 | N242: 26 | O242: 28 | P242: 30 | Q242: 32 | R242: 34 | S242: 36 | T242: 38 | U242: 40 | V242: 42 | W242: 44 | X242: 46 | Y242: 48 | Z242: 50
B244: 1 | C244: 3 | D244: 5 | E244: 7 | F244: 9 | G244: 11 | H244: 13 | I244: 15 | J244: 17 | K244: 19 | L244: 21 | M244: 23 | N244: 25 | O244: 27 | P244: 29 | Q244: 31 | R244: 33 | S244: 35 | T244: 37 | U244: 39 | V244: 41 | W244: 43 | X244: 45 | Y244: 47 | Z244: 49
B246: 2 | C246: 4 | D246: 6 | E246: 8 | F246: 10 | G246: 12 | H246: 14 | I246: 16 | J246: 18 | K246: 20 | L246: 22 | M246: 24 | N246: 26 | O246: 28 | P246: 30 | Q246: 32 | R246: 34 | S246: 36 | T246: 38 | U246: 40 | V246: 42 | W246: 44 | X246: 46 | Y246: 48 | Z246: 50
B248: 1 | C248: 3 | D248: 5 | E248: 7 | F248: 9 | G248: 11 | H248: 13 | I248: 15 | J248: 17 | K248: 19 | L248: 21 | M248: 23 | N248: 25 | O248: 27 | P248: 29 | Q248: 31 | R248: 33 | S248: 35 | T248: 37 | U248: 39 | V248: 41 | W248: 43 | X248: 45 | Y248: 47 | Z248: 49
B250: 2 | C250: 4 | D250: 6 | E250: 8 | F250: 10 | G250: 12 | H250: 14 | I250: 16 | J250: 18 | K250: 20 | L250: 22 | M250: 24 | N250: 26 | O250: 28 | P250: 30 | Q250: 32 | R250: 34 | S250: 36 | T250: 38 | U250: 40 | V250: 42 | W250: 44 | X250: 46 | Y250: 48 | Z250: 50
B252: 1 | C252: 3 | D252: 5 | E252: 7 | F252: 9 | G252: 11 | H252: 13 | I252: 15 | J252: 17 | K252: 19 | L252: 21 | M252: 23 | N252: 25 | O252: 27 | P252: 29 | Q252: 31 | R252: 33 | S252: 35 | T252: 37 | U252: 39 | V252: 41 | W252: 43 | X252: 45 | Y252: 47 | Z252: 49
B254: 2 | C254: 4 | D254: 6 | E254: 8 | F254: 10 | G254: 12 | H254: 14 | I254: 16 | J254: 18 | K254: 20 | L254: 22 | M254: 24 | N254: 26 | O254: 28 | P254: 30 | Q254: 32 | R254: 34 | S254: 36 | T254: 38 | U254: 40 | V254: 42 | W254: 44 | X254: 46 | Y254: 48 | Z254: 50
B256: 1 | C256: 3 | D256: 5 | E256: 7 | F256: 9 | G256: 11 | H256: 13 | I256: 15 | J256: 17 | K256: 19 | L256: 21 | M256: 23 | N256: 25 | O256: 27 | P256: 29 | Q256: 31 | R256: 33 | S256: 35 | T256: 37 | U256: 39 | V256: 41 | W256: 43 | X256: 45 | Y256: 47 | Z256: 49
B258: 2 | C258: 4 | D258: 6 | E258: 8 | F258: 10 | G258: 12 | H258: 14 | I258: 16 | J258: 18 | K258: 20 | L258: 22 | M258: 24 | N258: 26 | O258: 28 | P258: 30 | Q258: 32 | R258: 34 | S258: 36 | T258: 38 | U258: 40 | V258: 42 | W258: 44 | X258: 46 | Y258: 48 | Z258: 50
B261: Lovecké kolo - položka 20 terčů
B262: 1 | C262: 2 | D262: 3 | E262: 4 | F262: 5 | G262: 6 | H262: 7 | I262: 8 | J262: 9 | K262: 10 | L262: 11 | M262: 12 | N262: 13 | O262: 14 | P262: 15 | Q262: 16 | R262: 17 | S262: 18 | T262: 19 | U262: 20
B266: 1 | C266: 2 | D266: 3 | E266: 4 | F266: 5 | G266: 6 | H266: 7 | I266: 8 | J266: 9 | K266: 10 | L266: 11 | M266: 12 | N266: 13 | O266: 14 | P266: 15 | Q266: 16 | R266: 17 | S266: 18 | T266: 19 | U266: 20
B270: 1 | C270: 2 | D270: 3 | E270: 4 | F270: 5 | G270: 6 | H270: 7 | I270: 8 | J270: 9 | K270: 10 | L270: 11 | M270: 12 | N270: 13 | O270: 14 | P270: 15 | Q270: 16 | R270: 17 | S270: 18 | T270: 19 | U270: 20
B274: 1 | C274: 2 | D274: 3 | E274: 4 | F274: 5 | G274: 6 | H274: 7 | I274: 8 | J274: 9 | K274: 10 | L274: 11 | M274: 12 | N274: 13 | O274: 14 | P274: 15 | Q274: 16 | R274: 17 | S274: 18 | T274: 19 | U274: 20
B278: 1 | C278: 2 | D278: 3 | E278: 4 | F278: 5 | G278: 6 | H278: 7 | I278: 8 | J278: 9 | K278: 10 | L278: 11 | M278: 12 | N278: 13 | O278: 14 | P278: 15 | Q278: 16 | R278: 17 | S278: 18 | T278: 19 | U278: 20
B282: 1 | C282: 2 | D282: 3 | E282: 4 | F282: 5 | G282: 6 | H282: 7 | I282: 8 | J282: 9 | K282: 10 | L282: 11 | M282: 12 | N282: 13 | O282: 14 | P282: 15 | Q282: 16 | R282: 17 | S282: 18 | T282: 19 | U282: 20
B287: Skeet - položka 25 terčů
B288: 1 | C288: 2 | D288: 3 | E288: 4 | F288: 5 | G288: 6 | H288: 7 | I288: 8 | J288: 9 | K288: 10 | L288: 11 | M288: 12 | N288: 13 | O288: 14 | P288: 15 | Q288: 16 | R288: 17 | S288: 18 | T288: 19 | U288: 20 | V288: 21 | W288: 22 | X288: 23 | Y288: 24 | Z288: 25
B292: 1 | C292: 2 | D292: 3 | E292: 4 | F292: 5 | G292: 6 | H292: 7 | I292: 8 | J292: 9 | K292: 10 | L292: 11 | M292: 12 | N292: 13 | O292: 14 | P292: 15 | Q292: 16 | R292: 17 | S292: 18 | T292: 19 | U292: 20 | V292: 21 | W292: 22 | X292: 23 | Y292: 24 | Z292: 25
B296: 1 | C296: 2 | D296: 3 | E296: 4 | F296: 5 | G296: 6 | H296: 7 | I296: 8 | J296: 9 | K296: 10 | L296: 11 | M296: 12 | N296: 13 | O296: 14 | P296: 15 | Q296: 16 | R296: 17 | S296: 18 | T296: 19 | U296: 20 | V296: 21 | W296: 22 | X296: 23 | Y296: 24 | Z296: 25
B300: 1 | C300: 2 | D300: 3 | E300: 4 | F300: 5 | G300: 6 | H300: 7 | I300: 8 | J300: 9 | K300: 10 | L300: 11 | M300: 12 | N300: 13 | O300: 14 | P300: 15 | Q300: 16 | R300: 17 | S300: 18 | T300: 19 | U300: 20 | V300: 21 | W300: 22 | X300: 23 | Y300: 24 | Z300: 25
B304: 1 | C304: 2 | D304: 3 | E304: 4 | F304: 5 | G304: 6 | H304: 7 | I304: 8 | J304: 9 | K304: 10 | L304: 11 | M304: 12 | N304: 13 | O304: 14 | P304: 15 | Q304: 16 | R304: 17 | S304: 18 | T304: 19 | U304: 20 | V304: 21 | W304: 22 | X304: 23 | Y304: 24 | Z304: 25
B308: 1 | C308: 2 | D308: 3 | E308: 4 | F308: 5 | G308: 6 | H308: 7 | I308: 8 | J308: 9 | K308: 10 | L308: 11 | M308: 12 | N308: 13 | O308: 14 | P308: 15 | Q308: 16 | R308: 17 | S308: 18 | T308: 19 | U308: 20 | V308: 21 | W308: 22 | X308: 23 | Y308: 24 | Z308: 25

Sheet List1 (hidden)
